{"text_format":"3","workbook":"xlsx","n_sheets":1,"sheets":["明细表"],"not_rendered":{"defined_names":2},"read":"whole","date_system":"1900"}

{"sheet":"明细表","index":0,"n_rows":630,"n_cols":29,"rows_kept":630,"merged":[[0,1,0,28],[1,0,4,0],[1,1,4,1],[1,2,4,2],[1,3,4,3],[1,4,4,4],[1,5,4,5],[1,6,3,8],[1,9,4,9],[1,10,4,10],[1,11,4,11],[1,12,2,13],[1,14,4,14],[1,15,1,26],[1,27,4,27],[1,28,4,28],[2,15,3,18],[2,19,2,25],[2,26,4,26],[3,12,4,12],[3,13,4,13],[3,19,3,21],[3,22,3,23],[3,24,4,24],[3,25,4,25]]}
[null,"萧县2023年巩固拓展脱贫攻坚成果和乡村振兴项目库"]
["序号","项目类别","项目名称","建设\n性质","主管部门","实施单位和责任人","项目实施地点",null,null,"建设任务（内容及规模）","时间进度\n(完成时限）","预计投资","其中：",null,"项目年度总目标","绩效目标",{"$nulls":11},"群众参与","联农带农机制"]
[{"$nulls":15},"产出指标",{"$nulls":3},"效益指标",{"$nulls":6},"满意度指标（受益人口满意度）"]
[{"$nulls":12},"财政资金","其他资金",{"$nulls":5},"经济效益指标",null,null,"社会效益指标",null,"生态效益指标","可持续影响指标"]
[{"$nulls":6},"乡镇","行政村","是否\n出列村",{"$nulls":6},"数量指标","质量指标（验收合格率）","时效指标（完工及时率）","成本指标","带动脱贫户经济总收入","资产股权年收益率","受益劳动者经济总收入","受益户数","受益人数"]
[null,"合计",{"$nulls":9},{"$f":"L7+L329+L331+L623+L627+L629","v":159868.2953},128917.8453,30950.45]
[null,"一、产业发展",{"$nulls":9},{"$f":"L8+L261","v":81888.9053},58188.9053,23700]
[null,"（一）生产项目",{"$nulls":9},{"$f":"SUM(L9:L260)","v":1910.0053},{"$f":"SUM(M9:M260)","v":1910.0053}]
[1,"生产项目（种植/养殖业）","2023年白土镇孤山村特色种养殖补贴到户项目","新建","县农业农村局","白土镇\n魏东","白土镇","孤山村","否","扶持25户脱贫户（含监测对象）发展特色种养业","2023年12月15日前",3.75,3.75,null,"扶持25户脱贫户发展特色种养业，鼓励其扩大种养殖规模。","瓜果蔬菜种植面积约25亩，养殖羊数量96只，蜜蜂20箱。",{"v":1,"d":"100%"},{"v":1,"d":"100%"},"/",8.292,"/","/",25,49,null,null,"≥95%","参与项目申报、实施过程监督、完成后受益","以产业补助的形式对脱贫户进行补助，鼓励发展特色产业，激发脱贫人口内生动力，扩大种养殖规模，增加脱贫户收入"]
[2,"生产项目（种植/养殖业）","2023年白土镇花甲寺村特色种养殖补贴到户项目","新建","县农业农村局","白土镇\n魏东","白土镇","花甲寺村","否","扶持6户脱贫户（含监测对象）发展特色种养业","2023年12月15日前",0.9,0.9,null,"扶持6户脱贫户发展特色种养业鼓励其扩大种养殖规模。","种植果树面积约2亩，养殖羊数量10只中药材4亩，蔬菜大棚2亩。",{"v":1,"d":"100%"},{"v":1,"d":"100%"},"/",1.5,"/","/",6,11,null,null,"≥95%","参与项目申报、实施过程监督、完成后受益","以产业补助的形式对脱贫户进行补助，鼓励发展特色产业，激发脱贫人口内生动力，扩大种养殖规模，增加脱贫户收入"]
[3,"生产项目（种植/养殖业）","2023年白土镇董店村特色种养殖补贴到户项目","新建","县农业农村局","白土镇\n魏东","白土镇","董店村","否","扶持17户脱贫户（含监测对象）发展特色种养业","2023年12月15日前",2.55,2.55,null,"扶持17户脱贫户发展特色种养业鼓励其扩大种养殖规模。","瓜果蔬菜种植5.4亩，羊养殖数量90只。",{"v":1,"d":"100%"},{"v":1,"d":"100%"},"/",5.1,"/",null,17,110,null,null,"≥95%","参与项目申报、实施过程监督、完成后受益","以产业补助的形式对脱贫户进行补助，鼓励发展特色产业，激发脱贫人口内生动力，扩大种养殖规模，增加脱贫户收入"]
[4,"生产项目（种植/养殖业）","2023年白土镇费村社区特色种养殖补贴到户项目","新建","县农业农村局","白土镇\n魏东","白土镇","费村社区","否","扶持2户脱贫户（含监测对象）发展特色种养业","2023年12月15日前",0.3,0.3,null,"扶持2户脱贫户发展特色种养业，鼓励其扩大种养殖规模。","种植面积3亩，养殖羊数量10只。",{"v":1,"d":"100%"},{"v":1,"d":"100%"},"/",0.69,"/","/",2,6,null,null,"≥95%","参与项目申报、实施过程监督、完成后受益","以产业补助的形式对脱贫户进行补助，鼓励发展特色产业，激发脱贫人口内生动力，扩大种养殖规模，增加脱贫户收入"]
[5,"生产项目（种植/养殖业）","2023年白土镇白土社区特色种养殖补贴到户项目","新建","县农业农村局","白土镇\n魏东","白土镇","白土社区","是","扶持6户脱贫户（含监测对象）发展特色种养业","2023年12月15日前",0.9,0.9,null,"扶持6户脱贫户发展特色种养业，鼓励其扩大种养殖规模。","养殖羊数量50只，养殖鸡500只。",{"v":1,"d":"100%"},{"v":1,"d":"100%"},"/",{"v":2.25,"d":"2.250"},"/","/",6,15,null,null,"≥95%","参与项目申报、实施过程监督、完成后受益","以产业补助的形式对脱贫户进行补助，鼓励发展特色产业，激发脱贫人口内生动力，扩大种养殖规模，增加脱贫户收入"]
[6,"生产项目（种植/养殖业）","2023年白土镇张村特色种养殖补贴到户项目","新建","县农业农村局","白土镇\n魏东","白土镇","张村","是","扶持48户脱贫户（含监测对象）发展特色种养业","2023年12月15日前",7.2,7.2,null,"扶持48户脱贫户发展特色种养业，鼓励其扩大种养殖规模。","经济作物种植面积62.9亩，瓜果蔬菜种植面积15亩，羊养殖数量382只。",{"v":1,"d":"100%"},{"v":1,"d":"100%"},"/",{"v":18.6,"d":"18.600"},"/","/",48,90,null,null,"≥95%","参与项目申报、实施过程监督、完成后受益","以产业补助的形式对脱贫户进行补助，鼓励发展特色产业，激发脱贫人口内生动力，扩大种养殖规模，增加脱贫户收入"]
[7,"生产项目（种植/养殖业）","2023年大屯镇郭阁村特色种养殖补贴到户项目","新建","县农业农村局","大屯镇\n刘文芝","大屯镇","郭阁村","否","扶持97户脱贫户（含监测对象）发展特色种养业","2023年12月15日前",13.76,13.76,null,"扶持97户脱贫户发展特色种养业，鼓励其扩大种养殖规模。","羊养殖数量670只，猪养殖数量219头，",{"v":1,"d":"100%"},{"v":1,"d":"100%"},"/",16.512,"/","/",97,220,null,null,"≥95%","参与项目申报、实施过程监督、完成后受益","以产业补助的形式对脱贫户进行补助，鼓励发展特色产业，激发脱贫人口内生动力，扩大种养殖规模，增加脱贫户收入"]
[8,"生产项目（种植/养殖业）","2023年大屯镇高楼村特色种养殖补贴到户项目","新建","县农业农村局","大屯镇\n刘文芝","大屯镇","高楼村","否","扶持52户脱贫户（含监测对象）发展特色种养业","2023年12月15日前",7.34,7.34,null,"扶持52户脱贫户发展特色种养业，鼓励其扩大种养殖规模。","瓜果蔬菜种植面积66亩，羊养殖数量430只，猪养殖数量62头",{"v":1,"d":"100%"},{"v":1,"d":"100%"},null,8.808,"/","/",52,137,null,null,"≥95%","参与项目申报、实施过程监督、完成后受益","以产业补助的形式对脱贫户进行补助，鼓励发展特色产业，激发脱贫人口内生动力，扩大种养殖规模，增加脱贫户收入"]
[9,"生产项目（种植/养殖业）","2023年大屯镇关庄村特色种养殖补贴到户项目","新建","县农业农村局","大屯镇\n刘文芝","大屯镇","关庄村","是","扶40户脱贫户（含监测对象）发展特色种养业","2023年12月15日前",5.655,5.655,null,"扶持40户脱贫户发展特色种养业，鼓励其扩大种养殖规模。","瓜果蔬菜种植面积11亩，羊养殖数量284只，猪养殖数量14头，鱼塘养殖3亩。",{"v":1,"d":"100%"},{"v":1,"d":"100%"},null,6.786,"/","/",40,89,null,null,"≥95%","参与项目申报、实施过程监督、完成后受益","以产业补助的形式对脱贫户进行补助，鼓励发展特色产业，激发脱贫人口内生动力，扩大种养殖规模，增加脱贫户收入"]
[10,"生产项目（种植/养殖业）","2023年大屯镇土山村特色种养殖补贴到户项目","新建","县农业农村局","大屯镇\n刘文芝","大屯镇","土山村","否","扶持20户脱贫户（含监测对象）发展特色种养业","2023年12月15日前",2.99,2.99,null,"扶持20户脱贫户发展特色种养业，鼓励其扩大种养殖规模。","瓜果蔬菜种植面积37亩，羊养殖数量154只，猪养殖数量60头",{"v":1,"d":"100%"},{"v":1,"d":"100%"},"/",3.588,"/","/",20,55,null,null,"≥95%","参与项目申报、实施过程监督、完成后受益","以产业补助的形式对脱贫户进行补助，鼓励发展特色产业，激发脱贫人口内生动力，扩大种养殖规模，增加脱贫户收入"]
[11,"生产项目（种植/养殖业）","2023年大屯镇南海村特色种养殖补贴到户项目","新建","县农业农村局","大屯镇\n刘文芝","大屯镇","南海村","是","扶持53户脱贫户（含监测对象）发展特色种养业","2023年12月15日前",7.41,7.41,null,"扶持53户脱贫户发展特色种养业，鼓励其扩大种养殖规模。","瓜果蔬菜种植面积39亩，羊养殖数量309只，猪养殖数量46头，鸡养殖数量300羽",{"v":1,"d":"100%"},{"v":1,"d":"100%"},"/",8.892,"/","/",53,131,null,null,"≥95%","参与项目申报、实施过程监督、完成后受益","以产业补助的形式对脱贫户进行补助，鼓励发展特色产业，激发脱贫人口内生动力，扩大种养殖规模，增加脱贫户收入"]
[12,"生产项目（种植/养殖业）","2023年大屯镇胡集村特色种养殖补贴到户项目","新建","县农业农村局","大屯镇\n刘文芝","大屯镇","胡集村","否","扶持60户脱贫户（含监测对象）发展特色种养业","2023年12月15日前",8.39,8.39,null,"扶持60户脱贫户发展特色种养业，鼓励其扩大种养殖规模。","瓜果蔬菜种植面积2亩，羊养殖数量390只，猪养殖数量20头",{"v":1,"d":"100%"},{"v":1,"d":"100%"},"/",10.068,"/","/",60,123,null,null,"≥95%","参与项目申报、实施过程监督、完成后受益","以产业补助的形式对脱贫户进行补助，鼓励发展特色产业，激发脱贫人口内生动力，扩大种养殖规模，增加脱贫户收入"]
[13,"生产项目（种植/养殖业）","2023年大屯镇瓦房村特色种养殖补贴到户项目","新建","县农业农村局","大屯镇\n刘文芝","大屯镇","瓦房村","是","扶持105户脱贫户（含监测对象）发展特色种养业","2023年12月15日前",15.57,15.57,null,"扶持105户脱贫户发展特色种养业，鼓励其扩大种养殖规模。","瓜果蔬菜种植面积64.2亩，羊养殖数量537只，猪养殖数量67头，牛养殖数量11头，鹅养殖数量6000百羽，鹌鹑养殖数量4000百羽",{"v":1,"d":"100%"},{"v":1,"d":"100%"},"/",18.684,"/","/",105,267,null,null,"≥95%","参与项目申报、实施过程监督、完成后受益","以产业补助的形式对脱贫户进行补助，鼓励发展特色产业，激发脱贫人口内生动力，扩大种养殖规模，增加脱贫户收入"]
[14,"生产项目（种植/养殖业）","2023年大屯镇大屯村特色种养殖补贴到户项目","新建","县农业农村局","大屯镇\n刘文芝  ","大屯镇","大屯村","是","扶持54户脱贫户（含监测对象）发展特色种养业","2023年12月15日前",7.72,7.72,null,"扶持54户脱贫户发展特色种养业，鼓励其扩大种养殖规模。","瓜果蔬菜种植面积3.5亩，羊养殖数量350只，猪养殖数量32头",{"v":1,"d":"100%"},{"v":1,"d":"100%"},"/",9.264,"/","/",54,110,null,null,"≥95%","参与项目申报、实施过程监督、完成后受益","以产业补助的形式对脱贫户进行补助，鼓励发展特色产业，激发脱贫人口内生动力，扩大种养殖规模，增加脱贫户收入"]
[15,"生产项目（种植/养殖业）","2023年大屯镇张楼村特色种养殖补贴到户项目","新建","县农业农村局","大屯镇\n刘文芝  ","大屯镇","张楼村","否","扶持57户脱贫户（含监测对象）发展特色种养业","2023年12月15日前",8.07,8.07,null,"扶持57户脱贫户发展特色种养业，鼓励其扩大种养殖规模。","瓜果蔬菜种植面积46亩，羊养殖数量298只，猪养殖数量17头，禽类6300羽",{"v":1,"d":"100%"},{"v":1,"d":"100%"},"/",9.684,"/","/",57,176,null,null,"≥95%","参与项目申报、实施过程监督、完成后受益","以产业补助的形式对脱贫户进行补助，鼓励发展特色产业，激发脱贫人口内生动力，扩大种养殖规模，增加脱贫户收入"]
[16,"生产项目（种植/养殖业）","2023年大屯镇付庄村特色种养殖补贴到户项目","新建","县农业农村局","大屯镇\n刘文芝  ","大屯镇","付庄村","否","扶持104户脱贫户（含监测对象）发展特色种养业","2023年12月15日前",15.34,15.34,null,"扶持104户脱贫户发展特色种养业，鼓励其扩大种养殖规模。","瓜果蔬菜种植面积4亩，羊养殖数量676只，猪养殖数量20头",{"v":1,"d":"100%"},{"v":1,"d":"100%"},"/",18.408,"/","/",104,297,null,null,"≥95%","参与项目申报、实施过程监督、完成后受益","以产业补助的形式对脱贫户进行补助，鼓励发展特色产业，激发脱贫人口内生动力，扩大种养殖规模，增加脱贫户收入"]
[17,"生产项目（种植/养殖业）","2023年大屯镇许楼村特色种养殖补贴到户项目","新建","县农业农村局","大屯镇\n刘文芝","大屯镇","许楼村","否","扶持92户脱贫户（含监测对象）发展特色种养业","2023年12月15日前",13.225,13.225,null,"扶持92户脱贫户发展特色种养业，鼓励其扩大种养殖规模。","瓜果蔬菜种植面积9亩，羊养殖数量525只，猪养殖数量102头",{"v":1,"d":"100%"},{"v":1,"d":"100%"},"/",15.87,"/","/",92,211,null,null,"≥95%","参与项目申报、实施过程监督、完成后受益","以产业补助的形式对脱贫户进行补助，鼓励发展特色产业，激发脱贫人口内生动力，扩大种养殖规模，增加脱贫户收入"]
[18,"生产项目（种植/养殖业）","2023年大屯镇林楼村特色种养殖补贴到户项目","新建","县农业农村局","大屯镇\n刘文芝","大屯镇","林楼村","否","扶持71户脱贫户（含监测对象）发展特色种养业","2023年12月15日前",10.31,10.31,null,"扶持71户脱贫户发展特色种养业，鼓励其扩大种养殖规模。","瓜果蔬菜种植面积10亩，羊养殖数量498只，猪养殖数量8头，鱼养殖面积15亩，经济作物种植面积2亩",{"v":1,"d":"100%"},{"v":1,"d":"100%"},"/",12.372,"/","/",71,187,null,null,"≥95%","参与项目申报、实施过程监督、完成后受益","以产业补助的形式对脱贫户进行补助，鼓励发展特色产业，激发脱贫人口内生动力，扩大种养殖规模，增加脱贫户收入"]
[19,"生产项目（种植/养殖业）","2023年丁里镇张山头村特色种养殖补贴到户项目","新建","县农业农村局","丁里镇\n谷海粟","丁里镇","张山头村","是","扶持49户脱贫户（含监测对象）发展特色种养业","2023年12月15日前",5.46,5.46,null,"扶持49户脱贫户发展特色种养业，鼓励其扩大种养殖规模。","蔬菜种植面积31.87亩，羊养殖数量99只.牛1只",{"v":1,"d":"100%"},{"v":1,"d":"100%"},"/",11.2,"/","/",49,117,null,null,"≥95%","参与项目申报、实施过程监督、完成后受益","以产业补助的形式对脱贫户进行补助，鼓励发展特色产业，激发脱贫人口内生动力，扩大种养殖规模，增加脱贫户收入"]
[20,"生产项目（种植/养殖业）","2023年丁里镇河头村特色种养业补助到户项目","新建","县农业农村局","丁里镇\n谷海粟","丁里镇","河头村","是","扶持75户脱贫户（含监测对象）发展特色种养业","2023年12月15日前",9.44,9.44,null,"扶持75户脱贫户发展特色种养业，鼓励其扩大种养殖规模。","蔬菜种植面积123亩，羊养殖数量180只，牛1头",{"v":1,"d":"100%"},{"v":1,"d":"100%"},"/",22.5,"/",null,75,179,null,null,"≥95%","参与项目申报、实施过程监督、完成后受益","以产业补助的形式对脱贫户进行补助，鼓励发展特色产业，激发脱贫人口内生动力，扩大种养殖规模，增加脱贫户收入"]
[21,"生产项目（种植/养殖业）","2023年丁里镇梁庄社区特色种养业补助到户项目","新建","县农业农村局","丁里镇\n谷海粟","丁里镇","梁庄社区","否","扶持10户脱贫户（含监测对象）发展特色种养业","2023年12月15日前",1.062,1.062,null,"扶持10户脱贫户发展特色种养业，鼓励其扩大种养殖规模。","蔬菜种植面积2亩，羊养殖数量6只，果树种植8.4亩，豌豆4亩",{"v":1,"d":"100%"},{"v":1,"d":"100%"},"/",2.1,"/",null,10,22,null,null,"≥95%","参与项目申报、实施过程监督、完成后受益","以产业补助的形式对脱贫户进行补助，鼓励发展特色产业，激发脱贫人口内生动力，扩大种养殖规模，增加脱贫户收入"]
[22,"生产项目（种植/养殖业）","2023年丁里镇瓦子口村特色种养业补助到户项目","新建","县农业农村局","丁里镇\n谷海粟","丁里镇","瓦子口村","否","扶持28户脱贫户（含监测对象）发展特色种养业","2023年12月15日前",3.998,3.998,null,"扶持28户脱贫户发展特色种养业，鼓励其扩大种养殖规模。","种植杏树24.4亩，种植黏玉米面积6.2亩，养殖羊数量102只。",{"v":1,"d":"100%"},{"v":1,"d":"100%"},"/",6,"/",null,28,68,null,null,"≥95%","参与项目申报、实施过程监督、完成后受益","以产业补助的形式对脱贫户进行补助，鼓励发展特色产业，激发脱贫人口内生动力，扩大种养殖规模，增加脱贫户收入"]
[23,"生产项目（种植/养殖业）","2023年丁里镇武寺村特色种养业补助到户项目","新建","县农业农村局","丁里镇\n谷海粟","丁里镇","武寺村","否","扶持44户脱贫户发展特色种养业","2023年12月15日前",4.5,4.5,null,"扶持44户脱贫户发展特色种养业，鼓励其扩大种养殖规模。","蔬菜种植面积60亩，果树种植面积5亩，羊养殖数量58只，牛2头，猪养殖数量6头，",{"v":1,"d":"100%"},{"v":1,"d":"100%"},"/",10,"/",null,44,97,null,null,"≥95%","参与项目申报、实施过程监督、完成后受益","以产业补助的形式对脱贫户进行补助，鼓励发展特色产业，激发脱贫人口内生动力，扩大种养殖规模，增加脱贫户收入"]
[24,"生产项目（种植/养殖业）","2023年丁里镇许堂社区特色种养业补助到户项目","新建","县农业农村局","丁里镇\n谷海粟","丁里镇","许堂社区","否","扶持46户脱贫户（含监测对象）发展特色种养业","2023年12月15日前",4.71,4.71,null,"扶持46户脱贫户发展特色种养业，鼓励其扩大种养殖规模。","蔬菜种植面积39亩，羊养殖数量156只，猪3头，家禽260只",{"v":1,"d":"100%"},{"v":1,"d":"100%"},"/",13.8,"/",null,46,96,null,null,"≥95%","参与项目申报、实施过程监督、完成后受益","以产业补助的形式对脱贫户进行补助，鼓励发展特色产业，激发脱贫人口内生动力，扩大种养殖规模，增加脱贫户收入"]
[25,"生产项目（种植/养殖业）","2023年丁里镇丁里社区特色种养业补助到户项目","新建","县农业农村局","丁里镇\n谷海粟","丁里镇","丁里社区","是","扶持25户脱贫户（含监测对象）发展特色种养业","2023年12月15日前",3.086,3.086,null,"扶持25户脱贫户发展特色种养业，鼓励其扩大种养殖规模。","蔬菜种植面积16.5亩，葡萄2.2亩种植羊养殖数量93只",{"v":1,"d":"100%"},{"v":1,"d":"100%"},"/",6.1,"/",null,25,46,null,null,"≥95%","参与项目申报、实施过程监督、完成后受益","以产业补助的形式对脱贫户进行补助，鼓励发展特色产业，激发脱贫人口内生动力，扩大种养殖规模，增加脱贫户收入"]
[26,"生产项目（种植/养殖业）","2023年丁里镇胜利社区特色种养业补助到户项目","新建","县农业农村局","丁里镇\n谷海粟","丁里镇","胜利社区","否","扶持12户脱贫户发展特色种养业","2023年12月15日前",1.786,1.786,null,"扶持12户脱贫户发展特色种养业，鼓励其扩大种养殖规模。","羊养殖数量60只，猪养殖数量3只，水果（桃树）1.7亩",{"v":1,"d":"100%"},{"v":1,"d":"100%"},"/",3.6,"/",null,12,22,null,null,"≥95%","参与项目申报、实施过程监督、完成后受益","以产业补助的形式对脱贫户进行补助，鼓励发展特色产业，激发脱贫人口内生动力，扩大种养殖规模，增加脱贫户收入"]
[27,"生产项目（种植/养殖业）","2023年丁里镇郭庄社区特色种养业补助到户项目","新建","县农业农村局","丁里镇\n谷海粟","丁里镇","郭庄社区","否","扶持26户脱贫户（含监测对象）发展特色种养业","2023年12月15日前",3.08,3.08,null,"扶持26户脱贫户发展特色种养业，鼓励其扩大种养殖规模。","蔬菜种植面积7亩，果树种植面积8.3亩，羊养殖数量113只，猪养殖数量3头",{"v":1,"d":"100%"},{"v":1,"d":"100%"},"/",6.2,"/",null,26,50,null,null,"≥95%","参与项目申报、实施过程监督、完成后受益","以产业补助的形式对脱贫户进行补助，鼓励发展特色产业，激发脱贫人口内生动力，扩大种养殖规模，增加脱贫户收入"]
[28,"生产项目（种植/养殖业）","2023年杜楼镇郝庄寨村特色种养殖补贴到户项目","新建","县农业农村局","杜楼镇\n许剑","杜楼镇","郝庄寨村","否","扶持55户脱贫户（含监测对象）发展特色种养业","2023年12月15日前",6.95,6.95,null,"扶持55户脱贫户发展特色种养业，鼓励其扩大种养殖规模。","羊养殖数量320只，猪养殖数量11头，鱼塘18亩",{"v":1,"d":"100%"},{"v":1,"d":"100%"},"/",8.5,"/","/",55,135,null,null,"≥95%","参与项目申报、实施过程监督、完成后受益","以产业补助的形式对脱贫户进行补助，鼓励发展特色产业，激发脱贫人口内生动力，扩大种养殖规模，增加脱贫户收入"]
[29,"生产项目（种植/养殖业）","2023年杜楼镇马阁村特色种养殖补贴到户项目","新建","县农业农村局","杜楼镇\n许剑","杜楼镇","马阁村","否","扶持8户脱贫户（含监测对象）发展特色种养业","2023年12月15日前",1.13,1.13,null,"扶持8户脱贫户发展特色种养业，鼓励其扩大种养殖规模。","羊养殖数量73只",{"v":1,"d":"100%"},{"v":1,"d":"100%"},"/",2.5,"/","/",8,23,null,null,"≥95%","参与项目申报、实施过程监督、完成后受益","以产业补助的形式对脱贫户进行补助，鼓励发展特色产业，激发脱贫人口内生动力，扩大种养殖规模，增加脱贫户收入"]
[30,"生产项目（种植/养殖业）","2023年杜楼镇彭村特色种养殖补贴到户项目","新建","县农业农村局","杜楼镇\n许剑","杜楼镇","彭村","|否","扶持20户脱贫户（含监测对象）发展特色种养业","2023年12月15日前",2.67,2.67,null,"扶持20户脱贫户发展特色种养业，鼓励其扩大种养殖规模。","瓜果蔬菜种植面积0亩，羊养殖数量154只，猪养殖数量0头，经济作物种植面积亩",{"v":1,"d":"100%"},{"v":1,"d":"100%"},"/",3.7,"/","/",20,54,null,null,"≥95%","参与项目申报、实施过程监督、完成后受益","以产业补助的形式对脱贫户进行补助，鼓励发展特色产业，激发脱贫人口内生动力，扩大种养殖规模，增加脱贫户收入"]
[31,"生产项目（种植/养殖业）","2023年杜楼镇郝新庄村特色种养殖补贴到户项目","新建","县农业农村局","杜楼镇\n许剑","杜楼镇","郝新庄村","否","扶持49户脱贫户（含监测对象）发展特色种养业","2023年12月15日前",6.14,6.14,null,"扶持49户脱贫户发展特色种养业，鼓励其扩大种养殖规模。","瓜果蔬菜种植面积34亩，羊养殖数量188只，猪养殖数量82头，经济作物种植面积24亩",{"v":1,"d":"100%"},{"v":1,"d":"100%"},"/",9.1,"/","/",49,102,null,null,"≥95%","参与项目申报、实施过程监督、完成后受益","以产业补助的形式对脱贫户进行补助，鼓励发展特色产业，激发脱贫人口内生动力，扩大种养殖规模，增加脱贫户收入"]
[32,"生产项目（种植/养殖业）","2023年杜楼镇杜庄村特色种养殖补贴到户项目","新建","县农业农村局","杜楼镇\n许剑","杜楼镇","杜庄村","|否","扶持7户脱贫户（含监测对象）发展特色种养业","2023年12月15日前",1.05,1.05,null,"扶持7户脱贫户发展特色种养业，鼓励其扩大种养殖规模。","羊养殖数量64只",{"v":1,"d":"100%"},{"v":1,"d":"100%"},"/",2.6,"/","/",7,19,null,null,"≥95%","参与项目申报、实施过程监督、完成后受益","以产业补助的形式对脱贫户进行补助，鼓励发展特色产业，激发脱贫人口内生动力，扩大种养殖规模，增加脱贫户收入"]
[33,"生产项目（种植/养殖业）","2023年杜楼镇业庄村特色种养殖补贴到户项目","新建","县农业农村局","杜楼镇\n许剑","杜楼镇","业庄村","是","扶持76户脱贫户（含监测对象）发展特色种养业","2023年12月15日前",10.4365,10.4365,null,"扶持76户脱贫户发展特色种养业，鼓励其扩大种养殖规模。","瓜果蔬菜种植面积38.9亩，羊养殖数量435只，猪养殖数量60头。",{"v":1,"d":"100%"},{"v":1,"d":"100%"},"/",12,"/","/",76,171,null,null,"≥95%","参与项目申报、实施过程监督、完成后受益","以产业补助的形式对脱贫户进行补助，鼓励发展特色产业，激发脱贫人口内生动力，扩大种养殖规模，增加脱贫户收入"]
[34,"生产项目（种植/养殖业）","2023年杜楼镇杜集村特色种养殖补贴到户项目","新建","县农业农村局","杜楼镇\n许剑","杜楼镇","杜集村","否","扶持34户脱贫户（含监测对象）发展特色种养业","2023年12月15日前",4.956,4.956,null,"扶持34户脱贫户发展特色种养业，鼓励其扩大种养殖规模。","瓜果蔬菜种植面积4.8亩，羊养殖数量321只，猪养殖数量10头.",{"v":1,"d":"100%"},{"v":1,"d":"100%"},"/",11,"/","/",34,84,null,null,"≥95%","参与项目申报、实施过程监督、完成后受益","以产业补助的形式对脱贫户进行补助，鼓励发展特色产业，激发脱贫人口内生动力，扩大种养殖规模，增加脱贫户收入"]
[35,"生产项目（种植/养殖业）","2023年杜楼镇曹庄村特色种养殖补贴到户项目","新建","县农业农村局","杜楼镇\n许剑","杜楼镇","曹庄村村","是","扶持26户脱贫户（含监测对象）发展特色种养业","2023年12月15日前",3.9,3.9,null,"扶持26户脱贫户发展特色种养业，鼓励其扩大种养殖规模。","瓜果蔬菜种植面积128亩，羊养殖数量17只，猪养殖数量26头，经济作物种植面积亩",{"v":1,"d":"100%"},{"v":1,"d":"100%"},"/",5.3,"/","/",26,66,null,null,"≥95%","参与项目申报、实施过程监督、完成后受益","以产业补助的形式对脱贫户进行补助，鼓励发展特色产业，激发脱贫人口内生动力，扩大种养殖规模，增加脱贫户收入"]
[36,"生产项目（种植/养殖业）","2023年杜楼镇小圩子村特色种养殖补贴到户项目","新建","县农业农村局","杜楼镇\n许剑","杜楼镇","小圩子村","否","扶持24户脱贫户（含监测对象）发展特色种养业","2023年12月15日前",3.57,3.57,null,"扶持24户脱贫户发展特色种养业，鼓励其扩大种养殖规模。","瓜果蔬菜种植面积5.2亩，羊养殖数量195只，猪养殖数量8头，经济作物种植面积亩",{"v":1,"d":"100%"},{"v":1,"d":"100%"},"/",5.91,"/","/",24,46,null,null,"≥95%","参与项目申报、实施过程监督、完成后受益","以产业补助的形式对脱贫户进行补助，鼓励发展特色产业，激发脱贫人口内生动力，扩大种养殖规模，增加脱贫户收入"]
[37,"生产项目（种植/养殖业）","2023年杜楼镇八庄村特色种养殖补贴到户项目","新建","县农业农村局","杜楼镇\n许剑","杜楼镇","八庄村","是","扶持75户脱贫户（含监测对象）发展特色种养业","2023年12月15日前",10.061,10.061,null,"扶持75户脱贫户发展特色种养业，鼓励其扩大种养殖规模。","瓜果蔬菜种植面积15.2亩，羊养殖数量458只，猪养殖数量54头，经济作物种植面积33.2亩",{"v":1,"d":"100%"},{"v":1,"d":"100%"},"/",12.31,"/","/",75,154,null,null,"≥95%","参与项目申报、实施过程监督、完成后受益","以产业补助的形式对脱贫户进行补助，鼓励发展特色产业，激发脱贫人口内生动力，扩大种养殖规模，增加脱贫户收入"]
[38,"生产项目（种植/养殖业）","2023年杜楼镇红庙村特色种养殖补贴到户项目","新建","县农业农村局","杜楼镇\n许剑","杜楼镇\n","红庙村","否","扶持14户脱贫户（含监测对象）发展特色种养业","2023年12月15日前",2.04,2.04,null,"扶持14户脱贫户发展特色种养业，鼓励其扩大种养殖规模。","瓜果蔬菜种植面积2亩，羊养殖数量106只，养鸡4000只",{"v":1,"d":"100%"},{"v":1,"d":"100%"},"/",4.6,{"v":2.05,"d":"2.050"},{"v":2.05,"d":"2.050"},14,27,null,null,"≥95%","参与项目申报、实施过程监督、完成后受益","以产业补助的形式对脱贫户进行补助，鼓励发展特色产业，激发脱贫人口内生动力，扩大种养殖规模，增加脱贫户收入"]
[39,"生产项目（种植/养殖业）","2023年杜楼镇杜老楼村特色种养殖补贴到户项目","新建","县农业农村局","杜楼镇\n许剑","杜楼镇\n","杜老楼村","否","扶持43户脱贫户（含监测对象）发展特色种养业","2023年12月15日前",6.15,6.15,null,"扶持43户脱贫户发展特色种养业，鼓励其扩大种养殖规模。","瓜果蔬菜种植面积2亩，羊养殖数量441只，猪养殖数量3头，经济作物种植面积亩",{"v":1,"d":"100%"},{"v":1,"d":"100%"},"/",8.3,"/","/",43,98,null,null,"≥95%","参与项目申报、实施过程监督、完成后受益","以产业补助的形式对脱贫户进行补助，鼓励发展特色产业，激发脱贫人口内生动力，扩大种养殖规模，增加脱贫户收入"]
[40,"生产项目（种植/养殖业）","2023年官桥镇赵楼村特色种养殖补贴到户项目","新建","县农业农村局","官桥镇\n张伟建","官桥镇","赵楼村","是","扶持18户脱贫户（含监测对象）发展特色种养业","2023年12月15日前",2.55,2.55,null,"扶持18户脱贫户发展特色种养业，鼓励其扩大种养殖规模。","瓜果蔬菜种植面积12亩，羊养殖数量87只，猪养殖数量79头，龙虾5亩",{"v":1,"d":"100%"},{"v":1,"d":"100%"},"/","2.55万","/","/",18,39,null,null,"≥95%","参与项目申报、实施过程监督、完成后受益","以产业补助的形式对脱贫户进行补助，鼓励发展特色产业，激发脱贫人口内生动力，扩大种养殖规模，增加脱贫户收入"]
[41,"生产项目（种植/养殖业）","2023年官桥镇前白村特色种养殖补贴到户项目","新建","县农业农村局","官桥镇\n张伟建","官桥镇","前白村","是","扶持20户脱贫户（含监测对象）发展特色种养业","2023年12月15日前",2.028,2.028,null,"扶持20户脱贫户发展特色种养业，鼓励其扩大种养殖规模。","瓜果蔬菜种植面积18.7亩，羊养殖数量64只",{"v":1,"d":"100%"},{"v":1,"d":"100%"},"/",2.028,"/","/",20,41,null,null,"≥95%","参与项目申报、实施过程监督、完成后受益","以产业补助的形式对脱贫户进行补助，鼓励发展特色产业，激发脱贫人口内生动力，扩大种养殖规模，增加脱贫户收入"]
[42,"生产项目（种植/养殖业）","2023年官桥镇吴集村特色种养殖补贴到户项目","新建","县农业农村局","官桥镇\n张伟建","官桥镇","吴集村","否","扶持33户脱贫户（含监测对象）发展特色种养业","2023年12月15日前",3.73,3.73,null,"扶持33户脱贫户发展特色种养业，鼓励其扩大种养殖规模。","瓜果蔬菜种植面积50亩，羊养殖数量64只，经济作物种植面积18亩",{"v":1,"d":"100%"},{"v":1,"d":"100%"},"/",3.73,"/","/",33,64,null,null,"≥95%","参与项目申报、实施过程监督、完成后受益","以产业补助的形式对脱贫户进行补助，鼓励发展特色产业，激发脱贫人口内生动力，扩大种养殖规模，增加脱贫户收入"]
[43,"生产项目（种植/养殖业）","2023年官桥镇彭林村特色种养殖补贴到户项目","新建","县农业农村局","官桥镇\n张伟建","官桥镇","彭林村","是","扶持56户脱贫户（含监测对象）发展特色种养业","2023年12月15日前",6.986,6.986,null,"扶持56户脱贫户发展特色种养业，鼓励其扩大种养殖规模。","瓜果蔬菜种植面积74.9亩，羊养殖数量242只，猪养殖数量38头，牛养殖数量7头",{"v":1,"d":"100%"},{"v":1,"d":"100%"},null,6.986,"/","/",56,131,null,null,"≥95%","参与项目申报、实施过程监督、完成后受益","以产业补助的形式对脱贫户进行补助，鼓励发展特色产业，激发脱贫人口内生动力，扩大种养殖规模，增加脱贫户收入"]
[44,"生产项目（种植/养殖业）","2023年官桥镇高庄村特色种养殖补贴到户项目","新建","县农业农村局","官桥镇\n张伟建","官桥镇","高庄村","否","扶持10户脱贫户（含监测对象）发展特色种养业","2023年12月15日前",1.34,1.34,null,"扶持10户脱贫户发展特色种养业，鼓励其扩大种养殖规模。","瓜果蔬菜种植面积5.5亩，羊养殖数量141只，猪养殖数量70头",{"v":1,"d":"100%"},{"v":1,"d":"100%"},"/",1.34,"/","/",10,24,null,null,"≥95%","参与项目申报、实施过程监督、完成后受益","以产业补助的形式对脱贫户进行补助，鼓励发展特色产业，激发脱贫人口内生动力，扩大种养殖规模，增加脱贫户收入"]
[45,"生产项目（种植/养殖业）","2023年黄口镇徐洼村特色种养殖补贴到户项目","新建","县农业农村局","黄口镇\n杨梅","黄口镇","徐洼村","否","扶持65户脱贫户（含监测对象）发展特色种养业","2023年12月15日前",7.6373,7.6373,null,"扶持65户脱贫户发展特色种养业，鼓励其扩大种养殖规模。","瓜果蔬菜种植面积85.1亩，羊养殖数量158只，猪养殖数量24头",{"v":1,"d":"100%"},{"v":1,"d":"100%"},null,{"$f":"M53*1.2","v":9.16476},null,null,65,149,null,null,"≥95%","参与项目申报、实施过程监督、完成后受益","以产业补助的形式对脱贫户进行补助，鼓励发展特色产业，激发脱贫人口内生动力，扩大种养殖规模，增加脱贫户收入"]
[46,"生产项目（种植/养殖业）","2023年黄口镇老黄口村特色种养殖补贴到户项目","新建","县农业农村局","黄口镇\n杨梅","黄口镇","老黄口村","否","扶持100户脱贫户（含监测对象）发展特色种养业","2023年12月15日前",10.5875,10.5875,null,"扶持100户脱贫户发展特色种养业，鼓励其扩大种养殖规模。","瓜果蔬菜种植面积131.9亩，羊养殖数量185只，猪养殖数量38头",{"v":1,"d":"100%"},{"v":1,"d":"100%"},null,12.705,null,null,100,247,null,null,"≥95%","参与项目申报、实施过程监督、完成后受益","以产业补助的形式对脱贫户进行补助，鼓励发展特色产业，激发脱贫人口内生动力，扩大种养殖规模，增加脱贫户收入"]
[47,"生产项目（种植/养殖业）","2023年黄口镇镇西社区特色种养殖补贴到户项目","新建","县农业农村局","黄口镇\n杨梅","黄口镇","镇西社区","否","扶持7户脱贫户（含监测对象）发展特色种养业","2023年12月15日前",0.88,0.88,null,"扶持7户脱贫户发展特色种养业，鼓励其扩大种养殖规模。","瓜果蔬菜种植面积5亩，羊养殖数量35只，",{"v":1,"d":"100%"},{"v":1,"d":"100%"},null,1.056,null,null,7,14,null,null,"≥95%","参与项目申报、实施过程监督、完成后受益","以产业补助的形式对脱贫户进行补助，鼓励发展特色产业，激发脱贫人口内生动力，扩大种养殖规模，增加脱贫户收入"]
[48,"生产项目（种植/养殖业）","2023年黄口镇陈土楼村特色种养殖补贴到户项目","新建","县农业农村局","黄口镇\n杨梅","黄口镇","陈土楼村","是","扶持115户脱贫户（含监测对象）发展特色种养业","2023年12月15日前",12.754,12.754,null,"扶持115户脱贫户发展特色种养业，鼓励其扩大种养殖规模。","瓜果蔬菜种植面积17.1亩，羊养殖数量25只，猪养殖数量44头",{"v":1,"d":"100%"},{"v":1,"d":"100%"},null,15.3048,null,null,115,270,null,null,"≥95%","参与项目申报、实施过程监督、完成后受益","以产业补助的形式对脱贫户进行补助，鼓励发展特色产业，激发脱贫人口内生动力，扩大种养殖规模，增加脱贫户收入"]
[49,"生产项目（种植/养殖业）","2023年黄口镇邵庄村特色种养殖补贴到户项目","新建","县农业农村局","黄口镇\n杨梅","黄口镇","邵庄村","否","扶持144户脱贫户（含监测对象）发展特色种养业","2023年12月15日前",19.4595,19.4595,null,"扶持144户脱贫户发展特色种养业，鼓励其扩大种养殖规模。","瓜果蔬菜种植面积250.6亩，羊养殖数量229只，猪养殖数量19头",{"v":1,"d":"100%"},{"v":1,"d":"100%"},null,23.3514,null,null,144,305,null,null,"≥95%","参与项目申报、实施过程监督、完成后受益","以产业补助的形式对脱贫户进行补助，鼓励发展特色产业，激发脱贫人口内生动力，扩大种养殖规模，增加脱贫户收入"]
[50,"生产项目（种植/养殖业）","2023年黄口镇唐元村特色种养殖补贴到户项目","新建","县农业农村局","黄口镇\n杨梅","黄口镇","唐元村","是","扶持151户脱贫户（含监测对象）发展特色种养业","2023年12月15日前",12.8925,12.8925,null,"扶持151户脱贫户发展特色种养业，鼓励其扩大种养殖规模。","瓜果蔬菜种植面积264.1亩，羊养殖数量68只，猪养殖数量6头",{"v":1,"d":"100%"},{"v":1,"d":"100%"},null,15.471,null,null,151,282,null,null,"≥95%","参与项目申报、实施过程监督、完成后受益","以产业补助的形式对脱贫户进行补助，鼓励发展特色产业，激发脱贫人口内生动力，扩大种养殖规模，增加脱贫户收入"]
[51,"生产项目（种植/养殖业）","2023年黄口镇唐庄村特色种养殖补贴到户项目","新建","县农业农村局","黄口镇\n杨梅","黄口镇","唐庄村","否","扶持30户脱贫户（含监测对象）发展特色种养业","2023年12月15日前",4.258,4.258,null,"扶持30户脱贫户发展特色种养业，鼓励其扩大种养殖规模。","瓜果蔬菜种植面积32.2亩，羊养殖数量112只，猪养殖数量20头",{"v":1,"d":"100%"},{"v":1,"d":"100%"},null,5.1096,null,null,30,149,null,null,"≥95%","参与项目申报、实施过程监督、完成后受益","以产业补助的形式对脱贫户进行补助，鼓励发展特色产业，激发脱贫人口内生动力，扩大种养殖规模，增加脱贫户收入"]
[52,"生产项目（种植/养殖业）","2023年黄口镇瓦房村特色种养殖补贴到户项目","新建","县农业农村局","黄口镇\n杨梅","黄口镇","瓦房村","是","扶持35户脱贫户（含监测对象）发展特色种养业","2023年12月15日前",4.625,4.625,null,"扶持35户脱贫户发展特色种养业，鼓励其扩大种养殖规模。","瓜果蔬菜种植面积21亩，羊154只，猪养殖数量14头",{"v":1,"d":"100%"},{"v":1,"d":"100%"},null,5.55,null,null,35,83,null,null,"≥95%","参与项目申报、实施过程监督、完成后受益","以产业补助的形式对脱贫户进行补助，鼓励发展特色产业，激发脱贫人口内生动力，扩大种养殖规模，增加脱贫户收入"]
[53,"生产项目（种植/养殖业）","2023年黄口镇杨阁社区特色种养殖补贴到户项目","新建","县农业农村局","黄口镇\n杨梅","黄口镇","杨阁社区","否","扶持26户脱贫户（含监测对象）发展特色种养业","2023年12月15日前",3.72,3.72,null,"扶持26户脱贫户发展特色种养业，鼓励其扩大种养殖规模。","瓜果蔬菜种植面积17亩，羊养殖数量122只，猪养殖数量55头",{"v":1,"d":"100%"},{"v":1,"d":"100%"},null,4.464,null,null,26,62,null,null,"≥95%","参与项目申报、实施过程监督、完成后受益","以产业补助的形式对脱贫户进行补助，鼓励发展特色产业，激发脱贫人口内生动力，扩大种养殖规模，增加脱贫户收入"]
[54,"生产项目（种植/养殖业）","2023年黄口镇张寨村特色种养殖补贴到户项目","新建","县农业农村局","黄口镇\n杨梅","黄口镇","张寨村","否","扶持40户脱贫户（含监测对象）发展特色种养业","2023年12月15日前",4.9625,4.9625,null,"扶持40户脱贫户发展特色种养业，鼓励其扩大种养殖规模。","瓜果蔬菜种植面积22亩，羊养殖数量204只，猪养殖数量34头",{"v":1,"d":"100%"},{"v":1,"d":"100%"},null,5.955,null,null,40,98,null,null,"≥95%","参与项目申报、实施过程监督、完成后受益","以产业补助的形式对脱贫户进行补助，鼓励发展特色产业，激发脱贫人口内生动力，扩大种养殖规模，增加脱贫户收入"]
[55,"生产项目（种植/养殖业）","2023年黄口镇镇北社区特色种养殖补贴到户项目","新建","县农业农村局","黄口镇\n杨梅","黄口镇","镇北社区","否","扶持80户脱贫户（含监测对象）发展特色种养业","2023年12月15日前",8.17,8.17,null,"扶持80户脱贫户发展特色种养业，鼓励其扩大种养殖规模。","瓜果蔬菜种植面积147.2亩，羊养殖数量91只，猪养殖数量22头",{"v":1,"d":"100%"},{"v":1,"d":"100%"},null,9.804,null,null,80,161,null,null,"≥95%","参与项目申报、实施过程监督、完成后受益","以产业补助的形式对脱贫户进行补助，鼓励发展特色产业，激发脱贫人口内生动力，扩大种养殖规模，增加脱贫户收入"]
[56,"生产项目（种植/养殖业）","2023年黄口镇镇东社区特色种养殖补贴到户项目","新建","县农业农村局","黄口镇\n杨梅","黄口镇","镇东社区","否","扶持5户脱贫户（含监测对象）发展特色种养业","2023年12月15日前",0.68,0.68,null,"扶持5户脱贫户发展特色种养业，鼓励其扩大种养殖规模。","瓜果蔬菜种植面积4亩，猪养殖数量17头",{"v":1,"d":"100%"},{"v":1,"d":"100%"},null,0.816,null,null,5,6,null,null,"≥95%","参与项目申报、实施过程监督、完成后受益","以产业补助的形式对脱贫户进行补助，鼓励发展特色产业，激发脱贫人口内生动力，扩大种养殖规模，增加脱贫户收入"]
[57,"生产项目（种植/养殖业）","2023年黄口镇镇南社区特色种养殖补贴到户项目","新建","县农业农村局","黄口镇\n杨梅","黄口镇","镇南社区","否","扶持8户脱贫户（含监测对象）发展特色种养业","2023年12月15日前",1.2,1.2,null,"扶持8户脱贫户发展特色种养业，鼓励其扩大种养殖规模。","羊养殖数量73只种植面积亩",{"v":1,"d":"100%"},{"v":1,"d":"100%"},null,1.44,null,null,8,25,null,null,"≥95%","参与项目申报、实施过程监督、完成后受益","以产业补助的形式对脱贫户进行补助，鼓励发展特色产业，激发脱贫人口内生动力，扩大种养殖规模，增加脱贫户收入"]
[58,"生产项目（种植/养殖业）","2023年黄口镇朱庄村特色种养殖补贴到户项目","新建","县农业农村局","黄口镇\n杨梅","黄口镇","朱庄村","否","扶持137户脱贫户（含监测对象）发展特色种养业","2023年12月15日前",14.188,14.188,null,"扶持137户脱贫户发展特色种养业，鼓励其扩大种养殖规模。","瓜果蔬菜种植面积163.8亩，羊养殖数量240只，猪养殖数量86头",{"v":1,"d":"100%"},{"v":1,"d":"100%"},null,17.0256,null,null,137,177,null,null,"≥95%","参与项目申报、实施过程监督、完成后受益","以产业补助的形式对脱贫户进行补助，鼓励发展特色产业，激发脱贫人口内生动力，扩大种养殖规模，增加脱贫户收入"]
[59,"生产项目（种植/养殖业）","2023年黄口镇暗楼村特色种养殖补贴到户项目","新建","县农业农村局","黄口镇\n杨梅","黄口镇","暗楼村","否","扶持134户脱贫户（含监测对象）发展特色种养业","2023年12月15日前",13.2185,13.2185,null,"扶持134户脱贫户发展特色种养业，鼓励其扩大种养殖规模。","瓜果蔬菜种植面积166.2亩，羊养殖数量244只，猪养殖数量18头",{"v":1,"d":"100%"},{"v":1,"d":"100%"},null,15.8622,null,null,134,278,null,null,"≥95%","参与项目申报、实施过程监督、完成后受益","以产业补助的形式对脱贫户进行补助，鼓励发展特色产业，激发脱贫人口内生动力，扩大种养殖规模，增加脱贫户收入"]
[60,"生产项目（种植/养殖业）","2023年黄口镇孙庙村特色种养殖补贴到户项目","新建","县农业农村局","黄口镇\n杨梅","黄口镇","孙庙村","否","扶持151户脱贫户（含监测对象）发展特色种养业","2023年12月15日前",15.1865,15.1865,null,"扶持151户脱贫户发展特色种养业，鼓励其扩大种养殖规模。","瓜果蔬菜种植面积252.1亩，羊养殖数量237只，猪养殖数量3头",{"v":1,"d":"100%"},{"v":1,"d":"100%"},null,18.2238,null,null,157,293,null,null,"≥95%","参与项目申报、实施过程监督、完成后受益","以产业补助的形式对脱贫户进行补助，鼓励发展特色产业，激发脱贫人口内生动力，扩大种养殖规模，增加脱贫户收入"]
[61,"生产项目（种植/养殖业）","2023年黄口镇马常庄村特色种养殖补贴到户项目","新建","县农业农村局","黄口镇\n杨梅","黄口镇","马常庄村","否","扶持70户脱贫户（含监测对象）发展特色种养业","2023年12月15日前",8.903,8.903,null,"扶持70户脱贫户发展特色种养业，鼓励其扩大种养殖规模。","瓜果蔬菜种植面积77.2亩，羊养殖数量229只，",{"v":1,"d":"100%"},{"v":1,"d":"100%"},null,10.6836,null,null,70,182,null,null,"≥95%","参与项目申报、实施过程监督、完成后受益","以产业补助的形式对脱贫户进行补助，鼓励发展特色产业，激发脱贫人口内生动力，扩大种养殖规模，增加脱贫户收入"]
[62,"生产项目（种植/养殖业）","2023年酒店镇丹楼村特色种养殖补贴到户项目","新建","县农业农村局","酒店镇\n杜龙升","酒店镇","丹楼村","否","扶持100户脱贫户（含监测对象）发展特色种养业","2023年12月15日前",{"$f":"M70+N70","v":15},15,null,"扶持100户脱贫户发展特色种养业，鼓励其扩大种养殖规模。","羊530只，猪210头，鸡5000只，西瓜60亩，蔬菜23亩，桃3亩。",{"v":1,"d":"100%"},{"v":1,"d":"100%"},"/",34,"/","/",100,235,null,null,"≥95%","参与项目申报、实施过程监督、完成后受益","以产业补助的形式对脱贫户进行补助，鼓励发展特色产业，激发脱贫人口内生动力，扩大种养殖规模，增加脱贫户收入"]
[63,"生产项目（种植/养殖业）","2023年酒店镇丁庄村特色种养殖补贴到户项目","新建","县农业农村局","酒店镇\n杜龙升","酒店镇","丁庄村","否","扶持195户脱贫户（含监测对象）发展特色种养业","2023年12月15日前",29.25,29.25,null,"扶持195户脱贫户发展特色种养业，鼓励其扩大种养殖规模。","梨99.5亩、苹果295..5亩、桃245亩、葡萄6亩、羊、羊54头、猪6头",{"v":1,"d":"100%"},{"v":1,"d":"100%"},"/",{"v":49.52,"d":"49.520"},"/","/",195,558,null,null,"≥95%","参与项目申报、实施过程监督、完成后受益","以产业补助的形式对脱贫户进行补助，鼓励发展特色产业，激发脱贫人口内生动力，扩大种养殖规模，增加脱贫户收入"]
[64,"生产项目（种植/养殖业）","2023年酒店镇东镇村特色种养殖补贴到户项目","新建","县农业农村局","酒店镇\n杜龙升","酒店镇","东镇村","否","扶持100户脱贫户发展特色种养业","2023年12月15日前",15,15,null,"扶持100户脱贫户发展特色种养业，鼓励其扩大种养殖规模。","养羊520只，养猪75头，鹅1500只，水果105亩，芦笋2亩。",{"v":1,"d":"100%"},{"v":1,"d":"100%"},"/",35,"/","/",100,231,null,null,"≥95%","参与项目申报、实施过程监督、完成后受益","以产业补助的形式对脱贫户进行补助，鼓励发展特色产业，激发脱贫人口内生动力，扩大种养殖规模，增加脱贫户收入"]
[65,"生产项目（种植/养殖业）","2023年酒店镇何寨村特色种养殖补贴到户项目","新建","县农业农村局","酒店镇\n杜龙升","酒店镇","何寨村","否","扶持90户脱贫户（含监测对象）发展特色种养业","2023年12月15日前",13.5,13.5,null,"扶持90户脱贫户发展特色种养业，鼓励其扩大种养殖规模。","羊300只，猪80头，西瓜800亩.",{"v":1,"d":"100%"},{"v":1,"d":"100%"},"/",27,"/","/",90,270,null,null,"≥95%","参与项目申报、实施过程监督、完成后受益","以产业补助的形式对脱贫户进行补助，鼓励发展特色产业，激发脱贫人口内生动力，扩大种养殖规模，增加脱贫户收入"]
[66,"生产项目（种植/养殖业）","2023年酒店镇和谐村特色种养殖补贴到户项目","新建","县农业农村局","酒店镇\n杜龙升","酒店镇","和谐村","否","扶持90户脱贫户（含监测对象）发展特色种养业","2023年12月15日前",13.5,13.5,null,"扶持90户脱贫户发展特色种养业，鼓励其扩大种养殖规模。","养羊260只，养猪15头，大棚西瓜120亩",{"v":1,"d":"100%"},{"v":1,"d":"100%"},"/",30,"/","/",90,180,null,null,"≥95%","参与项目申报、实施过程监督、完成后受益","以产业补助的形式对脱贫户进行补助，鼓励发展特色产业，激发脱贫人口内生动力，扩大种养殖规模，增加脱贫户收入"]
[67,"生产项目（种植/养殖业）","2023年酒店镇酒店村特色种养业奖补到户项目","新建","县农业农村局","酒店镇\n杜龙升","酒店镇","酒店村","是","扶持165户脱贫户（含监测对象）发展特色种养业","2023年12月15日前",24.75,24.75,null,"扶持165户脱贫户发展特色种养业，鼓励其扩大种养殖规模。","羊600只，猪350头，蔬菜35亩，西瓜  300亩，鸭子10000只、鹅  6000只、兔子200只、鱼塘5亩、牛10头  ",{"v":1,"d":"100%"},{"v":1,"d":"100%"},"/",{"v":60,"d":"60.000"},"/","/",165,500,null,null,"≥95%","参与项目申报、实施过程监督、完成后受益","以产业补助的形式对脱贫户进行补助，鼓励发展特色产业，激发脱贫人口内生动力，扩大种养殖规模，增加脱贫户收入"]
[68,"生产项目（种植/养殖业）","2023年酒店镇李庄村特色种养业奖补到户项目","新建","县农业农村局","酒店镇\n杜龙升","酒店镇","李庄村","是","扶持100户脱贫户（含监测对象）发展特色种养业","2023年12月15日前",15,15,null,"扶持100户脱贫户发展特色种养业，鼓励其扩大种养殖规模。","羊500只，猪80头，西瓜260亩，梨30亩，苹果70亩，桃50亩。",{"v":1,"d":"100%"},{"v":1,"d":"100%"},"/",{"v":39.6,"d":"39.600"},"/","/",100,370,null,null,"≥95%","参与项目申报、实施过程监督、完成后受益","以产业补助的形式对脱贫户进行补助，鼓励发展特色产业，激发脱贫人口内生动力，扩大种养殖规模，增加脱贫户收入"]
[69,"生产项目（种植/养殖业）","2023年酒店镇孟暗楼村特色种养业奖补到户项目","新建","县农业农村局","酒店镇\n杜龙升","酒店镇","孟暗楼村","否","扶持160户脱贫户（含监测对象）发展特色种养业","2023年12月15日前",{"$f":"M77+N77","v":24},24,null,"扶持160户脱贫户发展特色种养业，鼓励其扩大种养殖规模。","羊800只，猪350头，蔬菜35亩，果树80母，西瓜 600亩，鸭子10000只、鹅  6000只、兔子200只、鱼塘40亩、牛10头  ",{"v":1,"d":"100%"},{"v":1,"d":"100%"},"/",{"v":60,"d":"60.000"},"/","/",160,490,null,null,"≥95%","参与项目申报、实施过程监督、完成后受益","以产业补助的形式对脱贫户进行补助，鼓励发展特色产业，激发脱贫人口内生动力，扩大种养殖规模，增加脱贫户收入"]
[70,"生产项目（种植/养殖业）","2023年酒店镇旗杆村特色种养业奖补到户项目","新建","县农业农村局","酒店镇\n杜龙升","酒店镇","旗杆村","是","扶持115户脱贫户（含监测对象）发展特色种养业","2023年12月15日前",17.25,17.25,null,"扶持115户脱贫户发展特色种养业，鼓励其扩大种养殖规模。","中药材种植面积20亩，猪养殖数量580头，牛养殖数量20头，羊养殖数量689只，养鹅3000只，养鸡500只",{"v":1,"d":"100%"},{"v":1,"d":"100%"},"/",{"v":36,"d":"36.000"},"/","/",115,290,null,null,"≥95%","参与项目申报、实施过程监督、完成后受益","以产业补助的形式对脱贫户进行补助，鼓励发展特色产业，激发脱贫人口内生动力，扩大种养殖规模，增加脱贫户收入"]
[71,"生产项目（种植/养殖业）","2023年酒店镇申河村特色种养业奖补到户项目","新建","县农业农村局","酒店镇\n杜龙升","酒店镇","申河村","是","扶持116户脱贫户（含监测对象）发展特色种养业","2023年12月15日前",17.4,17.4,null,"扶持116户脱贫户发展特色种养业，鼓励其扩大种养殖规模。","羊790只，猪35头，鹅230只，果树15.9亩，中药材25.7亩，大棚西瓜55亩，牛20头",{"v":1,"d":"100%"},{"v":1,"d":"100%"},"/",{"v":32,"d":"32.000"},"/","/",116,233,null,null,"≥95%","参与项目申报、实施过程监督、完成后受益","以产业补助的形式对脱贫户进行补助，鼓励发展特色产业，激发脱贫人口内生动力，扩大种养殖规模，增加脱贫户收入"]
[72,"生产项目（种植/养殖业）","2023年酒店镇西赵楼村特色种养殖补贴到户项目","新建","县农业农村局","酒店镇\n杜龙升","酒店镇","西赵楼村","否","扶持80户脱贫户（含监测对象）发展特色种养业","2023年12月15日前",12,12,null,"扶持80户脱贫户发展特色种养业，鼓励其扩大种养殖规模。","羊300只，猪80头，西瓜860亩，梨10亩，苹果20亩，桃10亩。",{"v":1,"d":"100%"},{"v":1,"d":"100%"},"/",{"v":24,"d":"24.000"},"/","/",80,260,null,null,"≥95%","参与项目申报、实施过程监督、完成后受益","以产业补助的形式对脱贫户进行补助，鼓励发展特色产业，激发脱贫人口内生动力，扩大种养殖规模，增加脱贫户收入"]
[73,"生产项目（种植/养殖业）","2023年酒店镇杨楼村特色种养业奖补到户","新建","县农业农村局","酒店镇\n杜龙升","酒店镇","杨楼村","否","扶持80户脱贫户（含监测对象）发展特色种养业","2023年12月15日前",12,12,null,"扶持80户脱贫户发展特色种养业，鼓励其扩大种养殖规模。","羊480只，猪50头，西瓜6亩",{"v":1,"d":"100%"},{"v":1,"d":"100%"},"/",30,"/","/",80,260,null,null,"≥95%","参与项目申报、实施过程监督、完成后受益","以产业补助的形式对脱贫户进行补助，鼓励发展特色产业，激发脱贫人口内生动力，扩大种养殖规模，增加脱贫户收入"]
[74,"生产项目（种植/养殖业）","2023年酒店镇赵圈村特色种养业奖补到户","新建","县农业农村局","酒店镇\n杜龙升","酒店镇","赵圈村","是","扶持130户脱贫户（含监测对象）发展特色种养业","2023年12月15日前",19.5,19.5,null,"扶持130户脱贫户发展特色种养业，鼓励其扩大种养殖规模。","羊100只，猪200头，蔬菜100亩，西瓜  700亩，鸭子5000只、鹅  6000只、兔子500只、鱼塘10亩、牛50头  ",{"v":1,"d":"100%"},{"v":1,"d":"100%"},"/",{"v":60,"d":"60.000"},"/","/",130,310,null,null,"≥95%","参与项目申报、实施过程监督、完成后受益","以产业补助的形式对脱贫户进行补助，鼓励发展特色产业，激发脱贫人口内生动力，扩大种养殖规模，增加脱贫户收入"]
[75,"生产项目（种植/养殖业）","2023年刘套镇徐安村特色种养殖补贴到户项目","新建","县农业农村局","刘套镇\n李磊","刘套镇","徐安村","否","扶持33户脱贫户（含监测对象）发展特色种养业","2023年12月15日前",4.95,4.95,null,"扶持33户脱贫户发展特色种养业，鼓励其扩大种养殖规模。","季节性露地蔬菜种植（大蒜）20亩，猪养殖数量65头，羊养殖数量179只，养殖蜜蜂15箱，种植黏玉米2亩，种植蔬菜大棚2亩。",{"v":1,"d":"100%"},{"v":1,"d":"100%"},"/",{"$f":"L83*1.2","v":5.94},"/","/",33,91,null,null,"≥95%","参与项目申报、实施过程监督、完成后受益","以产业补助的形式对脱贫户进行补助，鼓励发展特色产业，激发脱贫人口内生动力，扩大种养殖规模，增加脱贫户收入"]
[76,"生产项目（种植/养殖业）","2023年刘套镇刘套村特色种养殖补贴到户项目","新建","县农业农村局","刘套镇\n李磊","刘套镇","刘套村","否","扶持30户脱贫户（含监测对象）发展特色种养业","2023年12月15日前",4.5,4.5,null,"扶持30户脱贫户发展特色种养业，鼓励其扩大种养殖规模。","瓜果蔬菜种植面积50.5亩，猪养殖数量41头，羊养殖数量146只，",{"v":1,"d":"100%"},{"v":1,"d":"100%"},"/",5.4,"/",null,30,67,null,null,"≥95%","参与项目申报、实施过程监督、完成后受益","以产业补助的形式对脱贫户进行补助，鼓励发展特色产业，激发脱贫人口内生动力，扩大种养殖规模，增加脱贫户收入"]
[77,"生产项目（种植/养殖业）","2023年刘套镇常楼村特色种养殖补贴到户项目","新建","县农业农村局","刘套镇\n李磊","刘套镇","常楼村","否","扶持30户脱贫户（含监测对象）发展特色种养业","2023年12月15日前",4.5,4.5,null,"扶持30户脱贫户发展特色种养业，鼓励其扩大种养殖规模。","猪羊养殖数量120头，羊养殖数量30只，鱼塘9亩，种植露天蔬菜2.2亩，瓜果种植3亩",{"v":1,"d":"100%"},{"v":1,"d":"100%"},"/",5.4,"/","/",30,67,null,null,"≥95%","参与项目申报、实施过程监督、完成后受益","以产业补助的形式对脱贫户进行补助，鼓励发展特色产业，激发脱贫人口内生动力，扩大种养殖规模，增加脱贫户收入"]
[78,"生产项目（种植/养殖业）","2023年刘套镇李圩村特色种养殖补贴到户项目","新建","县农业农村局","刘套镇\n李磊","刘套镇","李圩村","否","扶持101户脱贫户（含监测对象）发展特色种养业项目","2023年12月15日前",15.15,15.15,null,"扶持101户脱贫户发展特色种养业，鼓励其扩大种养殖规模。","水果种植面积246亩，露天蔬菜（芦笋）种植2亩，猪养殖数量30头，羊养殖数量105只，鸡养殖数量1000羽，观赏鱼养殖面积100平方。",{"v":1,"d":"100%"},{"v":1,"d":"100%"},"/",18.18,"/","/",101,223,null,null,"≥95%","参与项目申报、实施过程监督、完成后受益","以产业补助的形式对脱贫户进行补助，鼓励发展特色产业，激发脱贫人口内生动力，扩大种养殖规模，增加脱贫户收入"]
[79,"生产项目（种植/养殖业）","2023年刘套镇管粥集村特色种养殖补贴到户项目","新建","县农业农村局","刘套镇\n李磊","刘套镇","管粥集村","否","扶持43户脱贫户（含监测对象）发展特色种养业","2023年12月15日前",6.45,6.45,null,"扶持43户脱贫户发展特色种养业，鼓励其扩大种养殖规模。","瓜果种植面积79亩，猪养殖数量136头，羊养殖数量46只，其它70000只。",{"v":1,"d":"100%"},{"v":1,"d":"100%"},"/",7.74,"/","/",43,104,null,null,"≥95%","参与项目申报、实施过程监督、完成后受益","以产业补助的形式对脱贫户进行补助，鼓励发展特色产业，激发脱贫人口内生动力，扩大种养殖规模，增加脱贫户收入"]
[80,"生产项目（种植/养殖业）","2023年刘套镇陈屯村特色种养殖补贴到户项目","新建","县农业农村局","刘套镇\n李磊","刘套镇","陈屯村","是","扶持38户脱贫户（含监测对象）发展特色种养业","2023年12月15日前",5.7,5.7,null,"扶持38户脱贫户发展特色种养业，鼓励其扩大种养殖规模。","瓜果种植面积16.9亩，猪养殖数量73头，羊养殖数量285只，",{"v":1,"d":"100%"},{"v":1,"d":"100%"},"/",6.84,"/","/",38,90,null,null,"≥95%","参与项目申报、实施过程监督、完成后受益","以产业补助的形式对脱贫户进行补助，鼓励发展特色产业，激发脱贫人口内生动力，扩大种养殖规模，增加脱贫户收入"]
[81,"生产项目（种植/养殖业）","2023年刘套镇张庄村特色种养殖补贴到户项目","新建","县农业农村局","刘套镇\n李磊","刘套镇","张庄村","否","扶持32户脱贫户（含监测对象）发展特色种养业","2023年12月15日前",4.8,4.8,null,"扶持32户脱贫户发展特色种养业，鼓励其扩大种养殖规模。","桃树种植面积2亩，猪养殖数量20头，羊养殖数量224只，",{"v":1,"d":"100%"},{"v":1,"d":"100%"},"/",5.76,"/","/",24,53,null,null,"≥95%","参与项目申报、实施过程监督、完成后受益","以产业补助的形式对脱贫户进行补助，鼓励发展特色产业，激发脱贫人口内生动力，扩大种养殖规模，增加脱贫户收入"]
[82,"生产项目（种植/养殖业）","2023年刘套镇赵庄村村特色种养殖补贴到户项目","新建","县农业农村局","刘套镇\n李磊","刘套镇","赵庄村","否","扶持27户脱贫户（含监测对象）发展特色种养业","2023年12月15日前",4.05,4.05,null,"扶持27户脱贫户发展特色种养业，鼓励其扩大种养殖规模。","瓜果种植面积5亩，猪养殖数量60头，羊养殖数量110只，",{"v":1,"d":"100%"},{"v":1,"d":"100%"},"/",4.86,"/","/",27,58,null,null,"≥95%","参与项目申报、实施过程监督、完成后受益","以产业补助的形式对脱贫户进行补助，鼓励发展特色产业，激发脱贫人口内生动力，扩大种养殖规模，增加脱贫户收入"]
[83,"生产项目（种植/养殖业）","2023年刘套镇三大家村特色种养殖补贴到户项目","新建","县农业农村局","刘套镇\n李磊","刘套镇","三大家村","是","扶持9户脱贫户（含监测对象）发展特色种养业","2023年12月15日前",1.35,1.35,null,"扶持9户脱贫户发展特色种养业，鼓励其扩大种养殖规模。","瓜果种植面积5亩，猪养殖数量6头，羊养殖数量40只，",{"v":1,"d":"100%"},{"v":1,"d":"100%"},"/",1.62,"/","/",9,18,null,null,"≥95%","参与项目申报、实施过程监督、完成后受益","以产业补助的形式对脱贫户进行补助，鼓励发展特色产业，激发脱贫人口内生动力，扩大种养殖规模，增加脱贫户收入"]
[84,"生产项目（种植/养殖业）","2023年刘套镇芈集村特色种养殖补贴到户项目","新建","县农业农村局","刘套镇\n李磊","刘套镇","芈集村","是","扶持110户脱贫户（含监测对象）发展特色种养业","2023年12月15日前",16.5,16.5,null,"扶持110户脱贫户发展特色种养业，鼓励其扩大种养殖规模。","瓜果种植面积446.9亩，猪养殖数量303头，羊养殖数量85只，",{"v":1,"d":"100%"},{"v":1,"d":"100%"},"/",19.8,"/","/",110,246,null,null,"≥95%","参与项目申报、实施过程监督、完成后受益","以产业补助的形式对脱贫户进行补助，鼓励发展特色产业，激发脱贫人口内生动力，扩大种养殖规模，增加脱贫户收入"]
[85,"生产项目（种植/养殖业）","2023年龙城镇人民特色种养殖补贴到户项目","新建","县农业农村局","龙城镇\n张跃","龙城镇","人民村","是","扶持17户脱贫户（含监测对象）发展特色种养业","2023年12月15日前",{"$f":"M93+N93","v":2.55},2.55,null,"扶持17户脱贫户发展特色种养业，鼓励其扩大种养殖规模。","享受特色种养农户养羊168只",{"v":1,"d":"100%"},{"v":1,"d":"100%"},"/",5.1,"/",5.1,17,17,null,null,"≥95%","参与项目申报、实施过程监督、完成后受益","以产业补助的形式对脱贫户进行补助，鼓励发展特色产业，激发脱贫人口内生动力，扩大种养殖规模，增加脱贫户收入"]
[86,"生产项目（种植/养殖业）","2023年龙城镇毛郢孜社区特色种养殖补贴到户项目","新建","县农业农村局","龙城镇\n张跃","龙城镇","毛郢孜社区","是","扶持6户发展特色种养业","2023年12月15日前",0.9,0.9,null,"扶持6户脱贫户发展特色种养业，鼓励其扩大种养殖规模。","种果树0.8亩，大棚蔬菜1.5亩、养羊40只",{"v":1,"d":"100%"},{"v":1,"d":"100%"},"/",1.489,"/","/",6,11,null,null,"≥95%","参与项目申报、实施过程监督、完成后受益","以产业补助的形式对脱贫户进行补助，鼓励发展特色产业，激发脱贫人口内生动力，扩大种养殖规模，增加脱贫户收入"]
[87,"生产项目（种植/养殖业）","2023年龙城镇马楼社区特色种养殖补贴到户项目","新建","县农业农村局","龙城镇\n张跃","龙城镇","马楼社区","否","扶持6户脱贫户发展特色种养业","2023年12月15日前",0.9,0.9,null,"扶持6户脱贫户发展特色种养业，鼓励其扩大种养殖规模。","养猪10头、种植桃树6.6亩、种植大棚菜5亩、种植草莓1.5亩",{"v":1,"d":"100%"},{"v":1,"d":"100%"},"/",1.553,"/","/",6,19,null,null,"≥95%","参与项目申报、实施过程监督、完成后受益","以产业补助的形式对脱贫户进行补助，鼓励发展特色产业，激发脱贫人口内生动力，扩大种养殖规模，增加脱贫户收入"]
[88,"生产项目（种植/养殖业）","2023年龙城镇房庄社区特色种养殖补贴到户项目","新建","县农业农村局","龙城镇\n张跃","龙城镇","房庄社区","否","扶持8户发展特色种养业","2023年12月15日前",1.2,1.2,null,"扶持8户脱贫户发展特色种养业，鼓励其扩大种养殖规模。","养羊5头、养猪8头、种植桃树3亩",{"v":1,"d":"100%"},{"v":1,"d":"100%"},"/",1.716,"/","/",8,14,null,null,"≥95%","参与项目申报、实施过程监督、完成后受益","以产业补助的形式对脱贫户进行补助，鼓励发展特色产业，激发脱贫人口内生动力，扩大种养殖规模，增加脱贫户收入"]
[89,"生产项目（种植/养殖业）","2023年龙城镇姬村特色种养殖补贴到户项目","新建","县农业农村局","龙城镇\n张跃","龙城镇","姬村","否","扶持2户脱贫户（含监测对象）发展特色种养业","2023年12月15日前",0.3,0.3,null,"扶持2户脱贫户发展特色种养业，鼓励其扩大种养殖规模。","享受特色种养农户种植石榴树4亩",{"v":1,"d":"100%"},{"v":1,"d":"100%"},"/",0.33,"/",0.33,2,4,null,null,"≥95%","参与项目申报、实施过程监督、完成后受益","以产业补助的形式对脱贫户进行补助，鼓励发展特色产业，激发脱贫人口内生动力，扩大种养殖规模，增加脱贫户收入"]
[90,"生产项目（种植/养殖业）","2023年龙城镇李台社区特色种养殖补贴到户项目","新建","县农业农村局","龙城镇\n张跃","龙城镇","李台社区","否","扶持1户发展特色种养业","2023年12月15日前",0.15,0.15,null,"扶持1户脱贫户发展特色种养业，鼓励其扩大种养殖规模。","养殖山羊40只",{"v":1,"d":"100%"},{"v":1,"d":"100%"},"/",0.5,"/","/",1,2,null,null,"≥95%","参与项目申报、实施过程监督、完成后受益","以产业补助的形式对脱贫户进行补助，鼓励发展特色产业，激发脱贫人口内生动力，扩大种养殖规模，增加脱贫户收入"]
[91,"生产项目（种植/养殖业）","2023年龙城镇岱湖社区特色种养殖补贴到户项目","新建","县农业农村局","龙城镇\n张跃","龙城镇","岱湖社区","否","扶持4户脱贫户发展特色种养业","2023年12月15日前",0.6,0.6,null,"扶持4户脱贫户发展特色种养业，鼓励其扩大种养殖规模。","养羊39只",{"v":1,"d":"100%"},{"v":1,"d":"100%"},"/",1.2,"/","/",4,7,null,null,"≥95%","参与项目申报、实施过程监督、完成后受益","以产业补助的形式对脱贫户进行补助，鼓励发展特色产业，激发脱贫人口内生动力，扩大种养殖规模，增加脱贫户收入"]
[92,"生产项目（种植/养殖业）","2023年龙城镇帽山村特色种养殖补贴到户项目","新建","县农业农村局","龙城镇\n张跃","龙城镇","帽山村","否","扶持22户发展特色种养业","2023年12月15日前",3.3,3.3,null,"扶持22户脱贫户发展特色种养业，鼓励其扩大种养殖规模。","养羊45只、种植桃树5亩、种植大棚菜2.5亩，种植杏园17亩，种植石榴3亩，葛花8亩。",{"v":1,"d":"100%"},{"v":1,"d":"100%"},"/",7,"/",null,22,46,null,null,"≥95%","参与项目申报、实施过程监督、完成后受益","以产业补助的形式对脱贫户进行补助，鼓励发展特色产业，激发脱贫人口内生动力，扩大种养殖规模，增加脱贫户收入"]
[93,"生产项目（种植/养殖业）","2023年龙城镇王大庄村特色种养殖补贴到户项目","新建","县农业农村局","龙城镇\n张跃","龙城镇","王大庄村","是","扶持28户脱贫户发展特色种养业","2023年12月15日前",4.2,4.2,null,"扶持28户脱贫户发展特色种养业，鼓励其扩大种养殖规模。","羊养殖数量150只，露地蔬菜30亩。",{"v":1,"d":"100%"},{"v":1,"d":"100%"},"/",6.5,"/","/",28,39,null,null,"≥95%","参与项目申报、实施过程监督、完成后受益","以产业补助的形式对脱贫户进行补助，鼓励发展特色产业，激发脱贫人口内生动力，扩大种养殖规模，增加脱贫户收入"]
[94,"生产项目（种植/养殖业）","2023年龙城镇前梅社区特色种养殖补贴到户项目","新建","县农业农村局","龙城镇\n张跃","龙城镇","前梅社区","否","扶持1户发展特色种养业","2023年12月15日前",0.15,0.15,null,"扶持1户脱贫户发展特色种养业，鼓励其扩大种养殖规模。","1.7亩大棚蔬菜",{"v":1,"d":"100%"},{"v":1,"d":"100%"},"/",1,"/","/",1,2,null,null,"≥95%","参与项目申报、实施过程监督、完成后受益","以产业补助的形式对脱贫户进行补助，鼓励发展特色产业，激发脱贫人口内生动力，扩大种养殖规模，增加脱贫户收入"]
[95,"生产项目（种植/养殖业）","2023年马井镇麻堤口村特色种养殖补贴到户项目","新建","县农业农村局","马井镇\n王伟强","马井镇","麻堤口村","是","扶持54户脱贫户（含监测对象）发展特色种养业","2023年12月15日前",6.62,6.62,null,"扶持54户脱贫户发展特色种养业，鼓励其扩大种养殖规模。","瓜果蔬菜种植面积100.5亩，羊养殖数量133只，露地蔬菜种植面积5亩",{"v":1,"d":"100%"},{"v":1,"d":"100%"},"/",9.93,"/","/",54,106,null,null,"≥95%","参与项目申报、实施过程监督、完成后受益","以产业补助的形式对脱贫户进行补助，鼓励发展特色产业，激发脱贫人口内生动力，扩大种养殖规模，增加脱贫户收入"]
[96,"生产项目（种植/养殖业）","2023年马井镇吴瓦房村特色种养殖补贴到户项目","新建","县农业农村局","马井镇\n王伟强","马井镇","吴瓦房","是","扶持40户脱贫户（含监测对象）发展特色种养业","2023年12月15日前",{"v":5.11,"d":"5.110"},{"v":5.11,"d":"5.110"},null,"扶持40户脱贫户发展特色种养业，鼓励其扩大种养殖规模。","瓜果蔬菜种植面积4亩，羊养殖数量175只，养殖鸭子2000羽，经济作物种植面积17亩",{"v":1,"d":"100%"},{"v":1,"d":"100%"},"/",7.665,"/","/",40,92,null,null,"≥95%","参与项目申报、实施过程监督、完成后受益","以产业补助的形式对脱贫户进行补助，鼓励发展特色产业，激发脱贫人口内生动力，扩大种养殖规模，增加脱贫户收入"]
[97,"生产项目（种植/养殖业）","2023年马井镇孙庄村特色种养殖补贴到户项目","新建","县农业农村局","马井镇\n王伟强","马井镇","孙庄村","否","扶持49户脱贫户（含监测对象）发展特色种养业","2023年12月15日前",5.23,5.23,null,"扶持49户脱贫户发展特色种养业，鼓励其扩大种养殖规模。","梨树种植面积75亩，羊养殖数量96只，猪养殖数量3头，经济作物种植面积亩",{"v":1,"d":"100%"},{"v":1,"d":"100%"},"/",6.276,"/","/",49,124,null,null,"≥95%","参与项目申报、实施过程监督、完成后受益","以产业补助的形式对脱贫户进行补助，鼓励发展特色产业，激发脱贫人口内生动力，扩大种养殖规模，增加脱贫户收入"]
[98,"生产项目（种植/养殖业）","2023年马井镇朱庄村特色种养殖补贴到户项目","新建","县农业农村局","马井镇\n王伟强","马井镇","朱庄村","否","扶持41户脱贫户（含监测对象）发展特色种养业","2023年12月15日前",5.62,5.62,null,"扶持41户脱贫户发展特色种养业，鼓励其扩大种养殖规模。","瓜果蔬菜种植面积19亩，羊养殖数量291只，猪养殖数量10头，经济作物种植面积亩",{"v":1,"d":"100%"},{"v":1,"d":"100%"},"/",8.43,"/","/",41,177,null,null,"≥95%","参与项目申报、实施过程监督、完成后受益","以产业补助的形式对脱贫户进行补助，鼓励发展特色产业，激发脱贫人口内生动力，扩大种养殖规模，增加脱贫户收入"]
[99,"生产项目（种植/养殖业）","2023年马井镇权楼村特色种养殖补贴到户项目","新建","县农业农村局","马井镇\n王伟强","马井镇","权楼村","否","扶持41户脱贫户（含监测对象）发展特色种养业","2023年12月15日前",5.82,5.82,null,"扶持41户脱贫户发展特色种养业，鼓励其扩大种养殖规模。","梨树种植4亩、葡萄大棚2亩、养殖牛2头、养殖羊265只、养殖猪8头",{"v":1,"d":"100%"},{"v":1,"d":"100%"},"/",6.88,"/","/",41,108,null,null,"≥95%","参与项目申报、实施过程监督、完成后受益","以产业补助的形式对脱贫户进行补助，鼓励发展特色产业，激发脱贫人口内生动力，扩大种养殖规模，增加脱贫户收入"]
[100,"生产项目（种植/养殖业）","2023年马井镇许破楼村特色种养殖补贴到户项目","新建","县农业农村局","马井镇\n王伟强","马井镇","许破楼村","否","扶持32户脱贫户（含监测对象）发展特色种养业","2023年12月15日前",4.49,4.49,null,"扶持32户脱贫户发展特色种养业，鼓励其扩大种养殖规模。","羊养殖数量217只，猪养殖数量4头，牛养殖数量2头",{"v":1,"d":"100%"},{"v":1,"d":"100%"},"/",6.735,"/","/",32,90,null,null,"≥95%","参与项目申报、实施过程监督、完成后受益","以产业补助的形式对脱贫户进行补助，鼓励发展特色产业，激发脱贫人口内生动力，扩大种养殖规模，增加脱贫户收入"]
[101,"生产项目（种植/养殖业）","2023年马井镇朱集村特色种养殖补贴到户项目","新建","县农业农村局","马井镇\n王伟强","马井镇","朱集村","否","扶持32户脱贫户发展特色种养业","2023年12月15日前",4.22,4.22,null,"扶持32户脱贫户发展特色种养业，鼓励其扩大种养殖规模。","瓜果蔬菜种植面积16.2亩，羊养殖数量184只，猪养殖数量20头，",{"v":1,"d":"100%"},{"v":1,"d":"100%"},"/",4.22,"/","/",32,69,null,null,"≥95%","参与项目申报、实施过程监督、完成后受益","以产业补助的形式对脱贫户进行补助，鼓励发展特色产业，激发脱贫人口内生动力，扩大种养殖规模，增加脱贫户收入"]
[102,"生产项目（种植/养殖业）","2023年马井镇郝庄村特色种养殖补贴到户项目","新建","县农业农村局","马井镇\n王伟强","马井镇","郝庄村","否","扶持47户脱贫户（含监测对象）发展特色种养业","2023年12月15日前",6.7,6.7,null,"扶持47户脱贫户发展特色种养业，鼓励其扩大种养殖规模。","瓜果蔬菜种植面积9.8亩，羊养殖数量336只，猪养殖数量40头，牛养殖数量3头，鸡养殖数量5000羽，",{"v":1,"d":"100%"},{"v":1,"d":"100%"},"/",12.6,"/","/",47,110,null,null,"≥95%","参与项目申报、实施过程监督、完成后受益","以产业补助的形式对脱贫户进行补助，鼓励发展特色产业，激发脱贫人口内生动力，扩大种养殖规模，增加脱贫户收入"]
[103,"生产项目（种植/养殖业）","2023年马井镇吴九店村特色种养殖补贴到户项目","新建","县农业农村局","马井镇\n王伟强","马井镇","吴九店村","否","扶持53户脱贫户（含监测对象）发展特色种养业","2023年12月15日前",6.786,6.786,null,"扶持53户脱贫户发展特色种养业，鼓励其扩大种养殖规模。","瓜果蔬菜种植面积84亩，羊养殖数量174只，猪养殖数量5头，经济作物种植面积亩",{"v":1,"d":"100%"},{"v":1,"d":"100%"},"/",10.15,"/","/",53,112,null,null,"≥95%","参与项目申报、实施过程监督、完成后受益","以产业补助的形式对脱贫户进行补助，鼓励发展特色产业，激发脱贫人口内生动力，扩大种养殖规模，增加脱贫户收入"]
[104,"生产项目（种植/养殖业）","2023年马井镇曲里铺村特色种养殖补贴到户项目","新建","县农业农村局","马井镇\n王伟强","马井镇","曲里铺村","是","扶持28户脱贫户（含监测对象）发展特色种养业","2023年12月15日前",4.2,4.2,null,"扶持28户脱贫户发展特色种养业，鼓励其扩大种养殖规模。","瓜果蔬菜种植面积0亩，羊养殖数量176只，猪养殖数量4头，牛养殖数量13头，经济作物种植面积0亩",{"v":1,"d":"100%"},{"v":1,"d":"100%"},"/",6.3,"/","/",28,59,null,null,"≥95%","参与项目申报、实施过程监督、完成后受益","以产业补助的形式对脱贫户进行补助，鼓励发展特色产业，激发脱贫人口内生动力，扩大种养殖规模，增加脱贫户收入"]
[105,"生产项目（种植/养殖业）","2023年马井镇镇长征村特色种养殖补贴到户项目","新建","县农业农村局","马井镇\n王伟强","马井镇","长征村","是","扶持23户脱贫户（含监测对象）发展特色种养业","2023年12月15日前",3.21,3.21,null,"扶持23户脱贫户发展特色种养业，鼓励其扩大种养殖规模。","瓜果蔬菜种植面积21亩，羊养殖数量112只，猪养殖数量8头",{"v":1,"d":"100%"},{"v":1,"d":"100%"},"/",7,"/","/",23,52,null,null,"≥95%","参与项目申报、实施过程监督、完成后受益","以产业补助的形式对脱贫户进行补助，鼓励发展特色产业，激发脱贫人口内生动力，扩大种养殖规模，增加脱贫户收入"]
[106,"生产项目（种植/养殖业）","2023年马井镇马井村特色种养殖补贴到户项目","新建","县农业农村局","马井镇\n王伟强","马井镇","马井村","否","扶持35户脱贫户（含监测对象）发展特色种养业","2023年12月15日前",4.79,4.79,null,"扶持35户脱贫户发展特色种养业，鼓励其扩大种养殖规模。","瓜果蔬菜种植面积7亩，羊养殖数量219只，猪养殖数量20头，经济作物种植面积亩",{"v":1,"d":"100%"},{"v":1,"d":"100%"},"/",9.54,"/","/",35,81,null,null,"≥95%","参与项目申报、实施过程监督、完成后受益","以产业补助的形式对脱贫户进行补助，鼓励发展特色产业，激发脱贫人口内生动力，扩大种养殖规模，增加脱贫户收入"]
[107,"生产项目（种植/养殖业）","2023年马井镇黄楼村特色种养殖补贴到户项目","新建","县农业农村局","马井镇\n王伟强","马井镇","黄楼村","否","扶持36户脱贫户（含监测对象）发展特色种养业","2023年12月15日前",{"$f":"M115+N115","v":4.863},4.863,null,"扶持36户脱贫户发展特色种养业，鼓励其扩大种养殖规模。","瓜果蔬菜面积24.7亩，猪养殖数量51头，牛20头、羊养殖数量202头、精养鱼塘4.5亩。",{"v":1,"d":"100%"},{"v":1,"d":"100%"},"/",7,"/","/",36,89,null,null,"≥95%","参与项目申报、实施过程监督、完成后受益","以产业补助的形式对脱贫户进行补助，鼓励发展特色产业，激发脱贫人口内生动力，扩大种养殖规模，增加脱贫户收入"]
[108,"生产项目（种植/养殖业）","2023年马井镇道口村特色种养殖补贴到户项目","新建","县农业农村局","马井镇\n王伟强","马井镇","道口村","是","扶持41户脱贫户（含监测对象）发展特色种养业","2023年12月15日前",4.401,4.401,null,"扶持41户脱贫户发展特色种养业，鼓励其扩大种养殖规模。","瓜果蔬菜种植面积77.55亩，羊养殖数量65只，猪养殖数量0头，经济作物种植面积亩",{"v":1,"d":"100%"},{"v":1,"d":"100%"},"/",6.5,"/","/",41,93,null,null,"≥95%","参与项目申报、实施过程监督、完成后受益","以产业补助的形式对脱贫户进行补助，鼓励发展特色产业，激发脱贫人口内生动力，扩大种养殖规模，增加脱贫户收入"]
[109,"生产项目（种植/养殖业）","2023年马井镇王楼村特色种养殖补贴到户项目","新建","县农业农村局","马井镇\n王伟强","马井镇","王楼村","否","扶持58户脱贫户（含监测对象）发展特色种养业","2023年12月15日前",6.905,6.905,null,"扶持58户脱贫户发展特色种养业，鼓励其扩大种养殖规模。","瓜果蔬菜种植面积54亩，羊养殖数量203只，猪养殖数量65头，鸡养殖数量400只",{"v":1,"d":"100%"},{"v":1,"d":"100%"},"/",8.3,"/","/",58,152,null,null,"≥95%","参与项目申报、实施过程监督、完成后受益","以产业补助的形式对脱贫户进行补助，鼓励发展特色产业，激发脱贫人口内生动力，扩大种养殖规模，增加脱贫户收入"]
[110,"生产项目（种植/养殖业）","2023年青龙集镇青龙集村特色种养殖补贴到户项目","新建","县农业农村局","青龙集镇\n况美彩","青龙集镇","青龙集村","是","扶持16户脱贫户（含监测对象）发展特色种养业","2023年12月15日前",2.27,2.27,null,"扶持16户脱贫户发展特色种养业，鼓励其扩大种养殖规模。","羊养殖数量165只",{"v":1,"d":"100%"},{"v":1,"d":"100%"},"/",3,"/","/",16,51,null,null,"≥95%","参与项目申报、实施过程监督、完成后受益","以产业补助的形式对脱贫户进行补助，鼓励发展特色产业，激发脱贫人口内生动力，扩大种养殖规模，增加脱贫户收入"]
[111,"生产项目（种植/养殖业）","2023年青龙集镇路口村特色种养殖补贴到户项目","新建","县农业农村局","青龙集镇\n况美彩","青龙集镇","路口村","是","扶持45户脱贫户（含监测对象）发展特色种养业","2023年12月15日前",6.39,6.39,null,"扶持45户脱贫户发展特色种养业，鼓励其扩大种养殖规模。","大棚蔬菜种植面积3亩，羊养殖数量409只，猪养殖数量4头，牛养殖数量30头。",{"v":1,"d":"100%"},{"v":1,"d":"100%"},"/",8,"/","/",45,120,null,null,"≥95%","参与项目申报、实施过程监督、完成后受益","以产业补助的形式对脱贫户进行补助，鼓励发展特色产业，激发脱贫人口内生动力，扩大种养殖规模，增加脱贫户收入"]
[112,"生产项目（种植/养殖业）","2023年青龙集镇胡庄村特色种养殖补贴到户项目","新建","县农业农村局","青龙集镇\n况美彩","青龙集镇","胡庄村","是","扶持73户脱贫户（含监测对象）发展特色种养业","2023年12月15日前",10.02,10.02,null,"扶持73户脱贫户发展特色种养业，鼓励其扩大种养殖规模。","瓜果蔬菜种植面积43.5亩，羊养殖数量478只，猪养殖数量22头，牛养殖数量13头，精养鱼塘3亩",{"v":1,"d":"100%"},{"v":1,"d":"100%"},"/",13,"/","/",73,206,null,null,"≥95%","参与项目申报、实施过程监督、完成后受益","以产业补助的形式对脱贫户进行补助，鼓励发展特色产业，激发脱贫人口内生动力，扩大种养殖规模，增加脱贫户收入"]
[113,"生产项目（种植/养殖业）","2023年青龙集镇黄月店村特色种养殖补贴到户项目","新建","县农业农村局","青龙集镇\n况美彩","青龙集镇","黄月店村","否","扶持53户脱贫户（含监测对象）发展特色种养业","2023年12月15日前",7.55,7.55,null,"扶持53户脱贫户发展特色种养业，鼓励其扩大种养殖规模。","大棚蔬菜种植面积3亩，羊养殖数量455只，猪养殖数量22头，",{"v":1,"d":"100%"},{"v":1,"d":"100%"},"/",10,"/","/",53,162,null,null,"≥95%","参与项目申报、实施过程监督、完成后受益","以产业补助的形式对脱贫户进行补助，鼓励发展特色产业，激发脱贫人口内生动力，扩大种养殖规模，增加脱贫户收入"]
[114,"生产项目（种植/养殖业）","2023年青龙集镇张鲁庄村特色种养殖补贴到户项目","新建","县农业农村局","青龙集镇\n况美彩","青龙集镇","张鲁庄村","否","扶持21户脱贫户（含监测对象）发展特色种养业","2023年12月15日前",2.95,2.95,null,"扶持21户脱贫户发展特色种养业，鼓励其扩大种养殖规模。","瓜果蔬菜种植面积15亩，羊养殖数量153只，猪养殖数量21头，",{"v":1,"d":"100%"},{"v":1,"d":"100%"},"/",4,"/","/",21,70,null,null,"≥95%","参与项目申报、实施过程监督、完成后受益","以产业补助的形式对脱贫户进行补助，鼓励发展特色产业，激发脱贫人口内生动力，扩大种养殖规模，增加脱贫户收入"]
[115,"生产项目（种植/养殖业）","2023年青龙集镇邱庄村特色种养殖补贴到户项目","新建","县农业农村局","青龙集镇\n况美彩","青龙集镇","邱庄村","否","扶持46户脱贫户（含监测对象）发展特色种养业","2023年12月15日前",6.72,6.72,null,"扶持46户脱贫户发展特色种养业，鼓励其扩大种养殖规模。","羊养殖数量515只，猪养殖数量20头",{"v":1,"d":"100%"},{"v":1,"d":"100%"},"/",9,"/","/",46,113,null,null,"≥95%","参与项目申报、实施过程监督、完成后受益","以产业补助的形式对脱贫户进行补助，鼓励发展特色产业，激发脱贫人口内生动力，扩大种养殖规模，增加脱贫户收入"]
[116,"生产项目（种植/养殖业）","2023年圣泉镇营子社区特色种养殖补贴到户项目","新建","县农业农村局","圣泉镇\n田野","圣泉镇","营子社区","是","扶持15户脱贫户发展特色种养业","2023年12月15日前",2.12,2.12,null,"扶持15户脱贫户发展特色种养业，鼓励其扩大种养殖规模。","种植面积约8亩，养殖羊数量80只，养猪8头。",{"v":1,"d":"100%"},{"v":1,"d":"100%"},"/",4.5,"/","/",15,34,null,null,"≥95%","参与项目申报、实施过程监督、完成后受益","以产业补助的形式对脱贫户进行补助，鼓励发展特色产业，激发脱贫人口内生动力，扩大种养殖规模，增加脱贫户收入"]
[117,"生产项目（种植/养殖业）","2023年圣泉镇袁新庄社区特色种养殖补贴到户项目","新建","县农业农村局","圣泉镇\n田野","圣泉镇","袁新庄社区","否","扶持25户脱贫户发展特色种养业","2023年12月15日前",3.4,3.4,null,"扶持25户脱贫户发展特色种养业，鼓励其扩大种养殖规模。","种植果树面积约32.7亩，大棚3亩，养殖羊数量56只，养猪20头，养鸡1500羽。",{"v":1,"d":"100%"},{"v":1,"d":"100%"},"/",7.7,"/","/",25,65,null,null,"≥95%","参与项目申报、实施过程监督、完成后受益","以产业补助的形式对脱贫户进行补助，鼓励发展特色产业，激发脱贫人口内生动力，扩大种养殖规模，增加脱贫户收入"]
[118,"生产项目（种植/养殖业）","2023年圣泉镇王山社区特色种养殖补贴到户项目","新建","县农业农村局","圣泉镇\n田野","圣泉镇","王山社区","否","扶持18户脱贫户发展特色种养业","2023年12月15日前",2.11,2.11,null,"扶持18户脱贫户发展特色种养业，鼓励其扩大种养殖规模。","种植面积约29亩，养殖羊数量49只，猪27头。",{"v":1,"d":"100%"},{"v":1,"d":"100%"},"/",4.5,"/","/",18,39,null,null,"≥95%","参与项目申报、实施过程监督、完成后受益","以产业补助的形式对脱贫户进行补助，鼓励发展特色产业，激发脱贫人口内生动力，扩大种养殖规模，增加脱贫户收入"]
[119,"生产项目（种植/养殖业）","2023年圣泉镇岗子村特色种养殖补贴到户项目","新建","县农业农村局","圣泉镇\n田野","圣泉镇","岗子村","否","扶持33户脱贫户发展特色种养业","2023年12月15日前",4.407,4.407,null,"扶持33户脱贫户发展特色种养业，鼓励其扩大种养殖规模。","蔬菜大棚种植面积12.6亩，猪养殖数量8头，羊养殖数量84只，牛养殖4头，鱼塘9亩，梨树种植29.3亩，桃树种植8亩。",{"v":1,"d":"100%"},{"v":1,"d":"100%"},{"v":1,"d":"100%"},8,null,null,33,76,null,null,"≥95%","项目申报、实施过程监督、带动产业发展","以产业补助的形式对脱贫户进行补助，鼓励发展特色产业，激发脱贫人口内生动力，增加脱贫户收入"]
[120,"生产项目（种植/养殖业）","2023年圣泉镇黄安子社区特色种养殖补贴到户项目","新建","县农业农村局","圣泉镇\n田野","圣泉镇","黄安子社区","否","扶持24户脱贫户发展特色种养业","2023年12月15日前",2.808,2.808,null,"扶持24户脱贫户发展特色种养业，鼓励其扩大种养殖规模。","种植果树面积约12.2亩，养殖羊数量98只，养猪9头。",{"v":1,"d":"100%"},{"v":1,"d":"100%"},"/",6,"/","/",24,55,null,null,"≥95%","参与项目申报、实施过程监督、完成后受益","以产业补助的形式对脱贫户进行补助，鼓励发展特色产业，激发脱贫人口内生动力，扩大种养殖规模，增加脱贫户收入"]
[121,"生产项目（种植/养殖业）","2023年圣泉镇北城集社区特色种养殖补贴到户项目","新建","县农业农村局","圣泉镇\n田野","圣泉镇","北城集社区","是","扶持62户脱贫户发展特色种养业","2023年12月15日前",7.66,7.66,null,"扶持62户脱贫户发展特色种养业，鼓励其扩大种养殖规模。","种植桃树约147亩，梨树约53亩",{"v":1,"d":"100%"},{"v":1,"d":"100%"},"/",14.5,"/",null,62,140,null,null,"≥95%","参与项目申报、实施过程监督、完成后受益","以产业补助的形式对脱贫户进行补助，鼓励发展特色产业，激发脱贫人口内生动力，扩大种养殖规模，增加脱贫户收入"]
[122,"生产项目（种植/养殖业）","2023年圣泉镇红柳树村特色种养殖补贴到户项目","新建","县农业农村局","圣泉镇\n田野","圣泉镇","红柳树村","否","扶持26户脱贫户发展特色种养业","2023年12月15日前",3.63,3.63,null,"扶持26户脱贫户发展特色种养业","猪养殖数量28头，羊养殖数量118只，葡萄种植7亩，桃树种植2亩。",{"v":1,"d":"100%"},{"v":1,"d":"100%"},{"v":1,"d":"100%"},5,"/","/",26,69,null,null,"≥95%","项目申报、实施过程监督、带动产业发展","以产业补助的形式对脱贫户进行补助，鼓励发展特色产业，激发脱贫人口内生动力，增加脱贫户收入"]
[123,"生产项目（种植/养殖业）","2023年圣泉镇金黄庄社区特色种养殖补贴到户项目","新建","县农业农村局","圣泉镇\n田野","圣泉镇","金黄庄社区","否","扶持35户脱贫户发展特色种养业","2023年12月15日前",3.56,3.56,null,"扶持35户脱贫户发展特色种养业，鼓励其扩大种养殖规模。","羊养殖数量39只，豌豆种植4亩，桃树种植44.5亩，蔬菜大棚种植2亩，梨树种植20亩。",{"v":1,"d":"100%"},{"v":1,"d":"100%"},{"v":1,"d":"100%"},10,"/","/",35,71,null,null,"≥95%","项目申报、实施过程监督、带动产业发展","以产业补助的形式对脱贫户进行补助，鼓励发展特色产业，激发脱贫人口内生动力，增加脱贫户收入"]
[124,"生产项目（种植/养殖业）","2023年圣泉镇郑腰庄社区特色种养殖补贴到户项目","新建","县农业农村局","圣泉镇\n田野","圣泉镇","郑腰庄社区","否","扶持23户脱贫户发展特色种养业","2023年12月15日前",2.702,2.702,null,"扶持23户脱贫户发展特色种养业，鼓励其扩大种养殖规模。","羊养殖数量48头，桃树9.2亩，杏树15.1亩，梨树3亩.花生3亩，红薯7亩，养牛6头。",{"v":1,"d":"100%"},{"v":1,"d":"100%"},"/",6,"/",null,23,51,null,null,"≥95%","参与项目申报、实施过程监督、完成后受益","以产业补助的形式对脱贫户进行补助，鼓励发展特色产业，激发脱贫人口内生动力，扩大种养殖规模，增加脱贫户收入"]
[125,"生产项目（种植/养殖业）","2023年圣泉镇柴庄社区特色种养殖补贴到户项目","新建","县农业农村局","圣泉镇\n田野","圣泉镇","柴庄社区","否","扶持32户脱贫户发展特色种养业","2023年12月15日前",3.704,3.704,null,"扶持32户脱贫户发展特色种养业，鼓励其扩大种养殖规模。","羊养殖数量122只，种植蔬菜大棚2亩，桃树种植3.6亩，种植露地蔬菜2亩，苹果树种植3亩，葡萄树8.5亩，艾草5亩。",{"v":1,"d":"100%"},{"v":1,"d":"100%"},{"v":1,"d":"100%"},8,"/","/",32,69,null,null,"≥95%","项目申报、实施过程监督、带动产业发展","以产业补助的形式对脱贫户进行补助，鼓励发展特色产业，激发脱贫人口内生动力，增加脱贫户收入"]
[126,"生产项目（种植/养殖业）","2023年圣泉镇俞庄社区特色种养殖补贴到户项目","新建","县农业农村局","圣泉镇\n田野","圣泉镇","俞庄社区","否","扶持53户脱贫户发展特色种养业","2023年12月15日前",7.339,7.339,null,"扶持53户脱贫户发展特色种养业，鼓励其扩大种养殖规模。","种植面积约29.4亩，养殖羊数量290头。",{"v":1,"d":"100%"},{"v":1,"d":"100%"},"/",13,"/","/",53,110,null,null,"≥95%","参与项目申报、实施过程监督、完成后受益","以产业补助的形式对脱贫户进行补助，鼓励发展特色产业，激发脱贫人口内生动力，扩大种养殖规模，增加脱贫户收入"]
[127,"生产项目（种植/养殖业）","2023年圣泉镇穆集社区特色种养殖补贴到户项目","新建","县农业农村局","圣泉镇\n田野","圣泉镇","穆集社区","是","扶持22户脱贫户发展特色种养业","2023年12月15日前",3.142,3.142,null,"扶持22户脱贫户发展特色种养业，鼓励其扩大种养殖规模。","羊养殖数量88只，猪养殖34头，桃树种植11.3亩，蔬菜大棚种植4亩，梨树种植5亩。",{"v":1,"d":"100%"},{"v":1,"d":"100%"},{"v":1,"d":"100%"},6,"/","/",22,57,null,null,"≥95%","项目申报、实施过程监督、带动产业发展","以产业补助的形式对脱贫户进行补助，鼓励发展特色产业，激发脱贫人口内生动力，增加脱贫户收入"]
[128,"生产项目（种植/养殖业）","2023年圣泉镇单楼村特色种养殖补贴到户项目","新建","县农业农村局","圣泉镇\n田野","圣泉镇","单楼村","是","扶持66户脱贫户发展特色种养业","2023年12月15日前",8.31,8.31,null,"扶持66户脱贫户发展特色种养业，鼓励其扩大种养殖规模。","羊养殖数量34只，猪养殖4头，桃树种植112.5亩，梨树种植78亩。",{"v":1,"d":"100%"},{"v":1,"d":"100%"},{"v":1,"d":"100%"},12,"/","/",66,175,null,null,"≥95%","项目申报、实施过程监督、带动产业发展","以产业补助的形式对脱贫户进行补助，鼓励发展特色产业，激发脱贫人口内生动力，增加脱贫户收入"]
[129,"生产项目（种植/养殖业）","2023年圣泉镇郭庄社区特色种养殖补贴到户项目","新建","县农业农村局","圣泉镇\n田野","圣泉镇","郭庄社区","是","扶持9户脱贫户发展特色种养业","2023年12月15日前",1.18,1.18,null,"扶持9户脱贫户发展特色种养业，鼓励其扩大种养殖规模。","羊养殖数量32只，猪养殖10头，桃树种植4亩，大棚葡萄种植3.5亩",{"v":1,"d":"100%"},{"v":1,"d":"100%"},{"v":1,"d":"100%"},2,"/","/",9,17,null,null,"≥95%","项目申报、实施过程监督、带动产业发展","以产业补助的形式对脱贫户进行补助，鼓励发展特色产业，激发脱贫人口内生动力，增加脱贫户收入"]
[130,"生产项目（种植/养殖业）","2023年石林乡魏楼村特色种养殖补贴到户项目","新建","县农业农村局","石林乡\n杨超峰","石林乡","魏楼村","否","特色种养直补到户60户脱贫户（含监测对象）","2023年12月15日前",9,9,null,"扶持60户脱贫户发展特色种养业，鼓励其扩大种养殖规模。","养羊260只、养牛20只、养猪10只、养鸡300只、养鸭300只，种植桃树25亩。",{"v":1,"d":"100%"},{"v":1,"d":"100%"},"/",21.6,"/","/",60,123,null,null,"≥95%","参与项目申报、实施过程监督、完成后受益","以产业补助的形式对脱贫户进行补助，鼓励发展特色产业，激发脱贫人口内生动力，扩大种养殖规模，增加脱贫户收入"]
[131,"生产项目（种植/养殖业）","2023年石林乡崔阁村特色种养殖补贴到户项目","新建","县农业农村局","石林乡\n杨超峰","石林乡","崔阁村","否","特色种养直补到户90户脱贫户（含监测对象）","2023年12月15日前",13.5,13.5,null,"扶持90户脱贫户发展特色种养业，鼓励其扩大种养殖规模。","猪养殖数量20头，羊养殖数量430只,种植果树5亩，种植中药材5亩。",{"v":1,"d":"100%"},{"v":1,"d":"100%"},"/",32.4,"/","/",90,143,null,null,"≥95%","参与项目申报、实施过程监督、完成后受益","以产业补助的形式对脱贫户进行补助，鼓励发展特色产业，激发脱贫人口内生动力，扩大种养殖规模，增加脱贫户收入"]
[132,"生产项目（种植/养殖业）","2023年石林乡朱大楼村特色种养殖补贴到户项目","新建","县农业农村局","石林乡\n杨超峰","石林乡","朱大楼村","否","特色种养直补到户50户脱贫户（含监测对象）","2023年12月15日前",7.5,7.5,null,"扶持50户脱贫户发展特色种养业，鼓励其扩大种养殖规模。","羊养殖300只、猪养殖100只、花椒树10亩、肉牛10头、露地蔬菜6亩",{"v":1,"d":"100%"},{"v":1,"d":"100%"},"/",18,"/","/",50,85,null,null,"≥95%","参与项目申报、实施过程监督、完成后受益","以产业补助的形式对脱贫户进行补助，鼓励发展特色产业，激发脱贫人口内生动力，扩大种养殖规模，增加脱贫户收入"]
[147,"生产项目（种植/养殖业）","2023年石林乡石林村特色种养殖补贴到户项目","新建","县农业农村局","石林乡\n杨超峰","石林乡","石林村","是","特色种养直补到户40户脱贫户（含监测对象）","2023年12月15日前",6,6,null,"扶持40户脱贫户发展特色种养业，鼓励其扩大种养殖规模。","养羊数量280.蔬菜种植5亩，猪养殖15只 ，养鸡500只",{"v":1,"d":"100%"},{"v":1,"d":"100%"},"/",14.4,"/","/",40,85,null,null,"≥95%","参与项目申报、实施过程监督、完成后受益","以产业补助的形式对脱贫户进行补助，鼓励发展特色产业，激发脱贫人口内生动力，扩大种养殖规模，增加脱贫户收入"]
[148,"生产项目（种植/养殖业）","2023年石林乡陶楼村特色种养殖补贴到户项目","新建","县农业农村局","石林乡\n杨超峰","石林乡","陶楼村","是","特色种养直补到户75户脱贫户（含监测对象）","2023年12月15日前",11.25,11.25,null,"扶持75户脱贫户发展特色种养业，鼓励其扩大种养殖规模。","羊养殖数量350只，鸡养殖数量600只，猪9头，牛4头蔬菜种植8亩",{"v":1,"d":"100%"},{"v":1,"d":"100%"},"/",26.4,"/","/",75,195,null,null,"≥95%","参与项目申报、实施过程监督、完成后受益","以产业补助的形式对脱贫户进行补助，鼓励发展特色产业，激发脱贫人口内生动力，扩大种养殖规模，增加脱贫户收入"]
[149,"生产项目（种植/养殖业）","2023年石林乡李庄村特色种养殖补贴到户项目","新建","县农业农村局","石林乡\n杨超峰","石林乡","李庄村","是","特色种养直补到户70户脱贫户（含监测对象）","2023年12月15日前",10.5,10.5,null,"扶持70户脱贫户发展特色种养业，鼓励其扩大种养殖规模。","羊养殖560只",{"v":1,"d":"100%"},{"v":1,"d":"100%"},"/",25.2,"/","/",70,171,null,null,"≥95%","参与项目申报、实施过程监督、完成后受益","以产业补助的形式对脱贫户进行补助，鼓励发展特色产业，激发脱贫人口内生动力，扩大种养殖规模，增加脱贫户收入"]
[150,"生产项目（种植/养殖业）","2023年孙圩子镇程蒋山村特色种养殖补贴到户项目","新建","县农业农村局","孙圩子镇\n张康","孙圩子镇","程蒋山村","否","扶持70户脱贫户（含监测对象）发展特色种养业","2023年12月15日前",{"$f":"M144+N144","v":10.5},10.5,null,"扶持70户脱贫户发展特色种养业，鼓励其扩大种养殖规模。","养羊300只；种植胡萝卜作物83亩；",{"v":1,"d":"100%"},{"v":1,"d":"100%"},"/",25.48,"/","/",70,280,null,null,"≥95%","参与项目申报、实施过程监督、完成后受益","以产业补助的形式对脱贫户进行补助，鼓励发展特色产业，激发脱贫人口内生动力，扩大种养殖规模，增加脱贫户收入"]
[151,"生产项目（种植/养殖业）","2023年孙圩子镇丁楼村特色种养殖补贴到户项目","新建","县农业农村局","孙圩子镇\n张康","孙圩子镇","丁楼村","否","扶持50户脱贫户（含监测对象）发展特色种养业","2023年12月15日前",7.5,7.5,null,"扶持50户脱贫户发展特色种养业，鼓励其扩大种养殖规模。","种植胡萝卜作物74亩；养殖山羊120只",{"v":1,"d":"100%"},{"v":1,"d":"100%"},"/",20,"/","/",50,101,null,null,"≥95%","参与项目申报、实施过程监督、完成后受益","以产业补助的形式对脱贫户进行补助，鼓励发展特色产业，激发脱贫人口内生动力，扩大种养殖规模，增加脱贫户收入"]
[152,"生产项目（种植/养殖业）","2023年孙圩子镇港河村村特色种养殖补贴到户项目","新建","县农业农村局","孙圩子镇\n张康","孙圩子镇","港河村","是","扶持59户脱贫户（含监测对象）发展特色种养业","2023年12月15日前",8.85,8.85,null,"扶持59户脱贫户发展特色种养业，鼓励其扩大种养殖规模。","357只羊、81只猪、胡萝卜20亩、蔬菜2亩",{"v":1,"d":"100%"},{"v":1,"d":"100%"},"/","/","/","/",59,180,null,null,"≥95%","参与项目申报、实施过程监督、完成后受益","以产业补助的形式对脱贫户进行补助，鼓励发展特色产业，激发脱贫人口内生动力，扩大种养殖规模，增加脱贫户收入"]
[153,"生产项目（种植/养殖业）","2023年孙圩子镇侯楼村特色种养殖补贴到户项目","新建","县农业农村局","孙圩子镇\n张康","孙圩子镇","侯楼村","否","扶持70户脱贫户（含监测对象）发展特色种养业","2023年12月15日前",10.5,10.5,null,"扶持70户脱贫户发展特色种养业，鼓励其扩大种养殖规模。","养羊385只；种植胡萝卜作物25亩；",{"v":1,"d":"100%"},{"v":1,"d":"100%"},null,"/","/","/",70,165,null,null,"≥95%","参与项目申报、实施过程监督、完成后受益","以产业补助的形式对脱贫户进行补助，鼓励发展特色产业，激发脱贫人口内生动力，扩大种养殖规模，增加脱贫户收入"]
[154,"生产项目（种植/养殖业）","2023年孙圩子镇马庄村特色种养殖补贴到户项目","新建","县农业农村局","孙圩子镇\n张康","孙圩子镇","马庄村","是","扶持60户脱贫户（含监测对象）发展特色种养业","2023年12月15日前",9,9,null,"扶持60户脱贫户发展特色种养业，鼓励其扩大种养殖规模。","养羊180只；种植胡萝卜作物90亩；",{"v":1,"d":"100%"},{"v":1,"d":"100%"},"/","/","/","/",60,180,null,null,"≥95%","参与项目申报、实施过程监督、完成后受益","以产业补助的形式对脱贫户进行补助，鼓励发展特色产业，激发脱贫人口内生动力，扩大种养殖规模，增加脱贫户收入"]
[155,"生产项目（种植/养殖业）","2023年孙圩子镇孙圩子村特色种养殖补贴到户项目","新建","县农业农村局","孙圩子镇\n张康","孙圩子镇","孙圩子村","否","村扶持100户脱贫户（含监测对象）发展特色种养业","2023年12月15日前",15,15,null,"扶持100户脱贫户发展特色种养业，鼓励其扩大种养殖规模。","养羊350只；种植胡萝卜作物125亩；",{"v":1,"d":"100%"},{"v":1,"d":"100%"},"/",29,"/","/",100,210,null,null,"≥95%","参与项目申报、实施过程监督、完成后受益","以产业补助的形式对脱贫户进行补助，鼓励发展特色产业，激发脱贫人口内生动力，扩大种养殖规模，增加脱贫户收入"]
[156,"生产项目（种植/养殖业）","2023年孙圩子镇王庄村特色种养殖补贴到户项目","新建","县农业农村局","孙圩子镇\n张康","孙圩子镇","王庄村","否","扶持50户脱贫户（含监测对象）发展特色种养业","2023年12月15日前",7.5,7.5,null,"扶持50户脱贫户发展特色种养业，鼓励其扩大种养殖规模。","养羊100只；种植胡萝卜作物80亩",{"v":1,"d":"100%"},{"v":1,"d":"100%"},"/",20,"/","/",50,140,null,null,"≥95%","参与项目申报、实施过程监督、完成后受益","以产业补助的形式对脱贫户进行补助，鼓励发展特色产业，激发脱贫人口内生动力，扩大种养殖规模，增加脱贫户收入"]
[133,"生产项目（种植/养殖业）","2023年孙圩子镇徐里村特色种养殖补贴到户项目","新建","县农业农村局","孙圩子镇\n张康","孙圩子镇","徐里村","否","扶持20户脱贫户（含监测对象）发展特色种养业","2023年12月15日前",3,3,null,"扶持20户脱贫户发展特色种养业，鼓励其扩大种养殖规模。","羊养殖数量120只。",{"v":1,"d":"100%"},{"v":1,"d":"100%"},"/",5.97,"/","/",20,70,null,null,"≥95%","参与项目申报、实施过程监督、完成后受益","以产业补助的形式对脱贫户进行补助，鼓励发展特色产业，激发脱贫人口内生动力，扩大种养殖规模，增加脱贫户收入"]
[134,"生产项目（种植/养殖业）","2023年孙圩子镇徐双楼村特色种养殖补贴到户项目","新建","县农业农村局","孙圩子镇\n张康","孙圩子镇","徐双楼村","否","扶持57户脱贫户（含监测对象）发展特色种养业","2023年12月15日前",8.55,8.55,null,"扶持57户脱贫户发展特色种养业，鼓励其扩大种养殖规模。","养羊568只；种植胡萝卜作物3.5亩；",{"v":1,"d":"100%"},{"v":1,"d":"100%"},"/",21,"/","/",57,139,null,null,"≥95%","参与项目申报、实施过程监督、完成后受益","以产业补助的形式对脱贫户进行补助，鼓励发展特色产业，激发脱贫人口内生动力，扩大种养殖规模，增加脱贫户收入"]
[135,"生产项目（种植/养殖业）","2023年孙圩子镇周圩子村特色种养殖补贴到户项目","新建","县农业农村局","孙圩子镇\n张康","孙圩子镇","周圩村","是","扶持35户脱贫户（含监测对象）发展特色种养业","2023年12月15日前",5.25,5.25,null,"扶持35户脱贫户发展特色种养业，鼓励其扩大种养殖规模。","胡萝卜种植50亩，养羊200只",{"v":1,"d":"100%"},{"v":1,"d":"100%"},"/",9.8,"/","/",35,78,null,null,"≥95%","参与项目申报、实施过程监督、完成后受益","以产业补助的形式对脱贫户进行补助，鼓励发展特色产业，激发脱贫人口内生动力，扩大种养殖规模，增加脱贫户收入"]
[136,"生产项目（种植/养殖业）","2023年王寨镇郝洼村特色种养殖补贴到户项目","新建","县农业农村局","王寨镇\n王亚华","王寨镇","郝洼村","是","扶持42户脱贫户（含监测对象）发展特色种养业","2023年12月15日前",6.3,6.3,null,"扶持42户脱贫户发展特色种养业，鼓励其扩大种养殖规模。","蔬菜种植面积20亩，猪养殖数量30头，羊养殖数量210只，",{"v":1,"d":"100%"},{"v":1,"d":"100%"},"/",21,"/","/",42,113,null,null,"≥95%","参与项目申报、实施过程监督、完成后受益","以产业补助的形式对脱贫户进行补助，鼓励发展特色产业，激发脱贫人口内生动力，扩大种养殖规模，增加脱贫户收入"]
[137,"生产项目（种植/养殖业）","2023年王寨镇后洼村特色种养殖补贴到户项目","新建","县农业农村局","王寨镇\n王亚华","王寨镇","后洼村","否","扶持30户脱贫户（含监测对象）发展特色种养业","2023年12月15日前",4.5,4.5,null,"扶持30户脱贫户发展特色种养业，鼓励其扩大种养殖规模。","瓜果种植面积10亩，猪养殖数量30头，羊养殖数量120只，",{"v":1,"d":"100%"},{"v":1,"d":"100%"},null,13,"/","/",30,77,null,null,"≥95%","参与项目申报、实施过程监督、完成后受益","以产业补助的形式对脱贫户进行补助，鼓励发展特色产业，激发脱贫人口内生动力，扩大种养殖规模，增加脱贫户收入"]
[138,"生产项目（种植/养殖业）","2023年王寨镇王集村特色种养殖补贴到户项目","新建","县农业农村局","王寨镇\n王亚华","王寨镇","王集村","否","扶持24户脱贫户（含监测对象）发展特色种养业","2023年12月15日前",3.6,3.6,null,"扶持24户脱贫户发展特色种养业，鼓励其扩大种养殖规模。","瓜果种植面积12亩，猪养殖数量30头，羊养殖数量180只，",{"v":1,"d":"100%"},{"v":1,"d":"100%"},"/",9,"/","/",24,65,null,null,"≥95%","参与项目申报、实施过程监督、完成后受益","以产业补助的形式对脱贫户进行补助，鼓励发展特色产业，激发脱贫人口内生动力，扩大种养殖规模，增加脱贫户收入"]
[139,"生产项目（种植/养殖业）","2023年王寨镇杨集村特色种养业奖补到户","新建","县农业农村局","王寨镇\n王亚华","王寨镇","杨集村","否","扶持55户脱贫户（含监测对象）发展特色种养业","2023年12月15日前",8.25,8.25,null,"扶持55户脱贫户发展特色种养业，鼓励其扩大种养殖规模。","猪养殖数量5头，羊养殖数量120只，",{"v":1,"d":"100%"},{"v":1,"d":"100%"},"/",17,"/","/",55,116,null,null,"≥95%","参与项目申报、实施过程监督、完成后受益","以产业补助的形式对脱贫户进行补助，鼓励发展特色产业，激发脱贫人口内生动力，扩大种养殖规模，增加脱贫户收入"]
[140,"生产项目（种植/养殖业）","2023年王寨苏庄村特色种养殖补贴到户项目","新建","县农业农村局","王寨镇\n王亚华","王寨镇","苏庄村","是","扶持40户脱贫户（含监测对象）发展特色种养业","2023年12月15日前",6,6,null,"扶持40户脱贫户发展特色种养业，鼓励其扩大种养殖规模。","瓜果种植面积35亩，猪养殖数量28头，羊养殖数量320只，",{"v":1,"d":"100%"},{"v":1,"d":"100%"},"/",19,"/","/",40,94,null,null,"≥95%","参与项目申报、实施过程监督、完成后受益","以产业补助的形式对脱贫户进行补助，鼓励发展特色产业，激发脱贫人口内生动力，扩大种养殖规模，增加脱贫户收入"]
[141,"生产项目（种植/养殖业）","2023年王寨镇吴丛村特色种养殖补贴到户项目","新建","县农业农村局","王寨镇\n王亚华","王寨镇","吴丛村","否","扶持40户脱贫户（含监测对象）发展特色种养业","2023年12月15日前",6,6,null,"扶持40户脱贫户发展特色种养业，鼓励其扩大种养殖规模。","特色种植面积10亩，羊养殖数量120只，",{"v":1,"d":"100%"},{"v":1,"d":"100%"},"/",19,"/","/",40,96,null,null,"≥95%","参与项目申报、实施过程监督、完成后受益","以产业补助的形式对脱贫户进行补助，鼓励发展特色产业，激发脱贫人口内生动力，扩大种养殖规模，增加脱贫户收入"]
[142,"生产项目（种植/养殖业）","2023年王寨镇三座楼村特色种养业奖补到户","新建","县农业农村局","王寨镇\n王亚华","王寨镇","三座楼村","否","扶持30户脱贫户（含监测对象）发展特色种养业","2023年12月15日前",4.5,4.5,null,"扶持30户脱贫户发展特色种养业，鼓励其扩大种养殖规模。","羊养殖数量84只，",{"v":1,"d":"100%"},{"v":1,"d":"100%"},"/",15,"/","/",30,79,null,null,"≥95%","参与项目申报、实施过程监督、完成后受益","以产业补助的形式对脱贫户进行补助，鼓励发展特色产业，激发脱贫人口内生动力，扩大种养殖规模，增加脱贫户收入"]
[143,"生产项目（种植/养殖业）","2023年王寨镇张楼村特色种养业奖补到户","新建","县农业农村局","王寨镇\n王亚华","王寨镇","张楼村","否","扶持38户脱贫户（含监测对象）发展特色种养业","2023年12月15日前",5.7,5.7,null,"扶持38户脱贫户发展特色种养业，鼓励其扩大种养殖规模。","猪养殖数量10头，羊养殖数量220只，",{"v":1,"d":"100%"},{"v":1,"d":"100%"},"/",17,"/","/",38,85,null,null,"≥95%","参与项目申报、实施过程监督、完成后受益","以产业补助的形式对脱贫户进行补助，鼓励发展特色产业，激发脱贫人口内生动力，扩大种养殖规模，增加脱贫户收入"]
[144,"生产项目（种植/养殖业）","2023年王寨镇王寨社区特色种养殖补贴到户项目","新建","县农业农村局","王寨镇\n王亚华","王寨镇","王寨社区","否","扶持30户脱贫户（含监测对象）发展特色种养业","2023年12月15日前",4.5,4.5,null,"扶持30户脱贫户发展特色种养业，鼓励其扩大种养殖规模。","羊养殖数量260只",{"v":1,"d":"100%"},{"v":1,"d":"100%"},null,15,"/","/",30,79,null,null,"≥95%","参与项目申报、实施过程监督、完成后受益","以产业补助的形式对脱贫户进行补助，鼓励发展特色产业，激发脱贫人口内生动力，扩大种养殖规模，增加脱贫户收入"]
[145,"生产项目（种植/养殖业）","2023年王寨镇戴柿元村特色种养殖补贴到户项目","新建","县农业农村局","王寨镇\n王亚华","王寨镇","戴柿元村 ","是","扶持30户脱贫户（含监测对象）发展特色种养业","2023年12月15日前",4.5,4.5,null,"扶持30户脱贫户发展特色种养业，鼓励其扩大种养殖规模。","瓜果种植面积5亩，猪养殖数量10头，羊养殖数量130只，",{"v":1,"d":"100%"},{"v":1,"d":"100%"},"/",15,"/","/",30,87,null,null,"≥95%","参与项目申报、实施过程监督、完成后受益","以产业补助的形式对脱贫户进行补助，鼓励发展特色产业，激发脱贫人口内生动力，扩大种养殖规模，增加脱贫户收入"]
[146,"生产项目（种植/养殖业）","2023年王寨镇李楼村特色种养业奖补到户","新建","县农业农村局","王寨镇\n王亚华","王寨镇","李楼村","否","扶持30户脱贫户（含监测对象）发展特色种养业","2023年12月15日前",4.5,4.5,null,"扶持30户脱贫户发展特色种养业，鼓励其扩大种养殖规模。","猪养殖数量6头，羊养殖数量130只，",{"v":1,"d":"100%"},{"v":1,"d":"100%"},"/",15,"/","/",30,98,null,null,"≥95%","参与项目申报、实施过程监督、完成后受益","以产业补助的形式对脱贫户进行补助，鼓励发展特色产业，激发脱贫人口内生动力，扩大种养殖规模，增加脱贫户收入"]
[157,"生产项目（种植/养殖业）","2023年王寨镇大演武村特色种养殖补贴到户项目","新建","县农业农村局","王寨镇\n王亚华","王寨镇","大演武村","否","扶持40户脱贫户（含监测对象）发展特色种养业","2023年12月15日前",6,6,null,"扶持40户脱贫户发展特色种养业，鼓励其扩大种养殖规模。","猪养殖数量5头，羊养殖数量180只",{"v":1,"d":"100%"},{"v":1,"d":"100%"},"/",18,"/","/",40,87,null,null,"≥95%","参与项目申报、实施过程监督、完成后受益","以产业补助的形式对脱贫户进行补助，鼓励发展特色产业，激发脱贫人口内生动力，扩大种养殖规模，增加脱贫户收入"]
[158,"生产项目（种植/养殖业）","2023年王寨镇吴河涯村特色种养殖补贴到户项目","新建","县农业农村局","王寨镇\n王亚华","王寨镇","吴河涯村","是","扶持50户脱贫户（含监测对象）发展特色种养业","2023年12月15日前",7.5,7.5,null,"扶持50户脱贫户发展特色种养业，鼓励其扩大种养殖规模。","瓜果蔬菜种植面积58.5亩，苗木花卉面积9.6亩，经济作物种植面积30亩，猪养殖数量42头，羊养殖数量236只",{"v":1,"d":"100%"},{"v":1,"d":"100%"},"/",23,"/","/",50,101,null,null,"≥95%","参与项目申报、实施过程监督、完成后受益","以产业补助的形式对脱贫户进行补助，鼓励发展特色产业，激发脱贫人口内生动力，扩大种养殖规模，增加脱贫户收入"]
[159,"生产项目（种植/养殖业）","2023年王寨镇齐庄村特色种养殖补贴到户项目","新建","县农业农村局","王寨镇\n王亚华","王寨镇","齐庄村","否","扶持50户脱贫户（含监测对象）发展特色种养业","2023年12月15日前",7.5,7.5,null,"扶持50户脱贫户发展特色种养业，鼓励其扩大种养殖规模。","瓜果种植面积15亩，猪养殖数量10头，羊养殖数量217只，",{"v":1,"d":"100%"},{"v":1,"d":"100%"},"/",23,"/","/",50,96,null,null,"≥95%","参与项目申报、实施过程监督、完成后受益","以产业补助的形式对脱贫户进行补助，鼓励发展特色产业，激发脱贫人口内生动力，扩大种养殖规模，增加脱贫户收入"]
[160,"生产项目（种植/养殖业）","2023年新庄镇常庄村特色种养殖补贴到户项目","新建","县农业农村局","新庄镇\n杨宜成","新庄镇","常庄村","是","扶持191户脱贫户（含监测对象）发展特色种养业","2023年12月15日前",15.08,15.08,null,"扶持191户脱贫户发展特色种养业，鼓励其扩大种养殖规模。","瓜果蔬菜种植面积365亩，羊养殖数量40只",{"v":1,"d":"100%"},{"v":1,"d":"100%"},"/",24,"/","/",191,370,null,null,"≥95%","参与项目申报、实施过程监督、完成后受益","以产业补助的形式对脱贫户进行补助，鼓励发展特色产业，激发脱贫人口内生动力，扩大种养殖规模，增加脱贫户收入"]
[161,"生产项目（种植/养殖业）","2023年新庄镇东阁村特色种养殖补贴到户项目","新建","县农业农村局","新庄镇\n杨宜成","新庄镇","东阁村","否","扶持260户脱贫户（含监测对象）发展特色种养业","2023年12月15日前",27.958,27.958,null,"扶持260户脱贫户发展特色种养业，鼓励其扩大种养殖规模。","瓜果蔬菜种植面积689.5亩，羊养殖数量56只",{"v":1,"d":"100%"},{"v":1,"d":"100%"},"/",44,"/","/",260,577,null,null,"≥95%","参与项目申报、实施过程监督、完成后受益","以产业补助的形式对脱贫户进行补助，鼓励发展特色产业，激发脱贫人口内生动力，扩大种养殖规模，增加脱贫户收入"]
[162,"生产项目（种植/养殖业）","2023年新庄镇杜集村特色种养殖补贴到户项目","新建","县农业农村局","新庄镇\n杨宜成","新庄镇","杜集村","否","扶持133户脱贫户（含监测对象）发展特色种养业","2023年12月15日前",17.463,17.463,null,"扶持133户脱贫户发展特色种养业，鼓励其扩大种养殖规模。","瓜果蔬菜种植面积217.9亩，羊养殖数量268只，猪养殖数量65头，家禽养殖数量300只，林业特色产业2亩",{"v":1,"d":"100%"},{"v":1,"d":"100%"},"/",30,"/","/",133,312,null,null,"≥95%","参与项目申报、实施过程监督、完成后受益","以产业补助的形式对脱贫户进行补助，鼓励发展特色产业，激发脱贫人口内生动力，扩大种养殖规模，增加脱贫户收入"]
[163,"生产项目（种植/养殖业）","2023年新庄镇郭套村特色种养殖补贴到户项目","新建","县农业农村局","新庄镇\n杨宜成","新庄镇","郭套村","否","扶持85户脱贫户（含监测对象）发展特色种养业","2023年12月15日前",9.2945,9.2945,null,"扶持85户脱贫户发展特色种养业，鼓励其扩大种养殖规模。","瓜果蔬菜种植面积83.1亩，羊养殖数量261只，猪养殖数量67头，木本油料种植面积2.8亩，中药材种植面积4亩，水产养殖31亩，其他特色农业产业种植15.2亩",{"v":1,"d":"100%"},{"v":1,"d":"100%"},"/",14,"/","/",85,184,null,null,"≥95%","参与项目申报、实施过程监督、完成后受益","以产业补助的形式对脱贫户进行补助，鼓励发展特色产业，激发脱贫人口内生动力，扩大种养殖规模，增加脱贫户收入"]
[164,"生产项目（种植/养殖业）","2023年新庄镇居委会村特色种养殖补贴到户项目","新建","县农业农村局","新庄镇\n杨宜成","新庄镇","居委会村","否","扶持27户脱贫户（含监测对象）发展特色种养业","2023年12月15日前",3.434,3.434,null,"扶持27户脱贫户发展特色种养业，鼓励其扩大种养殖规模。","瓜果蔬菜种植面积19.6亩，家禽养殖数量150只，羊养殖数量96只，猪养殖数量58头，驴养殖数量3头",{"v":1,"d":"100%"},{"v":1,"d":"100%"},"/",5,"/","/",27,63,null,null,"≥95%","参与项目申报、实施过程监督、完成后受益","以产业补助的形式对脱贫户进行补助，鼓励发展特色产业，激发脱贫人口内生动力，扩大种养殖规模，增加脱贫户收入"]
[165,"生产项目（种植/养殖业）","2023年新庄镇李庄村特色种养殖补贴到户项目","新建","县农业农村局","新庄镇\n杨宜成","新庄镇","李庄村","否","扶持33户脱贫户（含监测对象）发展特色种养业","2023年12月15日前",4.32,4.32,null,"扶持33户脱贫户发展特色种养业，鼓励其扩大种养殖规模。","瓜果蔬菜种植面积18亩，羊养殖数量184只，猪养殖数量38头",{"v":1,"d":"100%"},{"v":1,"d":"100%"},"/",7,"/","/",33,88,null,null,"≥95%","参与项目申报、实施过程监督、完成后受益","以产业补助的形式对脱贫户进行补助，鼓励发展特色产业，激发脱贫人口内生动力，扩大种养殖规模，增加脱贫户收入"]
[166,"生产项目（种植/养殖业）","2023年新庄镇马郑庄村特色种养殖补贴到户项目","新建","县农业农村局","新庄镇\n杨宜成","新庄镇","马郑庄村","否","扶持104户脱贫户（含监测对象）发展特色种养业","2023年12月15日前",13.3515,13.3515,null,"扶持104户脱贫户发展特色种养业，鼓励其扩大种养殖规模。","瓜果蔬菜种植面积213.1亩，羊养殖数量141只，猪养殖数量38头",{"v":1,"d":"100%"},{"v":1,"d":"100%"},"/",21,"/","/",104,251,null,null,"≥95%","参与项目申报、实施过程监督、完成后受益","以产业补助的形式对脱贫户进行补助，鼓励发展特色产业，激发脱贫人口内生动力，扩大种养殖规模，增加脱贫户收入"]
[167,"生产项目（种植/养殖业）","2023年新庄镇邵套村特色种养殖补贴到户项目","新建","县农业农村局","新庄镇\n杨宜成","新庄镇","邵套村","否","扶持142户脱贫户（含监测对象）发展特色种养业","2023年12月15日前",13.88,13.88,null,"扶持142户脱贫户发展特色种养业，鼓励其扩大种养殖规模。","瓜果蔬菜种植面积332亩，羊养殖数量70只，猪养殖数量6头",{"v":1,"d":"100%"},{"v":1,"d":"100%"},"/",22,"/","/",142,338,null,null,"≥95%","参与项目申报、实施过程监督、完成后受益","以产业补助的形式对脱贫户进行补助，鼓励发展特色产业，激发脱贫人口内生动力，扩大种养殖规模，增加脱贫户收入"]
[168,"生产项目（种植/养殖业）","2023年新庄镇铁佛村特色种养殖补贴到户项目","新建","县农业农村局","新庄镇\n杨宜成","新庄镇","铁佛村","否","扶持30户脱贫户（含监测对象）发展特色种养业","2023年12月15日前",3.28,3.28,null,"扶持30户脱贫户发展特色种养业，鼓励其扩大种养殖规模。","瓜果蔬菜种植面积38亩，羊养殖数量88只，猪养殖数量30头",{"v":1,"d":"100%"},{"v":1,"d":"100%"},"/",5,"/","/",30,80,null,null,"≥95%","参与项目申报、实施过程监督、完成后受益","以产业补助的形式对脱贫户进行补助，鼓励发展特色产业，激发脱贫人口内生动力，扩大种养殖规模，增加脱贫户收入"]
[169,"生产项目（种植/养殖业）","2023年新庄镇西阁村特色种养殖补贴到户项目","新建","县农业农村局","新庄镇\n杨宜成","新庄镇","西阁村","否","扶持90户脱贫户（含监测对象）发展特色种养业","2023年12月15日前",10.998,10.998,null,"扶持90户脱贫户发展特色种养业，鼓励其扩大种养殖规模。","瓜果蔬菜种植面积266.7亩，羊养殖数量56只",{"v":1,"d":"100%"},{"v":1,"d":"100%"},"/",17,"/","/",90,234,null,null,"≥95%","参与项目申报、实施过程监督、完成后受益","以产业补助的形式对脱贫户进行补助，鼓励发展特色产业，激发脱贫人口内生动力，扩大种养殖规模，增加脱贫户收入"]
[170,"生产项目（种植/养殖业）","2023年新庄镇小集子村特色种养殖补贴到户项目","新建","县农业农村局","新庄镇\n杨宜成","新庄镇","小集子村","是","扶持55户脱贫户（含监测对象）发展特色种养业","2023年12月15日前",6.141,6.141,null,"扶持55户脱贫户发展特色种养业，鼓励其扩大种养殖规模。","瓜果蔬菜种植面积54.4亩，家禽养殖数量300只，羊养殖数量193只，猪养殖数量16头，水产养殖20.5亩，其他特色农业产业养殖150只，其他特色农业产业种植2亩",{"v":1,"d":"100%"},{"v":1,"d":"100%"},"/",9,"/","/",55,143,null,null,"≥95%","参与项目申报、实施过程监督、完成后受益","以产业补助的形式对脱贫户进行补助，鼓励发展特色产业，激发脱贫人口内生动力，扩大种养殖规模，增加脱贫户收入"]
[171,"生产项目（种植/养殖业）","2023年新庄镇小桥村特色种养殖补贴到户项目","新建","县农业农村局","新庄镇\n杨宜成","新庄镇","小桥村","是","扶持68户脱贫户（含监测对象）发展特色种养业","2023年12月15日前",8.48,8.48,null,"扶持68户脱贫户发展特色种养业，鼓励其扩大种养殖规模。","瓜果蔬菜种植面积79.4亩，羊养殖数量278只，猪养殖数量21头，牛养殖数量50头",{"v":1,"d":"100%"},{"v":1,"d":"100%"},"/",13,"/","/",68,160,null,null,"≥95%","参与项目申报、实施过程监督、完成后受益","以产业补助的形式对脱贫户进行补助，鼓励发展特色产业，激发脱贫人口内生动力，扩大种养殖规模，增加脱贫户收入"]
[172,"生产项目（种植/养殖业）","2023年新庄镇张庄村特色种养殖补贴到户项目","新建","县农业农村局","新庄镇\n杨宜成","新庄镇","张庄村","否","扶持130户脱贫户（含监测对象）发展特色种养业","2023年12月15日前",13.0225,13.0225,null,"扶持130户脱贫户发展特色种养业，鼓励其扩大种养殖规模。","瓜果蔬菜种植面积169.5亩，羊养殖数量295只，猪养殖数量95头",{"v":1,"d":"100%"},{"v":1,"d":"100%"},"/",20,"/","/",130,327,null,null,"≥95%","参与项目申报、实施过程监督、完成后受益","以产业补助的形式对脱贫户进行补助，鼓励发展特色产业，激发脱贫人口内生动力，扩大种养殖规模，增加脱贫户收入"]
[173,"生产项目（种植/养殖业）","2023年闫集镇闫集村特色种养殖补贴到户项目","新建","县农业农村局","闫集镇\n赵世成","闫集镇","闫集村","否","扶持10户脱贫户发展特色种养业","2023年12月15日前",1.47,1.47,null,"扶持10户脱贫户发展特色种养业，鼓励其扩大种养殖规模。","养殖羊数量78只",{"v":1,"d":"100%"},{"v":1,"d":"100%"},"/",4.5,"/","/",10,35,null,null,"≥95%","参与项目申报、实施过程监督、完成后受益","以产业补助的形式对脱贫户进行补助，鼓励发展特色产业，激发脱贫人口内生动力，扩大种养殖规模，增加脱贫户收入"]
[174,"生产项目（种植/养殖业）","2023年闫集镇孙老家村特色种养殖补贴到户项目","新建","县农业农村局","闫集镇\n赵世成","闫集镇","孙老家村","否","扶持37户脱贫户（含监测对象）发展特色种养业","2023年12月15日前",5.068,5.068,null,"扶持37户脱贫户发展特色种养业，鼓励其扩大种养殖规模。","瓜果蔬菜种植面积15.2亩，羊养殖数量31只，猪养殖数量8头，经济作物种植面积亩",{"v":1,"d":"100%"},{"v":1,"d":"100%"},"/",5.068,"/","/",37,94,null,null,"≥95%","参与项目申报、实施过程监督、完成后受益","以产业补助的形式对脱贫户进行补助，鼓励发展特色产业，激发脱贫人口内生动力，扩大种养殖规模，增加脱贫户收入"]
[175,"生产项目（种植/养殖业）","2023年闫集镇杨庄村特色种养殖补贴到户项目","新建","县农业农村局","闫集镇\n赵世成","闫集镇","杨庄村","否","扶持28户脱贫户（含监测对象）发展特色种养业","2023年12月15日前",3.71,3.71,null,"扶持28户脱贫户发展特色种养业，鼓励其扩大种养殖规模。","瓜果蔬菜种植面积3亩，羊养殖数量125只，猪养殖数量36头，经济作物种植面积0亩",{"v":1,"d":"100%"},{"v":1,"d":"100%"},"/","3.71万元","/","/",28,76,null,null,"≥95%","参与项目申报、实施过程监督、完成后受益","以产业补助的形式对脱贫户进行补助，鼓励发展特色产业，激发脱贫人口内生动力，扩大种养殖规模，增加脱贫户收入"]
[176,"生产项目（种植/养殖业）","2023年闫集镇汪楼村特色种养殖补贴到户项目","新建","县农业农村局","闫集镇\n赵世成","闫集镇","汪楼村","否","扶持20户脱贫户（含监测对象）发展特色种养业","2023年12月15日前",3,3,null,"扶持20户脱贫户发展特色种养业，鼓励其扩大种养殖规模。","瓜果蔬菜种植面积8亩，羊养殖数量103只，猪养殖数量8头，鸽子养殖数量300只",{"v":1,"d":"100%"},{"v":1,"d":"100%"},"/",6.2,"/","/",20,60,null,null,"≥95%","参与项目申报、实施过程监督、完成后受益","以产业补助的形式对脱贫户进行补助，鼓励发展特色产业，激发脱贫人口内生动力，扩大种养殖规模，增加脱贫户收入"]
[177,"生产项目（种植/养殖业）","2023年闫集镇郑集村特色种养殖补贴到户项目","新建","县农业农村局","闫集镇\n赵世成","闫集镇","郑集村","是","扶持74户脱贫户（含监测对象）发展特色种养业","2023年12月15日前",10.01,10.01,null,"扶持74户脱贫户发展特色种养业，鼓励其扩大种养殖规模。","瓜果蔬菜种植面积20亩，羊养殖数量457只，猪养殖数量214头，鱼养殖20亩",{"v":1,"d":"100%"},{"v":1,"d":"100%"},"/",25,"/","/",74,163,null,null,"≥95%","参与项目申报、实施过程监督、完成后受益","以产业补助的形式对脱贫户进行补助，鼓励发展特色产业，激发脱贫人口内生动力，扩大种养殖规模，增加脱贫户收入"]
[178,"生产项目（种植/养殖业）","2023年闫集镇刘店村特色种养殖补贴到户项目","新建","县农业农村局","闫集镇\n赵世成","闫集镇","刘店村","否","扶持42户脱贫户（含监测对象）发展特色种养业","2023年12月15日前",5.23,5.23,null,"扶持42户脱贫户发展特色种养业，鼓励其扩大种养殖规模。","瓜果蔬菜种植面积17亩，羊养殖数量255只，猪养殖数量84头，养鸡500只经济作物种植面积亩",{"v":1,"d":"100%"},{"v":1,"d":"100%"},"/",5.23,"/","/",42,90,null,null,"≥95%","参与项目申报、实施过程监督、完成后受益","以产业补助的形式对脱贫户进行补助，鼓励发展特色产业，激发脱贫人口内生动力，扩大种养殖规模，增加脱贫户收入"]
[179,"生产项目（种植/养殖业）","2023年闫集镇孟楼村特色种养殖补贴到户项目","新建","县农业农村局","闫集镇\n赵世成","闫集镇","孟楼村","否","扶持41户脱贫户（含监测对象）发展特色种养业","2023年12月15日前",5.86,5.86,null,"扶持41户脱贫户发展特色种养业，鼓励其扩大种养殖规模。","羊养殖数量265只，猪养殖数量90头，鹅养殖数量800只，桃树约17亩",{"v":1,"d":"100%"},{"v":1,"d":"100%"},"/",6.2,"/","/",41,89,null,null,"≥95%","参与项目申报、实施过程监督、完成后受益","以产业补助的形式对脱贫户进行补助，鼓励发展特色产业，激发脱贫人口内生动力，扩大种养殖规模，增加脱贫户收入"]
[180,"生产项目（种植/养殖业）","2023年闫集镇塘沃涯村特色种养殖补贴到户项目","新建","县农业农村局","闫集镇\n赵世成","闫集镇","塘沃涯村","是","扶持69户脱贫户（含监测对象）发展特色种养业","2023年12月15日前",8.2,8.2,null,"扶持69户脱贫户发展特色种养业，鼓励其扩大种养殖规模。","瓜果蔬菜种植面积29亩，羊养殖数量333只，猪养殖数量24头",{"v":1,"d":"100%"},{"v":1,"d":"100%"},"/",10.9,"/","/",69,181,null,null,"≥95%","参与项目申报、实施过程监督、完成后受益","以产业补助的形式对脱贫户进行补助，鼓励发展特色产业，激发脱贫人口内生动力，扩大种养殖规模，增加脱贫户收入"]
[181,"生产项目（种植/养殖业）","2023年闫集镇高楼村特色种养殖补贴到户项目","新建","县农业农村局","闫集镇\n赵世成","闫集镇","高楼村","否","扶持25户脱贫户发展特色种养业","2023年12月15日前",3.42,3.42,null,"扶持25户脱贫户发展特色种养业，鼓励其扩大种养殖规模。","养殖羊数量136只，养猪16头，蔬菜大棚2亩，露地大蒜4亩，露地甘蔗2亩，养鸭400羽。",{"v":1,"d":"100%"},{"v":1,"d":"100%"},"/",6.5,"/","/",25,65,null,null,"≥95%","参与项目申报、实施过程监督、完成后受益","以产业补助的形式对脱贫户进行补助，鼓励发展特色产业，激发脱贫人口内生动力，扩大种养殖规模，增加脱贫户收入"]
[182,"生产项目（种植/养殖业）","2023年闫集镇柳园村特色种养殖补贴到户项目","新建","县农业农村局","闫集镇\n赵世成","闫集镇","柳园村","是","扶持62户脱贫户（含监测对象）发展特色种养业","2023年12月15日前",8.17,8.17,null,"扶持62户脱贫户发展特色种养业，鼓励其扩大种养殖规模。","养殖羊数量257只，种植桃树90.4亩，种植梨树14.6亩，种芦笋12亩",{"v":1,"d":"100%"},{"v":1,"d":"100%"},"/",18.2,"/","/",62,162,null,null,"≥95%","参与项目申报、实施过程监督、完成后受益","以产业补助的形式对脱贫户进行补助，鼓励发展特色产业，激发脱贫人口内生动力，扩大种养殖规模，增加脱贫户收入"]
[183,"生产项目（种植/养殖业）","2023年闫集镇赵堂村特色种养殖补贴到户项目","新建","县农业农村局","闫集镇\n赵世成","闫集镇","赵堂村","是","扶持50户脱贫户（含监测对象）发展特色种养业","2023年12月15日前",7.46,7.46,null,"扶持50户脱贫户发展特色种养业，鼓励其扩大种养殖规模。","瓜果蔬菜种植面积20亩，羊养殖数量32只，猪养殖数量32头。",{"v":1,"d":"100%"},{"v":1,"d":"100%"},"/",13.7,"/","/",50,115,null,null,"≥95%","参与项目申报、实施过程监督、完成后受益","以产业补助的形式对脱贫户进行补助，鼓励发展特色产业，激发脱贫人口内生动力，扩大种养殖规模，增加脱贫户收入"]
[184,"生产项目（种植/养殖业）","2023年杨楼镇冯场村特色种养殖补贴到户项目","新建","县农业农村局","杨楼镇\n黄蓓蓓","杨楼镇","冯场村","否","扶持78户脱贫户（含监测对象）发展特色种养业","2023年12月15日前",8.992,8.992,null,"扶持78户脱贫户发展特色种养业，鼓励其扩大种养殖规模。","瓜果蔬菜种植面积66.6亩，羊养殖数量344只，猪养殖数量16头，经济作物种植面积4.2亩",{"v":1,"d":"100%"},{"v":1,"d":"100%"},"/",11.77,"/","/",78,176,"/","/","≥95%","参与项目申报、实施过程监督、完成后受益","以产业补助的形式对脱贫户进行补助，鼓励发展特色产业，激发脱贫人口内生动力，扩大种养殖规模，增加脱贫户收入"]
[185,"生产项目（种植/养殖业）","2023年杨楼镇郜洼村特色种养殖补贴到户项目","新建","县农业农村局","杨楼镇\n黄蓓蓓","杨楼镇","郜洼村","是","扶持78户脱贫户（含监测对象）发展特色种养业","2023年12月15日前",9.876,{"$f":"L193","v":9.876},null,"扶持78户脱贫户发展特色种养业，鼓励其扩大种养殖规模。","瓜果蔬菜种植面积118.7亩，羊养殖数量222只，猪养殖数量28头，经济作物种植面积亩",{"v":1,"d":"100%"},{"v":1,"d":"100%"},"/",12.89,"/","/",78,163,"/","/","≥95%","参与项目申报、实施过程监督、完成后受益","以产业补助的形式对脱贫户进行补助，鼓励发展特色产业，激发脱贫人口内生动力，扩大种养殖规模，增加脱贫户收入"]
[186,"生产项目（种植/养殖业）","2023年杨楼镇郝集社区特色种养殖补贴到户项目","新建","县农业农村局","杨楼镇\n黄蓓蓓","杨楼镇","郝集社区","是","扶持114户脱贫户（含监测对象）发展特色种养业","2023年12月15日前",11.718,11.718,null,"扶持114户脱贫户发展特色种养业，鼓励其扩大种养殖规模。","瓜果蔬菜种植面积120.8亩，羊养殖数量374只，猪养殖数量34头，经济作物种植面积亩",{"v":1,"d":"100%"},{"v":1,"d":"100%"},"/",15.5,"/","/",114,224,"/","/","≥95%","参与项目申报、实施过程监督、完成后受益","以产业补助的形式对脱贫户进行补助，鼓励发展特色产业，激发脱贫人口内生动力，扩大种养殖规模，增加脱贫户收入"]
[187,"生产项目（种植/养殖业）","2023年杨楼镇黄庙村特色种养殖补贴到户项目","新建","县农业农村局","杨楼镇\n黄蓓蓓","杨楼镇","黄庙村","否","扶持21户脱贫户（含监测对象）发展特色种养业","2023年12月15日前",2.68,2.68,null,"扶持21户脱贫户发展特色种养业，鼓励其扩大种养殖规模。","瓜果蔬菜种植面积19.2亩，羊养殖数量76只，猪养殖数量12头，鹅养殖数量100羽。",{"v":1,"d":"100%"},{"v":1,"d":"100%"},"/",3.536,"/","/",21,66,"/","/","≥95%","参与项目申报、实施过程监督、完成后受益","以产业补助的形式对脱贫户进行补助，鼓励发展特色产业，激发脱贫人口内生动力，扩大种养殖规模，增加脱贫户收入"]
[188,"生产项目（种植/养殖业）","2023年杨楼镇刘庄村特色种养殖补贴到户项目","新建","县农业农村局","杨楼镇\n黄蓓蓓","杨楼镇","刘庄村","否","扶持66户脱贫户（含监测对象）发展特色种养业","2023年12月15日前",6.624,6.624,null,"扶持66户脱贫户发展特色种养业，鼓励其扩大种养殖规模。","水果种植面积101.7亩，羊养殖数量124只",{"v":1,"d":"100%"},{"v":1,"d":"100%"},"/",12.636,"/","/",66,134,"/","/","≥95%","参与项目申报、实施过程监督、完成后受益","以产业补助的形式对脱贫户进行补助，鼓励发展特色产业，激发脱贫人口内生动力，扩大种养殖规模，增加脱贫户收入"]
[189,"生产项目（种植/养殖业）","2023年杨楼镇路套村特色种养殖补贴到户项目","新建","县农业农村局","杨楼镇\n黄蓓蓓","杨楼镇","路套村","否","扶持5户脱贫户（含监测对象）发展特色种养业","2023年12月15日前",0.75,0.75,null,"扶持5户脱贫户发展特色种养业，鼓励其扩大种养殖规模。","羊养殖数量35只，猪养殖数量11头",{"v":1,"d":"100%"},{"v":1,"d":"100%"},"/",0.975,"/","/",5,10,"/","/","≥95%","参与项目申报、实施过程监督、完成后受益","以产业补助的形式对脱贫户进行补助，鼓励发展特色产业，激发脱贫人口内生动力，扩大种养殖规模，增加脱贫户收入"]
[190,"生产项目（种植/养殖业）","2023年杨楼镇孟庄村特色种养殖补贴到户项目","新建","县农业农村局","杨楼镇\n黄蓓蓓","杨楼镇","孟庄村","否","扶持106户脱贫户（含监测对象）发展特色种养业","2023年12月15日前",11.072,11.072,null,"扶持106户脱贫户发展特色种养业，鼓励其扩大种养殖规模。","瓜果蔬菜种植面积142.1亩，羊养殖数量168只，猪养殖数量151头，经济作物种植面积32.1亩鱼塘3亩，养牛3头",{"v":1,"d":"100%"},{"v":1,"d":"100%"},"/",14.89,"/","/",106,248,"/","/","≥95%","参与项目申报、实施过程监督、完成后受益","以产业补助的形式对脱贫户进行补助，鼓励发展特色产业，激发脱贫人口内生动力，扩大种养殖规模，增加脱贫户收入"]
[191,"生产项目（种植/养殖业）","2023年杨楼镇裴庄村特色种养殖补贴到户项目","新建","县农业农村局","杨楼镇\n黄蓓蓓","杨楼镇","裴庄村","否","扶持93户脱贫户（含监测对象）发展特色种养业","2023年12月15日前",7.13,7.13,null,"扶持93户脱贫户发展特色种养业，鼓励其扩大种养殖规模。","瓜果蔬菜种植面积142亩，羊养殖数量237只，猪养殖数量72头，经济作物种植面积亩",{"v":1,"d":"100%"},{"v":1,"d":"100%"},"/",10.06,"/","/",93,186,"/","/","≥95%","参与项目申报、实施过程监督、完成后受益","以产业补助的形式对脱贫户进行补助，鼓励发展特色产业，激发脱贫人口内生动力，扩大种养殖规模，增加脱贫户收入"]
[192,"生产项目（种植/养殖业）","2023年杨楼镇孙庄社区特色种养殖补贴到户项目","新建","县农业农村局","杨楼镇\n黄蓓蓓","杨楼镇","孙庄社区","否","扶持23户脱贫户（含监测对象）发展特色种养业","2023年12月15日前",2.826,2.826,null,"扶持23户脱贫户发展特色种养业，鼓励其扩大种养殖规模。","瓜果蔬菜种植面20.4亩，羊养殖数量104只。",{"v":1,"d":"100%"},{"v":1,"d":"100%"},"/",3.67,"/","/",23,58,"/","/","≥95%","参与项目申报、实施过程监督、完成后受益","以产业补助的形式对脱贫户进行补助，鼓励发展特色产业，激发脱贫人口内生动力，扩大种养殖规模，增加脱贫户收入"]
[193,"生产项目（种植/养殖业）","2023年杨楼镇新廷社区特色种养殖补贴到户项目","新建","县农业农村局","杨楼镇\n黄蓓蓓","杨楼镇","新廷社区","是","扶持7户脱贫户（含监测对象）发展特色种养业","2023年12月15日前",0.96,0.96,null,"扶持7户脱贫户发展特色种养业，鼓励其扩大种养殖规模。","羊养殖数量48只，猪养殖数量15头",{"v":1,"d":"100%"},{"v":1,"d":"100%"},"/",1.4,"/","/",7,17,"/","/","≥95%","参与项目申报、实施过程监督、完成后受益","以产业补助的形式对脱贫户进行补助，鼓励发展特色产业，激发脱贫人口内生动力，扩大种养殖规模，增加脱贫户收入"]
[194,"生产项目（种植/养殖业）","2023年杨楼镇杨楼社区特色种养殖补贴到户项目","新建","县农业农村局","杨楼镇\n黄蓓蓓","杨楼镇","杨楼社区","否","扶持64户脱贫户（含监测对象）发展特色种养业","2023年12月15日前",8.408,8.408,null,"扶持64户脱贫户发展特色种养业，鼓励其扩大种养殖规模。","瓜果蔬菜种植面积16.2亩，羊养殖量283只，猪养殖数量80头，牛养殖数量3头.鸡养殖数量500只.经济作物种植面积5.5亩.",{"v":1,"d":"100%"},{"v":1,"d":"100%"},"/",10.94,"/","/",64,148,"/","/","≥95%","参与项目申报、实施过程监督、完成后受益","以产业补助的形式对脱贫户进行补助，鼓励发展特色产业，激发脱贫人口内生动力，扩大种养殖规模，增加脱贫户收入"]
[195,"生产项目（种植/养殖业）","2023年杨楼镇镇尹庄村特色种养殖补贴到户项目","新建","县农业农村局","杨楼镇\n黄蓓蓓","杨楼镇","尹庄村","否","扶持87户脱贫户（含监测对象）发展特色种养业","2023年12月15日前",9.864,9.864,null,"扶持87户脱贫户发展特色种养业，鼓励其扩大种养殖规模。","瓜果蔬菜种植面积48亩，羊养殖数量443只，猪养殖数量15头，牛养殖数量2头，鹌鹑养殖数量3000羽，经济作物种植面积54.2亩",{"v":1,"d":"100%"},{"v":1,"d":"100%"},"/",13.42,"/","/",87,186,"/","/","≥95%","参与项目申报、实施过程监督、完成后受益","以产业补助的形式对脱贫户进行补助，鼓励发展特色产业，激发脱贫人口内生动力，扩大种养殖规模，增加脱贫户收入"]
[196,"生产项目（种植/养殖业）","2023年杨楼镇余洼村特色种养殖补贴到户项目","新建","县农业农村局","杨楼镇\n黄蓓蓓","杨楼镇","余洼村","是","扶持70户脱贫户（含监测对象）发展特色种养业","2023年12月15日前",9.068,9.068,null,"扶持70户脱贫户发展特色种养业，鼓励其扩大种养殖规模。","瓜果蔬菜种植面积29.2亩，羊养殖数量353只，猪养殖数量99头.",{"v":1,"d":"100%"},{"v":1,"d":"100%"},"/",11.79,"/","/",70,175,"/","/","≥95%","参与项目申报、实施过程监督、完成后受益","以产业补助的形式对脱贫户进行补助，鼓励发展特色产业，激发脱贫人口内生动力，扩大种养殖规模，增加脱贫户收入"]
[197,"生产项目（种植/养殖业）","2023年杨楼镇张口社区特色种养殖补贴到户项目","新建","县农业农村局","杨楼镇\n黄蓓蓓","杨楼镇","张口社区","是","扶持48户脱贫户（含监测对象）发展特色种养业","2023年12月15日前",5.86,5.86,null,"扶持48户脱贫户发展特色种养业，鼓励其扩大种养殖规模。","瓜果蔬菜种植面积亩41.5苗木花卉种植面积4亩，羊养殖数量228只，猪养殖数量5头。",{"v":1,"d":"100%"},{"v":1,"d":"100%"},"/",7.618,"/","/",48,100,"/","/","≥95%","参与项目申报、实施过程监督、完成后受益","以产业补助的形式对脱贫户进行补助，鼓励发展特色产业，激发脱贫人口内生动力，扩大种养殖规模，增加脱贫户收入"]
[198,"生产项目（种植/养殖业）","2023年永堌镇前进村特色种养殖补贴到户项目","新建","县农业农村局","永堌镇\n任精芳","永堌镇","前进村","是","扶持50户脱贫户（含监测对象）发展特色种养业","2023年12月15日前",6.752,6.752,null,"扶持50户脱贫户发展特色种养业，鼓励其扩大种养殖规模。","大棚蔬菜种植面积2亩、杏树28.8亩，羊养殖数量398只、牛15头、猪3头；",{"v":1,"d":"100%"},{"v":1,"d":"100%"},"/",{"$f":"L206*1.25","v":8.44},"/\n","/\n",50,115,"/","/","≥95%","参与项目申报、实施过程监督、完成后受益","以产业补助的形式对脱贫户进行补助，鼓励发展特色产业，激发脱贫人口内生动力，扩大种养殖规模，增加脱贫户收入"]
[199,"生产项目（种植/养殖业）","2023年永堌镇胜利村特色种养殖补贴到户项目","新建","县农业农村局","永堌镇\n任精芳","永堌镇","胜利村","否","扶持49户脱贫户（含监测对象）发展特色种养业","2023年12月15日前",4.786,4.786,null,"扶持49户脱贫户发展特色种养业，鼓励其扩大种养殖规模。","葡萄种植面积64.9亩、杏树12亩、梨2.5亩，羊养殖数量46只、牛2头、猪8头、蜜蜂15箱、鸡300只；",{"v":1,"d":"100%"},{"v":1,"d":"100%"},"/",5.9825,"/\n","/\n",49,94,"/","/","≥95%","参与项目申报、实施过程监督、完成后受益","以产业补助的形式对脱贫户进行补助，鼓励发展特色产业，激发脱贫人口内生动力，扩大种养殖规模，增加脱贫户收入"]
[200,"生产项目（种植/养殖业）","2023年永堌镇许岗村特色种养殖补贴到户项目","新建","县农业农村局","永堌镇\n任精芳","永堌镇","许岗村","否","扶持12户脱贫户（含监测对象）发展特色种养业","2023年12月15日前",1.5,1.5,null,"扶持12户脱贫户发展特色种养业，鼓励其扩大种养殖规模。","杏树种植面积10亩，羊养殖数量50只、猪5头；",{"v":1,"d":"100%"},{"v":1,"d":"100%"},"/",1.875,"/\n","/\n",12,25,"/","/","≥95%","参与项目申报、实施过程监督、完成后受益","以产业补助的形式对脱贫户进行补助，鼓励发展特色产业，激发脱贫人口内生动力，扩大种养殖规模，增加脱贫户收入"]
[201,"生产项目（种植/养殖业）","2023年永堌镇山窝村特色种养殖补贴到户项目","新建","县农业农村局","永堌镇\n任精芳","永堌镇","山窝村","否","扶持21户脱贫户（含监测对象）发展特色种养业","2023年12月15日前",2.368,2.368,null,"扶持21户脱贫户发展特色种养业，鼓励其扩大种养殖规模。","葡萄种植面积5.2亩、杏树18.5亩、豌豆5亩，羊养殖数量79只、蜜蜂15箱；",{"v":1,"d":"100%"},{"v":1,"d":"100%"},"/",2.96,"/\n","/\n",21,38,"/","/","≥95%","参与项目申报、实施过程监督、完成后受益","以产业补助的形式对脱贫户进行补助，鼓励发展特色产业，激发脱贫人口内生动力，扩大种养殖规模，增加脱贫户收入"]
[202,"生产项目（种植/养殖业）","2023年永堌镇窦庄村特色种养殖补贴到户项目","新建","县农业农村局","永堌镇\n任精芳","永堌镇","窦庄村","是","扶持48户脱贫户（含监测对象）发展特色种养业","2023年12月15日前",5.079,5.079,null,"扶持48户脱贫户发展特色种养业，鼓励其扩大种养殖规模。","大棚蔬菜种植面积4亩、梨5.4亩，大棚葡萄6亩、葡萄47亩、露地蔬菜4.6亩、洋葱2亩，羊养殖数量98只、猪30头、牛33头、精养 鱼塘18亩；",{"v":1,"d":"100%"},{"v":1,"d":"100%"},"/",6.34875,"/\n","/\n",48,100,"/","/","≥95%","参与项目申报、实施过程监督、完成后受益","以产业补助的形式对脱贫户进行补助，鼓励发展特色产业，激发脱贫人口内生动力，扩大种养殖规模，增加脱贫户收入"]
[203,"生产项目（种植/养殖业）","2023年永堌镇马庄村特色种养殖补贴到户项目","新建","县农业农村局","永堌镇\n任精芳","永堌镇","马庄村","否","扶持28户脱贫户（含监测对象）发展特色种养业","2023年12月15日前",3.58,3.58,null,"扶持28户脱贫户发展特色种养业，鼓励其扩大种养殖规模。","洋葱种植面积12亩，羊养殖数量196只、猪22头；",{"v":1,"d":"100%"},{"v":1,"d":"100%"},"/",4.475,"/\n","/\n",28,79,"/","/","≥95%","参与项目申报、实施过程监督、完成后受益","以产业补助的形式对脱贫户进行补助，鼓励发展特色产业，激发脱贫人口内生动力，扩大种养殖规模，增加脱贫户收入"]
[204,"生产项目（种植/养殖业）","2023年永堌镇吴庄村特色种养殖补贴到户项目",null,"县农业农村局","永堌镇\n任精芳","永堌镇","吴庄村","是","扶持22户脱贫户（含监测对象）发展特色种养业","2023年12月15日前",2.455,2.455,null,"扶持22户脱贫户发展特色种养业，鼓励其扩大种养殖规模。","大棚蔬菜种植面积11亩、大棚葡萄2亩、梨树9.6亩、洋葱11.3亩，羊养殖数量38只、猪4头；",{"v":1,"d":"100%"},{"v":1,"d":"100%"},"/",3.06875,"/\n","/\n",22,46,"/","/","≥95%","参与项目申报、实施过程监督、完成后受益","以产业补助的形式对脱贫户进行补助，鼓励发展特色产业，激发脱贫人口内生动力，扩大种养殖规模，增加脱贫户收入"]
[205,"生产项目（种植/养殖业）","2023年张庄寨镇白楼村村特色种养殖补贴到户项目","新建","县农业农村局","张庄寨镇\n李宁","张庄寨镇","白楼村","是","扶持60户脱贫户（含监测对象）发展特色种养业","2023年12月15日前",9,9,null,"扶持60户脱贫户发展特色种养业，鼓励其扩大种养殖规模。","桃树种植面积68亩，苹果树12亩，蔬菜种植面积78亩，大棚蔬菜60亩，猪养殖数量80头，羊养殖数量350只，鱼塘6亩，苗木15亩，家禽400只，牛5头，中药材5亩。",{"v":1,"d":"100%"},{"v":1,"d":"100%"},"/",10.8,"/","/",60,135,null,null,"≥95%","参与项目申报、实施过程监督、完成后受益","以产业补助的形式对脱贫户进行补助，鼓励发展特色产业，激发脱贫人口内生动力，扩大种养殖规模，增加脱贫户收入"]
[206,"生产项目（种植/养殖业）","2023年张庄寨镇崔口村特色种养殖补贴到户项目","新建","县农业农村局","张庄寨镇\n李宁","张庄寨镇","崔口村","否","扶持70户（含监测对象）脱贫户发展特色种养业","2023年12月15日前",10.5,10.5,null,"扶持70户脱贫户发展特色种养业，鼓励其扩大种养殖规模。","桃树种植面积100亩，，蔬菜种植面积10亩，，猪养殖数量10头，羊养殖数量470只。",{"v":1,"d":"100%"},{"v":1,"d":"100%"},"/",12.6,"/","/",70,"110",null,null,"≥95%","参与项目申报、实施过程监督、完成后受益","以产业补助的形式对脱贫户进行补助，鼓励发展特色产业，激发脱贫人口内生动力，扩大种养殖规模，增加脱贫户收入"]
[207,"生产项目（种植/养殖业）","2023年张庄寨镇海青村特色种养殖补贴到户项目","新建","县农业农村局","张庄寨镇\n李宁","张庄寨镇","海青村","否","扶持30户（含监测对象）脱贫户发展特色种养业","2023年12月15日前",4.5,4.5,null,"扶持30户脱贫户发展特色种养业，鼓励其扩大种养殖规模。","桃树种植面积320亩，苹果树20亩，蔬菜种植面积90亩，大棚蔬菜60亩，猪养殖数量80头，羊养殖数量470只，鱼塘15亩，苗木50亩，家禽400只，牛8头，中药材10亩。",{"v":1,"d":"100%"},{"v":1,"d":"100%"},"/",5.4,"/","/",30,36,null,null,"≥95%","参与项目申报、实施过程监督、完成后受益","以产业补助的形式对脱贫户进行补助，鼓励发展特色产业，激发脱贫人口内生动力，扩大种养殖规模，增加脱贫户收入"]
[208,"生产项目（种植/养殖业）","2023年张庄寨镇杭子村特色种养殖补贴到户项目","新建","县农业农村局","张庄寨镇\n李宁","张庄寨镇","杭子村","否","扶持70户（含监测对象）脱贫户发展特色种养业","2023年12月15日前",10.5,10.5,null,"扶持70户脱贫户发展特色种养业，鼓励其扩大种养殖规模。","桃树种植面积100亩，，蔬菜种植面积10亩，，猪养殖数量10头，羊养殖数量470只。",{"v":1,"d":"100%"},{"v":1,"d":"100%"},"/",12.6,"/","/",70,"110",null,null,"≥95%","参与项目申报、实施过程监督、完成后受益","以产业补助的形式对脱贫户进行补助，鼓励发展特色产业，激发脱贫人口内生动力，扩大种养殖规模，增加脱贫户收入"]
[209,"生产项目（种植/养殖业）","2023年张庄寨镇洪河村特色种养殖补贴到户项目","新建","县农业农村局","张庄寨镇\n李宁","张庄寨镇","洪河村","是","扶持90户脱贫户（含监测对象）发展特色种养业","2023年12月15日前",13.5,13.5,null,"扶持90户脱贫户发展特色种养业，鼓励其扩大种养殖规模。","桃树种植面积350亩，苹果树4亩，蔬菜种植面积40亩，大棚蔬菜70亩，猪养殖数量80头，羊养殖数量470只，鱼塘9亩，苗木3亩，家禽600只，牛5头，中药材5亩。",{"v":1,"d":"100%"},{"v":1,"d":"100%"},"/",16.2,"/","/",90,162,null,null,"≥95%","参与项目申报、实施过程监督、完成后受益","以产业补助的形式对脱贫户进行补助，鼓励发展特色产业，激发脱贫人口内生动力，扩大种养殖规模，增加脱贫户收入"]
[210,"生产项目（种植/养殖业）","2023年张庄寨镇申河村特色种养殖补贴到户项目","新建","县农业农村局","张庄寨镇\n李宁","张庄寨镇","申河村","否","扶持50户脱贫户（含监测对象）发展特色种养业","2023年12月15日前",7.5,7.5,null,"扶持50户脱贫户发展特色种养业，鼓励其扩大种养殖规模。","猪养殖数量10头，羊养殖数量288只",{"v":1,"d":"100%"},{"v":1,"d":"100%"},null,18,"/",null,50,"100",null,null,"≥95%","参与项目申报、实施过程监督、完成后受益","以产业补助的形式对脱贫户进行补助，鼓励发展特色产业，激发脱贫人口内生动力，扩大种养殖规模，增加脱贫户收入"]
[211,"生产项目（种植/养殖业）","2023年张庄寨镇寿楼村特色种养殖补贴到户项目","新建","县农业农村局","张庄寨镇\n李宁","张庄寨镇","寿楼村","否","扶持100户（含监测对象）脱贫户发展特色种养业","2023年12月15日前",15,15,null,"扶持100户脱贫户发展特色种养业，鼓励其扩大种养殖规模。","桃树种植面积50亩，苹果树12亩，蔬菜种植面积70亩，大棚蔬菜80亩，猪养殖数量50头，羊养殖数量450只，鱼塘9亩，苗木10亩，家禽400只，牛8头，中药材5亩。",{"v":1,"d":"100%"},{"v":1,"d":"100%"},"/",36,"/","/",100,"140",null,null,"≥95%","参与项目申报、实施过程监督、完成后受益","以产业补助的形式对脱贫户进行补助，鼓励发展特色产业，激发脱贫人口内生动力，扩大种养殖规模，增加脱贫户收入"]
[212,"生产项目（种植/养殖业）","2023年张庄寨镇王柳元村特色种养殖补贴到户项目","新建","县农业农村局","张庄寨镇\n李宁","张庄寨镇","王柳元村","否","扶持70户脱贫户（含监测对象）发展特色种养业","2023年12月15日前",10.5,10.5,null,"扶持70户脱贫户发展特色种养业，鼓励其扩大种养殖规模。","蔬菜种植面积20亩，羊养殖数量520只，苗木10亩，家禽500只，牛10头。",{"v":1,"d":"100%"},{"v":1,"d":"100%"},"/",12.6,"/","/","70","180",null,null,"≥95%","参与项目申报、实施过程监督、完成后受益","以产业补助的形式对脱贫户进行补助，鼓励发展特色产业，激发脱贫人口内生动力，扩大种养殖规模，增加脱贫户收入"]
[213,"生产项目（种植/养殖业）","2023年张庄寨镇王衍庄村特色种养殖补贴到户项目","新建","县农业农村局","张庄寨镇\n李宁","张庄寨镇","王衍庄村","否","扶持50户脱贫户（含监测对象）发展特色种养业","2023年12月15日前",7.5,7.5,null,"扶持50户脱贫户发展特色种养业，鼓励其扩大种养殖规模。","猪养殖数量80头，羊养殖数量400只，鱼塘20亩，苗木30亩，家禽1000只，",{"v":1,"d":"100%"},{"v":1,"d":"100%"},"/",9,"/","/",50,"161",null,null,"≥95%","参与项目申报、实施过程监督、完成后受益","以产业补助的形式对脱贫户进行补助，鼓励发展特色产业，激发脱贫人口内生动力，扩大种养殖规模，增加脱贫户收入"]
[214,"生产项目（种植/养殖业）","2023年张庄寨镇武楼村特色种养殖补贴到户项目","新建","县农业农村局","张庄寨镇\n李宁","张庄寨镇","武楼村","是","扶持70户脱贫户（含监测对象）发展特色种养业","2023年12月15日前",10.5,10.5,null,"扶持70户脱贫户发展特色种养业，鼓励其扩大种养殖规模。","羊养殖数量580只，苗木4.5亩，",{"v":1,"d":"100%"},{"v":1,"d":"100%"},"/",12.6,"/","/",70,"396",null,null,"≥95%","参与项目申报、实施过程监督、完成后受益","以产业补助的形式对脱贫户进行补助，鼓励发展特色产业，激发脱贫人口内生动力，扩大种养殖规模，增加脱贫户收入"]
[215,"生产项目（种植/养殖业）","2023年张庄寨镇袁圩村特色种养殖补贴到户项目","新建","县农业农村局","张庄寨镇\n李宁","张庄寨镇","袁圩村","是","扶持70户脱贫户（含监测对象）发展特色种养业","2023年12月15日前",10.5,10.5,null,"扶持70户脱贫户发展特色种养业，鼓励其扩大种养殖规模。","桃树种植面积100亩，，蔬菜种植面积10亩，，猪养殖数量10头，羊养殖数量470只。",{"v":1,"d":"100%"},{"v":1,"d":"100%"},"/",12.6,"/","/",70,"110",null,null,"≥95%","参与项目申报、实施过程监督、完成后受益","以产业补助的形式对脱贫户进行补助，鼓励发展特色产业，激发脱贫人口内生动力，扩大种养殖规模，增加脱贫户收入"]
[216,"生产项目（种植/养殖业）","2023年张庄寨镇张新集村特色种养殖补贴到户项目","新建","县农业农村局","张庄寨镇\n李宁","张庄寨镇","张新集村","否","扶持50户脱贫户（含监测对象）发展特色种养业","2023年12月15日前",7.5,7.5,null,"扶持50户脱贫户发展特色种养业，鼓励其扩大种养殖规模。","桃树种植面积80亩，苹果树5亩，蔬菜种植面积70亩，大棚蔬菜20亩，猪养殖数量20头，羊养殖数量360只，鱼塘6亩，苗木10亩，家禽300只，牛5头，中药材6亩。",{"v":1,"d":"100%"},{"v":1,"d":"100%"},"/",9,"/","/",50,132,null,null,"≥95%","参与项目申报、实施过程监督、完成后受益","以产业补助的形式对脱贫户进行补助，鼓励发展特色产业，激发脱贫人口内生动力，扩大种养殖规模，增加脱贫户收入"]
[217,"生产项目（种植/养殖业）","2023年张庄寨镇众姓庄村特色种养殖补贴到户项目","新建","县农业农村局","张庄寨镇\n李宁","张庄寨镇","众姓庄村","否","扶持40户脱贫户（含监测对象）发展特色种养业","2023年12月15日前",6,6,null,"扶持40户脱贫户发展特色种养业，鼓励其扩大种养殖规模。","桃树种植面积2亩，猪养殖数量10头，羊养殖数量228只，中药材1.2亩。",{"v":1,"d":"100%"},{"v":1,"d":"100%"},"/",7.2,"/","/",40,"68",null,null,"≥95%","参与项目申报、实施过程监督、完成后受益","以产业补助的形式对脱贫户进行补助，鼓励发展特色产业，激发脱贫人口内生动力，扩大种养殖规模，增加脱贫户收入"]
[218,"生产项目（种植/养殖业）","2023年张庄寨镇河西村特色种养殖补贴到户项目","新建","县农业农村局","张庄寨镇\n李宁","张庄寨镇","河西村","否","扶持60户脱贫户（含监测对象）发展特色种养业","2023年12月15日前",9,9,null,"扶持60户脱贫户发展特色种养业，鼓励其扩大种养殖规模。","苹果树5亩，蔬菜种植面积30亩，猪养殖数量80头，羊养殖数量470只，鱼塘3亩，家禽500只，牛10头，。",{"v":1,"d":"100%"},{"v":1,"d":"100%"},"/",10.8,"/","/",60,"108",null,null,"≥95%","参与项目申报、实施过程监督、完成后受益","以产业补助的形式对脱贫户进行补助，鼓励发展特色产业，激发脱贫人口内生动力，扩大种养殖规模，增加脱贫户收入"]
[219,"生产项目（种植/养殖业）","2023年张庄寨镇欧庙村特色种养殖补贴到户项目","新建","县农业农村局","张庄寨镇\n李宁","张庄寨镇","欧庙村","是","扶持60户脱贫户（含监测对象）发展特色种养业","2023年12月15日前",9,9,null,"扶持60户脱贫户发展特色种养业，鼓励其扩大种养殖规模。","猪养殖数量12头，羊养殖数量310只。",{"v":1,"d":"100%"},{"v":1,"d":"100%"},"/",10.8,"/","/",60,"150",null,null,"≥95%","参与项目申报、实施过程监督、完成后受益","以产业补助的形式对脱贫户进行补助，鼓励发展特色产业，激发脱贫人口内生动力，扩大种养殖规模，增加脱贫户收入"]
[220,"生产项目（种植/养殖业）","2023年张庄寨镇张庄寨社区特色种养殖补贴到户项目","新建","县农业农村局","张庄寨镇\n李宁","张庄寨镇","张庄寨社区","否","扶持80户脱贫户（含监测对象）发展特色种养业","2023年12月15日前",12,12,null,"扶持80户脱贫户发展特色种养业，鼓励其扩大种养殖规模。","猪养殖数量30头，羊养殖数量400只，果树35亩，家禽1000只，",{"v":1,"d":"100%"},{"v":1,"d":"100%"},"/",14.4,"/","/",80,"182",null,null,"≥95%","参与项目申报、实施过程监督、完成后受益","以产业补助的形式对脱贫户进行补助，鼓励发展特色产业，激发脱贫人口内生动力，扩大种养殖规模，增加脱贫户收入"]
[221,"生产项目（种植/养殖业）","2023年赵庄镇大孙庄村特色种养殖补贴到户项目","新建","县农业农村局","赵庄镇\n姜大郭","赵庄镇","大孙庄村","否","扶持78户脱贫户（含监测对象）发展特色种养业","2023年12月15日前",11.7,11.7,null,"扶持78户脱贫户发展特色种养业，鼓励其扩大种养殖规模。","瓜果蔬菜种植面积86亩，猪养殖数量9头，羊养殖数量350只，牛养殖数量2头。",{"v":1,"d":"100%"},{"v":1,"d":"100%"},"/",27.6,"/","/",78,180,null,null,"≥95%","参与项目申报、实施过程监督、完成后受益","以产业补助的形式对脱贫户进行补助，鼓励发展特色产业，激发脱贫人口内生动力，扩大种养殖规模，增加脱贫户收入"]
[222,"生产项目（种植/养殖业）","2023年赵庄镇建华村特色种养殖补贴到户项目","新建","县农业农村局","赵庄镇\n姜大郭","赵庄镇","建华村","否","扶持80户脱贫户（含监测对象）发展特色种养业","2023年12月15日前",12,12,null,"扶持80户脱贫户发展特色种养业，鼓励其扩大种养殖规模。","经济作物种植面积20亩，猪养殖数量42头，羊养殖数量105只，鱼塘养殖数量5亩。",{"v":1,"d":"100%"},{"v":1,"d":"100%"},"/",25,"/","/",80,186,null,null,"≥95%","参与项目申报、实施过程监督、完成后受益","以产业补助的形式对脱贫户进行补助，鼓励发展特色产业，激发脱贫人口内生动力，扩大种养殖规模，增加脱贫户收入"]
[223,"生产项目（种植/养殖业）","2023年赵庄镇九店村特色种养殖补贴到户项目","新建","县农业农村局","赵庄镇\n姜大郭","赵庄镇","九店村","否","扶持120户脱贫户（含监测对象）发展特色种养业","2023年12月15日前",18,18,null,"扶持120户脱贫户发展特色种养业，鼓励其扩大种养殖规模。","瓜果蔬菜种植面积50亩，羊、牛、猪等养殖数量500只。",{"v":1,"d":"100%"},{"v":1,"d":"100%"},"/",32,"/","/",120,204,null,null,"≥95%","参与项目申报、实施过程监督、完成后受益","以产业补助的形式对脱贫户进行补助，鼓励发展特色产业，激发脱贫人口内生动力，扩大种养殖规模，增加脱贫户收入"]
[224,"生产项目（种植/养殖业）","2023年赵庄镇前韦村特色种养殖补贴到户项目","新建","县农业农村局","赵庄镇\n姜大郭","赵庄镇","前韦村","否","扶持85户脱贫户（含监测对象）发展特色种养业","2023年12月15日前",12.75,12.75,null,"扶持85户脱贫户发展特色种养业，鼓励其扩大种养殖规模。","瓜果种植面积50亩，猪养殖数量35头，羊养殖数量280只。",{"v":1,"d":"100%"},{"v":1,"d":"100%"},"/",28,"/","/",85,195,null,null,"≥95%","参与项目申报、实施过程监督、完成后受益","以产业补助的形式对脱贫户进行补助，鼓励发展特色产业，激发脱贫人口内生动力，扩大种养殖规模，增加脱贫户收入"]
[225,"生产项目（种植/养殖业）","2023年赵庄镇三座楼村特色种养殖补贴到户项目","新建","县农业农村局","赵庄镇\n姜大郭","赵庄镇","三座楼村","是","扶持80户脱贫户（含监测对象）发展特色种养业","2023年12月15日前",12,12,null,"扶持80户脱贫户发展特色种养业，鼓励其扩大种养殖规模。","瓜果蔬菜种植面积30亩，苗木花卉面积9.6亩，猪养殖数量42头，羊养殖数量336只",{"v":1,"d":"100%"},{"v":1,"d":"100%"},"/",15,"/","/",80,187,null,null,"≥95%","参与项目申报、实施过程监督、完成后受益","以产业补助的形式对脱贫户进行补助，鼓励发展特色产业，激发脱贫人口内生动力，扩大种养殖规模，增加脱贫户收入"]
[226,"生产项目（种植/养殖业）","2023年赵庄镇孙大庙村特色种养殖补贴到户项目","新建","县农业农村局","赵庄镇\n姜大郭","赵庄镇","孙大庙村","是","扶持70户脱贫户（含监测对象）发展特色种养业","2023年12月15日前",10.5,10.5,null,"扶持70户脱贫户发展特色种养业，鼓励其扩大种养殖规模。","瓜果蔬菜种植面积25亩，猪养殖数量30头，羊养殖数量160只",{"v":1,"d":"100%"},{"v":1,"d":"100%"},"/",21,"/","/",70,150,null,null,"≥95%","参与项目申报、实施过程监督、完成后受益","以产业补助的形式对脱贫户进行补助，鼓励发展特色产业，激发脱贫人口内生动力，扩大种养殖规模，增加脱贫户收入"]
[227,"生产项目（种植/养殖业）","2023年赵庄镇桃元村特色种养殖补贴到户项目","新建","县农业农村局","赵庄镇\n姜大郭","赵庄镇","桃元村","否","扶持58户脱贫户（含监测对象）发展特色种养业","2023年12月15日前",8.7,8.7,null,"扶持58户脱贫户发展特色种养业，鼓励其扩大种养殖规模。","瓜果种植面积50亩，猪养殖数量20头，羊养殖数量252只。",{"v":1,"d":"100%"},{"v":1,"d":"100%"},"/",22,"/","/",58,142,null,null,"≥95%","参与项目申报、实施过程监督、完成后受益","以产业补助的形式对脱贫户进行补助，鼓励发展特色产业，激发脱贫人口内生动力，扩大种养殖规模，增加脱贫户收入"]
[228,"生产项目（种植/养殖业）","2023年赵庄镇王汉集村特色种养殖补贴到户项目","新建","县农业农村局","赵庄镇\n姜大郭","赵庄镇","王汉集村","是","扶持70户脱贫户（含监测对象）发展特色种养业","2023年12月15日前",10.5,10.5,null,"扶持70户脱贫户发展特色种养业，鼓励其扩大种养殖规模。","瓜果蔬菜种植面积48亩，猪养殖数量40头，羊养殖数量280只",{"v":1,"d":"100%"},{"v":1,"d":"100%"},"/",18,"/","/",70,198,null,null,"≥95%","参与项目申报、实施过程监督、完成后受益","以产业补助的形式对脱贫户进行补助，鼓励发展特色产业，激发脱贫人口内生动力，扩大种养殖规模，增加脱贫户收入"]
[229,"生产项目（种植/养殖业）","2023年赵庄镇吴集村特色种养殖补贴到户项目","新建","县农业农村局","赵庄镇\n姜大郭","赵庄镇","吴集村","否","扶持73户脱贫户（含监测对象）发展特色种养业","2023年12月15日前",10.95,10.95,null,"扶持73户脱贫户发展特色种养业，鼓励其扩大种养殖规模。","羊养殖数量356只。猪33头，蔬菜、瓜果种植13亩",{"v":1,"d":"100%"},{"v":1,"d":"100%"},"/",18.8,"/","/",73,105,null,null,"≥95%","参与项目申报、实施过程监督、完成后受益","以产业补助的形式对脱贫户进行补助，鼓励发展特色产业，激发脱贫人口内生动力，扩大种养殖规模，增加脱贫户收入"]
[230,"生产项目（种植/养殖业）","2023年赵庄镇吴蒋庄村特色种养殖补贴到户项目","新建","县农业农村局","赵庄镇\n姜大郭","赵庄镇","吴蒋庄村","否","扶持60户脱贫户（含监测对象）发展特色种养业","2023年12月15日前",9,9,null,"扶持60户脱贫户发展特色种养业，鼓励其扩大种养殖规模。","瓜果蔬菜种植面积30亩，苗木花卉面积9.6亩，猪养殖数量42头，羊养殖数量236只，鸽子300羽",{"v":1,"d":"100%"},{"v":1,"d":"100%"},"/",15,"/","/",60,145,null,null,"≥95%","参与项目申报、实施过程监督、完成后受益","以产业补助的形式对脱贫户进行补助，鼓励发展特色产业，激发脱贫人口内生动力，扩大种养殖规模，增加脱贫户收入"]
[231,"生产项目（种植/养殖业）","2023年赵庄镇张老庄村特色种养殖补贴到户项目","新建","县农业农村局","赵庄镇\n姜大郭","赵庄镇","张老庄村","是","扶持37户脱贫户（含监测对象）发展特色种养业","2023年12月15日前",5.55,5.55,null,"扶持37户脱贫户发展特色种养业，鼓励其扩大种养殖规模。","瓜果蔬菜种植面积5.5亩，猪养殖数量3头，羊养殖数量226只",{"v":1,"d":"100%"},{"v":1,"d":"100%"},"/",9.9,"/","/",37,98,null,null,"≥95%","参与项目申报、实施过程监督、完成后受益","以产业补助的形式对脱贫户进行补助，鼓励发展特色产业，激发脱贫人口内生动力，扩大种养殖规模，增加脱贫户收入"]
[232,"生产项目（种植/养殖业）","2023年赵庄镇张朴楼社区特色种养殖补贴到户项目","新建","县农业农村局","赵庄镇\n姜大郭","赵庄镇","张朴楼社区","否","扶持120户脱贫户（含监测对象）发展特色种养业","2023年12月15日前",18,18,null,"扶持120户脱贫户发展特色种养业，鼓励其扩大种养殖规模。","瓜果蔬菜种植面积30亩，经济作物种植面积30亩，猪养殖数量12头，羊养殖280只，",{"v":1,"d":"100%"},{"v":1,"d":"100%"},"/",34,"/",null,120,280,null,null,"≥95%","参与项目申报、实施过程监督、完成后受益","以产业补助的形式对脱贫户进行补助，鼓励发展特色产业，激发脱贫人口内生动力，扩大种养殖规模，增加脱贫户收入"]
[233,"生产项目（种植/养殖业）","2023年赵庄镇汪屯村特色种养殖补贴到户项目","新建","县农业农村局","赵庄镇\n姜大郭","赵庄镇","汪屯村","否","扶持55户脱贫户（含监测对象）发展特色种养业","2023年12月15日前",8.25,8.25,null,"扶持55户脱贫户发展特色种养业，鼓励其扩大种养殖规模。","瓜果蔬菜种植面积88.5亩，苗木花卉面积4.6亩，猪养殖数量21头，羊养殖数量113只。",{"v":1,"d":"100%"},{"v":1,"d":"100%"},null,13,"/","/",55,125,null,null,"≥95%","项目申报、实施过程监督、带动产业发展","以产业补助的形式对贫困户进行补助，鼓励发展特色产业，激发贫困人口内生动力，增加贫困户收入"]
[234,"生产项目（种植/养殖业）","2023年赵庄镇赵庄村特色种养殖补贴到户项目","新建","县农业农村局","赵庄镇\n姜大郭","赵庄镇","赵庄村","否","扶持60户脱贫户（含监测对象）发展特色种养业","2023年12月15日前",9,9,null,"扶持60户脱贫户发展特色种养业，鼓励其扩大种养殖规模。","瓜果蔬菜种植面积88.5亩，苗木花卉面积4.6亩，猪养殖数量21头，羊养殖数量113只。",{"v":1,"d":"100%"},{"v":1,"d":"100%"},null,13,"/",null,60,130,"/",null,"≥95%","项目申报、实施过程监督、带动产业发展","以产业补助的形式对贫困户进行补助，鼓励发展特色产业，激发贫困人口内生动力，增加贫困户收入"]
[235,"生产项目（种植/养殖业）","2023年庄里镇陶墟村特色种养殖补贴到户项目","新建","县农业农村局","庄里镇\n孟卫东","庄里镇","陶墟村","是","扶持32户脱贫户（含监测对象）发展特色种养业","2023年12月15日前",3.826,3.826,null,"扶持32户脱贫户（含监测对象）发展特色种养业，鼓励其扩大种养殖规模。","瓜果蔬菜种植面积9.4亩，羊养殖数量282只，猪养殖数量5头",{"v":1,"d":"100%"},{"v":1,"d":"100%"},"/",5,"/","/",32,68,null,null,"≥95%","参与项目申报、实施过程监督、完成后受益","以产业补助的形式对脱贫户进行补助，鼓励发展特色产业，激发脱贫人口内生动力，扩大种养殖规模，增加脱贫户收入"]
[236,"生产项目（种植/养殖业）","2023年庄里镇大蔡村特色种养殖补贴到户项目","新建","县农业农村局","庄里镇\n孟卫东","庄里镇","大蔡村","否","扶持22户脱贫户（含监测对象）发展特色种养业","2023年12月15日前",3.11,3.11,null,"扶持22户脱贫户发展特色种养业，鼓励其扩大种养殖规模。","瓜果蔬菜种植面积51.1亩，羊养殖数量54只，猪养殖数量4头，经济作物种植面积0亩",{"v":1,"d":"100%"},{"v":1,"d":"100%"},"/",3.8,"/","/",22,72,null,null,"≥95%","参与项目申报、实施过程监督、完成后受益","以产业补助的形式对脱贫户进行补助，鼓励发展特色产业，激发脱贫人口内生动力，扩大种养殖规模，增加脱贫户收入"]
[237,"生产项目（种植/养殖业）","2023年庄里镇尠沟村特色种养殖补贴到户项目","新建","县农业农村局","庄里镇\n孟卫东","庄里镇","尠沟村","否","扶持23户脱贫户（含监测对象）发展特色种养业","2023年12月15日前",3.4,3.4,null,"扶持23户脱贫户发展特色种养业，鼓励其扩大种养殖规模。","瓜果蔬菜种植面积13亩，羊养殖数量88只，猪养殖数量15头，经济作物种植面积亩",{"v":1,"d":"100%"},{"v":1,"d":"100%"},"/",4.2,"/","/",23,60,null,null,"≥95%","参与项目申报、实施过程监督、完成后受益","以产业补助的形式对脱贫户进行补助，鼓励发展特色产业，激发脱贫人口内生动力，扩大种养殖规模，增加脱贫户收入"]
[238,"生产项目（种植/养殖业）","2023年庄里镇栾庄村特色种养殖补贴到户项目","新建","县农业农村局","庄里镇\n孟卫东","庄里镇","栾庄","是","扶持22户脱贫户（含监测对象）发展特色种养业","2023年12月15日前",2.9,2.9,null,"扶持22户脱贫户发展特色种养业，鼓励其扩大种养殖规模。","瓜果蔬菜种植面积33.5亩，羊养殖数量69只，猪养殖数量26头，经济作物种植面积0亩家禽200羽",{"v":1,"d":"100%"},{"v":1,"d":"100%"},"/",29000,"/",{"v":29000,"d":"29000.000"},22,63,null,null,"≥95%","参与项目申报、实施过程监督、完成后受益","以产业补助的形式对脱贫户进行补助，鼓励发展特色产业，激发脱贫人口内生动力，扩大种养殖规模，增加脱贫户收入"]
[239,"生产项目（种植/养殖业）","2023年庄里镇高庄村特色种养殖补贴到户项目","新建","县农业农村局","庄里镇\n孟卫东","庄里镇","高庄村","否","扶持30户脱贫户（含监测对象）发展特色种养业","2023年12月15日前",3.912,3.912,null,"扶持30户脱贫户发展特色种养业，鼓励其扩大种养殖规模。","露地水果种植面积14.2亩，羊养殖数量62只，经济作物种植面积0亩",{"v":1,"d":"100%"},{"v":1,"d":"100%"},"/",1.912,"/","/",30,63,null,null,"≥95%","参与项目申报、实施过程监督、完成后受益","以产业补助的形式对脱贫户进行补助，鼓励发展特色产业，激发脱贫人口内生动力，扩大种养殖规模，增加脱贫户收入"]
[240,"生产项目（种植/养殖业）","2023年庄里镇城阳村特色种养殖补贴到户项目","新建","县农业农村局","庄里镇\n孟卫东","庄里镇","城阳村","是","扶持18户脱贫户（含监测对象）发展特色种养业","2023年12月15日前",2.52,2.52,null,"扶持18户脱贫户发展特色种养业，鼓励其扩大种养殖规模。","瓜果蔬菜种植面积28.5亩，羊养殖数量56只，猪养殖数量3头，经济作物种植面积亩",{"v":1,"d":"100%"},{"v":1,"d":"100%"},"/",3.1,"/","/",18,42,null,null,"≥95%","参与项目申报、实施过程监督、完成后受益","以产业补助的形式对脱贫户进行补助，鼓励发展特色产业，激发脱贫人口内生动力，扩大种养殖规模，增加脱贫户收入"]
[241,"生产项目（种植/养殖业）","2023年庄里镇黄山村特色种养殖补贴到户项目","新建","县农业农村局","庄里镇\n孟卫东","庄里镇\n","\n黄山村","否","扶持33户脱贫户（含监测对象）发展特色种养业","2023年12月15日前",4.38,4.38,null,"扶持31户脱贫户、2户监测户发展特色种养业，鼓励其扩大种养殖规模。","水果种植面31亩，羊养殖数143只，蜜蜂28箱。",{"v":1,"d":"100%"},{"v":1,"d":"100%"},"/",5.3,"/","/",33,67,null,null,"≥95%","参与项目申报、实施过程监督、完成后受益","以产业补助的形式对脱贫户进行补助，鼓励发展特色产业，激发脱贫人口内生动力，扩大种养殖规模，增加脱贫户收入"]
[242,"生产项目（种植/养殖业）","2023年庄里镇庄里村特色种养殖补贴到户项目","新建","县农业农村局","庄里镇\n孟卫东","庄里镇\n","\n庄里村","否","扶持25户脱贫户（含监测对象）发展特色种养业","2023年12月15日前",2.96,2.96,null,"扶持24户脱贫户、1户监测户发展特色种养业，鼓励其扩大种养殖规模。","水果种植面40亩，羊养殖数124只",{"v":1,"d":"100%"},{"v":1,"d":"100%"},"/",3.6,"/","/",25,63,null,null,"≥95%","参与项目申报、实施过程监督、完成后受益","以产业补助的形式对脱贫户进行补助，鼓励发展特色产业，激发脱贫人口内生动力，扩大种养殖规模，增加脱贫户收入"]
[243,"生产项目（种植/养殖业）","2023年祖楼镇湘山庙村特色种养殖补贴到户项目","新建","县农业农村局","祖楼镇\n吴英","祖楼镇","湘山庙村","是","扶持66户脱贫户发展种养业","2023年12月15日前",9.9,9.9,null,"扶持66户脱贫户发展特色种养业，鼓励其扩大种养殖规模。","瓜果蔬菜种植面积50亩，猪养殖数量20头，牛养殖数量20头，羊养殖数量430只",{"v":1,"d":"100%"},{"v":1,"d":"100%"},"/",20,"/","/","66","215",null,null,"≥95%","参与项目申报、实施过程监督、完成后受益","以产业补助的形式对脱贫户进行补助，鼓励发展特色产业，激发脱贫人口内生动力，扩大种养殖规模，增加脱贫户收入"]
[244,"生产项目（种植/养殖业）","2023年祖楼镇蒋庄村特色种养殖补贴到户项目","新建","县农业农村局","祖楼镇\n吴英","祖楼镇","蒋庄村","否","扶持150户脱贫户发展特色种养业","2023年12月15日前",22.5,22.5,null,"扶持150户脱贫户发展特色种养业，鼓励其扩大种养殖规模。","瓜果蔬菜种植面积50亩，猪养殖数量100头，羊养殖数量405只，鸡养殖数量6000只。牛养殖数量30只",{"v":1,"d":"100%"},{"v":1,"d":"100%"},"/",50,"/","/",150,360,null,null,"≥95%","参与项目申报、实施过程监督、完成后受益","以产业补助的形式对脱贫户进行补助，鼓励发展特色产业，激发脱贫人口内生动力，扩大种养殖规模，增加脱贫户收入"]
[245,"生产项目（种植/养殖业）","2023年祖楼镇刘其村特色种养殖补贴到户项目","新建","县农业农村局","祖楼镇\n吴英","祖楼镇","刘其村","是","扶持130户脱贫户发展特色种养业","2023年12月15日前",19.5,19.5,null,"扶持130户脱贫户发展特色种养业，鼓励其扩大种养殖规模。","瓜果蔬菜种植面积30亩，猪养殖数量200头，羊养殖数量361只，鸡养殖数量3000只。牛养殖数量30只",{"v":1,"d":"100%"},{"v":1,"d":"100%"},"/",40,"/","/",130,305,null,null,"≥95%","参与项目申报、实施过程监督、完成后受益","以产业补助的形式对脱贫户进行补助，鼓励发展特色产业，激发脱贫人口内生动力，扩大种养殖规模，增加脱贫户收入"]
[246,"生产项目（种植/养殖业）","2023年祖楼镇孟苏庄村特色种养殖补贴到户项目","新建","县农业农村局","祖楼镇\n吴英","祖楼镇","孟苏庄村","否","扶持130户脱贫户发展特色种养业","2023年12月15日前",19.5,19.5,null,"扶持130户脱贫户发展特色种养业，鼓励其扩大种养殖规模。","瓜果蔬菜种植面积75亩，经济作物种植面积40亩，猪养殖数量96头，羊养殖数量860只。",{"v":1,"d":"100%"},{"v":1,"d":"100%"},"/",43.8,"/","/",130,320,null,null,"≥95%","参与项目申报、实施过程监督、完成后受益","以产业补助的形式对脱贫户进行补助，鼓励发展特色产业，激发脱贫人口内生动力，扩大种养殖规模，增加脱贫户收入"]
[247,"生产项目（种植/养殖业）","2023年祖楼镇穆寨村特色种养殖补贴到户项目","新建","县农业农村局","祖楼镇\n吴英","祖楼镇","穆寨村","否","扶持115户脱贫户发展种养业","2023年12月15日前",17.25,17.25,null,"扶持115户脱贫户发展特色种养业，鼓励其扩大种养殖规模。","瓜果蔬菜种植面积60亩，猪养殖数量60头，羊养殖数量800只，鸡鸭养殖数量5000只，驴养殖数量25头。",{"v":1,"d":"100%"},{"v":1,"d":"100%"},"/",42,"/","/",115,305,null,null,"≥95%","参与项目申报、实施过程监督、完成后受益","以产业补助的形式对脱贫户进行补助，鼓励发展特色产业，激发脱贫人口内生动力，扩大种养殖规模，增加脱贫户收入"]
[248,"生产项目（种植/养殖业）","2023年祖楼镇石桥村特色种养殖补贴到户项目","新建","县农业农村局","祖楼镇\n吴英","祖楼镇","石桥村","否","扶持150户脱贫户发展特色种养业","2023年12月15日前",22.5,22.5,null,"扶持150户脱贫户发展特色种养业，鼓励其扩大种养殖规模。","作物种植面积105.7亩，瓜果蔬菜种植面积11亩，经济作物种植面积2亩，猪养殖数量8头，羊养殖数量136只。",{"v":1,"d":"100%"},{"v":1,"d":"100%"},"/",35,"/","/",150,253,null,null,"≥95%","参与项目申报、实施过程监督、完成后受益","以产业补助的形式对脱贫户进行补助，鼓励发展特色产业，激发脱贫人口内生动力，扩大种养殖规模，增加脱贫户收入"]
[249,"生产项目（种植/养殖业）","2023年祖楼镇孙楼村特色种养殖补贴到户项目","新建","县农业农村局","祖楼镇\n吴英","祖楼镇","孙楼村","否","扶持60户脱贫户发展特色种养业","2023年12月15日前",9,9,null,"扶持60户脱贫户发展特色种养业，鼓励其扩大种养殖规模。","瓜果蔬菜种植面积4526亩，养殖猪、牛、羊牲畜500头，鸡、鸭、鹅2000只。",{"v":1,"d":"100%"},{"v":1,"d":"100%"},"/",20,"/","/",60,115,null,null,"≥95%","参与项目申报、实施过程监督、完成后受益","以产业补助的形式对脱贫户进行补助，鼓励发展特色产业，激发脱贫人口内生动力，扩大种养殖规模，增加脱贫户收入"]
[250,"生产项目（种植/养殖业）","2023年祖楼镇张湾村特色种养殖补贴到户项目","新建","县农业农村局","祖楼镇\n吴英","祖楼镇","张湾村","否","扶持45户脱贫户发展特色种养业","2023年12月15日前",6.75,6.75,null,"扶持45户脱贫户发展特色种养业，鼓励其扩大种养殖规模。","猪养殖数量15头，羊养殖数量80只，鸡养殖数量3000只",{"v":1,"d":"100%"},{"v":1,"d":"100%"},null,10,"/",null,45,68,null,null,"≥95%","参与项目申报、实施过程监督、完成后受益","以产业补助的形式对脱贫户进行补助，鼓励发展特色产业，激发脱贫人口内生动力，扩大种养殖规模，增加脱贫户收入"]
[251,"生产项目（种植/养殖业）","2023年祖楼镇祖楼村特色种养殖补贴到户项目","新建","县农业农村局","祖楼镇\n吴英","祖楼镇","祖楼村","是","扶持75户脱贫户发展特色种养业","2023年12月15日前",11.25,11.25,null,"扶持75户脱贫户发展特色种养业，鼓励其扩大种养殖规模。","瓜果蔬菜种植面积20亩，猪养殖数量66头，羊养殖数量131只，鸡养殖数量2000只。牛养殖数量6只",{"v":1,"d":"100%"},{"v":1,"d":"100%"},"/",20.4,"/",null,75,195,null,null,"≥95%","参与项目申报、实施过程监督、完成后受益","以产业补助的形式对脱贫户进行补助，鼓励发展特色产业，激发脱贫人口内生动力，扩大种养殖规模，增加脱贫户收入"]
[252,"生产项目（种植/养殖业）","2023年祖楼镇王楼村特色种养殖补贴到户项目","新建","县农业农村局","祖楼镇\n吴英","祖楼镇","王楼村","是","扶持85户脱贫户发展特色种养业","2023年12月15日前",12.75,12.75,null,"扶持85户脱贫户发展特色种养业，鼓励其扩大种养殖规模。","瓜果蔬菜种植面积36.7亩，养殖猪、牛、羊牲畜500头，鸡、鸭、鹅2000只。",{"v":1,"d":"100%"},{"v":1,"d":"100%"},"/",35,"/","/",85,162,null,null,"≥95%","参与项目申报、实施过程监督、完成后受益","以产业补助的形式对脱贫户进行补助，鼓励发展特色产业，激发脱贫人口内生动力，扩大种养殖规模，增加脱贫户收入"]
[null,"（二）生产/加工流通等",{"$nulls":9},{"$f":"SUM(L262:L328)","v":79978.9},{"$f":"SUM(M262:M328)","v":56278.9},{"$f":"SUM(N262:N327)","v":23700}]
[253,"加工流通项目（加工业）","好七萧县智慧农业一二三产融合项目","新建","县农业农村局","县农业农村局欧阳宁","食品工业园","/","/","农产品加工数字化产业园一期总投资约4.67亿元，约占地142亩，其中衔接资金投资约2.3亿元。用于建设建筑面积约为4.4万平方米的食品加工厂房、建筑面积约为1.9万平方米的中央厨房，建筑面积约为1万平方米的物流厂房等建设内容，并配备大型净菜生产线等配套设施。","2023年12月15日前",{"$f":"M262+N262","v":33700},10000,23700,"建成140亩农产品加工数字化产业园，包含食品加工、中央厨房、回收清洗工厂、配送中心等配套设施。辐射带动周边农户、经营主体发展产业，促进脱贫人口（含监测帮扶对象）及一般农户发展增收，增加村集体经济收入。","建成农产品加工数字化产业园亩数≥142亩",{"v":1,"d":"100%"},{"v":1,"d":"100%"},"/",1680,"≥6%","/",3080,3080,null,"≥15年","≥95%","项目申报、实施过程监督。提供就业岗位或产业分红的形式，增加群众收入，同时增加村集体收入","以土地流转、就业务工、收益分红、带动生产等方式促进脱贫人口（含监测帮扶对象）及一般农户发展增收，同时增加村集体收入"]
[254,"生产项目（种植业）","葡提原乡二期","改建","县农业农村局","白土镇\n魏东","白土镇","张村","是","发展大棚葡萄80座，新建葡萄温室大棚，总占地80亩，建设滴灌系统、排水沟等附属设施及配套设施","2023年12月15日前",{"$f":"M263+N263","v":800},800,null,"建成葡萄大棚80座，发展“五彩”葡萄产业，壮大村集体经济收入，带动脱贫人口（含监测帮扶对象）及一般农户发展增收","建成葡萄温室大棚80座，总占地80亩",{"v":1,"d":"100%"},{"v":1,"d":"100%"},"/","/","/","/",20,45,null,null,"≥95%","项目申报、实施过程务工和监督、竣工后受益","以就业务工、收益分红等方式促进脱贫人口（含监测帮扶对象）及一般农户发展增收，同时增加村集体收入"]
[255,"生产项目（种植业）","萧县白土镇张村旱改水水稻种植项目","改建","县农业农村局","白土镇\n魏东","白土镇","张村","是","高标准农田3000亩提升，其中包括700亩旱改水改造成水田种植水稻","2023年12月15日前",2800,2800,null,"高标准农田3000亩提升，改造旱田700亩用于水田种植水稻，壮大村集体经济收入，带动脱贫人口（含监测帮扶对象）及一般农户发展增收","高标准农田提升3000亩，旱改水水稻种植700亩",{"v":1,"d":"100%"},{"v":1,"d":"100%"},"/","/","/","/",1624,3681,null,null,"≥95%","项目申报、实施过程务工和监督、竣工后受益","以土地流转、就业务工、收益分红等方式促进脱贫人口（含监测帮扶对象）及一般农户发展增收，同时增加村集体收入"]
[256,"加工流通项目（农产品仓储保鲜冷链基础设施建设）","萧县大屯镇高楼村特色产业发展项目","新建","县农业农村局","大屯镇\n刘文芝","大屯镇","高楼村","否","仓储大棚4000平方米，玉米烘干机全套设备，3个低温烘干机，1个大型玉米脱粒机，1个大型粮食塞子，","2023年12月15日前",280,280,null,"建成仓储大棚4000平方米和配套设施，完善村党组织领办合作社配套，壮大村集体经济收入，带动脱贫人口（含监测帮扶对象）及一般农户发展增收","建成仓储大棚4000平方米。",{"v":1,"d":"100%"},{"v":1,"d":"100%"},"/",16.8,{"v":0.06,"d":"6%"},"/",13,28,null,null,"≥95%","项目申报、实施过程监督、带动产业发展","以就业务工、收益分红等方式促进脱贫人口（含监测帮扶对象）及一般农户发展增收，同时增加村集体收入"]
[257,"生产项目（养殖业）","萧县大屯镇村级联建发展项目（大屯镇白山羊养殖基地）配套项目","新建","县农业农村局","大屯镇\n刘文芝","大屯镇","高楼村","否","饲料加工车间1800平方米，饲料加工设备、自动上料设备的相关配套设施","2023年12月15日前",589.5,589.5,null,"建成加工车间1800平方米，饲料加工设备、自动上料设备的相关配套设施壮大村集体经济收入，带动脱贫人口（含监测帮扶对象）及一般农户发展增收","建成饲料加工车间1800平方米",{"v":1,"d":"100%"},{"v":1,"d":"100%"},"/",35.37,{"v":0.06,"d":"6%"},"/",256,500,null,null,"≥95%","项目申报、实施过程监督、带动产业发展","以就业务工、收益分红等方式促进脱贫人口（含监测帮扶对象）及一般农户发展增收，同时增加村集体收入"]
[258,"生产项目（种植业）","萧县大屯镇南海村、高楼村联建食用菌基地配套项目","新建","县农业农村局","大屯镇\n刘文芝","大屯镇","高楼村","否","采购恒温设备38套和相关安装服务","2023年12月15日前",200,200,null,"采购恒温设备38套和相关安装服务用于食用菌基地建设，带动脱贫人口（含监测帮扶对象）及一般农户发展增收","采购恒温设备38套",{"v":1,"d":"100%"},{"v":1,"d":"100%"},"/",12,{"v":0.06,"d":"6%"},"/",100,210,null,null,"≥95%","项目申报、实施过程监督、带动产业发展","以就业务工、收益分红等方式促进脱贫人口（含监测帮扶对象）及一般农户发展增收，同时增加村集体收入"]
[259,"配套设施项目（小型农田水利）","丁里镇水利工程建设项目","新建","县农业农村局","丁里镇\n谷海粟","丁里镇","武寺村","否","新建清淤沟渠及铺设锁块渠5000m、新建过路涵25座，新建下田涵30座，新建3.5m水泥路2000m，新建农桥3座。\n","2023年12月15日前",500,500,null,"项目建成后，改善1500余亩耕地得到有效灌溉，带动脱贫人口（含监测帮扶对象）及周边农户持续增收","新建清淤沟渠及铺设锁块渠5000m、新建过路涵25座，新建下田涵30座，新建3.5m水泥路2000m，新建农桥3座。\n",{"v":1,"d":"100%"},{"v":1,"d":"100%"},"/","/","/","/",512,1096,null,null,"≥95%","参与项目申报、实施过程监督、竣工后受益","为群众长久可持续发展提供便利，便于提供水利灌溉，提供耕地抗旱能力，增加产量。"]
[260,"生产项目（养殖业）","武寺村特色产业发展项目养殖基地","新建","县农业农村局","丁里镇\n谷海粟","丁里镇","武寺村","否","建设100亩白山羊养殖基地及配套设施","2023年12月15日前",{"$f":"M269+N269","v":1500},1500,null,"建成白山羊养殖基地100亩，发展“五彩”白山羊产业，壮大村集体经济收入，带动脱贫人口（含监测帮扶对象）及一般农户发展增收","建成白山羊养殖基地100亩",{"v":1,"d":"100%"},{"v":1,"d":"100%"},null,3.6,{"v":0.06,"d":"6%"},{"v":12.3,"d":"12.30"},140,470,null,null,"≥95%","项目申报、实施过程监督、带动产业发展","以土地流转、就业务工、收益分红等方式促进脱贫人口（含监测帮扶对象）及一般农户发展增收，同时增加村集体收入"]
[261,"生产项目（养殖业）","丁里社区特色产业发展项目（养羊）","新建","县农业农村局","丁里镇\n谷海粟","丁里镇","丁里社区","是","新建养殖厂1个，占地面积约25亩，运草机、搅拌机、粉碎机，仓库1座，架线、变压器、打井，化粪池等其它配套设施","2023年12月15日前",500,500,null,"建成白山羊养殖厂1座，发展“五彩”白山羊产业，壮大村集体经济收入，带动脱贫人口（含监测帮扶对象）及一般农户发展增收","建成养殖厂1座，占地面积约25亩",{"v":1,"d":"100%"},{"v":1,"d":"100%"},null,7.2,{"v":0.06,"d":"6%"},{"v":24,"d":"24.00"},45,50,null,null,"≥95%","项目申报、实施过程监督、带动产业发展","以土地流转、就业务工、收益分红等方式促进脱贫人口（含监测帮扶对象）及一般农户发展增收，同时增加村集体收入"]
[262,"加工流通项目（农产品仓储保鲜冷链基础设施建设）","丁里社区粮食烘干塔","新建","县农业农村局","丁里镇\n谷海粟","丁里镇","丁里社区","是","新建粮食烘干塔一座，占地15亩10000平方米，仓储中心、晾晒场、机械储备中心，烘干塔设备等相关配套设施","2023年12月15日前",440,440,null,"建成粮食烘干塔1座，仓储中心、晾晒场、机械储备中心，烘干塔设备等相关配套设施提高粮食质量，壮大村集体经济收入，带动脱贫人口（含监测帮扶对象）及一般农户发展增收","建成粮食烘干塔1座",{"v":1,"d":"100%"},{"v":1,"d":"100%"},"/","/","/","/",1878,6418,null,null,"≥95%","项目申报、实施过程监督、竣工后项目所在地受益","以土地流转、就业务工、收益分红等方式促进脱贫人口（含监测帮扶对象）及一般农户发展增收，同时增加村集体收入"]
[263,"加工流通项目（加工业）","杜楼镇业庄村特色加工产业发展项目","新建","县农业农村局","杜楼镇\n许剑","杜楼镇","业庄村","是","LDF--SHM系列1200型高清六加一印刷上油下折粘箱联动生产线","2023年12月15日前",700,700,null,"LDF--SHM系列1200型高清六加一印刷上油下折粘箱联动生产线","建立LDF--SHM系列1200型高清六加一印刷上油下折粘箱联动生产线",{"v":1,"d":"100%"},{"v":1,"d":"100%"},"/",11,"/","/",20,43,null,null,"≥95%","项目申报、实施过程监督、带动产业发展","以就业务工、收益分红等方式促进脱贫人口（含监测帮扶对象）及一般农户发展增收，同时增加村集体收入"]
[264,"加工流通项目（农产品仓储保鲜冷链基础设施建设）","杜楼镇杜集村粮食储备烘干仓项目","新建","县农业农村局","杜楼镇\n许剑","杜楼镇","杜集村","否","新建厂房1000平方米，仓库2000平方米，建设粮食储备烘干仓以及配套附属设施，包含主机、基础、脱粒机、铲车、湿粮仓、运输带地磅、电力系统、干粮仓储、通风环流熏蒸、场地地坪等配套设施","2023年12月15日前",600,600,null,"建成粮食收储烘干基地1处及相关配套设施，完善村党组织领办合作社设施配套，带动脱贫人口（含监测帮扶对象）及一般农户发展增收，增加村集体经济收入","建成厂房1000平方米；建成仓库2000平方米",{"v":1,"d":"100%"},{"v":1,"d":"100%"},"/",10.8,{"v":0.06,"d":"6%"},"/",53,105,null,null,"≥95%","项目申报、实施过程监督、带动产业发展","以就业务工、收益分红等方式促进脱贫人口（含监测帮扶对象）及一般农户发展增收，同时增加村集体收入"]
[265,"加工流通项目（农产品仓储保鲜冷链基础设施建设）","杜楼镇红庙村粮食储备烘干仓项目","新建","县农业农村局","杜楼镇\n许剑","杜楼镇","红庙村","否","建设粮食储备烘干仓，建筑面积约2000平方米，以及附属设施，总占地面积约6亩，建设干粮储备仓房2栋，粮食流动仓房1栋及烘干设备、输送机、汽车衡等其他附属设施。","2023年12月15日前",527,527,null,"建成粮食收储烘干基地1处及相关配套设施，完善村党组织领办合作社设施配套，带动脱贫人口（含监测帮扶对象）及一般农户发展增收，增加村集体经济收入","建成粮食储备烘干仓约2000平方米，占地面积约6亩",{"v":1,"d":"100%"},{"v":1,"d":"100%"},"/",10.8,{"v":0.06,"d":"6%"},"/",30,43,null,null,"≥95%","项目申报、实施过程监督、带动产业发展","以就业务工、收益分红等方式促进脱贫人口（含监测帮扶对象）及一般农户发展增收，同时增加村集体收入"]
[266,"加工流通项目（农产品仓储保鲜冷链基础设施建设）","官桥镇粮食烘干仓储农机服务综合中心","新建","县农业农村局","官桥镇\n张伟建","官桥镇","前白村","是","新建加工厂房1500平方米，粮食仓储3000平方米，及相关机械、农机等配套设施用于村党组织领办合作社农机服务。","2023年12月15日前",1000,1000,null,"建设加工厂房1500平方米，粮食仓储3000平方米，及相关机械、农机等配套设施用于村党组织领办合作社农机服务，带动脱贫人口（含监测帮扶对象）及一般农户发展增收，增加村集体经济收入","建成加工厂房1500平方米，粮食仓储3000平方米。",{"v":1,"d":"100%"},{"v":1,"d":"100%"},"/",60,{"v":0.06,"d":"6%"},10,130,325,null,null,"≥95%","项目申报、实施过程监督","以就业务工、收益分红等方式促进脱贫人口（含监测帮扶对象）及一般农户发展增收，同时增加村集体收入"]
[267,"生产项目（种植业）","前白村羊肚菌种植项目","新建","县农业农村局","官桥镇\n张伟建","官桥镇","前白村","是","建设种植大棚10座发展羊肚菌等特色产业","2023年12月15日前",150,150,null,"建设羊肚菌种植大棚10座，带动脱贫人口（含监测帮扶对象）及一般农户发展增收，增加村集体经济收入","建成种植大棚10个",{"v":1,"d":"100%"},{"v":1,"d":"100%"},"/",6,{"v":0.06,"d":"6%"},5,10,10,null,null,"≥95%","项目申报、实施过程监督","以就业务工、收益分红等方式促进脱贫人口（含监测帮扶对象）及一般农户发展增收，同时增加村集体收入"]
[268,"加工流通项目（农产品仓储保鲜冷链基础设施建设）","黄口镇徐洼村烘干塔及配套设施建设","新建","县农业农村局","黄口镇\n杨梅","黄口镇","徐洼村","否","新建7000平方米大棚储粮仓，100吨烘干设备一套、地坪、铲车、变压器、晾粮场等相关配套设施","2023年12月15日前",850,850,null,"建设7000平方米大棚储粮仓，100吨烘干设备相关配套设施，带动脱贫人口（含监测帮扶对象）及一般农户发展增收，增加村集体经济收入","建成大棚储粮仓7000平方米，烘干设备1000吨",{"v":1,"d":"100%"},{"v":1,"d":"100%"},"/",51,{"v":0.06,"d":"6%"},null,220,486,null,null,"≥95%","参与项目申报、实施过程监督和建成后受益","以就业务工、收益分红等方式促进脱贫人口（含监测帮扶对象）及一般农户发展增收，同时增加村集体收入"]
[269,"加工流通项目（加工业）","老黄口社区果蔬包装纸箱加工厂","新建","县农业农村局","黄口镇\n杨梅","黄口镇","老黄口社区","否","建设两层厂房和一层厂房共2座，面积约3500平方米，4.2米货车1辆，大小型叉车共2辆，变压器一台，塑料托盘300个，全自动机械设备，水泥路硬化200米","2023年12月15日前",539,539,null,"建设厂房2座和相关配套设施，带动脱贫人口（含监测帮扶对象）及一般农户发展增收，增加村集体经济收入","建成厂房2座，面积约3500平方米，货车1辆，大小型叉车共2辆，变压器1台，塑料托盘300个",{"v":1,"d":"100%"},{"v":1,"d":"100%"},"/",32.5,{"v":0.06,"d":"6%"},null,32,32,null,null,"≥95%","参与项目申报、实施过程监督和建成后受益","以就业务工、收益分红等方式促进脱贫人口（含监测帮扶对象）及一般农户发展增收，同时增加村集体收入"]
[270,"加工流通项目（农产品仓储保鲜冷链基础设施建设）","黄口镇杨阁村产业发展项目","新建","县农业农村局","黄口镇\n杨梅","黄口镇","杨阁社区","否","建设2000吨冷库及配套设施（新建2000吨冷库及上下货月台及地坪、相关电力设备、地磅、食品车间钢构厂房、净化车间等）","2023年12月15日前",690,690,null,"建设冷库2000吨，带动脱贫人口（含监测帮扶对象）及一般农户发展增收，增加村集体经济收入","建成冷库2000吨",{"v":1,"d":"100%"},{"v":1,"d":"100%"},"/",41.4,{"v":0.06,"d":"6%"},"/",1297,5287,null,null,"≥95%","项目申报、实施过程监督、带动产业发展","以就业务工、收益分红等方式促进脱贫人口（含监测帮扶对象）及一般农户发展增收，同时增加村集体收入"]
[271,"生产项目（种植业）","酒店镇2023年丁庄村大棚樱桃发展项目","新建","县农业农村局","酒店镇\n杜龙升","酒店镇","丁庄村","否","发展大棚樱桃50亩，新建樱桃温室大棚、供电等附属设施及设备","2023年12月15日前",700,700,null,"建设大棚樱桃50亩和相关配套设施，带动脱贫人口（含监测帮扶对象）及一般农户发展增收，增加村集体经济收入","建成大棚樱桃50亩",{"v":1,"d":"100%"},{"v":1,"d":"100%"},"/",42,{"v":0.06,"d":"6%"},"/",80,170,null,null,"≥95%","项目申报、实施过程监督、带动产业发展","以就业务工、收益分红等方式促进脱贫人口（含监测帮扶对象）及一般农户发展增收，同时增加村集体收入"]
[272,"加工流通项目（农产品仓储保鲜冷链基础设施建设）","酒店镇东镇村粮食储存烘干塔及配套设施","新建","县农业农村局","酒店镇\n杜龙升","酒店镇","东镇村","否","总占地面地5000平方米及硬化，厂房占地2000平方米，2个1000吨级粮食储存塔，2台50吨级烘干塔、150吨地磅、400千瓦变压器及配套设施","2023年12月15日前",680,680,null,"建成厂房2000平方米和粮食储存塔、烘干塔、地磅、变压器等配套设施，带动脱贫人口（含监测帮扶对象）及一般农户发展增收，增加村集体经济收入","建成厂房2000平方米",{"v":1,"d":"100%"},{"v":1,"d":"100%"},"/",40.8,{"v":0.06,"d":"6%"},"/",70,150,null,null,"≥95%","项目申报、实施过程监督、带动产业发展","以土地流转、就业务工、收益分红等方式促进脱贫人口（含监测帮扶对象）及一般农户发展增收，同时增加村集体收入"]
[273,"生产项目（种植业）","2023年刘套镇陈屯村特色产业发展项目","新建","县农业农村局","刘套镇\n李磊","刘套镇","陈屯村","是","新建温室蔬菜大棚及配套设施，占地约30亩","2023年12月15日前",120,120,null,"建成蔬菜大棚30亩，完善相关配套设施，进一步带动脱贫人口（含监测帮扶对象）及一般农户发展增收，增加村集体经济收入","建成蔬菜大棚30亩",{"v":1,"d":"100%"},{"v":1,"d":"100%"},"/",6,{"v":0.06,"d":"6%"},"/",20,20,null,null,"≥95%","项目申报、实施过程监督、带动产业发展","以土地流转、就业务工、收益分红等方式促进脱贫人口（含监测帮扶对象）及一般农户发展增收，同时增加村集体收入"]
[274,"加工流通项目（农产品仓储保鲜冷链基础设施建设）","2023年刘套镇张庄村产业到村项目","新建","县农业农村局","刘套镇\n李磊","刘套镇","张庄村","否","建设张庄村土地托管仓储基地，总用地10亩（8亩晒场，2亩厂棚），购买拖拉机2辆、整平机2辆、农机具2套","2023年12月15日前",290,290,null,"建成仓储基地10亩，购置拖拉机、整平机、农机具等相关配套设施，进一步带动脱贫人口（含监测帮扶对象）及一般农户发展增收，增加村集体经济收入","建成仓储基地10亩，群众加入合作社、村集体经济人数50人",{"v":1,"d":"100%"},{"v":1,"d":"100%"},"/",18,{"v":0.08,"d":"8%"},"/",200,500,null,null,"≥95%","项目申报、实施过程监督、带动产业发展","以土地流转、就业务工、收益分红等方式促进脱贫人口（含监测帮扶对象）及一般农户发展增收，同时增加村集体收入"]
[275,"生产项目（养殖业）","2023年刘套镇赵庄村特色养殖产业发展项目","新建","县农业农村局","刘套镇\n李磊","刘套镇","赵庄村","否","新建养殖基地48亩，标准化养殖肉牛及相关配套设施","2023年12月15日前",3500,3500,null,"建成养殖基地48亩，完善相关配套设施，带动脱贫人口（含监测帮扶对象）及一般农户发展增收，增加村集体经济收入","建成养殖基地48设亩",{"v":1,"d":"100%"},{"v":1,"d":"100%"},"/",10,{"v":0.06,"d":"6%"},"/",30,85,null,null,"≥95%","项目申报、实施过程监督、带动产业发展","以带动生产、就业务工、收益分红等方式促进脱贫人口（含监测帮扶对象）及一般农户发展增收，同时增加村集体收入"]
[276,"生产项目（种植业）","2023年刘套镇三大家村特色产业发展项目","新建","县农业农村局","刘套镇\n李磊","刘套镇","三大家村","是","新建温室蔬菜大棚及配套设施，占地约20亩","2023年12月15日前",80,80,null,"建成蔬菜大棚约20亩，完善相关配套设施，带动脱贫人口（含监测帮扶对象）及一般农户发展增收，增加村集体经济收入","建成蔬菜大棚约20亩",{"v":1,"d":"100%"},{"v":1,"d":"100%"},"/",5,{"v":0.06,"d":"6%"},"/",15,15,null,null,"≥95%","项目申报、实施过程监督、带动产业发展","以就业务工、收益分红等方式促进脱贫人口（含监测帮扶对象）及一般农户发展增收，同时增加村集体收入"]
[277,"加工流通项目（加工业）","马井镇吴瓦房村标准化生产基地项目","新建","县农业农村局","马井镇\n王伟强","马井镇","吴瓦房村","是","建设标准化加工钢构生产基地，项目区面积约2000平方米，及配套设施","2023年12月15日前",300,300,null,"建成标准化加工钢构生产基地约2000平方米，完善相关配套设施，带动脱贫人口（含监测帮扶对象）及一般农户发展增收，增加村集体经济收入。","建成标准化加工钢构生产基地约2000平方米，带动约20名群众参与务工",{"v":1,"d":"100%"},{"v":1,"d":"100%"},"/",8,"/","/",10,23,null,null,"≥95%","项目申报、实施过程监督、带动产业发展","以就业务工、收益分红等方式促进脱贫人口（含监测帮扶对象）及一般农户发展增收，同时增加村集体收入"]
[278,"加工流通项目（加工业）","路口村冷库及蔬菜深加工","新建","县农业农村局","青龙集镇\n况美彩","青龙集镇","路口村","是","建设冷库面积1100平方米，叉车2台，冷藏车2辆，地磅1座，托盘100个等相关配套设施","2023年12月15日前",550,550,null,"建成冷库1100平方米，购置叉车2台，冷藏车2辆，地磅一座，托盘100个等配套设施，带动脱贫人口（含监测帮扶对象）及一般农户发展增收，增加村集体经济收入。","建成冷库1100平方米，购置叉车2台，冷藏车2辆，地磅1座，托盘100个",{"v":1,"d":"100%"},{"v":1,"d":"100%"},"/",13.2,{"v":0.06,"d":"6%"},7.2,80,153,null,null,"≥95%","项目申报、实施过程监督、带动产业发展","以就业务工、收益分红等方式促进脱贫人口（含监测帮扶对象）及一般农户发展增收，同时增加村集体收入"]
[279,"加工流通项目（农产品仓储保鲜冷链基础设施建设）","胡庄村粮储中心配套设施","新建","县农业农村局","青龙集镇\n况美彩","青龙集镇","胡庄村","是","新建钢结构粮储中心1200平方米，土地硬化2000平，厚30cm、垫层30cm，烘干塔和农用粮食自卸运输车等相关配套设施","2023年12月15日前",500,500,null,"建成仓储中心1200平方米，完善相关配套设施，带动脱贫人口（含监测帮扶对象）及一般农户发展增收，增加村集体经济收入。","建成仓储中心1200平方米",{"v":1,"d":"100%"},{"v":1,"d":"100%"},"/",12,{"v":0.06,"d":"6%"},"10",299,711,null,null,"≥95%","项目申报、实施过程监督、带动产业发展","以就业务工、收益分红、帮助产销对接等方式促进脱贫人口（含监测帮扶对象）及一般农户发展增收，同时增加村集体收入"]
[280,"加工流通项目（农产品仓储保鲜冷链基础设施建设）","圣泉镇王山社区特色产业发展项目","新建","县农业农村局","圣泉镇\n田野","圣泉镇","王山社区","否","新建3000平方米储粮仓厂房及相关配套设施建设项目","2023年12月15日前",260,260,null,"建成储粮仓厂房3000平方米，完善相关配套设施，带动脱贫人口（含监测帮扶对象）及一般农户发展增收，增加村集体经济收入。","建成储粮仓厂房3000平方米",{"v":1,"d":"100%"},{"v":1,"d":"100%"},null,15.6,"6%",null,24,40,null,null,"≥95%","参与项目申报、实施过程监督和建成后受益","以就业务工、收益分红、帮助产销对接等方式促进脱贫人口（含监测帮扶对象）及一般农户发展增收，同时增加村集体收入"]
[281,"加工流通项目（加工业）","圣泉镇穆集社区特色产业发展项目（饲草加工项目）","新建","县农业农村局","圣泉镇\n田野","圣泉镇","穆集社区","是","新建900平方米仓库1座，购置饲草收割机2台，铲车1台，饲草打包机2台和相关配套设施，打造圣泉镇饲草基地。","2023年12月15日前",300,300,null,"建成仓库1座，约900平方米，完善相关配套设施，带动脱贫人口（含监测帮扶对象）及一般农户发展增收，增加村集体经济收入。","建成仓库900平方米，购置饲草收割机2台，铲车1台，饲草打包机2台",{"v":1,"d":"100%"},{"v":1,"d":"100%"},"/",18,"6%","/",1977,"6431",null,null,"≥95%","项目申报、实施过程监督、带动产业发展","以就业务工、收益分红、带动生产等方式促进脱贫人口（含监测帮扶对象）及一般农户发展增收，同时增加村集体收入"]
[282,"加工流通项目（加工业）","圣泉镇单楼村特色产业发展项目（现代化食用菌加工项目）","新建","县农业农村局","圣泉镇\n田野","圣泉镇","单楼村","否","建设面积约4000平方米钢架大棚及生产车间、温控设备、冷库等相关配套设施。","2023年12月15日前",500,500,null,"建成共计约4000平方米钢架大棚及相关配套设施，带动脱贫人口（含监测帮扶对象）及一般农户发展增收，增加村集体经济收入。","面积约4000平方米钢架大棚及生产车间、温控设备、冷库等相关配套设施。",{"v":1,"d":"100%"},{"v":1,"d":"100%"},null,30,{"v":0.06,"d":"6%"},null,50,100,null,null,"≥95%","项目申报、实施过程监督、带动产业发展","以就业务工、收益分红等方式促进脱贫人口（含监测帮扶对象）及一般农户发展增收，同时增加村集体收入"]
[283,"加工流通项目（加工业）","圣泉镇单楼村特色产业发展项目（秸秆再利用项目）","新建","县农业农村局","圣泉镇\n田野","圣泉镇","单楼村","否","建设高标准厂房5000平方米及相关配套设施","2023年12月15日前",300,300,null,"建成高标准厂房5000平方米，带动脱贫人口（含监测帮扶对象）及一般农户发展增收，增加村集体经济收入。","建设高标准厂房5000平方米。",{"v":1,"d":"100%"},{"v":1,"d":"100%"},"/",18,{"v":0.06,"d":"6%"},null,30,30,null,null,"≥95%","项目申报、实施过程监督、带动产业发展","以就业务工、收益分红、带动生产等方式促进脱贫人口（含监测帮扶对象）及一般农户发展增收，同时增加村集体收入"]
[284,"加工流通项目（加工业）","圣泉镇北城集社区特色产业发展项目（农机维修中心二期完善项目）","新建","县农业农村局","圣泉镇\n田野","圣泉镇","北城集社区","是","购买龙门式加工中心及其他附属设施，扩建厂房约2000平方米","2023年12月15日前",550,550,null,"扩建厂房2000平方米，完善相关附属设施，带动脱贫人口（含监测帮扶对象）及一般农户发展增收，增加村集体经济收入。","购买龙门式加工中心等设备1套，扩建厂房约2000平方米。",{"v":1,"d":"100%"},{"v":1,"d":"100%"},null,33,{"v":0.06,"d":"6%"},null,125,281,null,null,"≥95%","项目申报，实施过程监督哦，带动产业发展","以就业务工、收益分红等方式促进脱贫人口（含监测帮扶对象）及一般农户发展增收，同时增加村集体收入"]
[285,"配套设施项目（产业园区）","圣泉镇北城集社区、金黄庄社区、营子社区联建农产品配套加工基地","新建","县农业农村局","圣泉镇\n田野","圣泉镇","金黄庄社区","否","建设农产品加工、农产品包装等农产品配套加工基地，新建4个加工车间，建设厂房约10000平方米，道路、场地硬化及下水道附属工程，行吊起重机4台，地磅1台及变压器、电线杆、电缆线、开关柜等相关配套设施。","2023年12月15日前",4000,4000,null,"建成加工车间4个，厂房约10000平方米。完善相关附属设施，带动脱贫人口（含监测帮扶对象）及一般农户发展增收，增加村集体经济收入。","建成加工车间4个，面积约10000平方米",{"v":1,"d":"100%"},{"v":1,"d":"100%"},null,240,"6%","/",677,1431,null,null,"≥95%","项目申报、实施过程监督、带动产业发展","以就业务工、收益分红等方式促进脱贫人口（含监测帮扶对象）及一般农户发展增收，同时增加村集体收入"]
[286,"加工流通项目（农产品仓储保鲜冷链基础设施建设）","圣泉镇北城集社区特色产业发展项目","新建","县农业农村局","圣泉镇\n田野","圣泉镇","北城集社区","是","建设容量约7200立方米冷库。建设约500平方米分拣车间。道路硬化、场地硬化及下水道附属工程。地磅1台，叉车1台，堆物架约800个等相关配套设施。","2023年12月15日前",700,700,null,"建成冷库7200立方米，分拣车间500平方米，带动脱贫人口（含监测帮扶对象）及一般农户发展增收，增加村集体经济收入。","建成冷库容量约7200立方米",{"v":1,"d":"100%"},{"v":1,"d":"100%"},"/",45,{"v":0.065,"d":"7%"},"/",125,281,null,null,"≥95%","项目申报、实施过程监督、带动产业发展增加村集体经济收入并通过带动当地居民务工的形式提高居民生活水平","以就业务工、收益分红、帮助产销对接等方式促进脱贫人口（含监测帮扶对象）及一般农户发展增收，同时增加村集体收入"]
[287,"配套设施项目（产业园区）","石林乡李庄村大棚升级改造项目","改建","县农业农村局","石林乡\n杨超峰","石林乡","李庄村","是","对村级18个小棚、2个大棚升级改造（更换保温棉被、薄膜等）","2023年12月15日前",100,100,null,"完善村级座大棚的棉被和薄膜等设施的更换，进一步带动脱贫人口（含监测帮扶对象）及一般农户发展增收，增加村集体经济收入。","建造18个小棚、2个大棚升级改造",{"v":1,"d":"100%"},{"v":1,"d":"100%"},"/",6,{"v":0.06,"d":"6%"},"/",25,65,null,null,"≥95%","项目申报、实施过程监督、带动产业发展","以就业务工、收益分红等方式促进脱贫人口（含监测帮扶对象）及一般农户发展增收，同时增加村集体收入"]
[288,"加工流通项目（农产品仓储保鲜冷链基础设施建设）","孙圩子镇胡萝卜产业发展项目","新建","县农业农村局","孙圩子镇\n张康","孙圩子镇","程蒋山村","否","新建2000吨冷库及配套相关附属设施。其中冷藏车间1018平方米、清洗车间3358平方米、贮藏间170平方、设备房40平方米，室外地面硬化、下水道、回填土方约6000m³，配套制冷设备、供电、地磅、铲车、保温设备、胡萝卜清洗流水线等","2023年12月15日前",1400,1400,null,"建成2000吨冷库及配套相关附属设施，完善“五彩农业”中胡萝卜产业配套，带动脱贫人口（含监测帮扶对象）及一般农户发展增收，增加村集体经济收入。","建成胡萝卜冷库2000吨",{"v":1,"d":"100%"},{"v":1,"d":"100%"},"/",85,{"v":0.06,"d":"6%"},"/",20,32,null,null,"≥95%","项目申报、实施过程监督、带动产业发展","以就业务工、收益分红、带动生产、帮助产销对接等方式促进脱贫人口（含监测帮扶对象）及一般农户发展增收，同时增加村集体收入"]
[289,"加工流通项目（农产品仓储保鲜冷链基础设施建设）","杨集村小麦良种繁育基地建设项目","新建","县农业农村局","王寨镇\n王亚华","王寨镇","杨集村","否","新建小麦良种繁育田200亩，晒场1000平方米，粮食仓储1座，配套铲车、地磅、烘干设备、脱粒机、筛选机、输送带等设施","2023年12月15日前",500,500,null,"建成小麦良种繁育田200亩，粮食仓储1座，晒场1000平方米，带动脱贫人口（含监测帮扶对象）及一般农户发展增收，增加村集体经济收入。","建成小麦良种繁育田200亩，粮食仓储1座，晒场1000平方米",{"v":1,"d":"100%"},{"v":1,"d":"100%"},"/",12,{"v":0.06,"d":"6.00%"},"/",20,53,null,null,"≥95%","项目申报、实施过程监督、带动产业发展","以就业务工、收益分红、土地流转等方式促进脱贫人口（含监测帮扶对象）及一般农户发展增收，同时增加村集体收入"]
[290,"生产项目（养殖业）","杨集村养殖棚二期项目","新建","县农业农村局","王寨镇\n王亚华","王寨镇","杨集村","否","建设养殖场1座（养殖棚占地约4000㎡，存料棚1个约占地600㎡，晾晒棚1个约600㎡，地面硬化、下水道、定位栏等配套设施","2023年12月15日前",320,320,null,"建成养殖场1座，完善相关附属设施，带动脱贫人口（含监测帮扶对象）及一般农户发展增收，增加村集体经济收入。","建成养殖场1座，存料棚1个，晾晒棚1个",{"v":1,"d":"100%"},{"v":1,"d":"100%"},"/",12,{"v":0.06,"d":"6%"},"/",20,49,null,null,"≥95%","项目申报、实施过程监督、带动产业发展","以就业务工、收益分红等方式促进脱贫人口（含监测帮扶对象）及一般农户发展增收，同时增加村集体收入"]
[291,"生产项目（种植业）","新庄镇杜集村2023年温室钢结构大棚辣椒","新建","县农业农村局","新庄镇\n杨宜成","新庄镇","杜集村","否","新建温室钢结构大棚辣椒100亩，其中4亩玻璃温室大棚，2个30亩连体大棚，3个小型温室以及配套灌溉排水等配套设施。","2023年12月15日前",1000,1000,null,"建成辣椒钢构大棚100亩，完善灌溉排水等附属设施，带动脱贫人口（含监测帮扶对象）及一般农户发展增收，增加村集体经济收入。","建成玻璃温室大棚4亩，连体大棚2个30亩，小型温室3个",{"v":1,"d":"100%"},{"v":1,"d":"100%"},"/",3,{"v":0.06,"d":"6%"},2.3,20,40,null,null,"≥95%","项目申报、实施过程监督、带动产业发展","以就业务工、土地流转等方式促进脱贫人口（含监测帮扶对象）及一般农户发展增收，同时增加村集体收入"]
[292,"加工流通项目（农产品仓储保鲜冷链基础设施建设）","新庄镇小集子村2023年党组织领办合作社粮食收储厂房","新建","县农业农村局","新庄镇\n杨宜成","新庄镇","小集子村","是","新建标准粮食收储厂房1370平方米及收储配套电路，风机等设施","2023年12月15日前",80,80,null,"建成标准粮食收储厂房1370平方米及收储配套电路，风机等设施，带动脱贫人口（含监测帮扶对象）及一般农户发展增收，增加村集体经济收入。","建成标准粮食收储厂房1370平方米",{"v":1,"d":"100%"},{"v":1,"d":"100%"},"/",7,{"v":0.06,"d":"6%"},2.2,10,21,null,null,"≥95%","项目申报、实施过程监督、带动产业发展","以就业务工、收益分红、产销对接等方式促进脱贫人口（含监测帮扶对象）及一般农户发展增收，同时增加村集体收入"]
[293,"加工流通项目（农产品仓储保鲜冷链基础设施建设）","新庄镇西阁村2023年粮仓建设项目","新建","县农业农村局","新庄镇\n杨宜成","新庄镇","西阁村","否","建设粮食储备库厂房1700平方米，旋耕机1辆，收耕机1辆，烘干塔1台，铲车1辆，地磅1台，变压器1台，1700平方场地硬化等","2023年12月15日前",275,275,null,"建成粮食储备库标准化厂房1700平方米和相关附属设施，带动脱贫人口（含监测帮扶对象）及一般农户发展增收，增加村集体经济收入。","建成粮食储备库标准化厂房1700平方米",{"v":1,"d":"100%"},{"v":1,"d":"100%"},"/",17,{"v":0.06,"d":"6%"},1.8,564,1388,null,null,"≥95%","项目申报、实施过程监督、务工带动增收","以土地流转、就业务工等方式促进脱贫人口（含监测帮扶对象）及一般农户发展增收，同时增加村集体收入"]
[294,"加工流通项目（农产品仓储保鲜冷链基础设施建设）","闫集镇杨庄村党组织领办合作社烘干设施项目","新建","县农业农村局","闫集镇\n赵世成","闫集镇","杨庄村","否","建设粮食储备烘干设施项目，日烘干300吨，占地面积约600平方米，以及输送机、农用配套设备等其他附属设施。\n","2023年12月15日前",410,410,null,"建成粮食烘干设备300吨和附属设施，带动脱贫人口（含监测帮扶对象）及一般农户发展增收，增加村集体经济收入。","建成粮食烘干设备300吨",{"v":1,"d":"100%"},{"v":1,"d":"100%"},"/",15,{"v":0.06,"d":"6%"},"/",10,10,null,null,"≥95%","项目申报、实施过程监督、带动产业发展","以就业务工、收益分红等方式促进脱贫人口（含监测帮扶对象）及一般农户发展增收，同时增加村集体收入"]
[295,"加工流通项目（农产品仓储保鲜冷链基础设施建设）","闫集镇孟楼村特色产业发展项目","新建","县农业农村局","闫集镇\n赵世成","闫集镇","孟楼村","否","建设1500平方粮食临时储放点、日烘干200吨粮食烘干设备，及配套设施（铲车、大型拖拉机、地磅等）","2023年12月15日前",370,370,null,"建成粮食储放点1500平方米和相关附属设施，带动脱贫人口（含监测帮扶对象）及一般农户发展增收，增加村集体经济收入。","建成粮食临时储放点1500平方，带动脱贫人口25人加入合作社",{"v":1,"d":"100%"},{"v":1,"d":"100%"},"/",15,{"v":0.06,"d":"6%"},"/",25,79,null,null,"≥95%","项目申报、实施过程监督、带动产业发展","以就业务工、收益分红等方式促进脱贫人口（含监测帮扶对象）及一般农户发展增收，同时增加村集体收入"]
[296,"生产项目（种植业）","2023年闫集镇高楼村特色产业发展项目","新建","县农业农村局","闫集镇\n赵世成","闫集镇","高楼村","否","新建蔬菜大棚150亩及配套设施，用于发展“五彩产业”红辣椒种植。","2023年12月15日前",800,800,null,"建成蔬菜大棚150亩及配套实施用于发展“五彩农业”红辣椒种植。带动脱贫人口（含监测帮扶对象）及一般农户发展增收，增加村集体经济收入。","建成蔬菜大棚150亩，带动脱贫人口45人加入合作社",{"v":1,"d":"100%"},{"v":1,"d":"100%"},"/",20,{"v":0.06,"d":"6%"},"/",29,45,null,null,"≥95%","项目申报、实施过程监督、带动产业发展","以就业务工、土地流转、带动生产等方式促进脱贫人口（含监测帮扶对象）及一般农户发展增收，同时增加村集体收入"]
[297,"生产项目（养殖业）","2023年闫集镇高楼村特色产业发展项目","新建","县农业农村局","闫集镇\n赵世成","闫集镇","高楼村","否","新建羊舍2000平方米及配套设施，用于发展白山羊养殖","2023年12月15日前",160,160,null,"建成羊舍2000平方米及相关配套设施，用于发展“五彩农业”白山羊，带动脱贫人口（含监测帮扶对象）及一般农户发展增收，增加村集体经济收入。","建成羊舍2000平方米，带动脱贫人口20人加入合作社",{"v":1,"d":"100%"},{"v":1,"d":"100%"},"/",20,{"v":0.06,"d":"6%"},"/",25,30,null,null,"≥95%","项目申报、实施过程监督、带动产业发展","以就业务工、土地流转等方式促进脱贫人口（含监测帮扶对象）及一般农户发展增收，同时增加村集体收入"]
[298,"加工流通项目（农产品仓储保鲜冷链基础设施建设）","闫集镇全程机械化综合农事服务中心项目","新建","县农业农村局","闫集镇\n赵世成","闫集镇","/","/","购买进口复式进口复式精量条播机精量条播机30台；免耕施肥播种机30台；拖拉机30台；自走式植保机10台。用于闫集镇村党组织领办合作社。","2023年12月15日前",2044,2044,null,"购置进口复式进口复式精量条播机精量条播机30台；免耕施肥播种机30台；拖拉机30台；自走式植保机10台，完善村党组织领办合作社配套，壮大村集体经济收入，带动脱贫人口（含监测帮扶对象）及一般农户发展增收","购置进口复式进口复式精量条播机精量条播机30台；免耕施肥播种机30台；拖拉机30台；自走式植保机10台，带动脱贫人口100人加入合作社",{"v":1,"d":"100%"},{"v":1,"d":"100%"},"/","/",{"v":0.06,"d":"6%"},"/",3489,6798,null,null,"≥95%","项目申报、实施过程监督、带动产业发展","以就业务工、收益分红等方式促进脱贫人口（含监测帮扶对象）及一般农户发展增收，同时增加村集体收入"]
[299,"加工流通项目（农产品仓储保鲜冷链基础设施建设）","裴庄村保鲜冷藏项目","新建","县农业农村局","杨楼镇\n黄蓓蓓","杨楼镇","裴庄村","否","新建3000吨保鲜冷库，高约9米，长约70米，宽约25米及配套附属设施。","2023年12月15日前",800,800,null,"建成保鲜库3000吨和配套附属设施，带动脱贫人口（含监测帮扶对象）及一般农户发展增收，增加村集体经济收入。","建成保鲜库3000吨，带动脱贫人口（监测对象）、其他农户加入党组织领办合作社200人。",{"v":1,"d":"100%"},{"v":1,"d":"100%"},"/",20,{"v":0.0692307692307692,"d":"7%"},"/",200,600,null,null,"≥95%","项目申报、实施过程监督、带动产业发展","以就业务工、收益分红等方式促进脱贫人口（含监测帮扶对象）及一般农户发展增收，同时增加村集体收入"]
[300,"加工流通项目（农产品仓储保鲜冷链基础设施建设）","杨楼镇尹庄村仓储建设项目","新建","县农业农村局","杨楼镇\n黄蓓蓓","杨楼镇","尹庄村","否","建设1000平方米仓储，烘干塔1套，变压器配套配电，消防，排水及相关地坪配套道路等设施。","2023年12月15日前",500,500,null,"建成仓储1000平方米和配套附属设施，带动脱贫人口（含监测帮扶对象）及一般农户发展增收，增加村集体经济收入。","建成仓储1000平方米，带动脱贫人口（监测对象）、其他农户加入党组织领办合作社35人",{"v":1,"d":"100%"},{"v":1,"d":"100%"},"/",10,{"v":0.07,"d":"7%"},"/",35,73,null,null,"≥95%","项目申报、实施过程监督、带动产业发展","以就业务工、收益分红等方式促进脱贫人口（含监测帮扶对象）及一般农户发展增收，同时增加村集体收入"]
[301,"生产项目（种植业）","杨楼镇路套村旱改水水稻种植项目","新建","县农业农村局","杨楼镇\n黄蓓蓓","杨楼镇","路套村","否","旱改水水稻项目，种植水稻300亩及配套附属设施。","2023年12月15日前",540,540,null,"种植水稻300亩及相关配套设施。带动脱贫人口（含监测帮扶对象）及一般农户发展增收，增加村集体经济收入。","种植水稻300亩，带动脱贫人口（监测对象）、其他农户加入党组织领办合作社30人",{"v":1,"d":"100%"},{"v":1,"d":"100%"},"/",12,{"v":0.08,"d":"8%"},"/",60,75,null,null,"≥95%","项目申报、实施过程监督、带动产业发展","以就业务工、收益分红等方式促进脱贫人口（含监测帮扶对象）及一般农户发展增收，同时增加村集体收入"]
[302,"生产项目（休闲农业与乡村旅游）","梅花谷基础设施建设项目","新建","县农业农村局","永堌镇\n任精芳","永堌镇","王山窝村","否","修建梅园道路修建及配套设施（梅园上段新建水泥路，长650米、宽5米、厚0.2米；加宽梅园路中段水泥路，长450米、宽1米、厚0.3米；加宽梅园路下段，通过在路旁排水沟的位置上砌石建桥加宽路面，沟长140米、宽4米）；园内修建便民服务点，面积约119平方米；修缮老房屋院落7套，房屋约2631平方米及配套设施","2023年12月15日前",499.4,499.4,null,"修建梅园道路修建及配套设施（梅园上段新建水泥路，长650米、宽5米、厚0.2米；加宽梅园路中段水泥路，长450米、宽1米、厚0.3米；加宽梅园路下段，通过在路旁排水沟的位置上砌石建桥加宽路面，沟长140米、宽4米）；园内修建便民服务点，面积约119平方米；修缮老房屋院落7套，房屋约2631平方米及配套设施，带动脱贫人口（含监测帮扶对象）及一般农户发展增收，增加村集体经济收入。","梅园上段新建水泥路，长650米；加宽梅园路中段水泥路，长450米；\n修缮老房屋院落7套，房屋约2631平方米",{"v":1,"d":"100%"},{"v":1,"d":"100%"},"/",null,"/",null,334,1535,null,null,"≥95%","参与项目申报、实施过程监督和建成后受益","以就业务工、帮助产销对接等方式促进脱贫人口（含监测帮扶对象）及一般农户发展增收，同时增加村集体收入"]
[303,"加工流通项目（农产品仓储保鲜冷链基础设施建设）","张庄寨镇王衍庄村粮储仓库配套项目工程","新建","县农业农村局","张庄寨镇\n李宁","张庄寨镇","王衍庄村","否","烘干厂房一期配套项目提升机，热风炉等相关配套设施","2023年12月15日前",57,57,null,"完善粮食仓库相关配套设施，带动脱贫人口（含监测帮扶对象）及一般农户发展增收，增加村集体经济收入。","购买设备1套",{"v":1,"d":"100%"},{"v":1,"d":"100%"},"/",5,"6%","/",10,"20",null,null,"≥95%","项目申报、实施过程监督、带动产业发展","以就业务工、土地流转、收益分红等方式促进脱贫人口（含监测帮扶对象）及一般农户发展增收，同时增加村集体收入"]
[304,"加工流通项目（农产品仓储保鲜冷链基础设施建设）","赵庄镇建华村特色产业发展项目","新建","县农业农村局","赵庄镇\n姜大郭","赵庄镇","建华村","否","新建建华村为农仓储中心，辐射全镇，1000平方粮食储放点，包括烘干塔、地磅、200伏变压器、玉米脱粒机1台等配套设施，日烘干200吨粮食烘干设备","2023年12月15日前",490,490,null,"建成农仓储中心1000平方米，带动脱贫人口（含监测帮扶对象）及一般农户发展增收，增加村集体经济收入。","建成农仓储中心1000平方米，带动脱贫人口（监测对象）、其他农户加入村党组织领办合作社人数5人",{"v":1,"d":"100%"},{"v":1,"d":"100%"},"/",18,{"v":0.06,"d":"6%"},"/",20,65,null,null,"≥95%","项目申报、实施过程监督、带动产业发展","以就业务工、收益分红等方式促进脱贫人口（含监测帮扶对象）及一般农户发展增收，同时增加村集体收入"]
[305,"加工流通项目（加工业）","庄里镇城阳村2023年农产品深加工项目","新建","县农业农村局","庄里镇\n孟卫东","庄里镇","城阳村","是","新建2000平方米农产品加工厂及其附属配套设施（包括钢构厂房2000平方米，食用油生产加工、香稻米加工、包装、菜籽油分装加工设备，红薯果脯、果干加工等，变压器等，及其他配套设施）","2023年12月15日前",960,960,null,"新建2000平方米农产品加工厂及其附属配套设施（包括钢构厂房2000平方米，食用油生产加工、香稻米加工、包装、菜籽油分装加工设备，红薯果脯、果干加工等，变压器等，及其他配套设施）","新建2000平方米农产品加工厂及其附属配套设施",{"v":1,"d":"100%"},{"v":1,"d":"100%"},"/","/",{"v":0.06,"d":"6%"},"/",120,295,null,null,"≥95%","项目申报、实施过程监督、竣工后项目所在地受益","以务工就业、带动生产的形式，增加脱贫户收入，激发脱贫户内生动力，同时增加村集体收入"]
[306,"生产项目（养殖业）","庄里镇2023年皖北白山羊智慧养殖基地项目","新建","县农业农村局","庄里镇\n孟卫东","庄里镇","黄山村","否","标准化羊舍3间,占地约66亩，水、电、雨污分流、数字化智慧化现代化标准化养殖、管理等综合集成配套系统等，及相关配套设施","2023年12月15日前",{"$f":"M315+N315","v":2200},2200,null,"建成标准化羊舍3间和相关配套设施，带动脱贫人口（含监测帮扶对象）及一般农户发展增收，增加村集体经济收入。","建成标准化羊舍3间",{"v":1,"d":"100%"},{"v":1,"d":"100%"},"/","/",{"v":0.06,"d":"6%"},"/",270,540,null,null,"≥95%","项目申报、实施过程监督、竣工后项目所在地受益","以就业务工、收益分红等方式促进脱贫人口（含监测帮扶对象）及一般农户发展增收，同时增加村集体收入"]
[307,"生产项目（休闲农业与乡村旅游）","庄里镇庄里村特色民宿改造项目","改建","县农业农村局","庄里镇\n孟卫东","庄里镇","庄里村","否","依托绿港集团产业园项目核心区，改建特色民宿15套，及水、电等其它配套设施。","2023年12月15日前",600,600,null,"依托绿港集团产业园项目核心区，改建特色民宿15套，及水、电等其它配套设施。带动脱贫人口（含监测帮扶对象）及一般农户发展增收，增加村集体经济收入。","改建特色民宿15套",{"v":1,"d":"100%"},{"v":1,"d":"100%"},"/","/",{"v":0.06,"d":"6%"},"/",50,135,null,null,"≥95%","项目申报、实施过程监督、竣工后项目所在地受益","以就业务工、土地流转等方式促进脱贫人口（含监测帮扶对象）及一般农户发展增收，同时增加村集体收入"]
[308,"加工流通项目（农产品仓储保鲜冷链基础设施建设）","庄里镇高庄村农副产品仓储项目","新建","县农业农村局","庄里镇\n孟卫东","庄里镇","高庄村","否","新建农副产品仓储及相关配套设施，占地约3.744亩，建筑面积2300平方","2023年12月15日前",220,220,null,"建成农副产品仓储约2300平方米及相关配套设施，带动脱贫人口（含监测帮扶对象）及一般农户发展增收，增加村集体经济收入。","建设农副产品仓储约2300平方米，占地约3.744亩",{"v":1,"d":"100%"},{"v":1,"d":"100%"},"/","/",{"v":0.06,"d":"6%"},"/",50,80,null,null,"≥95%","项目申报、实施过程监督、土地流转、务工带动增收","以就业务工、土地流转等方式促进脱贫人口（含监测帮扶对象）及一般农户发展增收，同时增加村集体收入"]
[309,"加工流通项目（农产品仓储保鲜冷链基础设施建设）","庄里镇农机农资农技综合服务中心建设项目","新建","县农业农村局","庄里镇\n孟卫东","庄里镇","城阳村","是","新建粮库、机械存放钢结构大棚2座，300吨烘干塔、地坪、地磅、变压器及水电等其它相关配套设施，占地约10亩","2023年12月15日前",550,550,null,"建成粮库、机械存放钢结构大棚2座，烘干塔300吨和其它相关配套设施，带动脱贫人口（含监测帮扶对象）及一般农户发展增收，增加村集体经济收入。","建成钢构大棚2座，300吨烘干塔1台，占地约10亩",{"v":1,"d":"100%"},{"v":1,"d":"100%"},"/","/",{"v":0.06,"d":"6%"},"/",906,2455,null,null,"≥95%","项目申报、实施过程监督、竣工后项目所在地受益","以就业务工、收益分红等方式促进脱贫人口（含监测帮扶对象）及一般农户发展增收，同时增加村集体收入"]
[310,"加工流通项目（农产品仓储保鲜冷链基础设施建设）","庄里镇大蔡村仓储及烘干设备项目","新建","县农业农村局","庄里镇\n孟卫东","庄里镇","大蔡村","否","新建仓储约3500平方米，200吨烘干塔设备一套、地坪、晾粮场、地磅、变压器等，及相关配套设施，共占地约10亩","2023年12月15日前",780,780,null,"建成仓储约3500平方米，烘干塔设备200吨及相关配套设施，带动脱贫人口（含监测帮扶对象）及一般农户发展增收，增加村集体经济收入。","建成仓储约3500平方米，200吨烘干塔设备1套",{"v":1,"d":"100%"},{"v":1,"d":"100%"},"/","/",{"v":0.06,"d":"6%"},"/",120,295,null,null,"≥95%","项目申报、实施过程监督、竣工后项目所在地受益","以就业务工、带动生产等方式促进脱贫人口（含监测帮扶对象）及一般农户发展增收，同时增加村集体收入"]
[311,"生产项目（休闲农业与乡村旅游）","沈峪村万山湖桃花溪谷乡村振兴示范片区项目","新建","县文化旅游局","官桥镇\n张伟建","官桥镇","高庄村","否","依托乡村振兴自然生态长廊项目，打造以滨湖山地露营、田园农耕文化体验、山地户外运动为主题的的乡村旅游示范片区","2023年12月15日前",2740,2740,null,"依托乡村振兴自然生态长廊项目，打造以滨湖山地露营、田园农耕文化体验、山地户外运动为主题的的乡村旅游示范片区","脱贫人口加入合作社、村集体经济人数30人",{"v":1,"d":"100%"},{"v":1,"d":"100%"},2740,164.4,{"v":0.06,"d":"6%"},15,30,30,null,null,"≥95%","项目申报、实施过程监督","增加集体经济收入，带动群众务工收入"]
[312,"加工流通项目（加工业）","王寨镇后洼村产业发展项目","新建","县委统战部","王寨镇\n王亚华","王寨镇","后洼村","否","购买钻床、机床、数控剪板机、折弯机，出租给安徽省金士棉机有限责任公司使用","2023年12月15日前",60,60,null,"通过购买钻床、机床，数控剪板机，折弯机四种机器，出租给安徽省金士棉机有限责任公司，年上缴村集体收入不低于10%的原则下，预计每年上缴村集体收入6万元","增加村集体经济收益,带动脱贫人口及群众务工增加收入",{"v":1,"d":"100%"},{"v":1,"d":"100%"},"/",6,{"v":0.1,"d":"10%"},"/",10,19,null,null,"≥95%","项目申报、实施过程监督、带动产业发展","增加村集体经济收入并通过带动当地居民务工的形式提高居民生活水平"]
[313,"加工流通项目（加工业）","龙城镇房庄社区食品车间建设项目","新建","县委统战部","龙城镇\n张跃","龙城镇","房庄社区","否","建设食品（生产方便粥）车间3000平方","2023年12月15日前",220,220,null,"建设食品（生产方便粥）车间3000平方，带动脱贫人口（含监测帮扶对象）及一般农户发展增收，增加村集体经济收入。","建设食品（生产方便粥）车间3000平方",{"v":1,"d":"100%"},{"v":1,"d":"100%"},"/",13.2,{"v":0.0645161290322581,"d":"6%"},"/",20,20,null,null,"≥95%","项目申报、实施过程监督、带动产业发展","增加社区经济收入并通过带动当地居民务工的形式提高居民生活水平"]
[314,"加工流通项目（加工业）","龙城镇房庄社区特色食品产业发展项目","新建","县委统战部","龙城镇\n张跃","龙城镇","房庄社区","否","购置食品生产设备及设施配套","2023年12月15日前",160,160,null,"购置食品生产设备及设施配套，带动脱贫人口（含监测帮扶对象）及一般农户发展增收，增加村集体经济收入。","购置食品生产设备及设施配套",{"v":1,"d":"100%"},{"v":1,"d":"100%"},"/",9.6,{"v":0.0645161290322581,"d":"6%"},"/",18,18,null,null,"≥95%","项目申报、实施过程监督、带动产业发展","增加社区经济收入并通过带动当地居民务工的形式提高居民生活水平"]
[315,"加工流通项目（加工业）","圣泉镇黄安子社区服装纺织科技产业园建设项目","新建","县委统战部","圣泉镇\n田野","圣泉镇","黄安子社区","否","建设高标准厂房5000平方米","2023年12月15日前",300,300,null,"建设高标准厂房5000平方米，带动脱贫人口（含监测帮扶对象）及一般农户发展增收，增加村集体经济收入。","建设高标准厂房5000平方米",{"v":1,"d":"100%"},{"v":1,"d":"100%"},"/",18,{"v":0.0645161290322581,"d":"6%"},"/",20,20,null,null,"≥95%","项目申报、实施过程监督、带动产业发展","增加社区经济收入并通过带动当地居民务工的形式提高居民生活水平"]
[316,"加工流通项目（加工业）","圣泉镇黄安子社区服装纺织产业发展项目","新建","县委统战部","圣泉镇\n田野","圣泉镇","黄安子社区","否","购置全自动电脑缝纫设备120台","2023年12月15日前",50,50,null,"购置全自动电脑缝纫设备120台，带动脱贫人口（含监测帮扶对象）及一般农户发展增收，增加村集体经济收入。","购置全自动电脑缝纫设备120台",{"v":1,"d":"100%"},{"v":1,"d":"100%"},"/",3,{"v":0.0645161290322581,"d":"6%"},"/",5,5,null,null,"≥95%","项目申报、实施过程监督、带动产业发展","增加社区经济收入并通过带动当地居民务工的形式提高居民生活水平"]
[317,"金融保险配套项目（小额信贷贴息）","小额信贷贴息","新建","县财政局","县财政局\n刘学东","各乡镇","/","/","按照基础利率，对脱贫人口（含监测帮扶对象）办理5万元（含以内）的小额信贷进行贷款贴息","2023年12月15日前",450,450,null,"为小额信贷用户以3.75%的利率贴息","贴息资金450万元",{"v":1,"d":"100%"},{"v":1,"d":"100%"},"/","/","/","/",702,1820,"/","/","≥95%","项目申报、实施过程监督、带动产业发展","以贴息的方式减少小额信贷用户的资金使用负担"]
[318,"配套设施项目（产业园区）","国有林场铅笔柏母树林修复与保护项目","提质增效","县林业发展中心","县国有林场\n胡孝忠","/","/","/","加强对150余亩铅笔柏母树林进行修复和保护，一是采取病虫害防治措施预防双条杉天牛、铅笔柏枯死病，同时进行卫生伐、施肥和松土；二是修建蓄水池等配套设施。","2023年12月15日前",98,98,null,"有效改善铅笔柏母树林生长环境，提高生长潜力","修复和保护铅笔柏母树林亩数≥150亩",{"v":1,"d":"100%"},{"v":1,"d":"100%"},"/","/","/","/",49,121,"/","/","≥95%","实施过程监督、竣工后受益","有效改善铅笔柏母树林生长环境，提高生长潜力，增加当地农民收入。"]
[319,"生产项目（种植业）","杨楼镇新廷社区易地搬迁后续扶持项目","新建","县发展改革委","杨楼镇\n黄蓓蓓","杨楼镇","新廷社区","是","建设葡萄大棚观光、采摘一体示范园及配套设施，占地65亩。","2023年12月15日前",550,550,null,"占地65亩，建设葡萄大棚观光、采摘一体示范园及配套设施。","新建葡萄种植大棚占地亩数≥65亩",{"v":1,"d":"100%"},{"v":1,"d":"100%"},"/",20,{"v":0.06,"d":"6%"},"/",100,260,null,null,"≥95%","项目申报、实施过程监督、带动产业发展","以就业务工、收益分红、土地流转等方式促进脱贫人口（含监测帮扶对象）及一般农户发展增收，同时增加村集体收入"]
[null,"二、易地搬迁后扶",{"$nulls":9},{"$f":"L330","v":175},{"$f":"M330","v":175}]
[320,"易地搬迁后扶\n（“一站式”社区综合服务设施建设）","闫集镇孟楼村安楼安置点消防站","新建","县发展改革委","闫集镇\n赵世成","闫集镇","孟楼村","否","新建消防站200平方及配套设施","2023年12月15日前",{"$f":"M330+N330","v":175},175,null,"新建消防站200平方及配套设施等，完善易地搬迁安置点配套设施。","新建消防站200平方及配套设施",{"v":1,"d":"100%"},{"v":1,"d":"100%"},"/","/","/","/",935,4090,null,null,"≥95%","项目申报、实施过程监督、竣工后项目所在地受益","以路灯建设的形式，改善村内基础设施条件，提升脱贫人口出行水平"]
[null,"三、乡村建设行动",{"$nulls":9},{"$f":"L332+L478","v":72594.39},65343.94,7250.45]
[null,"（一）农村基础设施",{"$nulls":9},{"$f":"M332+N332","v":35842.35},{"$f":"SUM(M333:M477)","v":28591.9},{"$f":"SUM(N333:N477)","v":7250.45}]
[321,"\n农村基础设施（含产业配套基础设施）\n农村道路建设（通村路、通户路、小型桥梁等）\n","拆除重建孟苏庄桥","改建","县水利局","县水利局\n张勋","祖楼镇","孟苏庄村","否","重建桥涵1座，跨数、跨度、桥面宽为2m*10m*6m。","2023年12月15日前",{"$f":"M333+N333","v":140},140,null,"重建桥涵1座，改善群众生产生活设施条件","拆除重建桥涵1座",{"v":1,"d":"100%"},{"v":1,"d":"100%"},{"$nulls":4},110,400,null,null,"≥95%","参与项目申报、实施过程监督、竣工后受益","以小型农田水利设施建设的形式，改善产业基础设施条件，助力产业发展"]
[322,"\n农村基础设施（含产业配套基础设施）\n农村道路建设（通村路、通户路、小型桥梁等）\n","拆除重建孟寨桥","改建","县水利局","县水利局\n张勋","祖楼镇","孟苏庄村","否","重建桥涵1座，跨数、跨度、桥面宽为2m*10m*6m。","2023年12月15日前",140,140,null,"重建桥涵1座，改善群众生产生活设施条件","拆除重建桥涵1座",{"v":1,"d":"100%"},{"v":1,"d":"100%"},{"$nulls":4},90,350,null,null,"≥95%","参与项目申报、实施过程监督、竣工后受益","以小型农田水利设施建设的形式，改善产业基础设施条件，助力产业发展"]
[323,"\n农村基础设施（含产业配套基础设施）\n农村道路建设（通村路、通户路、小型桥梁等）\n","拆除重建祖楼桥","改建","县水利局","县水利局\n张勋","祖楼镇","祖楼村","是","重建桥涵1座，跨数、跨度、桥面宽为1m*4m*6m。","2023年12月15日前",24,24,null,"重建桥涵1座，改善群众生产生活设施条件","拆除重建桥涵1座",{"v":1,"d":"100%"},{"v":1,"d":"100%"},{"$nulls":4},30,110,null,null,"≥95%","参与项目申报、实施过程监督、竣工后受益","以小型农田水利设施建设的形式，改善产业基础设施条件，助力产业发展"]
[324,"\n农村基础设施（含产业配套基础设施）\n农村道路建设（通村路、通户路、小型桥梁等）\n","拆除重建梁楼桥","改建","县水利局","县水利局\n张勋","祖楼镇","孙楼村","否","重建桥涵1座，跨数、跨度、桥面宽为1m*10m*6m","2023年12月15日前",60,60,null,"重建桥涵1座，改善群众生产生活设施条件","拆除重建桥涵1座",{"v":1,"d":"100%"},{"v":1,"d":"100%"},{"$nulls":4},50,180,null,null,"≥95%","参与项目申报、实施过程监督、竣工后受益","以小型农田水利设施建设的形式，改善产业基础设施条件，助力产业发展"]
[325,"\n农村基础设施（含产业配套基础设施）\n农村道路建设（通村路、通户路、小型桥梁等）\n","拆除重建老湘西河郑楼桥","改建","县水利局","县水利局\n张勋","孙圩子镇","王庄村","否","重建桥涵1座跨数、跨度、桥面宽为3m*10m*6m","2023年12月15日前",180,180,null,"重建桥涵1座，改善群众生产生活设施条件","拆除重建桥涵1座",{"v":1,"d":"100%"},{"v":1,"d":"100%"},{"$nulls":4},360,1100,null,null,"≥95%","参与项目申报、实施过程监督、竣工后受益","以小型农田水利设施建设的形式，改善产业基础设施条件，助力产业发展"]
[326,"\n农村基础设施（含产业配套基础设施）\n农村道路建设（通村路、通户路、小型桥梁等）\n","拆除重建徐里南桥","改建","县水利局","县水利局\n张勋","孙圩子镇","徐里村","否","重建桥涵1座跨数、跨度、桥面宽为1m*8m*6m","2023年12月15日前",50,50,null,"重建桥涵1座，改善群众生产生活设施条件","拆除重建桥涵1座",{"v":1,"d":"100%"},{"v":1,"d":"100%"},{"$nulls":4},230,685,null,null,"≥95%","参与项目申报、实施过程监督、竣工后受益","以小型农田水利设施建设的形式，改善产业基础设施条件，助力产业发展"]
[327,"\n农村基础设施（含产业配套基础设施）\n农村道路建设（通村路、通户路、小型桥梁等）\n","拆除重建湘西河李庄桥","改建","县水利局","县水利局\n张勋","孙圩子镇","程蒋山村","否","重建桥涵1座跨数、跨度、桥面宽为3m*10m*6m","2023年12月15日前",180,180,null,"重建桥涵1座，改善群众生产生活设施条件","拆除重建桥涵1座",{"v":1,"d":"100%"},{"v":1,"d":"100%"},{"$nulls":4},220,750,null,null,"≥95%","参与项目申报、实施过程监督、竣工后受益","以小型农田水利设施建设的形式，改善产业基础设施条件，助力产业发展"]
[328,"\n农村基础设施（含产业配套基础设施）\n农村道路建设（通村路、通户路、小型桥梁等）\n","拆除重建前徐楼桥","改建","县水利局","县水利局\n张勋","孙圩子镇","丁楼村","否","重建桥涵1座跨数、跨度、桥面宽为2m*8m*6m","2023年12月15日前",96,96,null,"重建桥涵1座，改善群众生产生活设施条件","拆除重建桥涵1座",{"v":1,"d":"100%"},{"v":1,"d":"100%"},{"$nulls":4},185,559,null,null,"≥95%","参与项目申报、实施过程监督、竣工后受益","以小型农田水利设施建设的形式，改善产业基础设施条件，助力产业发展"]
[329,"\n农村基础设施（含产业配套基础设施）\n农村道路建设（通村路、通户路、小型桥梁等）\n","拆除重建港河周洼南桥","改建","县水利局","县水利局\n张勋","孙圩子镇","周圩子村","是","重建桥涵1座跨数、跨度、桥面宽为3m*15m*6m","2023年12月15日前",280,280,null,"重建桥涵1座，改善群众生产生活设施条件","拆除重建桥涵1座",{"v":1,"d":"100%"},{"v":1,"d":"100%"},{"$nulls":4},236,651,null,null,"≥95%","参与项目申报、实施过程监督、竣工后受益","以小型农田水利设施建设的形式，改善产业基础设施条件，助力产业发展"]
[330,"\n农村基础设施（含产业配套基础设施）\n农村道路建设（通村路、通户路、小型桥梁等）\n","拆除重建老港河李庄东桥","改建","县水利局","县水利局\n张勋","孙圩子镇","马庄村","是","重建桥涵1座跨数、跨度、桥面宽为1m*8m*6m","2023年12月15日前",50,50,null,"重建桥涵1座，改善群众生产生活设施条件","拆除重建桥涵1座",{"v":1,"d":"100%"},{"v":1,"d":"100%"},{"$nulls":4},240,700,null,null,"≥95%","参与项目申报、实施过程监督、竣工后受益","以小型农田水利设施建设的形式，改善产业基础设施条件，助力产业发展"]
[331,"\n农村基础设施（含产业配套基础设施）\n农村道路建设（通村路、通户路、小型桥梁等）\n","拆除重建老港河小郑庄东桥","改建","县水利局","县水利局\n张勋","孙圩子镇","马庄村","是","重建桥涵1座跨数、跨度、桥面宽为1m*6m*6m","2023年12月15日前",36,36,null,"重建桥涵1座，改善群众生产生活设施条件","拆除重建桥涵1座",{"v":1,"d":"100%"},{"v":1,"d":"100%"},{"$nulls":4},240,700,null,null,"≥95%","参与项目申报、实施过程监督、竣工后受益","以小型农田水利设施建设的形式，改善产业基础设施条件，助力产业发展"]
[332,"\n农村基础设施（含产业配套基础设施）\n农村道路建设（通村路、通户路、小型桥梁等）\n","拆除重建大郑庄西桥","改建","县水利局","县水利局\n张勋","孙圩子镇","马庄村","是","重建桥涵1座跨数、跨度、桥面宽为1m*8m*6m","2023年12月15日前",50,50,null,"重建桥涵1座，改善群众生产生活设施条件","拆除重建桥涵1座",{"v":1,"d":"100%"},{"v":1,"d":"100%"},{"$nulls":4},240,700,null,null,"≥95%","参与项目申报、实施过程监督、竣工后受益","以小型农田水利设施建设的形式，改善产业基础设施条件，助力产业发展"]
[333,"\n农村基础设施（含产业配套基础设施）\n农村道路建设（通村路、通户路、小型桥梁等）\n","拆除重建杜庄东桥","改建","县水利局","县水利局\n张勋","孙圩子镇","徐双楼村","否","重建桥涵1座跨数、跨度、桥面宽为1m*5m*6m","2023年12月15日前",30,30,null,"重建桥涵1座，改善群众生产生活设施条件","拆除重建桥涵1座",{"v":1,"d":"100%"},{"v":1,"d":"100%"},{"$nulls":4},82,350,null,null,"≥95%","参与项目申报、实施过程监督、竣工后受益","以小型农田水利设施建设的形式，改善产业基础设施条件，助力产业发展"]
[334,"\n农村基础设施（含产业配套基础设施）\n农村道路建设（通村路、通户路、小型桥梁等）\n","拆除重建杜庄西北桥","改建","县水利局","县水利局\n张勋","孙圩子镇","徐双楼村","否","重建桥涵1座跨数、跨度、桥面宽为1m*4m*6m","2023年12月15日前",24,24,null,"重建桥涵1座，改善群众生产生活设施条件","拆除重建桥涵1座",{"v":1,"d":"100%"},{"v":1,"d":"100%"},{"$nulls":4},67,260,null,null,"≥95%","参与项目申报、实施过程监督、竣工后受益","以小型农田水利设施建设的形式，改善产业基础设施条件，助力产业发展"]
[335,"\n农村基础设施（含产业配套基础设施）\n农村道路建设（通村路、通户路、小型桥梁等）\n","拆除重建黄庄桥","改建","县水利局","县水利局\n张勋","马井镇","长征村","是","重建桥涵1座跨数、跨度、桥面宽为1m*4m*6m","2023年12月15日前",240,240,null,"重建桥涵1座，改善群众生产生活设施条件","拆除重建桥涵1座",{"v":1,"d":"100%"},{"v":1,"d":"100%"},{"$nulls":4},68,270,null,null,"≥95%","参与项目申报、实施过程监督、竣工后受益","以小型农田水利设施建设的形式，改善产业基础设施条件，助力产业发展"]
[336,"\n农村基础设施（含产业配套基础设施）\n农村道路建设（通村路、通户路、小型桥梁等）\n","维修加固吴老家桥","维修","县水利局","县水利局\n张勋","马井镇","吴九店村","否","维修挡土墙和搭板","2023年12月15日前",10,10,null,"维修加固桥涵1座，改善群众生产生活设施条件","维修加固桥涵1座",{"v":1,"d":"100%"},{"v":1,"d":"100%"},{"$nulls":4},280,1200,null,null,"≥95%","参与项目申报、实施过程监督、竣工后受益","以小型农田水利设施建设的形式，改善产业基础设施条件，助力产业发展"]
[337,"\n农村基础设施（含产业配套基础设施）\n农村道路建设（通村路、通户路、小型桥梁等）\n","拆除重建苏楼桥","改建","县水利局","县水利局\n张勋","马井镇","吴瓦房村","是","重建桥涵1座跨数、跨度、桥面宽为1m*4m*6m","2023年12月15日前",30,30,null,"重建桥涵1座，改善群众生产生活设施条件","拆除重建桥涵1座",{"v":1,"d":"100%"},{"v":1,"d":"100%"},{"$nulls":4},42,200,null,null,"≥95%","参与项目申报、实施过程监督、竣工后受益","以小型农田水利设施建设的形式，改善产业基础设施条件，助力产业发展"]
[338,"\n农村基础设施（含产业配套基础设施）\n农村道路建设（通村路、通户路、小型桥梁等）\n","拆除重建赵场南桥","改建","县水利局","县水利局\n张勋","杨楼镇","冯场村","否","重建桥涵1座跨数、跨度、桥面宽为1m*10m*6m","2023年12月15日前",60,60,null,"重建桥涵1座，改善群众生产生活设施条件","拆除重建桥涵1座",{"v":1,"d":"100%"},{"v":1,"d":"100%"},{"$nulls":4},140,620,null,null,"≥95%","参与项目申报、实施过程监督、竣工后受益","以小型农田水利设施建设的形式，改善产业基础设施条件，助力产业发展"]
[339,"\n农村基础设施（含产业配套基础设施）\n农村道路建设（通村路、通户路、小型桥梁等）\n","拆除重建赵场西桥","改建","县水利局","县水利局\n张勋","杨楼镇","冯场村","否","重建桥涵1座跨数、跨度、桥面宽为1m*5m*6m","2023年12月15日前",30,30,null,"重建桥涵1座，改善群众生产生活设施条件","拆除重建桥涵1座",{"v":1,"d":"100%"},{"v":1,"d":"100%"},{"$nulls":4},40,150,null,null,"≥95%","参与项目申报、实施过程监督、竣工后受益","以小型农田水利设施建设的形式，改善产业基础设施条件，助力产业发展"]
[340,"\n农村基础设施（含产业配套基础设施）\n农村道路建设（通村路、通户路、小型桥梁等）\n","拆除重建赵场西南桥","改建","县水利局","县水利局\n张勋","杨楼镇","冯场村","否","重建桥涵1座跨数、跨度、桥面宽为1m*5m*6m","2023年12月15日前",30,30,null,"重建桥涵1座，改善群众生产生活设施条件","拆除重建桥涵1座",{"v":1,"d":"100%"},{"v":1,"d":"100%"},{"$nulls":4},45,170,null,null,"≥95%","参与项目申报、实施过程监督、竣工后受益","以小型农田水利设施建设的形式，改善产业基础设施条件，助力产业发展"]
[341,"\n农村基础设施（含产业配套基础设施）\n农村道路建设（通村路、通户路、小型桥梁等）\n","拆除重建朱庄北桥","改建","县水利局","县水利局\n张勋","杨楼镇","冯场村","否","重建桥涵1座跨数、跨度、桥面宽为1m*5m*6m","2023年12月15日前",30,30,null,"重建桥涵1座，改善群众生产生活设施条件","拆除重建桥涵1座",{"v":1,"d":"100%"},{"v":1,"d":"100%"},{"$nulls":4},38,140,null,null,"≥95%","参与项目申报、实施过程监督、竣工后受益","以小型农田水利设施建设的形式，改善产业基础设施条件，助力产业发展"]
[342,"\n农村基础设施（含产业配套基础设施）\n农村道路建设（通村路、通户路、小型桥梁等）\n","拆除重建朱集东南桥","改建","县水利局","县水利局\n张勋","杨楼镇","余洼村","是","重建桥涵1座跨数、跨度、桥面宽为1m*10m*6m","2023年12月15日前",60,60,null,"重建桥涵1座，改善群众生产生活设施条件","拆除重建桥涵1座",{"v":1,"d":"100%"},{"v":1,"d":"100%"},{"$nulls":4},150,620,null,null,"≥95%","参与项目申报、实施过程监督、竣工后受益","以小型农田水利设施建设的形式，改善产业基础设施条件，助力产业发展"]
[343,"\n农村基础设施（含产业配套基础设施）\n农村道路建设（通村路、通户路、小型桥梁等）\n","拆除重建郝集中学桥","改建","县水利局","县水利局\n张勋","杨楼镇","郝集社区","是","重建桥涵1座跨数、跨度、桥面宽为1m*10m*6m","2023年12月15日前",60,60,null,"重建桥涵1座，改善群众生产生活设施条件","拆除重建桥涵1座",{"v":1,"d":"100%"},{"v":1,"d":"100%"},{"$nulls":4},170,700,null,null,"≥95%","参与项目申报、实施过程监督、竣工后受益","以小型农田水利设施建设的形式，改善产业基础设施条件，助力产业发展"]
[344,"\n农村基础设施（含产业配套基础设施）\n农村道路建设（通村路、通户路、小型桥梁等）\n","拆除重建雁南桥","改建","县水利局","县水利局\n张勋","杨楼镇","郝集社区","是","重建桥涵1座跨数、跨度、桥面宽为1m*10m*6m","2023年12月15日前",60,60,null,"重建桥涵1座，改善群众生产生活设施条件","拆除重建桥涵1座",{"v":1,"d":"100%"},{"v":1,"d":"100%"},{"$nulls":4},173,720,null,null,"≥95%","参与项目申报、实施过程监督、竣工后受益","以小型农田水利设施建设的形式，改善产业基础设施条件，助力产业发展"]
[345,"\n农村基础设施（含产业配套基础设施）\n农村道路建设（通村路、通户路、小型桥梁等）\n","拆除重建利民桥","改建","县水利局","县水利局\n张勋","杨楼镇","郝集社区","是","重建桥涵1座跨数、跨度、桥面宽为1m*10m*6m","2023年12月15日前",60,60,null,"重建桥涵1座，改善群众生产生活设施条件","拆除重建桥涵1座",{"v":1,"d":"100%"},{"v":1,"d":"100%"},{"$nulls":4},180,800,null,null,"≥95%","参与项目申报、实施过程监督、竣工后受益","以小型农田水利设施建设的形式，改善产业基础设施条件，助力产业发展"]
[346,"\n农村基础设施（含产业配套基础设施）\n农村道路建设（通村路、通户路、小型桥梁等）\n","拆除重建常庄桥","改建","县水利局","县水利局\n张勋","杨楼镇","孙庄社区","否","重建桥涵1座跨数、跨度、桥面宽为1m*10m*6m","2023年12月15日前",60,60,null,"重建桥涵1座，改善群众生产生活设施条件","拆除重建桥涵1座",{"v":1,"d":"100%"},{"v":1,"d":"100%"},{"$nulls":4},200,800,null,null,"≥95%","参与项目申报、实施过程监督、竣工后受益","以小型农田水利设施建设的形式，改善产业基础设施条件，助力产业发展"]
[347,"\n农村基础设施（含产业配套基础设施）\n农村道路建设（通村路、通户路、小型桥梁等）\n","拆除重建唐楼水漫桥","改建","县水利局","县水利局\n张勋","闫集镇","汪楼村","否","重建桥涵1座跨数、跨度、桥面宽为1m*10m*6m","2023年12月15日前",60,60,null,"重建桥涵1座，改善群众生产生活设施条件","拆除重建桥涵1座",{"v":1,"d":"100%"},{"v":1,"d":"100%"},{"$nulls":4},170,680,null,null,"≥95%","参与项目申报、实施过程监督、竣工后受益","以小型农田水利设施建设的形式，改善产业基础设施条件，助力产业发展"]
[348,"\n农村基础设施（含产业配套基础设施）\n农村道路建设（通村路、通户路、小型桥梁等）\n","维修加固王庄桥","维修","县水利局","县水利局\n张勋","闫集镇","汪楼村","否","修复1座桥面","2023年12月15日前",10,10,null,"维修加固桥涵1座，改善群众生产生活设施条件","维修加固桥涵1座",{"v":1,"d":"100%"},{"v":1,"d":"100%"},{"$nulls":4},120,500,null,null,"≥95%","参与项目申报、实施过程监督、竣工后受益","以小型农田水利设施建设的形式，改善产业基础设施条件，助力产业发展"]
[349,"\n农村基础设施（含产业配套基础设施）\n农村道路建设（通村路、通户路、小型桥梁等）\n","拆除重建李集堤南桥","改建","县水利局","县水利局\n张勋","新庄镇","李集村","是","重建桥涵1座跨数、跨度、桥面宽为1m*8m*6m","2023年12月15日前",50,50,null,"重建桥涵1座，改善群众生产生活设施条件","拆除重建桥涵1座",{"v":1,"d":"100%"},{"v":1,"d":"100%"},{"$nulls":4},150,600,null,null,"≥95%","参与项目申报、实施过程监督、竣工后受益","以小型农田水利设施建设的形式，改善产业基础设施条件，助力产业发展"]
[350,"\n农村基础设施（含产业配套基础设施）\n农村道路建设（通村路、通户路、小型桥梁等）\n","拆除重建居委会北桥","改建","县水利局","县水利局\n张勋","新庄镇","居委会","否","重建桥涵1座跨数、跨度、桥面宽为1m*6m*6m","2023年12月15日前",36,36,null,"重建桥涵1座，改善群众生产生活设施条件","拆除重建桥涵1座",{"v":1,"d":"100%"},{"v":1,"d":"100%"},{"$nulls":4},120,450,null,null,"≥95%","参与项目申报、实施过程监督、竣工后受益","以小型农田水利设施建设的形式，改善产业基础设施条件，助力产业发展"]
[351,"\n农村基础设施（含产业配套基础设施）\n农村道路建设（通村路、通户路、小型桥梁等）\n","拆除重建张菜园桥","改建","县水利局","县水利局\n张勋","新庄镇","郭套村","否","重建桥涵1座跨数、跨度、桥面宽为1m*6m*6m","2023年12月15日前",36,36,null,"重建桥涵1座，改善群众生产生活设施条件","拆除重建桥涵1座",{"v":1,"d":"100%"},{"v":1,"d":"100%"},{"$nulls":4},85,350,null,null,"≥95%","参与项目申报、实施过程监督、竣工后受益","以小型农田水利设施建设的形式，改善产业基础设施条件，助力产业发展"]
[352,"\n农村基础设施（含产业配套基础设施）\n农村道路建设（通村路、通户路、小型桥梁等）\n","拆除重建王庄北桥","改建","县水利局","县水利局\n张勋","新庄镇","东阁村","否","重建桥涵1座跨数、跨度、桥面宽为1m*10m*6m","2023年12月15日前",60,60,null,"重建桥涵1座，改善群众生产生活设施条件","拆除重建桥涵1座",{"v":1,"d":"100%"},{"v":1,"d":"100%"},{"$nulls":4},160,700,null,null,"≥95%","参与项目申报、实施过程监督、竣工后受益","以小型农田水利设施建设的形式，改善产业基础设施条件，助力产业发展"]
[353,"\n农村基础设施（含产业配套基础设施）\n农村道路建设（通村路、通户路、小型桥梁等）\n","拆除重建圩子桥","改建","县水利局","县水利局\n张勋","新庄镇","杜集村","否","重建桥涵1座跨数、跨度、桥面宽为2m*8m*6m","2023年12月15日前",80,80,null,"重建桥涵1座，改善群众生产生活设施条件","拆除重建桥涵1座",{"v":1,"d":"100%"},{"v":1,"d":"100%"},{"$nulls":4},180,750,null,null,"≥95%","参与项目申报、实施过程监督、竣工后受益","以小型农田水利设施建设的形式，改善产业基础设施条件，助力产业发展"]
[354,"\n农村基础设施（含产业配套基础设施）\n农村道路建设（通村路、通户路、小型桥梁等）\n","拆除重建张油坊南桥","改建","县水利局","县水利局\n张勋","新庄镇","邵套村","否","重建桥涵1座跨数、跨度、桥面宽为1m*5m*6m","2023年12月15日前",30,30,null,"重建桥涵1座，改善群众生产生活设施条件","拆除重建桥涵1座",{"v":1,"d":"100%"},{"v":1,"d":"100%"},{"$nulls":4},40,150,null,null,"≥95%","参与项目申报、实施过程监督、竣工后受益","以小型农田水利设施建设的形式，改善产业基础设施条件，助力产业发展"]
[355,"\n农村基础设施（含产业配套基础设施）\n农村道路建设（通村路、通户路、小型桥梁等）\n","维修加固张庄西桥","维修","县水利局","县水利局\n张勋","新庄镇","张庄村","否","维修张庄西桥挡土墙及护栏","2023年12月15日前",15,15,null,"维修加固桥涵1座，改善群众生产生活设施条件","维修加固桥涵1座",{"v":1,"d":"100%"},{"v":1,"d":"100%"},{"$nulls":4},30,120,null,null,"≥95%","参与项目申报、实施过程监督、竣工后受益","以小型农田水利设施建设的形式，改善产业基础设施条件，助力产业发展"]
[356,"\n农村基础设施（含产业配套基础设施）\n农村道路建设（通村路、通户路、小型桥梁等）\n","拆除重建圩子北桥","改建","县水利局","县水利局\n张勋","新庄镇","杜集村","否","重建桥涵1座跨数、跨度、桥面宽为1m*4m*6m","2023年12月15日前",24,24,null,"重建桥涵1座，改善群众生产生活设施条件","拆除重建桥涵1座",{"v":1,"d":"100%"},{"v":1,"d":"100%"},{"$nulls":4},40,130,null,null,"≥95%","参与项目申报、实施过程监督、竣工后受益","以小型农田水利设施建设的形式，改善产业基础设施条件，助力产业发展"]
[357,"\n农村基础设施（含产业配套基础设施）\n农村道路建设（通村路、通户路、小型桥梁等）\n","维修加固王集桥","维修","县水利局","县水利局\n张勋","新庄镇","杜集村","否","维修王集桥挡土墙、搭板和护栏","2023年12月15日前",20,20,null,"维修加固桥涵1座，改善群众生产生活设施条件","维修加固桥涵1座",{"v":1,"d":"100%"},{"v":1,"d":"100%"},{"$nulls":4},35,120,null,null,"≥95%","参与项目申报、实施过程监督、竣工后受益","以小型农田水利设施建设的形式，改善产业基础设施条件，助力产业发展"]
[358,"\n农村基础设施（含产业配套基础设施）\n农村道路建设（通村路、通户路、小型桥梁等）\n","维修加固大米桥","维修","县水利局","县水利局\n张勋","丁里镇","张山头村","是","维修挡土墙和护栏","2023年12月15日前",10,10,null,"维修加固桥涵1座，改善群众生产生活设施条件","维修加固桥涵1座",{"v":1,"d":"100%"},{"v":1,"d":"100%"},{"$nulls":4},30,110,null,null,"≥95%","参与项目申报、实施过程监督、竣工后受益","以小型农田水利设施建设的形式，改善产业基础设施条件，助力产业发展"]
[359,"\n农村基础设施（含产业配套基础设施）\n农村道路建设（通村路、通户路、小型桥梁等）\n","拆除重建世中桥","改建","县水利局","县水利局\n张勋","丁里镇","张山头村","是","重建桥涵1座跨数、跨度、桥面宽为1m*5m*6m","2023年12月15日前",30,30,null,"重建桥涵1座，改善群众生产生活设施条件","拆除重建桥涵1座",{"v":1,"d":"100%"},{"v":1,"d":"100%"},{"$nulls":4},40,150,null,null,"≥95%","参与项目申报、实施过程监督、竣工后受益","以小型农田水利设施建设的形式，改善产业基础设施条件，助力产业发展"]
[360,"\n农村基础设施（含产业配套基础设施）\n农村道路建设（通村路、通户路、小型桥梁等）\n","维修加固三所桥","维修","县水利局","县水利局\n张勋","丁里镇","胜利社区","否","维修桥面和护栏","2023年12月15日前",20,20,null,"维修加固桥涵1座，改善群众生产生活设施条件","维修加固桥涵1座",{"v":1,"d":"100%"},{"v":1,"d":"100%"},{"$nulls":4},50,180,null,null,"≥95%","参与项目申报、实施过程监督、竣工后受益","以小型农田水利设施建设的形式，改善产业基础设施条件，助力产业发展"]
[361,"\n农村基础设施（含产业配套基础设施）\n农村道路建设（通村路、通户路、小型桥梁等）\n","拆除重建纵瓦房桥","改建","县水利局","县水利局\n张勋","丁里镇","丁里社区","是","重建桥涵1座跨数、跨度、桥面宽为1m*5m*6m","2023年12月15日前",30,30,null,"重建桥涵1座，改善群众生产生活设施条件","拆除重建桥涵1座",{"v":1,"d":"100%"},{"v":1,"d":"100%"},{"$nulls":4},45,150,null,null,"≥95%","参与项目申报、实施过程监督、竣工后受益","以小型农田水利设施建设的形式，改善产业基础设施条件，助力产业发展"]
[362,"\n农村基础设施（含产业配套基础设施）\n农村道路建设（通村路、通户路、小型桥梁等）\n","维修加固徐安西桥","维修","县水利局","县水利局\n张勋","刘套镇","徐安村","否","维修搭板、挡土墙和护栏","2023年12月15日前",2,2,null,"维修加固桥涵1座，改善群众生产生活设施条件","维修加固桥涵1座",{"v":1,"d":"100%"},{"v":1,"d":"100%"},{"$nulls":4},280,1120,null,null,"≥95%","参与项目申报、实施过程监督、竣工后受益","以小型农田水利设施建设的形式，改善产业基础设施条件，助力产业发展"]
[363,"\n农村基础设施（含产业配套基础设施）\n农村道路建设（通村路、通户路、小型桥梁等）\n","维修加固吴楼桥","维修","县水利局","县水利局\n张勋","大屯镇","关庄村","是","维修桥面和栏杆","2023年12月15日前",30,30,null,"维修加固桥涵1座，改善群众生产生活设施条件","维修加固桥涵1座",{"v":1,"d":"100%"},{"v":1,"d":"100%"},{"$nulls":4},60,230,null,null,"≥95%","参与项目申报、实施过程监督、竣工后受益","以小型农田水利设施建设的形式，改善产业基础设施条件，助力产业发展"]
[364,"\n农村基础设施（含产业配套基础设施）\n农村道路建设（通村路、通户路、小型桥梁等）\n","维修加固郑楼桥","维修","县水利局","县水利局\n张勋","大屯镇","郭阁村","否","维修桥面、挡土墙、栏杆","2023年12月15日前",30,30,null,"维修加固桥涵1座，改善群众生产生活设施条件","维修加固桥涵1座",{"v":1,"d":"100%"},{"v":1,"d":"100%"},{"$nulls":4},450,1800,null,null,"≥95%","参与项目申报、实施过程监督、竣工后受益","以小型农田水利设施建设的形式，改善产业基础设施条件，助力产业发展"]
[365,"\n农村基础设施（含产业配套基础设施）\n农村道路建设（通村路、通户路、小型桥梁等）\n","拆除重建史楼村桥","改建","县水利局","县水利局\n张勋","大屯镇","张楼村","否","重建桥涵1座跨数、跨度、桥面宽为1m*10m*6m","2023年12月15日前",70,70,null,"重建桥涵1座，改善群众生产生活设施条件","拆除重建桥涵1座",{"v":1,"d":"100%"},{"v":1,"d":"100%"},{"$nulls":4},60,230,null,null,"≥95%","参与项目申报、实施过程监督、竣工后受益","以小型农田水利设施建设的形式，改善产业基础设施条件，助力产业发展"]
[366,"\n农村基础设施（含产业配套基础设施）\n农村道路建设（通村路、通户路、小型桥梁等）\n","拆除重建李庄桥","改建","县水利局","县水利局\n张勋","酒店镇","李庄村","是","重建桥涵1座跨数、跨度、桥面宽为2m*10m*6m","2023年12月15日前",100,100,null,"重建桥涵1座，改善群众生产生活设施条件","拆除重建桥涵1座",{"v":1,"d":"100%"},{"v":1,"d":"100%"},{"$nulls":4},70,260,null,null,"≥95%","参与项目申报、实施过程监督、竣工后受益","以小型农田水利设施建设的形式，改善产业基础设施条件，助力产业发展"]
[367,"\n农村基础设施（含产业配套基础设施）\n农村道路建设（通村路、通户路、小型桥梁等）\n","拆除重建李庄学校南桥","改建","县水利局","县水利局\n张勋","酒店镇","李庄村","是","重建桥涵1座跨数、跨度、桥面宽为1m*3m*6m","2023年12月15日前",20,20,null,"重建桥涵1座，改善群众生产生活设施条件","拆除重建桥涵1座",{"v":1,"d":"100%"},{"v":1,"d":"100%"},{"$nulls":4},40,150,null,null,"≥95%","参与项目申报、实施过程监督、竣工后受益","以小型农田水利设施建设的形式，改善产业基础设施条件，助力产业发展"]
[368,"\n农村基础设施（含产业配套基础设施）\n农村道路建设（通村路、通户路、小型桥梁等）\n","拆除重建王楼村南桥","改建","县水利局","县水利局\n张勋","酒店镇","李庄村","是","重建桥涵1座跨数、跨度、桥面宽为1m*4m*6m","2023年12月15日前",30,30,null,"重建桥涵1座，改善群众生产生活设施条件","拆除重建桥涵1座",{"v":1,"d":"100%"},{"v":1,"d":"100%"},{"$nulls":4},60,230,null,null,"≥95%","参与项目申报、实施过程监督、竣工后受益","以小型农田水利设施建设的形式，改善产业基础设施条件，助力产业发展"]
[369,"\n农村基础设施（含产业配套基础设施）\n农村道路建设（通村路、通户路、小型桥梁等）\n","拆除重建丰庄桥","改建","县水利局","县水利局\n张勋","张庄寨镇","崔口村","否","重建桥涵1座，跨数、跨度、桥面宽为2m*10m*6m。","2023年12月15日前",160,160,null,"重建桥涵1座，改善群众生产生活设施条件","拆除重建桥涵1座",{"v":1,"d":"100%"},{"v":1,"d":"100%"},{"$nulls":4},75,300,null,null,"≥95%","参与项目申报、实施过程监督、竣工后受益","以小型农田水利设施建设的形式，改善产业基础设施条件，助力产业发展"]
[370,"\n农村基础设施（含产业配套基础设施）\n农村道路建设（通村路、通户路、小型桥梁等）\n","拆除重建小屯桥","改建","县水利局","县水利局\n张勋","张庄寨镇","崔口村","否","重建桥涵1座，跨数、跨度、桥面宽为2m*10m*6m。","2023年12月15日前",160,160,null,"重建桥涵1座，改善群众生产生活设施条件","拆除重建桥涵1座",{"v":1,"d":"100%"},{"v":1,"d":"100%"},{"$nulls":4},90,370,null,null,"≥95%","参与项目申报、实施过程监督、竣工后受益","以小型农田水利设施建设的形式，改善产业基础设施条件，助力产业发展"]
[371,"\n农村基础设施（含产业配套基础设施）\n农村道路建设（通村路、通户路、小型桥梁等）\n","拆除重建雷楼桥","改建","县水利局","县水利局\n张勋","张庄寨镇","张庄寨村","否","重建桥涵1座，跨数、跨度、桥面宽为1m*8m*6m。","2023年12月15日前",48,48,null,"重建桥涵1座，改善群众生产生活设施条件","拆除重建桥涵1座",{"v":1,"d":"100%"},{"v":1,"d":"100%"},{"$nulls":4},50,180,null,null,"≥95%","参与项目申报、实施过程监督、竣工后受益","以小型农田水利设施建设的形式，改善产业基础设施条件，助力产业发展"]
[372,"\n农村基础设施（含产业配套基础设施）\n农村道路建设（通村路、通户路、小型桥梁等）\n","拆除重建褚洼桥","改建","县水利局","县水利局\n张勋","张庄寨镇","张庄寨村","否","重建桥涵1座，跨数、跨度、桥面宽为1m*10m*6m。","2023年12月15日前",60,60,null,"重建桥涵1座，改善群众生产生活设施条件","拆除重建桥涵1座",{"v":1,"d":"100%"},{"v":1,"d":"100%"},{"$nulls":4},70,260,null,null,"≥95%","参与项目申报、实施过程监督、竣工后受益","以小型农田水利设施建设的形式，改善产业基础设施条件，助力产业发展"]
[373,"\n农村基础设施（含产业配套基础设施）\n农村道路建设（通村路、通户路、小型桥梁等）\n","拆除重建锦桥村北桥","改建","县水利局","县水利局\n张勋","张庄寨镇","张庄寨村","否","重建桥涵1座，跨数、跨度、桥面宽为2m*10m*6m。","2023年12月15日前",160,160,null,"重建桥涵1座，改善群众生产生活设施条件","拆除重建桥涵1座",{"v":1,"d":"100%"},{"v":1,"d":"100%"},{"$nulls":4},120,450,null,null,"≥95%","参与项目申报、实施过程监督、竣工后受益","以小型农田水利设施建设的形式，改善产业基础设施条件，助力产业发展"]
[374,"\n农村基础设施（含产业配套基础设施）\n农村道路建设（通村路、通户路、小型桥梁等）\n","拆除重建洪河桥","改建","县水利局","县水利局\n张勋","张庄寨镇","洪河村","是","重建桥涵1座，跨数、跨度、桥面宽为2m*10m*6m。","2023年12月15日前",160,160,null,"重建桥涵1座，改善群众生产生活设施条件","拆除重建桥涵1座",{"v":1,"d":"100%"},{"v":1,"d":"100%"},{"$nulls":4},130,500,null,null,"≥95%","参与项目申报、实施过程监督、竣工后受益","以小型农田水利设施建设的形式，改善产业基础设施条件，助力产业发展"]
[375,"\n农村基础设施（含产业配套基础设施）\n农村道路建设（通村路、通户路、小型桥梁等）\n","拆除重建任庄桥","改建","县水利局","县水利局\n张勋","张庄寨镇","张庄寨村","否","重建桥涵1座，跨数、跨度、桥面宽为2m*10m*6m。","2023年12月15日前",160,160,null,"重建桥涵1座，改善群众生产生活设施条件","拆除重建桥涵1座",{"v":1,"d":"100%"},{"v":1,"d":"100%"},{"$nulls":4},120,430,null,null,"≥95%","参与项目申报、实施过程监督、竣工后受益","以小型农田水利设施建设的形式，改善产业基础设施条件，助力产业发展"]
[376,"\n农村基础设施（含产业配套基础设施）\n农村道路建设（通村路、通户路、小型桥梁等）\n","维修加固罗楼桥","维修","县水利局","县水利局\n张勋","青龙集镇","张鲁庄村","否","维修桥面、挡土墙","2023年12月15日前",30,30,null,"维修加固桥涵1座，改善群众生产生活设施条件","维修加固桥涵1座",{"v":1,"d":"100%"},{"v":1,"d":"100%"},{"$nulls":4},90,350,null,null,"≥95%","参与项目申报、实施过程监督、竣工后受益","以小型农田水利设施建设的形式，改善产业基础设施条件，助力产业发展"]
[377,"\n农村基础设施（含产业配套基础设施）\n农村道路建设（通村路、通户路、小型桥梁等）\n","拆除重建友谊桥","改建","县水利局","县水利局\n张勋","官桥镇","高庄村","否","重建桥涵1座，跨数、跨度、桥面宽为1m*6m*8m。","2023年12月15日前",50,50,null,"重建桥涵1座，改善群众生产生活设施条件","拆除重建桥涵1座",{"v":1,"d":"100%"},{"v":1,"d":"100%"},{"$nulls":4},120,500,null,null,"≥95%","参与项目申报、实施过程监督、竣工后受益","以小型农田水利设施建设的形式，改善产业基础设施条件，助力产业发展"]
[378,"\n农村基础设施（含产业配套基础设施）\n农村道路建设（通村路、通户路、小型桥梁等）\n","拆除重建灌沟河桥","改建","县水利局","县水利局\n张勋","官桥镇","赵楼村","是","重建桥涵1座，跨数、跨度、桥面宽为1m*13m*6m。","2023年12月15日前",90,90,null,"重建桥涵1座，改善群众生产生活设施条件","拆除重建桥涵1座",{"v":1,"d":"100%"},{"v":1,"d":"100%"},{"$nulls":4},130,500,null,null,"≥95%","参与项目申报、实施过程监督、竣工后受益","以小型农田水利设施建设的形式，改善产业基础设施条件，助力产业发展"]
[379,"\n农村基础设施（含产业配套基础设施）\n农村道路建设（通村路、通户路、小型桥梁等）\n","拆除重建王庄桥","改建","县水利局","县水利局\n张勋","赵庄镇","九店村","否","重建桥涵1座，跨数、跨度、桥面宽为1m*6m*6m。","2023年12月15日前",40,40,null,"重建桥涵1座，改善群众生产生活设施条件","拆除重建桥涵1座",{"v":1,"d":"100%"},{"v":1,"d":"100%"},{"$nulls":4},60,230,null,null,"≥95%","参与项目申报、实施过程监督、竣工后受益","以小型农田水利设施建设的形式，改善产业基础设施条件，助力产业发展"]
[380,"\n农村基础设施（含产业配套基础设施）\n农村道路建设（通村路、通户路、小型桥梁等）\n","维修加固袁庄桥","维修","县水利局","县水利局\n张勋","赵庄镇","张朴楼村","否","重建桥涵1座，跨数、跨度、桥面宽为2m*10m*6m。","2023年12月15日前",120,120,null,"维修加固桥涵1座，改善群众生产生活设施条件","维修加固桥涵1座",{"v":1,"d":"100%"},{"v":1,"d":"100%"},{"$nulls":4},150,550,null,null,"≥95%","参与项目申报、实施过程监督、竣工后受益","以小型农田水利设施建设的形式，改善产业基础设施条件，助力产业发展"]
[381,"\n农村基础设施（含产业配套基础设施）\n农村道路建设（通村路、通户路、小型桥梁等）\n","维修加固郭庄桥","维修","县水利局","县水利局\n张勋","赵庄镇","王汉集村","是","维修桥面、挡土墙和护栏","2023年12月15日前",50,50,null,"维修加固桥涵1座，改善群众生产生活设施条件","维修加固桥涵1座",{"v":1,"d":"100%"},{"v":1,"d":"100%"},{"$nulls":4},110,430,null,null,"≥95%","参与项目申报、实施过程监督、竣工后受益","以小型农田水利设施建设的形式，改善产业基础设施条件，助力产业发展"]
[382,"\n农村基础设施（含产业配套基础设施）\n农村道路建设（通村路、通户路、小型桥梁等）\n","拆除重建胡庄桥","改建","县水利局","县水利局\n张勋","黄口镇","杨阁村","否","重建桥涵1座，跨数、跨度、桥面宽为1m*6m*6m。","2023年12月15日前",12,12,null,"重建桥涵1座，改善群众生产生活设施条件","拆除重建桥涵1座",{"v":1,"d":"100%"},{"v":1,"d":"100%"},{"$nulls":4},60,230,null,null,"≥95%","参与项目申报、实施过程监督、竣工后受益","以小型农田水利设施建设的形式，改善产业基础设施条件，助力产业发展"]
[383,"\n农村基础设施（含产业配套基础设施）\n农村道路建设（通村路、通户路、小型桥梁等）\n","维修加固黑楼桥","维修","县水利局","县水利局\n张勋","黄口镇","张寨村","否","维修挡土墙和护栏","2023年12月15日前",20,20,null,"维修加固桥涵1座，改善群众生产生活设施条件","维修加固桥涵1座",{"v":1,"d":"100%"},{"v":1,"d":"100%"},{"$nulls":4},50,180,null,null,"≥95%","参与项目申报、实施过程监督、竣工后受益","以小型农田水利设施建设的形式，改善产业基础设施条件，助力产业发展"]
[384,"\n农村基础设施（含产业配套基础设施）\n农村道路建设（通村路、通户路、小型桥梁等）\n","维修加固梁吴楼桥","维修","县水利局","县水利局\n张勋","黄口镇","张寨村","否","维修桥面、挡土墙和护栏","2023年12月15日前",10,10,null,"维修加固桥涵1座，改善群众生产生活设施条件","维修加固桥涵1座",{"v":1,"d":"100%"},{"v":1,"d":"100%"},{"$nulls":4},45,160,null,null,"≥95%","参与项目申报、实施过程监督、竣工后受益","以小型农田水利设施建设的形式，改善产业基础设施条件，助力产业发展"]
[385,"\n农村基础设施（含产业配套基础设施）\n农村道路建设（通村路、通户路、小型桥梁等）\n","拆除重建欧井东北桥","改建","县水利局","县水利局\n张勋","黄口镇","马常庄村","是","重建桥涵1座，跨数、跨度、桥面宽为1m*5m*6m。","2023年12月15日前",{"$f":"M397+N397","v":30},30,null,"重建桥涵1座，改善群众生产生活设施条件","拆除重建桥涵1座",{"v":1,"d":"100%"},{"v":1,"d":"100%"},{"$nulls":4},35,130,null,null,"≥95%","参与项目申报、实施过程监督、竣工后受益","以小型农田水利设施建设的形式，改善产业基础设施条件，助力产业发展"]
[386,"\n农村基础设施（含产业配套基础设施）\n农村道路建设（通村路、通户路、小型桥梁等）\n","拆除重建黄坝东南桥","改建","县水利局","县水利局\n张勋","黄口镇","唐庄村","否","重建桥涵1座，跨数、跨度、桥面宽为1m*5m*6m。","2023年12月15日前",20,20,null,"重建桥涵1座，改善群众生产生活设施条件","拆除重建桥涵1座",{"v":1,"d":"100%"},{"v":1,"d":"100%"},{"$nulls":4},45,140,null,null,"≥95%","参与项目申报、实施过程监督、竣工后受益","以小型农田水利设施建设的形式，改善产业基础设施条件，助力产业发展"]
[387,"\n农村基础设施（含产业配套基础设施）\n农村道路建设（通村路、通户路、小型桥梁等）\n","维修加固胡庄东桥","维修","县水利局","县水利局\n张勋","黄口镇","唐庄村","否","维修桥面和护栏","2023年12月15日前",10,10,null,"维修加固桥涵1座，改善群众生产生活设施条件","维修加固桥涵1座",{"v":1,"d":"100%"},{"v":1,"d":"100%"},{"$nulls":4},40,150,null,null,"≥95%","参与项目申报、实施过程监督、竣工后受益","以小型农田水利设施建设的形式，改善产业基础设施条件，助力产业发展"]
[388,"\n农村基础设施（含产业配套基础设施）\n农村道路建设（通村路、通户路、小型桥梁等）\n","拆除重建老黄口桥","改建","县水利局","县水利局\n张勋","黄口镇","老黄口村","否","重建桥涵1座，跨数、跨度、桥面宽为1m*10m*6m。","2023年12月15日前",70,70,null,"重建桥涵1座，改善群众生产生活设施条件","拆除重建桥涵1座",{"v":1,"d":"100%"},{"v":1,"d":"100%"},{"$nulls":4},65,260,null,null,"≥95%","参与项目申报、实施过程监督、竣工后受益","以小型农田水利设施建设的形式，改善产业基础设施条件，助力产业发展"]
[389,"\n农村基础设施（含产业配套基础设施）\n农村道路建设（通村路、通户路、小型桥梁等）\n","拆除重建窦庄桥","改建","县水利局","县水利局\n张勋","永堌镇","窦庄村","是","重建桥涵1座，跨数、跨度、桥面宽为1m*6m*6m。","2023年12月15日前",40,40,null,"重建桥涵1座，改善群众生产生活设施条件","拆除重建桥涵1座",{"v":1,"d":"100%"},{"v":1,"d":"100%"},{"$nulls":4},1238,3830,null,null,"≥95%","参与项目申报、实施过程监督、竣工后受益","以小型农田水利设施建设的形式，改善产业基础设施条件，助力产业发展"]
[390,"\n农村基础设施（含产业配套基础设施）\n农村道路建设（通村路、通户路、小型桥梁等）\n","拆除重建单金桥","改建","县水利局","县水利局\n张勋","圣泉镇","单楼村","否","重建桥涵1座，跨数、跨度、桥面宽为1m*5m*6m。","2023年12月15日前",30,30,null,"重建桥涵1座，改善群众生产生活设施条件","拆除重建桥涵1座",{"v":1,"d":"100%"},{"v":1,"d":"100%"},{"$nulls":4},65,240,null,null,"≥95%","参与项目申报、实施过程监督、竣工后受益","以小型农田水利设施建设的形式，改善产业基础设施条件，助力产业发展"]
[391,"\n农村基础设施（含产业配套基础设施）\n农村道路建设（通村路、通户路、小型桥梁等）\n","拆除重建单楼西北桥","改建","县水利局","县水利局\n张勋","圣泉镇","单楼村","否","重建桥涵1座，跨数、跨度、桥面宽为1m*6m*6m。","2023年12月15日前",40,40,null,"重建桥涵1座，改善群众生产生活设施条件","拆除重建桥涵1座",{"v":1,"d":"100%"},{"v":1,"d":"100%"},{"$nulls":4},50,180,null,null,"≥95%","参与项目申报、实施过程监督、竣工后受益","以小型农田水利设施建设的形式，改善产业基础设施条件，助力产业发展"]
[392,"\n农村基础设施（含产业配套基础设施）\n农村道路建设（通村路、通户路、小型桥梁等）\n","拆除重建车牛返桥","改建","县水利局","县水利局\n张勋","杜楼镇","孟尧村","否","重建桥涵1座，跨数、跨度、桥面宽为3m*10m*8m","2023年12月15日前",260,260,null,"重建桥涵1座，改善群众生产生活设施条件","拆除重建桥涵1座",{"v":1,"d":"100%"},{"v":1,"d":"100%"},{"$nulls":4},230,850,null,null,"≥95%","参与项目申报、实施过程监督、竣工后受益","以小型农田水利设施建设的形式，改善产业基础设施条件，助力产业发展"]
[393,"\n农村基础设施（含产业配套基础设施）\n农村道路建设（通村路、通户路、小型桥梁等）\n","维修加固白米山闸","维修","县水利局","县水利局\n张勋","庄里镇","庄里村","否","维修消力池、底脚木等","2023年12月15日前",70,70,null,"维修加固涵闸1处，改善群众生产生活设施条件","维修加固涵闸1处",{"v":1,"d":"100%"},{"v":1,"d":"100%"},{"$nulls":4},173,900,null,null,"≥95%","参与项目申报、实施过程监督、竣工后受益","以小型农田水利设施建设的形式，改善产业基础设施条件，助力产业发展"]
[394,"\n农村基础设施（含产业配套基础设施）\n农村道路建设（通村路、通户路、小型桥梁等）\n","官桥镇“进村入户”道路商砼、石子采购项目","改建","县交通运输局","官桥镇\n张伟建","官桥镇","赵楼等村","/","采购商砼约11000立方米、石子约2600方用于进村入户道路改建，及道路安防设施","2023年12月15日前",{"$f":"M406+N406","v":575},575,null,"建设道路长不少于11公里，改善脱贫人口生产生活设施条件，提升村内基础设施水平。","采购商砼约11000立方米、石子约2600方用于进村入户道路改建",{"v":1,"d":"100%"},{"v":1,"d":"100%"},"/","/","/","/",3600,18500,null,null,"≥95%","项目申报、实施过程务工和监督、竣工后受益","以道路建设的形式，改善村内基础设施条件，提升脱贫人口出行水平"]
[395,"\n农村基础设施（含产业配套基础设施）\n农村道路建设（通村路、通户路、小型桥梁等）\n","官桥镇高庄村道路建设项目","改建","县交通运输局","官桥镇\n张伟建","官桥镇","高庄村","否","改建道路4公里，约20250平方泊油路；新建泊油路3公里，约12100平方；道路安防4000米及相关附属设施","2023年12月15日前",540,540,null,"改建/新建道路7公里，改善脱贫人口生产生活设施条件，提升村内基础设施水平","改建道路4公里，约20250平方泊油路；新建泊油路3公里，约12100平方；道路安防护栏4000米；道路标识、凸透镜及爆闪灯共计40个。",{"v":1,"d":"100%"},{"v":1,"d":"100%"},"/","/","/","/",1800,6200,null,null,"≥95%","项目申报、实施过程务工和监督、竣工后受益","以道路建设的形式，改善村内基础设施条件，提升脱贫人口出行水平"]
[396,"\n农村基础设施（含产业配套基础设施）\n农村道路建设（通村路、通户路、小型桥梁等）\n","大屯镇“进村入户”道路商砼、石子采购项目","改建","县交通运输局","大屯镇\n刘文芝","大屯镇","大屯、胡集、许楼、林楼、瓦房、张楼、土山、付庄、郭阁、南海、高楼、关庄等村","/","采购商砼约10800立方米、石子约4320方用于进村入户道路改建","2023年12月15日前",581,581,null,"建设道路长约13.5公里，改善脱贫人口生产生活设施条件，提升村内基础设施水平","采购商砼约10800立方米、石子约4320方用于进村入户道路改建",{"v":1,"d":"100%"},{"v":1,"d":"100%"},"/","/","/","/",361,1536,null,null,"≥95%","项目申报、实施过程务工和监督、竣工后受益","以道路建设的形式，改善村内基础设施条件，提升脱贫人口出行水平"]
[397,"\n农村基础设施（含产业配套基础设施）\n农村道路建设（通村路、通户路、小型桥梁等）\n","庄里镇“进村入户”商砼、石子采购项目","改建","县交通运输局","庄里镇\n孟卫东","庄里镇","庄里、高庄等村","/","采购商砼约9750立方、石子3250立方，用于进村入户道路改建","2023年12月15日前",550,550,null,"建设道路不低于15公里，改善脱贫人口生产生活设施条件，提升村内基础设施水平","采购商砼约9750立方、石子3250立方，用于进村入户道路改建",{"v":1,"d":"100%"},{"v":1,"d":"100%"},"/","/","/","/",2110,6520,null,null,"≥95%","项目申报、实施过程务工和监督、竣工后受益","以道路建设的形式，改善村内基础设施条件，提升脱贫人口出行水平"]
[398,"\n农村基础设施（含产业配套基础设施）\n农村道路建设（通村路、通户路、小型桥梁等）\n","白土镇“进村入户”道路商砼、石子采购项目","改建","县交通运输局","白土镇\n魏东","白土镇","费村社区、白土社区、董店村、张村等","/","采购商砼9957.6立方米，采购石子3570立方米，用于进村入户道路改建","2023年12月15日前",520.5,520.5,null,"建设道路不低于9公里，改善脱贫人口生产生活设施条件，提升村内基础设施水平","采购商砼9957.6立方米，采购石子3570立方米，用于进村入户道路改建",{"v":1,"d":"100%"},{"v":1,"d":"100%"},"/","/","/","/",3026,9078,null,null,"≥95%","项目申报、实施过程监督、竣工后群众生产出行方便出行。","以道路建设的形式，改善村内基础设施条件，提升脱贫人口出行水平"]
[399,"\n农村基础设施（含产业配套基础设施）\n农村道路建设（通村路、通户路、小型桥梁等）\n","刘套镇“进村入户”道路商砼、石子采购项目","改建","县交通运输局","刘套镇\n李磊","刘套镇","徐安村等","/","采购商砼约15000立方米、石子约5350方用于进村入户道路改建","2023年12月15日前",620,620,null,"建设道路长约15公里，改善脱贫人口生产生活设施条件，提升村内基础设施水平","采购商砼约15000立方米、石子约5350方",{"v":1,"d":"100%"},{"v":1,"d":"100%"},"/","/","/","/",1035,3746,null,null,"≥95%","项目申报、实施过程监督、竣工后群众生产出行方便出行。","以道路建设的形式，改善村内基础设施条件，提升脱贫人口出行水平"]
[400,"\n农村基础设施（含产业配套基础设施）\n农村道路建设（通村路、通户路、小型桥梁等）\n","丁里镇“进村入户”道路商砼、石子采购项目","新建","县交通运输局","丁里镇\n谷海粟","丁里镇","丁里、许堂、武寺等村","/","采购商砼约10924.9125方、石子约3618.7375方用于进村入户道路建设","2023年12月15日前",560,560,null,"建设道路长约23.2075公里，改善脱贫人口生产生活设施条件，提升村内基础设施水平","采购商砼约10924.9125方、石子约3618.7375方用于进村入户道路建设",{"v":1,"d":"100%"},{"v":1,"d":"100%"},"/","/","/","/",2391,8446,null,null,"≥95%","项目申报、实施过程务工和监督、竣工后受益","以道路建设的形式，改善村内基础设施条件，提升脱贫人口出行水平"]
[401,"\n农村基础设施（含产业配套基础设施）\n农村道路建设（通村路、通户路、小型桥梁等）\n","石林乡“进村入户”道路商砼、石子采购项目","改建","县交通运输局","石林乡\n杨超峰","石林乡","石林、李庄、陶楼、崔阁、朱大楼、魏楼村","/","采购商混约8800方、石子约3000方用于进村入户道路改建","2023年12月15日前",550,550,null,"建设道路长不少于11公里，改善脱贫人口生产生活设施条件，提升村内基础设施水平","采购商混约8800方、石子约3000方用于进村入户道路改建",{"v":1,"d":"100%"},{"v":1,"d":"100%"},"/","/","/","/",4375,16213,null,null,"≥95%","项目申报、实施过程务工和监督、竣工后受益","以道路建设的形式，改善村内基础设施条件，提升脱贫人口出行水平"]
[402,"\n农村基础设施（含产业配套基础设施）\n农村道路建设（通村路、通户路、小型桥梁等）\n","祖楼镇“进村入户”道路商砼、石子采购项目","改建","县交通运输局","祖楼镇\n吴英","祖楼镇","石桥村、穆寨村、孟苏庄村、王楼村等","/","采购商砼约9900立方米、石子约4100方用于进村入户道路改建","2023年12月15日前",550,550,null,"建设道路长约9.5公里，改善脱贫人口生产生活设施条件，提升村内基础设施水平","采购商砼约9900立方米、石子约4100方用于进村入户道路改建",{"v":1,"d":"100%"},{"v":1,"d":"100%"},"/","/","/","/",1500,5000,null,null,"≥95%","项目申报、实施过程务工和监督、竣工后受益","以道路建设的形式，改善村内基础设施条件，提升脱贫人口出行水平"]
[403,"\n农村基础设施（含产业配套基础设施）\n农村道路建设（通村路、通户路、小型桥梁等）\n","王寨镇“进村入户”道路商砼、石子采购项目","改建","县交通运输局","王寨镇\n王亚华","王寨镇","戴柿元村、杨集村、三座楼村、苏庄村、李楼村、齐庄村、张楼村、王集村、郝洼、王寨村、吴河涯村、吴丛村、大演武村等","/","采购商混约13000方、石子约5600方用于进村入户道路改建","2023年12月15日前",700,700,null,"建设道路长约17公里，改善脱贫人口生产生活设施条件，提升村内基础设施水平","采购商混约13000方、石子约5600方用于进村入户道路改建",{"v":1,"d":"100%"},{"v":1,"d":"100%"},"/","/","/","/",1080,1980,null,null,"≥95%","项目申报、实施过程务工和监督、竣工后受益","以道路建设的形式，改善村内基础设施条件，提升脱贫人口出行水平"]
[404,"\n农村基础设施（含产业配套基础设施）\n农村道路建设（通村路、通户路、小型桥梁等）\n","孙圩子镇马周路至省道101段道路及排水沟","改建","县交通运输局","孙圩子镇\n张康","孙圩子镇","周圩村","是","改建马周路至省道101段水泥路面，宽6米、厚20厘米、垫层20厘米、长3.5公里；新建涵管下水道0.4公里及50个入水口","2023年12月15日前",490,490,null,"建成马周路至省道101段水泥路面，宽6米、厚20厘米、垫层20厘米、长3.5公里；新建涵管下水道0.4公里及50个入水口","建成后极大改善港河、马庄、周圩三个脱贫村群众的出行。提升人口外出务工出行便捷。",{"v":1,"d":"100%"},{"v":1,"d":"100%"},"/","/","/","/",1947,6499,null,null,"≥95%","参与项目申报、实施过程监督、竣工后受益","以改建道路的形式，为贫困户长久可持续发展提供便利"]
[405,"\n农村基础设施（含产业配套基础设施）\n农村道路建设（通村路、通户路、小型桥梁等）\n","孙圩子镇马庄村葡萄园至神树路口道路硬化项目","改建","县交通运输局","孙圩子镇\n张康","孙圩子镇","马庄村","是","神树路口至马庄葡萄园路口长2350米、宽6米，厚度20厘米、垫层20厘米；附带排水沟上口3米、下口1米","2023年12月15日前",460,460,null,"神树路口至马庄葡萄园路口长2350米、宽6米，厚度20厘米、垫层20厘米；附带排水沟上口3米、下口1米","神树路口至马庄葡萄园路口长2350米、宽6米，厚度20厘米、垫层20厘米；附带排水沟上口3米、下口1米",{"v":1,"d":"100%"},{"v":1,"d":"100%"},"/","/","/","/",1850,5325,null,null,"≥95%","项目申报、实施过程务工和监督、竣工后受益","以道路建设的形式，改善村内基础设施条件，提升脱贫人口出行水平"]
[406,"\n农村基础设施（含产业配套基础设施）\n农村道路建设（通村路、通户路、小型桥梁等）\n","孙圩子镇“进村入户”道路商砼、石子采购项目","新建","县交通运输局","孙圩子镇\n张康","孙圩子镇","孙圩子、程蒋山、王庄、徐双楼、港河、马庄、丁楼、徐里、周圩、侯楼等","/","采购商砼约9000立方米、石子约5000立方米用于进村入户道路改建，建设道路长约10公里。","2023年12月15日前",500,500,null,"建成道路不少于10公里，改善脱贫人口生产生活设施条件，提升村内基础设施水平","采购商砼约9000立方米、石子约5000立方米用于进村入户道路建设",{"v":1,"d":"100%"},{"v":1,"d":"100%"},"/","/","/","/",2647,8799,null,null,"≥95%","参与项目申报、实施过程监督、竣工后受益","以改建道路的形式，为贫困户长久可持续发展提供便利"]
[407,"\n农村基础设施（含产业配套基础设施）\n农村道路建设（通村路、通户路、小型桥梁等）\n","杨楼镇“进村入户”道路商砼、石子采购项目","改建","县交通运输局","杨楼镇\n黄蓓蓓","杨楼镇","孙庄社区、新廷社区、路套村、裴庄村、冯场村等","/","采购商砼约14080立方米、石子约7220方用于进村入户道路改建","2023年12月15日前",790,790,null,"建设道路长约17.6公里，改善脱贫人口生产生活设施条件，提升村内基础设施水平","采购商砼约14080立方米、石子约7220方用于进村入户道路改建",{"v":1,"d":"100%"},{"v":1,"d":"100%"},"/","/","/","/",3447,10263,null,null,"≥95%","项目申报、实施过程务工和监督、竣工后受益","以道路建设的形式，改善村内基础设施条件，提升脱贫人口出行水平"]
[408,"\n农村基础设施（含产业配套基础设施）\n农村道路建设（通村路、通户路、小型桥梁等）\n","永堌镇“进村入户”道路商砼、石子采购项目","改建","县交通运输局","永堌镇\n任精芳","永堌镇","胜利、王山窝、窦庄、许岗子村","/","采购商砼约9037立方米、石子约3012方用于进村入户道路改建","2023年12月15日前",500,500,null,"建设道路长约23.8公里，改善脱贫人口生产生活设施条件，提升村内基础设施水平","采购商砼约9037立方米、石子约3012方用于进村入户道路改建",{"v":1,"d":"100%"},{"v":1,"d":"100%"},"/","/","/","/",2024,6326,null,null,"≥95%","项目申报、实施过程务工和监督、竣工后受益","以道路建设的形式，改善村内基础设施条件，提升脱贫人口出行水平"]
[409,"\n农村基础设施（含产业配套基础设施）\n农村道路建设（通村路、通户路、小型桥梁等）\n","新庄镇“进村入户”道路商砼、石子采购项目","改建","县交通运输局","新庄镇\n杨宜成","新庄镇","居委会等15个村","/","采购商砼约14984立方、石子约4930方用于进村入户道路改建","2023年12月15日前",800,800,null,"建建设道路长约17.76公里，改善脱贫人口生产生活设施条件，提升村内基础设施水平","采购商砼约14984立方、石子约4930方用于进村入户道路改建",{"v":1,"d":"100%"},{"v":1,"d":"100%"},"/","/","/","/",5200,16200,null,null,"≥95%","项目申报、实施过程务工和监督、竣工后受益","以道路建设的形式，改善村内基础设施条件，提升脱贫人口出行水平"]
[410,"\n农村基础设施（含产业配套基础设施）\n农村道路建设（通村路、通户路、小型桥梁等）\n","新庄镇杜集村道路建设","改建","县交通运输局","新庄镇\n杨宜成","新庄镇","杜集村","否","杜集村柏油长1公里宽5米厚5公分","2023年12月15日前",100,100,null,"改建道路1公里，改善脱贫人口生产生活设施条件，提升村内基础设施水平","改建道路1公里",{"v":1,"d":"100%"},{"v":1,"d":"100%"},"/","/","/","/",1854,6725,null,null,"≥95%","项目申报、实施过程务工和监督、竣工后受益","以道路建设的形式，改善村内基础设施条件，提升脱贫人口出行水平"]
[411,"\n农村基础设施（含产业配套基础设施）\n农村道路建设（通村路、通户路、小型桥梁等）\n","新庄镇杜集村道路建设","改建","县交通运输局","新庄镇\n杨宜成","新庄镇","杜集村","否","杜集村水泥路面5公里宽3.5米厚20厘米","2023年12月15日前",400,400,null,"改建道路5公里，改善脱贫人口生产生活设施条件，提升村内基础设施水平","改建道路5公里",{"v":1,"d":"100%"},{"v":1,"d":"100%"},"/","/","/","/",1854,6725,null,null,"≥95%","项目申报、实施过程务工和监督、竣工后受益","以道路建设的形式，改善村内基础设施条件，提升脱贫人口出行水平"]
[412,"\n农村基础设施（含产业配套基础设施）\n农村道路建设（通村路、通户路、小型桥梁等）\n","杜楼镇“进村入户”道路商砼、石子采购项目","改建","县交通运输局","杜楼镇\n许剑","杜楼镇","杜庄、杜老楼、郝新庄、小圩子、红庙等村","/","采购商混约15750方、石子约4500方用于进村入户道路改建","2023年12月15日前",730,730,null,"建设道路长不少于24公里，改善脱贫人口生产生活设施条件，提升村内基础设施水平","采购商混约15750方、石子约4500方",{"v":1,"d":"100%"},{"v":1,"d":"100%"},"/","/","/","/",6230,21023,null,null,"≥95%","项目申报、实施过程务工和监督、竣工后受益","以道路建设的形式，改善村内基础设施条件，提升脱贫人口出行水平"]
[413,"\n农村基础设施（含产业配套基础设施）\n农村道路建设（通村路、通户路、小型桥梁等）\n","黄口镇“进村入户”道路商砼、石子采购项目","新建","县交通运输局","黄口镇\n杨梅","黄口镇","瓦房、镇北社区、镇南社区、镇东社区、镇中社区、朱庄村、唐庄村等","/","采购商混约10000方、石子约3300方用于进村入户道路改建","2023年12月15日前",520,520,null,"建设道路长不少于10公里，改善脱贫人口生产生活设施条件，提升村内基础设施水平","采购商混约10000方、石子约3300方用于进村入户道路改建",{"v":1,"d":"100%"},{"v":1,"d":"100%"},"/","/","/","/",2400,5200,null,null,"≥95%","项目申报、实施过程务工和监督、竣工后受益","以道路建设的形式，改善村内基础设施条件，提升脱贫人口出行水平"]
[414,"\n农村基础设施（含产业配套基础设施）\n农村道路建设（通村路、通户路、小型桥梁等）\n","圣泉镇“进村入户”道路商砼、石子采购项目","改建","县交通运输局","圣泉镇\n田野","圣泉镇","穆集、北城集、金黄庄等社区","/","采购商砼约9422立方米、石子约6174方用于进村入户道路改建","2023年12月15日前",750,750,null,"建设道路长约18公里，改善脱贫人口生产生活设施条件，提升村内基础设施水平","建设道路长约18公里",{"v":1,"d":"100%"},{"v":1,"d":"100%"},"/","/","/","/",1362,4272,null,null,"≥95%","项目申报、实施过程务工和监督、竣工后受益","以道路建设的形式，改善村内基础设施条件，提升脱贫人口出行水平"]
[415,"\n农村基础设施（含产业配套基础设施）\n农村道路建设（通村路、通户路、小型桥梁等）\n","圣泉镇北城集社区进村入户“白改黑”项目","改建","县交通运输局","圣泉镇\n田野","圣泉镇","北城集社区","是","建设农村道路约7公里，路面宽约3.5米，铺设沥青路面。","2023年12月15日前",260,260,null,"改建道路长约7公里，改善脱贫人口生产生活设施条件，提升村内基础设施水平","改建道路长约7公里",{"v":1,"d":"100%"},{"v":1,"d":"100%"},"/","/","/","/",450,1568,null,null,"≥95%","项目申报、实施过程务工和监督、竣工后受益","以道路建设的形式，改善村内基础设施条件，提升脱贫人口出行水平"]
[416,"\n农村基础设施（含产业配套基础设施）\n农村道路建设（通村路、通户路、小型桥梁等）\n","青龙集“进村入户”农村道路建设","新建","县交通运输局","青龙集镇\n况美彩","青龙集镇","路口、黄月店等村","/","采购石子8000m³、商砼17300m³用于辖区内道路改建","2023年12月15日前",700,700,null,"建设道路长不少于35.469公里，改善脱贫人口生产生活设施条件，提升村内基础设施水平","采购石子8000m³、商砼17300m³用于辖区道路改建",{"v":1,"d":"100%"},{"v":1,"d":"100%"},"/","/","/","/","2891","9010",null,null,"≥95%","项目申报、实施过程监督、竣工后项目所在地受益","以改建道路的形式，为群众长久可持续发展提供便利"]
[417,"\n农村基础设施（含产业配套基础设施）\n农村道路建设（通村路、通户路、小型桥梁等）\n","赵庄镇“进村入户”道路商砼、石子采购项目","改建","县交通运输局","赵庄镇\n姜大郭","赵庄镇","大孙庄村、建华村、九店村、前韦村、三座楼村、孙大庙村、桃元村、汪屯村、王汉集村、吴蒋庄村、吴集村、张老庄、张朴楼社区、赵庄村","/","采购商砼约21230立方米、石子约5500方用于进村入户道路改建","2023年12月15日前",987,987,null,"改建道路长约25公里，改善脱贫人口生产生活设施条件，提升村内基础设施水平","采购商砼约21230立方米、石子约5500方用于进村入户道路改建",{"v":1,"d":"100%"},{"v":1,"d":"100%"},"/","/","/","/",13409,24780,null,null,"≥95%","项目申报、实施过程务工和监督、竣工后受益","以道路建设的形式，改善村内基础设施条件，提升脱贫人口出行水平"]
[418,"\n农村基础设施（含产业配套基础设施）\n农村道路建设（通村路、通户路、小型桥梁等）\n","闫集镇“进村入户”道路商砼、石子采购项目","改建","县交通运输局","闫集镇\n赵世成","闫集镇","孙老家村、赵堂村、闫集村、杨庄村、高楼村、刘店村、柳园村、孟楼村、塘沃涯村、汪楼村等","/","采购商砼约35600立方米、石子约17800方用于进村入户道路改建","2023年12月15日前",626.1,626.1,null,"建设道路长约44.5公里，改善脱贫人口生产生活设施条件，提升村内基础设施水平","采购商砼约35600立方米、石子约17800方用于进村入户道路改建",{"v":1,"d":"100%"},{"v":1,"d":"100%"},"/","/","/","/",3292,9105,null,null,"≥95%","项目申报、实施过程务工和监督、竣工后受益","以道路建设的形式，改善村内基础设施条件，提升脱贫人口出行水平"]
[419,"\n农村基础设施（含产业配套基础设施）\n农村道路建设（通村路、通户路、小型桥梁等）\n","龙城镇“进村入户”道路商砼、石子采购项目","改建","县交通运输局","龙城镇\n张跃","龙城镇","帽山村、王大庄村、姬村等","/","采购商混约12000方、石子约5600方用于进村入户道路改建","2023年12月15日前",540,540,null,"建设道路长不少于12公里，改善脱贫人口生产生活设施条件，提升村内基础设施水平","采购商混约12000方、石子约5600方用于进村入户道路改建",{"v":1,"d":"100%"},{"v":1,"d":"100%"},"/","/","/","/",1600,4700,null,null,"≥95%","项目申报、实施过程务工和监督、竣工后受益","以道路建设的形式，改善村内基础设施条件，提升脱贫人口出行水平"]
[420,"\n农村基础设施（含产业配套基础设施）\n农村道路建设（通村路、通户路、小型桥梁等）\n","龙城镇“进村入户”李台社区道路硬化项目","改建","县交通运输局","龙城镇\n张跃","龙城镇","李台社区","否","建设道路1公里，宽6米，20cm厚C30混凝土。","2023年12月15日前",90,90,null,"建设道路长不少于1公里，改善脱贫人口生产生活设施条件，提升村内基础设施水平","建设道路长不少于1公里",{"v":1,"d":"100%"},{"v":1,"d":"100%"},"/","/","/","/",300,670,null,null,"≥95%","项目申报、实施过程务工和监督、竣工后受益","以道路建设的形式，改善村内基础设施条件，提升脱贫人口出行水平"]
[421,"\n农村基础设施（含产业配套基础设施）\n农村道路建设（通村路、通户路、小型桥梁等）\n","张庄寨镇“进村入户”道路商砼、石子采购项目","改建","县交通运输局","张庄寨镇\n李宁","张庄寨镇","王衍庄、寿楼、河西、洪河、欧庙等16个村（社区）","/","采购商混约10000立方、石子约5000立方用于进村入户道路改建","2023年12月15日前",800,800,null,"建设道路长不少于15公里，改善脱贫人口生产生活设施条件，提升村内基础设施水平","采购商混约10000方、石子约5000方用于进村入户道路改建",{"v":1,"d":"100%"},{"v":1,"d":"100%"},"/","/","/","/",3400,6200,null,null,"≥95%","项目申报、实施过程务工和监督、竣工后受益","以道路建设的形式，改善村内基础设施条件，提升脱贫人口出行水平"]
[422,"\n农村基础设施（含产业配套基础设施）\n农村道路建设（通村路、通户路、小型桥梁等）\n","酒店镇“进村入户”道路商砼、石子采购项目","改建","县交通运输局","酒店镇\n杜龙升","酒店镇","东镇、和谐、赵圈、何寨等13个村","/","采购商砼约12000方、石子约6000方用于进村入户道路改建","2023年12月15日前",640,640,null,"建设道路长不少于20公里，改善脱贫人口生产生活设施条件，提升村内基础设施水平","采购商砼约12000方、石子约5000方用于进村入户道路改建",{"v":1,"d":"100%"},{"v":1,"d":"100%"},"/","/","/","/",1280,4500,null,null,"≥95%","项目申报、实施过程务工和监督、竣工后受益","以道路建设的形式，改善村内基础设施条件，提升脱贫人口出行水平"]
[423,"\n农村基础设施（含产业配套基础设施）\n农村道路建设（通村路、通户路、小型桥梁等）\n","马井镇“进村入户”道路商砼、石子采购项目","改建","县交通运输局","马井镇\n王伟强","马井镇","郝庄村、道口村、曲里铺村、麻堤口村、孙庄村等","/","采购商砼约14984立方、石子约4930方用于进村入户道路改建","2023年12月15日前",800,800,null,"建建设道路长约17.76公里，改善脱贫人口生产生活设施条件，提升村内基础设施水平","采购商砼约14984立方、石子约4930方用于进村入户道路改建",{"v":1,"d":"100%"},{"v":1,"d":"100%"},"/","/","/","/",3311,8530,null,null,"≥95%","完善农村基础设施建设条件，提升群众满意度","以改基础设施的形式，带动群众务工并增加收入，为群众长久可持续发展提供便利"]
[424,"\n农村基础设施（含产业配套基础设施）\n农村道路建设（通村路、通户路、小型桥梁等）\n","萧县村道安全防护工程","改建","县交通运输局","县交通运输局\n胡传伦","官桥、张庄寨、丁里、永堌等镇","吴集、吴庄等村","/","实施村道安全防护工程约159.296公里","2023年12月15日前",3185.7,null,3185.7,"实施村道安全防护工程约159.296公里","实施村道安全防护工程约159.296公里",{"v":1,"d":"100%"},{"v":1,"d":"100%"},"/","/","/","/",8000,26000,null,null,"≥95%","完善农村基础设施建设条件，提升群众满意度","以改基础设施的形式，带动群众务工并增加收入，为群众长久可持续发展提供便利"]
[425,"\n农村基础设施（含产业配套基础设施）\n农村道路建设（通村路、通户路、小型桥梁等）\n","萧县农村公路危桥改造工程","改建","县交通运输局","县交通运输局\n胡传伦","张庄寨镇","洪河村","是","实施危桥改造1座","2023年12月15日前",249,null,249,"实施危桥改造1座桥梁","实施危桥改造1座桥梁",{"v":1,"d":"100%"},{"v":1,"d":"100%"},{"$nulls":4},1455,5035,null,null,"≥95%","完善农村基础设施建设条件，提升群众满意度","以改基础设施的形式，带动群众务工并增加收入，为群众长久可持续发展提供便利"]
[426,"\n农村基础设施（含产业配套基础设施）\n农村道路建设（通村路、通户路、小型桥梁等）\n","萧县农村公路危桥改造工程","改建","县交通运输局","县交通运输局\n胡传伦","酒店镇","东镇村","否","实施危桥改造1座","2023年12月15日前",211.1,null,211.1,"实施危桥改造1座桥梁","实施危桥改造1座桥梁",{"v":1,"d":"100%"},{"v":1,"d":"100%"},{"$nulls":4},2014,6619,null,null,"≥95%","完善农村基础设施建设条件，提升群众满意度","以改基础设施的形式，带动群众务工并增加收入，为群众长久可持续发展提供便利"]
[427,"\n农村基础设施（含产业配套基础设施）\n农村道路建设（通村路、通户路、小型桥梁等）\n","萧县农村公路危桥改造工程","改建","县交通运输局","县交通运输局\n胡传伦","孙圩子镇","程蒋山村（蒋陈庄自然村）","否","实施危桥改造1座","2023年12月15日前",142,null,142,"实施危桥改造1座桥梁","实施危桥改造1座桥梁",{"v":1,"d":"100%"},{"v":1,"d":"100%"},{"$nulls":4},915,3059,null,null,"≥95%","完善农村基础设施建设条件，提升群众满意度","以改基础设施的形式，带动群众务工并增加收入，为群众长久可持续发展提供便利"]
[428,"\n农村基础设施（含产业配套基础设施）\n农村道路建设（通村路、通户路、小型桥梁等）\n","黄口镇大单庄联网路","改建","县交通运输局","县交通运输局\n胡传伦","黄口镇","徐洼村","否","改建道路约1.71公里","2023年12月15日前",205,null,205,"改建道路约1.71公里","改建道路约1.71公里",{"v":1,"d":"100%"},{"v":1,"d":"100%"},"/","/","/","/",303,909,null,null,"≥95%","完善农村基础设施建设条件，提升群众满意度","以改基础设施的形式，带动群众务工并增加收入，为群众长久可持续发展提供便利"]
[429,"\n农村基础设施（含产业配套基础设施）\n农村道路建设（通村路、通户路、小型桥梁等）\n","王寨镇张杨庄联网路","改建","县交通运输局","县交通运输局\n胡传伦","王寨镇","吴河涯村","是","改建道路约0.4公里","2023年12月15日前",48,null,48,"改建道路约0.4公里","改建道路约0.4公里",{"v":1,"d":"100%"},{"v":1,"d":"100%"},"/","/","/","/",180,540,null,null,"≥95%","完善农村基础设施建设条件，提升群众满意度","以改基础设施的形式，带动群众务工并增加收入，为群众长久可持续发展提供便利"]
[430,"\n农村基础设施（含产业配套基础设施）\n农村道路建设（通村路、通户路、小型桥梁等）\n","王寨镇张平楼联网路","改建","县交通运输局","县交通运输局\n胡传伦","王寨镇","吴河涯村","是","改建道路约0.469公里","2023年12月15日前",90,null,90,"改建道路约0.469公里","改建道路约0.469公里",{"v":1,"d":"100%"},{"v":1,"d":"100%"},"/","/","/","/",105,315,null,null,"≥95%","完善农村基础设施建设条件，提升群众满意度","以改基础设施的形式，带动群众务工并增加收入，为群众长久可持续发展提供便利"]
[431,"\n农村基础设施（含产业配套基础设施）\n农村道路建设（通村路、通户路、小型桥梁等）\n","王寨镇张双楼联网路","改建","县交通运输局","县交通运输局\n胡传伦","王寨镇","吴河涯村","是","改建道路约0.325公里","2023年12月15日前",50,null,50,"改建道路约0.325公里","改建道路约0.325公里",{"v":1,"d":"100%"},{"v":1,"d":"100%"},"/","/","/","/",67,201,null,null,"≥95%","完善农村基础设施建设条件，提升群众满意度","以改基础设施的形式，带动群众务工并增加收入，为群众长久可持续发展提供便利"]
[432,"\n农村基础设施（含产业配套基础设施）\n农村道路建设（通村路、通户路、小型桥梁等）\n","酒店镇何太楼联网路","改建","县交通运输局","县交通运输局\n胡传伦","酒店镇","何寨村","否","改建道路约1.1公里","2023年12月15日前",132,null,132,"改建道路约1.1公里","改建道路约1.1公里",{"v":1,"d":"100%"},{"v":1,"d":"100%"},"/","/","/","/",186,558,null,null,"≥95%","完善农村基础设施建设条件，提升群众满意度","以改基础设施的形式，带动群众务工并增加收入，为群众长久可持续发展提供便利"]
[433,"\n农村基础设施（含产业配套基础设施）\n农村道路建设（通村路、通户路、小型桥梁等）\n","萧县白土镇2023年以工代赈示范工程","改建","县发展改革委","白土镇\n魏东","白土镇","张村","是","1.河道断面修整；2.撇洪沟右岸新建 C25 钢筋砼扶壁式挡墙，长度 520m；3.撇洪沟左岸岸坡修整，坡比 1:2，采用120mm厚C25砼预制锁块护坡，护坡总长度410m；4.撇洪沟右岸扶壁式挡墙顶设置宽度1.5m人行步道，步道总长度520m","2023年12月15日前",1271,null,1271,"1.河道断面修整；2.撇洪沟右岸新建 C25 钢筋砼扶壁式挡墙，长度 520m；3.撇洪沟左岸岸坡修整，坡比 1:2，采用120mm厚C25砼预制锁块护坡，护坡总长度410m；4.撇洪沟右岸扶壁式挡墙顶设置宽度1.5m人行步道，步道总长度520m；挡墙墙后栽植柳树174棵","1. C25 钢筋砼扶壁式挡墙长度520m\n2.采用120mm厚C25砼预制锁块护坡，总长度410m\n3.人行步道总长度520m；\n4.挡墙墙后栽植柳树174棵",{"v":1,"d":"100%"},{"v":1,"d":"100%"},"/",54,null,229,3100,5800,null,null,"≥95%","项目申报、实施过程监督、竣工后项目所在地受益","通过财政资金投入，带动脱贫户和一般农户参与务工。"]
[434,"\n农村基础设施（含产业配套基础设施）\n农村道路建设（通村路、通户路、小型桥梁等）\n","萧县杨楼镇以工代赈项目","改建","县发展改革委","杨楼镇\n黄蓓蓓","杨楼镇","裴庄村、路套村、刘庄村、郜洼村","/","改建道路总长度 8.465 公里，其中：郜洼村改建道路长 1.952 公里，路面宽 3.5 米，厚 18 厘米;刘庄村改建道路长 2.086 公里、宽 3.5米、厚 18 厘米；路套村改建道路长 2.419 公里、宽 3.5 米、厚 18厘米；裴庄村改建道路长 2.008 公里、宽 3.5 米、厚 18 厘米。","2023年12月15日前",578.65,470,108.65,"改建道路总长度 8.465 公里","改建道路总长度 8.465 公里",{"v":1,"d":"100%"},{"v":1,"d":"100%"},"/",null,null,174,100,264,null,null,"≥95%","项目申报、实施过程监督、参与施工、竣工后项目所在地受益","以改基础设施的形式，带动群众务工并增加收入，为群众长久可持续发展提供便利"]
[435,"\n农村基础设施（含产业配套基础设施）\n农村道路建设（通村路、通户路、小型桥梁等）\n","黄口镇道路建设项目","改建","县发展改革委","黄口镇\n杨梅","黄口镇","徐洼村、朱庄村、邵庄村","否","建设道路约3.6公里、3.5米宽道路，18公分厚。","2023年12月15日前",196.3,196.3,null,"建设道路3.6公里","建设道路长3.6公里",{"v":1,"d":"100%"},{"v":1,"d":"100%"},"/",{"$nulls":3},1426,1864,null,null,"≥95%","参与项目申报、实施过程监督和建成后受益","通过财政资金投入，改建农村生产生活设施条件，提升群众满意度"]
[436,"\n农村基础设施（含产业配套基础设施）\n农村道路建设（通村路、通户路、小型桥梁等）\n","龙城镇王大庄村道路建设项目","改建","县发展改革委","龙城镇\n张跃","龙城镇","王大庄村","是","修建道路总长：1.85公里、宽3米、厚15cm水泥砼","2023年12月15日前",118,118,null,"修建道路总长：1.85公里、宽3米、厚15cm水泥砼；","道路修建 1.85 公里长",{"v":1,"d":"100%"},{"v":1,"d":"100%"},"/","/","/","/",223,377,null,null,"≥95%","项目申报、实施过程监督、竣工后项目所在地受益","以道路建设的形式，为脱贫人口长久可持续发展提供便利、农户以工代赈增加务工收入"]
[437,"\n农村基础设施（含产业配套基础设施）\n农村道路建设（通村路、通户路、小型桥梁等）\n","萧县黄口镇道路建设项目","改建","县发展改革委","黄口镇\n杨梅","黄口镇","孙庙等12个村（社区）","/","建设道路长12.5公里、3.5米宽，厚18公分道路","2023年12月15日前",700,700,null,"建设道路12.5公里，改善脱贫人口生产生活设施条件，提升村内基础设施水平","建设道路12.5公里",{"v":1,"d":"100%"},{"v":1,"d":"100%"},"/",{"$nulls":3},1425,1986,null,null,"≥95%","参与项目申报、实施过程监督和建成后受益","通过财政资金投入，改建农村生产生活设施条件，提升群众满意度"]
[438,"\n农村基础设施（含产业配套基础设施）\n农村道路建设（通村路、通户路、小型桥梁等）\n","杨楼镇刘庄村以工代赈项目","改建","县发展改革委","杨楼镇\n黄蓓蓓","杨楼镇","刘庄村","否","修建道路总长，2公里，宽4米，20cm厚混凝土","2023年12月15日前",150,150,null,"修建道路总长，2公里，宽4米，20cm厚混凝土","修建道路2公里",{"v":1,"d":"100%"},{"v":1,"d":"100%"},"/","/","/","/",573,1037,null,null,"≥95%","项目申报、实施过程监督、竣工后项目所在地受益","以道路建设的形式，为贫困户长久可持续发展提供便利"]
[439,"\n农村基础设施（含产业配套基础设施）\n农村道路建设（通村路、通户路、小型桥梁等）\n","杨楼镇路套村以工代赈项目","改建","县发展改革委","杨楼镇\n黄蓓蓓","杨楼镇","路套村","否","修建道路1.5公里长，宽4米，20cm厚混凝土","2023年12月15日前",120,120,null,"修建道路1.5公里长，宽4米，20cm厚混凝土","道路修建1.5公里",{"v":1,"d":"100%"},{"v":1,"d":"100%"},"/","/","/","/",248,520,null,null,"≥95%","项目申报、实施过程监督、竣工后项目所在地受益","以道路建设的形式，为贫困户长久可持续发展提供便利"]
[440,"\n农村基础设施（含产业配套基础设施）\n农村道路建设（通村路、通户路、小型桥梁等）\n","丁里镇瓦子口村基础设施建设项目","改建","县发展改革委","丁里镇\n谷海粟","丁里镇","瓦子口村","否","改建道路总长6.581公里（其中长4.957公里3.5米宽，厚18厘米；长1.624公里，宽3米、厚18厘米）","2023年12月15日前",400,400,null,"改建道路总长6.581公里（其中长4.957公里3.5米宽，厚18厘米；长1.624公里，宽3米、厚18厘米）","改建道路总长6.581公里",{"v":1,"d":"100%"},{"v":1,"d":"100%"},"/","/","/","/",1056,3479,null,null,"≥95%","项目申报、实施过程务工和监督、竣工后受益","以道路建设的形式，改善村内基础设施条件，提升脱贫人口出行水平"]
[441,"\n农村基础设施（含产业配套基础设施）\n农村道路建设（通村路、通户路、小型桥梁等）\n","丁里镇胜利社区蔡洼自然村道路建设项目","新建","县农业农村局","丁里镇\n谷海粟","丁里镇","胜利社区","否","新建道路长3500米，宽6米、厚度20厘米。","2023年12月15日前",270,270,null,"新建村内道路3500米，改善农户生产生活设施条件，提升村内基础设施水平。","新建道路长3500米，宽6米、厚度20厘米",{"v":1,"d":"100%"},{"v":1,"d":"100%"},{"$nulls":4},488,1348,null,null,"≥95%","项目申报、实施过程监督、竣工后受益","改善农户生产生活设施条件，提升村内基础设施水平"]
[442,"\n农村基础设施（含产业配套基础设施）\n农村道路建设（通村路、通户路、小型桥梁等）\n","杜楼镇马阁行政村王庄自然村道路建设项目","新建","县农业农村局","杜楼镇\n许剑","杜楼镇","马阁","否","拟投资140万元道路1500米，宽3.5米、厚18厘米。","2023年12月15日前",140,140,null,"修建道路长1500米，改善农户生产生活设施条件，提升村内基础设施水平","修建道路长1500米",{"v":1,"d":"100%"},{"v":1,"d":"100%"},{"$nulls":4},326,1129,null,null,"≥95%","项目申报、实施过程监督、竣工后受益","项目申报、实施过程监督、竣工后受益"]
[443,"\n农村基础设施（含产业配套基础设施）\n农村道路建设（通村路、通户路、小型桥梁等）\n","官桥镇前白村道路建设","改建","县农业农村局","官桥镇\n张伟建","官桥镇","前白村","是","水泥硬化道路5000㎡（约1500米），宽度3米及以上、厚度16厘米。配套道路安防设施等","2023年12月15日前",92,92,null,"水泥硬化道路5000㎡（约1500米），配套道路安防设施等，，改善农户生产生活设施条件，提升村内基础设施水平","建成水泥硬化道路5000M²（约1500米）",{"v":1,"d":"100%"},{"v":1,"d":"100%"},{"$nulls":4},260,1100,null,null,"≥95%","项目申报、实施过程监督、竣工后受益","以道路建设的形式，进一步提升村内基础设施条件，提升群众出行水平"]
[444,"\n农村基础设施（含产业配套基础设施）\n农村道路建设（通村路、通户路、小型桥梁等）\n","黄口镇徐洼行政村大单庄自然村道路建设项目","新建","县农业农村局","黄口镇\n杨梅","黄口镇","徐洼村","否","新建道路长3000米，其中3.5米宽、20厘米厚的道路1000米；4米宽、20厘米厚的道路2000米。","2023年12月15日前",200,200,null,"新建村内道路3000米，改善农户生产生活设施条件，提升村内基础设施水平。","新建村内道路3000米",{"v":1,"d":"100%"},{"v":1,"d":"100%"},{"$nulls":4},290,1056,null,null,"≥95%","项目申报、实施过程监督、竣工后受益","改善农户生产生活设施条件，提升村内基础设施水平"]
[445,"\n农村基础设施（含产业配套基础设施）\n农村道路建设（通村路、通户路、小型桥梁等）\n","酒店镇丁庄行政村韩楼村道路建设","新建","县农业农村局","酒店镇\n杜龙升","酒店镇","丁庄村","否","韩楼自然村道路建设5860米，其中3米宽、18厘米厚的2500米；4米宽、20厘米厚的3360米。","2023年12月15日前",{"$f":"M457+N457","v":400},400,null,"韩楼自然村道路建设5860米，改善农户生产生活设施条件，提升村内基础设施水平。","韩楼自然村道路建设5860米",{"v":1,"d":"100%"},{"v":1,"d":"100%"},{"$nulls":4},350,860,null,null,"≥95%","项目申报、实施过程监督、竣工后受益","改善农户生产生活设施条件，提升村内基础设施水平"]
[446,"\n农村基础设施（含产业配套基础设施）\n农村道路建设（通村路、通户路、小型桥梁等）\n","官桥镇彭林、吴集等村“以工代赈”道路建设项目","改建","县发展改革委","官桥镇\n张伟建","官桥镇","彭林、前白、吴集村","/","改建道路约20000平方（约5公里）。其中彭林村1.5公里、前白村1.7公里、吴集1.8公里），板桥2座，涵管桥6座，配套安防设施等。","2023年12月15日前",600,600,null,"建设道路长不少于5.0公里，改善脱贫人口生产生活设施条件，提升村内基础设施水平","建设道路长不少于5.0公里，",{"v":1,"d":"100%"},{"v":1,"d":"100%"},{"$nulls":4},3600,18500,null,null,"≥95%","项目申报、实施过程监督、竣工后受益","以道路建设的形式，进一步提升村内基础设施条件，提升群众出行水平"]
[447,"\n农村基础设施（含产业配套基础设施）\n农村道路建设（通村路、通户路、小型桥梁等）\n","农村公路养护工程奶常路","改建","县交通运输局","县交通运输局\n胡传伦","刘套镇","芈集村","是","挖除毁坏混凝土面层、加铺沥青面层等","2023年12月15日前",357,null,357,"通过对已建成道路开展维修养护，提升道路通行能力，改善脱贫人口生产生活设施条件","养护里程约6.566公里",{"v":1,"d":"100%"},{"v":1,"d":"100%"},"/","/","/","/",160,480,null,null,"≥95%","完善农村基础设施建设条件，提升群众满意度","以改基础设施的形式，带动群众务工并增加收入，为群众长久可持续发展提供便利"]
[448,"\n农村基础设施（含产业配套基础设施）\n农村道路建设（通村路、通户路、小型桥梁等）\n","农村公路养护工程杜张路","改建","县交通运输局","县交通运输局\n胡传伦","张庄寨镇","众姓庄村","否","挖除毁坏混凝土面层、加铺沥青面层等","2023年12月15日前",467,null,467,"通过对已建成道路开展维修养护，提升道路通行能力，改善脱贫人口生产生活设施条件","养护里程约20.344公里",{"v":1,"d":"100%"},{"v":1,"d":"100%"},"/","/","/","/",400,1000,null,null,"≥95%","完善农村基础设施建设条件，提升群众满意度","以改基础设施的形式，带动群众务工并增加收入，为群众长久可持续发展提供便利"]
[449,"\n农村基础设施（含产业配套基础设施）\n农村道路建设（通村路、通户路、小型桥梁等）\n","农村公路养护工程东阁三路","改建","县交通运输局","县交通运输局\n胡传伦","新庄镇","东阁村","否","挖除毁坏混凝土面层、加铺混凝土面层等","2023年12月15日前",99,null,99,"通过对已建成道路开展维修养护，提升道路通行能力，改善脱贫人口生产生活设施条件","养护里程约1.841公里",{"v":1,"d":"100%"},{"v":1,"d":"100%"},"/","/","/","/",50,160,null,null,"≥95%","完善农村基础设施建设条件，提升群众满意度","以改基础设施的形式，带动群众务工并增加收入，为群众长久可持续发展提供便利"]
[450,"\n农村基础设施（含产业配套基础设施）\n农村道路建设（通村路、通户路、小型桥梁等）\n","农村公路养护工程彭李路","改建","县交通运输局","县交通运输局\n胡传伦","杜楼镇","彭村","否","挖除毁坏混凝土面层、加铺沥青面层等","2023年12月15日前",205,null,205,"通过对已建成道路开展维修养护，提升道路通行能力，改善脱贫人口生产生活设施条件","养护里程约16.216公里",{"v":1,"d":"100%"},{"v":1,"d":"100%"},"/","/","/","/",345,1200,null,null,"≥95%","完善农村基础设施建设条件，提升群众满意度","以改基础设施的形式，带动群众务工并增加收入，为群众长久可持续发展提供便利"]
[451,"\n农村基础设施（含产业配套基础设施）\n农村道路建设（通村路、通户路、小型桥梁等）\n","农村公路养护工程天启路","改建","县交通运输局","县交通运输局\n胡传伦","刘套镇","常楼村","否","挖除毁坏混凝土面层、加铺沥青面层等","2023年12月15日前",44,null,44,"通过对已建成道路开展维修养护，提升道路通行能力，改善脱贫人口生产生活设施条件","养护里程约1.5公里",{"v":1,"d":"100%"},{"v":1,"d":"100%"},"/","/","/","/",45,130,null,null,"≥95%","完善农村基础设施建设条件，提升群众满意度","以改基础设施的形式，带动群众务工并增加收入，为群众长久可持续发展提供便利"]
[452,"\n农村基础设施（含产业配套基础设施）\n农村道路建设（通村路、通户路、小型桥梁等）\n","农村公路养护工程吴王路","改建","县交通运输局","县交通运输局\n胡传伦","赵庄镇","孙大庙村","是","加宽路面、增设错车道、安防设施等","2023年12月15日前",77,null,77,"通过对已建成道路开展维修养护，提升道路通行能力，改善脱贫人口生产生活设施条件","养护里程约18.287公里",{"v":1,"d":"100%"},{"v":1,"d":"100%"},"/","/","/","/",340,1300,null,null,"≥95%","完善农村基础设施建设条件，提升群众满意度","以改基础设施的形式，带动群众务工并增加收入，为群众长久可持续发展提供便利"]
[453,"\n农村基础设施（含产业配套基础设施）\n农村道路建设（通村路、通户路、小型桥梁等）\n","农村公路养护工程灰刘路","改建","县交通运输局","县交通运输局\n胡传伦","龙城镇","李台社区","否","加铺混凝土路面、修复安防设施等","2023年12月15日前",126,null,126,"通过对已建成道路开展维修养护，提升道路通行能力，改善脱贫人口生产生活设施条件","养护里程约62.216公里",{"v":1,"d":"100%"},{"v":1,"d":"100%"},"/","/","/","/",550,1560,null,null,"≥95%","完善农村基础设施建设条件，提升群众满意度","以改基础设施的形式，带动群众务工并增加收入，为群众长久可持续发展提供便利"]
[454,"\n农村基础设施（含产业配套基础设施）\n农村道路建设（通村路、通户路、小型桥梁等）\n","农村公路养护工程丁杨路","改建","县交通运输局","县交通运输局\n胡传伦","龙城镇","帽山村","否","加铺混凝土路面、修复安防设施等","2023年12月15日前",121,null,121,"通过对已建成道路开展维修养护，提升道路通行能力，改善脱贫人口生产生活设施条件","养护里程约29.207公里",{"v":1,"d":"100%"},{"v":1,"d":"100%"},"/","/","/","/",400,1300,null,null,"≥95%","完善农村基础设施建设条件，提升群众满意度","以改基础设施的形式，带动群众务工并增加收入，为群众长久可持续发展提供便利"]
[455,"\n农村基础设施（含产业配套基础设施）\n农村道路建设（通村路、通户路、小型桥梁等）\n","农村公路养护工程曹祖路","改建","县交通运输局","县交通运输局\n胡传伦","祖楼镇","祖楼社区","是","修复安防设施等","2023年12月15日前",11,null,11,"通过对已建成道路开展维修养护，提升道路通行能力，改善脱贫人口生产生活设施条件","养护里程约35.584公里",{"v":1,"d":"100%"},{"v":1,"d":"100%"},"/","/","/","/",450,1400,null,null,"≥95%","完善农村基础设施建设条件，提升群众满意度","以改基础设施的形式，带动群众务工并增加收入，为群众长久可持续发展提供便利"]
[456,"\n农村基础设施（含产业配套基础设施）\n农村道路建设（通村路、通户路、小型桥梁等）\n","农村公路养护工程朝张路","改建","县交通运输局","县交通运输局\n胡传伦","永堌镇","前进村","是","修复安防设施等","2023年12月15日前",35,null,35,"通过对已建成道路开展维修养护，提升道路通行能力，改善脱贫人口生产生活设施条件","养护里程约19.928公里",{"v":1,"d":"100%"},{"v":1,"d":"100%"},"/","/","/","/",350,1300,null,null,"≥95%","完善农村基础设施建设条件，提升群众满意度","以改基础设施的形式，带动群众务工并增加收入，为群众长久可持续发展提供便利"]
[457,"\n农村基础设施（含产业配套基础设施）\n农村道路建设（通村路、通户路、小型桥梁等）\n","农村公路养护工程三朱路","改建","县交通运输局","县交通运输局\n胡传伦","刘套镇","李圩村","否","挖除毁坏混凝土面层、加铺沥青面层等","2023年12月15日前",16,null,16,"通过对已建成道路开展维修养护，提升道路通行能力，改善脱贫人口生产生活设施条件","养护里程约8.586公里",{"v":1,"d":"100%"},{"v":1,"d":"100%"},"/","/","/","/",165,490,null,null,"≥95%","完善农村基础设施建设条件，提升群众满意度","以改基础设施的形式，带动群众务工并增加收入，为群众长久可持续发展提供便利"]
[458,"\n农村基础设施（含产业配套基础设施）\n农村供水保障设施建设）\n","22个镇安全饮水项目","改建","县水利局","县水利局\n张勋","白土、大屯、丁里等22乡镇","裴庄、杨楼社区、许堂社区等村","/","在22个乡镇延伸配水管网13万多米、增加水源井8眼、增设5座加压泵站及附属设施","2023年12月15日前",1292,1292,null,"在22个乡镇延伸配水管网13万多米、增加水源井8眼、增设5座加压泵站及附属设施，确保农村供水保障得到提升。","在22个乡镇延伸配水管网13万多米、增加水源井8眼、增设5座加压泵站及附属设施",{"v":1,"d":"100%"},{"v":1,"d":"100%"},"/","/","/","/",1938,5504,null,null,"≥95%","项目申报、实施过程监督、竣工后项目所在地受益","以改善基础设施建设的方式提升群众满意度"]
[459,"\n农村基础设施（含产业配套基础设施）\n农村供水保障设施建设）\n","国有林场设施配套项目","新建","县林业发展中心","县国有林场\n胡孝忠","永堌、皇藏峪等工区","/","/","新建林场内管护站点6-8处","2023年12月15日前",200,200,null,"改善林区基础设施条件，提高林区管护水平","新建林场内管护站点6-8处",{"v":1,"d":"100%"},{"v":1,"d":"100%"},{"$nulls":4},810,1900,null,null,"≥95%","实施过程监督、竣工后受益","改善国有林场基础设施条件，提高林区管护水平"]
[460,"\n农村基础设施（含产业配套基础设施）\n农村道路建设（通村路、通户路、小型桥梁等）\n","王寨镇苏庄梁巷道路工程项目","新建","县农业农村局","王寨镇\n王亚华","王寨镇","苏庄村","是","建设户户通道路和村庄内主干道约2.5公里，宽度6米，其中15厘米厚的1公里；10厘米厚的1.5公里。","2023年12月15日前",200,200,null,"建设户户通道路和村庄内主干道约2.5公里，改善脱贫人口生产生活设施条件，提升村内基础设施水平","建设户户通道路和村庄内主干道约2.5公里",{"v":1,"d":"100%"},{"v":1,"d":"100%"},{"$nulls":4},200,1013,null,null,"≥95%","项目申报、实施过程监督、竣工后受益","改善村内基础设施条件，提升脱贫人口生活设施水平"]
[461,"\n农村基础设施（含产业配套基础设施）\n农村道路建设（通村路、通户路、小型桥梁等）\n","闫集镇柳园村道路建设","改建","县农业农村局","闫集镇\n赵世成","闫集镇","柳园村","是","水泥硬化道路18400M²（约4600米）,4米宽、厚8厘米，配套安防设施等","2023年12月15日前",276,276,null,"水泥硬化道路18400M²（约4600米），配套安防设施等，改善农户生产生活设施条件，提升村内基础设施水平。","水泥硬化道路18400M²（约4600米）",{"v":1,"d":"100%"},{"v":1,"d":"100%"},{"$nulls":4},326,1324,null,null,"≥95%","项目申报、实施过程监督、竣工后受益","以道路建设的形式，进一步提升村内基础设施条件，提升群众出行水平"]
[462,"\n农村基础设施（含产业配套基础设施）\n农村道路建设（通村路、通户路、小型桥梁等）\n","杨楼镇冯场村道路建设项目","改建","县农业农村局","杨楼镇\n黄蓓蓓","杨楼镇","冯场村","否","修建沥青道路长2000米，5米宽、厚8cm","2023年12月15日前",120,120,null,"修建沥青道路长2000米，5米宽、厚8cm，改善农户生产生活设施条件，提升村内基础设施水平。","修建道路长2千米",{"v":1,"d":"100%"},{"v":1,"d":"100%"},null,"/","/","/",298,1028,null,null,"≥95%","项目申报、实施过程监督、竣工后项目所在地受益","以道路建设的形式，为贫困户长久可持续发展提供便利"]
[463,"\n农村基础设施（含产业配套基础设施）\n农村道路建设（通村路、通户路、小型桥梁等）\n","杨楼镇冯场村道路建设项目","改建","县农业农村局","杨楼镇\n黄蓓蓓","杨楼镇","冯场村","否","修建水泥道路长2400米，4米宽、厚20cm","2023年12月15日前",200,200,null,"修建水泥道路长2400米，4米宽、厚20cm，改善农户生产生活设施条件，提升村内基础设施水平。","修建道路长2.4千米",{"v":1,"d":"100%"},{"v":1,"d":"100%"},null,"/","/","/",298,1028,null,null,"≥95%","项目申报、实施过程监督、竣工后项目所在地受益","以道路建设的形式，为贫困户长久可持续发展提供便利"]
[464,"\n农村基础设施（含产业配套基础设施）\n农村道路建设（通村路、通户路、小型桥梁等）\n","永堌镇王山窝自然村道路建设项目","新建","县农业农村局","永堌镇\n任精芳","永堌镇","王山窝村","否","新建村内主干道及入户路共3500米，宽度3.5米、厚度18厘米。","2023年12月15日前",140,140,null,"新建村内主干道及入户路共3500米，改善农户生产生活设施条件，提升村内基础设施水平","新建村内主干道及入户路共3500米",{"v":1,"d":"100%"},{"v":1,"d":"100%"},null,"/","/","/",246,913,null,null,"≥95%","项目申报、实施过程监督、竣工后项目所在地受益","以道路建设的形式，为贫困户长久可持续发展提供便利"]
[465,"\n农村基础设施（含产业配套基础设施）\n农村道路建设（通村路、通户路、小型桥梁等）\n","张庄寨镇张庄寨社区章楼道路建设项目","新建","县农业农村局","张庄寨镇\n李宁","张庄寨镇","张庄寨社区","否","建设道路20000平方米，其中5米宽、20厘米厚的500米，3.5米宽、20厘米厚的5000米。","2023年12月15日前",315,315,null,"建设道路20000平方，改善农户生产生活设施条件，提升村内基础设施水平","建设道路20000平方",{"v":1,"d":"100%"},{"v":1,"d":"100%"},{"$nulls":4},2600,4800,null,null,"≥95%","项目申报、实施过程监督、竣工后受益","改善村内基础设施条件，提升脱贫人口生活设施水平"]
[null,"（二）人居环境整治",{"$nulls":9},36752.04,{"$f":"SUM(M479:M622)","v":36752.04},{"$f":"SUM(N479:N622)","v":0}]
[441,"人居环境整治（农村污水治理）","丁里镇瓦子口行政村瓦子口自然村污水处理设施建设","新建","县农业农村局","丁里镇\n谷海粟","丁里镇","瓦子口村","否","新建污水管网2150米、接户管网4220米，道路建设8500平方及相关配套设施","2023年12月15日前",300,300,null,"新建污水管网2150米、接户管网4220米，道路建设8500平方及相关配套设施，改善农户生产生活设施条件，提升村内基础设施水平。","新建污水管网2150米、接户管网4220米，道路建设8500平方",{"v":1,"d":"100%"},{"v":1,"d":"100%"},{"$nulls":4},155,410,null,null,"≥95%","项目申报、实施过程监督、竣工后受益","项目申报、实施过程监督、竣工后受益"]
[463,"人居环境整治（农村污水治理）","酒店镇申河行政村寇庄村污水处理设施建设","新建","县农业农村局","酒店镇\n杜龙升","酒店镇","申河村","是","新建污水管网3250米、接户管网5260米及相关配套设施","2023年12月15日前",300,300,null,"新建污水管网3250米、接户管网5260米及相关配套设施","新建污水管网3250米、接户管网5260米及相关配套设施",{"v":1,"d":"100%"},{"v":1,"d":"100%"},{"$nulls":4},385,950,null,null,"≥95%","项目申报、实施过程监督、竣工后受益","改善农户生产生活设施条件，提升村内基础设施水平"]
[449,"人居环境整治（农村污水治理）","黄口镇镇北社区沙楼自然村污水处理设施建设","新建","县农业农村局","黄口镇\n杨梅","黄口镇","镇北社区","否","新建污水管网4500米、接户管网约6000米，道路建设1750米（其中3米宽、20厘米厚道路350米；3.5米宽、20厘米厚700米；4米宽、20厘米厚700米）及相关配套设施。","2023年12月15日前",300,300,null,"新建污水管网、接户管网，道路建设及相关配套设施，改善农户生产生活设施条件，提升村内基础设施水平。","新建污水管网、接户管网，道路建设及相关配套设施",{"v":1,"d":"100%"},{"v":1,"d":"100%"},{"$nulls":4},174,875,null,null,"≥95%","项目申报、实施过程监督、竣工后受益","改善农户生产生活设施条件，提升村内基础设施水平"]
[443,"人居环境整治（农村污水治理）","杜楼镇八庄行政村纵井自然村污水管网，道路建设项目","新建","县农业农村局","杜楼镇\n许剑","杜楼镇","八庄","是","计划使用350万元资金建设村内污水管网，修建主管网500米，支管网2200米，计划使用资90万元修建道路长1000米。","2023年12月15日前",440,440,null,"主管网500米，支管网2200米，道路1000米，改善农户生产生活设施条件，提升村内基础设施水平","主管网长500米，支管网长2200米，道路长1000米",{"v":1,"d":"100%"},{"v":1,"d":"100%"},{"$nulls":4},236,803,null,null,"≥95%","项目申报、实施过程监督、竣工后受益","项目申报、实施过程监督、竣工后受益"]
[445,"人居环境整治（农村污水治理）","杜楼镇纵袁庄村污水管网，道路建设项目","新建","县农业农村局","杜楼镇\n许剑","杜楼镇","纵袁庄","是","拟投资320万元建设污水管网，主管网600米，支管网2000米。","2023年12月15日前",320,320,null,"主管网600米，支管网2000米，改善农户生产生活设施条件，提升村内基础设施水平","修建主管网600米，支管网2000米，",{"v":1,"d":"100%"},{"v":1,"d":"100%"},{"$nulls":4},481,1536,null,null,"≥95%","项目申报、实施过程监督、竣工后受益","项目申报、实施过程监督、竣工后受益"]
[447,"人居环境整治（农村污水治理）","高庄村李寨自然村污水管网项目","新建","县农业农村局","官桥镇\n张伟建","官桥镇","高庄村","否","建设5000米污水管网等硬化提升村内道路完善配套设施","2023年12月15日前",450,450,null,"建设不少于5000米污水管网等硬化提升村内道路完善配套设施","建设不少于5000米污水管网处理设施",{"v":1,"d":"100%"},{"v":1,"d":"100%"},null,"/","/","/",370,1100,null,null,"≥95%","项目申报、实施过程监督、竣工后受益","进一步提升村内基础设施条件，提升群众生活水平"]
[464,"人居环境整治（农村污水治理）","丁里镇丁里社区运河南自然村污水处理设施建设","新建","县农业农村局","丁里镇\n谷海粟","丁里镇","丁里社区","是","新建污水管网2350米、接户管网4220米，道路建设8500平方及相关配套设施，道路宽5米，厚20厘米。","2023年12月15日前",300,300,null,"建设污水管网2350米、接户管网4220米，道路建设8500平方及相关配套设施，道路宽5米，厚20厘米。改善农户生产生活设施条件，提升村内基础设施水平。","建设污水管网2350米、接户管网4220米，道路建设8500平方及相关配套设施，道路宽5米，厚20厘米。",{"v":1,"d":"100%"},{"v":1,"d":"100%"},{"$nulls":4},256,675,null,null,"≥95%","项目申报、实施过程监督、竣工后项目所在地收益","改善农户生产生活设施条件，提升村内基础设施水平"]
[465,"人居环境整治（农村污水治理）","刘套镇芈集行政村芈集中心村污水管网建设项目","新建","县农业农村局","刘套镇\n李磊","刘套镇","芈集","是","建设雨污水管网，主管网约6800米，支管网约5400米，及配套设施，水泥硬化道路14000M²（约4000米，宽3.5米、厚15厘米），及道路安防设施。","2023年12月15日前",870,870,null,"建设雨污水管网，主管网约6800米，支管网约5400米，及配套设施，水泥硬化道路14000M²（约4000米，宽3.5米、厚15厘米），及道路安防设施。","建设雨污水管网，主管网约6800米，支管网约5400米，及配套设施，水泥硬化道路14000M²（约4000米，宽3.5米、厚15厘米）",{"v":1,"d":"100%"},{"v":1,"d":"100%"},{"$nulls":4},479,1435,null,null,"≥95%","项目申报、实施过程务工和监督、竣工后受益","改善村内基础设施条件，提升脱贫人口生活设施水平"]
[466,"人居环境整治（农村污水治理）","刘套镇徐安行政村中后徐安中心村污水管网建设项目","新建","县农业农村局","刘套镇\n李磊","刘套镇","徐安","否","建设雨污水管网，主管网约7800米，支管网约5200米及配套设施，水泥硬化道路19200M²（约4800米，宽4米、厚20厘米），及道路安防设施","2023年12月15日前",868,868,null,"建设雨污水管网，主管网约7800米，支管网约5200米及配套设施，水泥硬化道路19200M²（约4800米，宽4米、厚20厘米），及道路安防设施","建设雨污水管网，主管网约7800米，支管网约5200米及配套设施，水泥硬化道路19200M²（约4800米，宽4米、厚20厘米）",{"v":1,"d":"100%"},{"v":1,"d":"100%"},{"$nulls":4},387,1155,null,null,"≥95%","项目申报、实施过程务工和监督、竣工后受益","改善村内基础设施条件，提升脱贫人口生活设施水平"]
[467,"人居环境整治（农村污水治理）","刘套镇常楼行政村魏安中心村污水管网建设项目","新建","县农业农村局","刘套镇\n李磊","刘套镇","常楼","否","建设雨污水管网，主管网约9500米，支管网约5800米及配套设施，水泥硬化道路20800M²（约5200米，宽4米、厚20厘米），及道路安防设施。","2023年12月15日前",956,956,null,"建设雨污水管网，主管网约9500米，支管网约5800米及配套设施，水泥硬化道路20800M²（约5200米，宽4米、厚20厘米），及道路安防设施。","建设雨污水管网，主管网约9500米，支管网约5800米及配套设施，水泥硬化道路20800M²（约5200米，宽4米、厚20厘米）",{"v":1,"d":"100%"},{"v":1,"d":"100%"},{"$nulls":4},825,2418,null,null,"≥95%","项目申报、实施过程务工和监督、竣工后受益","改善村内基础设施条件，提升脱贫人口生活设施水平"]
[468,"人居环境整治（农村污水治理）","刘套镇魏安自然村污水管网项目","新建","县农业农村局","刘套镇\n李磊","刘套镇","常楼村","否","建设污水管网：11000米，道路8000米及相关配套设施","2023年12月15日前",{"$f":"M489+N489","v":240},240,null,"建设污水管网：11000米，道路8000米，改善农户生产生活设施条件，提升村内基础设施水平。","建设污水管网长11000米，道路8000米",{"v":1,"d":"100%"},{"v":1,"d":"100%"},{"$nulls":4},696,2600,null,null,"≥95%","项目申报、实施过程监督、竣工后受益","改善村内基础设施条件，提升脱贫人口生活设施水平"]
[469,"人居环境整治（农村污水治理）","圣泉镇金黄庄社区金黄庄自然村污水处理设施建设","新建","县农业农村局","圣泉镇\n田野","圣泉镇","金黄庄社区","否","新建污水管网2150米、接户管网4220米，道路建设8500平方及相关配套设施","2023年12月15日前",300,300,null,"新建污水管网2150米、接户管网4220米，道路建设8500平方及相关配套设施，改善农户生产生活设施条件，提升村内基础设施水平。","新建污水管网2150米、接户管网4220米，道路建设8500平方及相关配套设施",{"v":1,"d":"100%"},{"v":1,"d":"100%"},{"$nulls":4},155,410,null,null,"≥95%","项目申报、实施过程监督、竣工后受益","改善农户生产生活设施条件，提升村内基础设施水平"]
[472,"人居环境整治（农村污水治理）","白土镇白土社区农村黑臭水体综合整治项目（白土爱心房-倒流河段）","新建","县生态环境分局","白土镇\n魏东","白土镇","白土社区","是","1处农村黑臭水体综合整治，包括清淤、岸坡整治、截污治污等。","2023年12月15日前",145,145,null,"完成1处农村黑臭水体综合整治，包括清淤、岸坡整治、截污治污等。有效提升农村人居环境","完成1处农村黑臭水体治理",{"v":1,"d":"100%"},{"v":1,"d":"100%"},"/","/","/","/",25,88,null,null,"≥95%","项目申报、实施过程监督、竣工后项目所在地受益","改善村内基础设施条件，提升脱贫人口生活设施水平"]
[473,"人居环境整治（农村污水治理）","白土镇戴花沟农村黑臭水体综合整治项目（戴村桥-石窗户段）","新建","县生态环境分局","白土镇\n魏东","白土镇","费村社区","否","1处农村黑臭水体综合整治，包括清淤、岸坡整治、截污治污等。","2023年12月15日前",235,235,null,"完成1处农村黑臭水体综合整治，包括清淤、岸坡整治、截污治污等。有效提升农村人居环境","完成1处农村黑臭水体治理",{"v":1,"d":"100%"},{"v":1,"d":"100%"},"/","/","/","/",31,{"v":109.12,"d":"109"},null,null,"≥95%","项目申报、实施过程监督、竣工后项目所在地受益","改善村内基础设施条件，提升脱贫人口生活设施水平"]
[474,"人居环境整治（农村污水治理）","萧县农村黑臭水体综合整治项目","新建","县生态环境分局","大屯镇\n刘文芝","大屯镇","高楼村","否","2处农村黑臭水体综合整治，包括清淤、岸坡整治、截污治污等。","2023年12月15日前",340,340,null,"完成2处农村黑臭水体综合整治，包括清淤、岸坡整治、截污治污等。有效提升农村人居环境","完成2处农村黑臭水体综合整治",{"v":1,"d":"100%"},{"v":1,"d":"100%"},"/","/","/","/",99,{"v":348.48,"d":"348"},null,null,"≥95%","项目申报、实施过程监督、竣工后项目所在地受益","改善村内基础设施条件，提升脱贫人口生活设施水平"]
[475,"人居环境整治（农村污水治理）","萧县农村黑臭水体综合整治项目","新建","县生态环境分局","大屯镇\n刘文芝","大屯镇","许楼后梁庄","否","1处农村黑臭水体综合整治，包括清淤、岸坡整治、截污治污等。","2023年12月15日前",40,40,null,"完成1处农村黑臭水体综合整治，包括清淤、岸坡整治、截污治污等。有效提升农村人居环境","完成1处农村黑臭水体综合整治",{"v":1,"d":"100%"},{"v":1,"d":"100%"},"/","/","/","/",18,{"v":63.36,"d":"63"},null,null,"≥95%","项目申报、实施过程监督、竣工后项目所在地受益","改善村内基础设施条件，提升脱贫人口生活设施水平"]
[476,"人居环境整治（农村污水治理）","萧县农村黑臭水体综合整治项目","新建","县生态环境分局","大屯镇\n刘文芝","大屯镇","郭阁","否","1处农村黑臭水体综合整治，包括清淤、岸坡整治、截污治污等。","2023年12月15日前",170,170,null,"完成1处农村黑臭水体综合整治，包括清淤、岸坡整治、截污治污等。有效提升农村人居环境","完成1处农村黑臭水体综合整治",{"v":1,"d":"100%"},{"v":1,"d":"100%"},"/","/","/","/",49,{"v":172.48,"d":"172"},null,null,"≥95%","项目申报、实施过程监督、竣工后项目所在地受益","改善村内基础设施条件，提升脱贫人口生活设施水平"]
[477,"人居环境整治（农村污水治理）","萧县农村黑臭水体综合整治项目","新建","县生态环境分局","大屯镇\n刘文芝","大屯镇","大屯村","是","2处农村黑臭水体综合整治，包括清淤、岸坡整治、截污治污等。","2023年12月15日前",{"$f":"M496+N496","v":42},42,null,"完成2处农村黑臭水体综合整治，包括清淤、岸坡整治、截污治污等。有效提升农村人居环境","完成2处农村黑臭水体综合整治",{"v":1,"d":"100%"},{"v":1,"d":"100%"},"/","/","/","/",18,{"v":63.36,"d":"63"},null,null,"≥95%","项目申报、实施过程监督、竣工后项目所在地受益","改善村内基础设施条件，提升脱贫人口生活设施水平"]
[478,"人居环境整治（农村污水治理）","萧县农村黑臭水体综合整治项目","新建","县生态环境分局","丁里镇\n谷海粟","丁里镇","河头村","是","1处农村黑臭水体综合整治，包括清淤、岸坡整治、截污治污等。","2023年12月15日前",500,500,null,"完成1处农村黑臭水体综合整治，包括清淤、岸坡整治、截污治污等。有效提升农村人居环境","完成1处农村黑臭水体综合整治",{"v":1,"d":"100%"},{"v":1,"d":"100%"},"/","/","/","/",78,274,null,null,"≥95%","项目申报、实施过程监督、竣工后项目所在地受益","改善村内基础设施条件，提升脱贫人口生活设施水平"]
[479,"人居环境整治（农村污水治理）","萧县杜楼镇农村黑臭水体综合整治项目","新建","县生态环境分局","杜楼镇\n许剑","杜楼镇","杜集行政村","否","杜集自然村1处农村黑臭水体综合整治，包括清淤、岸坡整治、截污治污等。","2023年12月15日前",30,30,null,"完成杜集自然村1处农村黑臭水体综合整治，包括清淤、岸坡整治、截污治污等。有效提升农村人居环境","完成1处农村黑臭水体治理",{"v":1,"d":"100%"},{"v":1,"d":"100%"},"/","/","/","/",21,{"v":73.92,"d":"74"},null,null,"≥95%","项目申报、实施过程监督、竣工后项目所在地受益","改善村内基础设施条件，提升脱贫人口生活设施水平"]
[480,"人居环境整治（农村污水治理）","萧县杜楼镇农村黑臭水体综合整治项目","新建","县生态环境分局","杜楼镇\n许剑","杜楼镇","郝庄寨行政村","否","郝庄寨、小李庄、李楼自然村各1处农村黑臭水体综合整治，包括清淤、岸坡整治、截污治污等。","2023年12月15日前",90,90,null,"完成郝庄寨、小李庄、李楼自然村各1处农村黑臭水体综合整治，包括清淤、岸坡整治、截污治污等。有效提升农村人居环境","完成3处农村黑臭水体治理",{"v":1,"d":"100%"},{"v":1,"d":"100%"},"/","/","/","/",78,{"v":274.56,"d":"275"},null,null,"≥95%","项目申报、实施过程监督、竣工后项目所在地受益","改善村内基础设施条件，提升脱贫人口生活设施水平"]
[481,"人居环境整治（农村污水治理）","萧县杜楼镇农村黑臭水体综合整治项目","新建","县生态环境分局","杜楼镇\n许剑","杜楼镇","马阁行政村","否","马阁自然村2处，郝党庄自然村1处农村黑臭水体综合整治，包括清淤、岸坡整治、截污治污等。","2023年12月15日前",70,70,null,"完成马阁自然村2处，郝党庄自然村1处农村黑臭水体综合整治，包括清淤、岸坡整治、截污治污等。有效提升农村人居环境","完成2处农村黑臭水体治理",{"v":1,"d":"100%"},{"v":1,"d":"100%"},"/","/","/","/",18,66,null,null,"≥95%","项目申报、实施过程监督、竣工后项目所在地受益","改善村内基础设施条件，提升脱贫人口生活设施水平"]
[482,"人居环境整治（农村污水治理）","萧县杜楼镇农村黑臭水体综合整治项目","新建","县生态环境分局","杜楼镇\n许剑","杜楼镇","红庙行政村","否","红庙自然村6处农村黑臭水体综合整治，包括清淤、岸坡整治、截污治污等。","2023年12月15日前",95,95,null,"完成红庙自然村6处农村黑臭水体综合整治，包括清淤、岸坡整治、截污治污等。有效提升农村人居环境","完成6处农村黑臭水体治理",{"v":1,"d":"100%"},{"v":1,"d":"100%"},"/","/","/","/",21,82,null,null,"≥95%","项目申报、实施过程监督、竣工后项目所在地受益","改善村内基础设施条件，提升脱贫人口生活设施水平"]
[483,"人居环境整治（农村污水治理）","萧县杜楼镇农村黑臭水体综合整治项目","新建","县生态环境分局","杜楼镇\n许剑","杜楼镇","彭村行政村","否","高小楼自然村内3处农村黑臭水体综合整治，包括清淤、岸坡整治、截污治污等。","2023年12月15日前",85,85,null,"完成高小楼自然村内3处农村黑臭水体综合整治，包括清淤、岸坡整治、截污治污等。有效提升农村人居环境","完成3处农村黑臭水体治理",{"v":1,"d":"100%"},{"v":1,"d":"100%"},"/","/","/","/",23,80,null,null,"≥95%","项目申报、实施过程监督、竣工后项目所在地受益","改善村内基础设施条件，提升脱贫人口生活设施水平"]
[484,"人居环境整治（农村污水治理）","萧县杜楼镇农村黑臭水体综合整治项目","新建","县生态环境分局","杜楼镇\n许剑","杜楼镇","朱解庄行政村","否","东张楼自然村2处农村黑臭水体综合整治，包括清淤、岸坡整治、截污治污等。","2023年12月15日前",40,40,null,"完成东张楼自然村2处农村黑臭水体综合整治，包括清淤、岸坡整治、截污治污等。有效提升农村人居环境","完成2处农村黑臭水体治理",{"v":1,"d":"100%"},{"v":1,"d":"100%"},"/","/","/","/",28,84,null,null,"≥95%","项目申报、实施过程监督、竣工后项目所在地受益","改善村内基础设施条件，提升脱贫人口生活设施水平"]
[485,"人居环境整治（农村污水治理）","萧县杜楼镇农村黑臭水体综合整治项目","新建","县生态环境分局","杜楼镇\n许剑","杜楼镇","八庄村","是","小胡庄自然村1处农村黑臭水体综合整治，包括清淤、岸坡整治、截污治污等。","2023年12月15日前",20,20,null,"完成小胡庄自然村1处农村黑臭水体综合整治，包括清淤、岸坡整治、截污治污等。有效提升农村人居环境","完成1处农村黑臭水体治理",{"v":1,"d":"100%"},{"v":1,"d":"100%"},"/","/","/","/",{"v":23.8095238095238,"d":"24"},{"v":83.8095238095238,"d":"84"},null,null,"≥95%","项目申报、实施过程监督、竣工后项目所在地受益","改善村内基础设施条件，提升脱贫人口生活设施水平"]
[486,"人居环境整治（农村污水治理）","萧县杜楼镇农村黑臭水体综合整治项目","新建","县生态环境分局","杜楼镇\n许剑","杜楼镇","纵袁庄行政村","是","大孟庄自然村1处农村黑臭水体综合整治，包括清淤、岸坡整治、截污治污等。","2023年12月15日前",25,25,null,"完成大孟庄自然村1处农村黑臭水体综合整治，包括清淤、岸坡整治、截污治污等。有效提升农村人居环境","完成1处农村黑臭水体治理",{"v":1,"d":"100%"},{"v":1,"d":"100%"},"/","/","/","/",{"v":28.5714285714286,"d":"29"},{"v":100.571428571429,"d":"101"},null,null,"≥95%","项目申报、实施过程监督、竣工后项目所在地受益","改善村内基础设施条件，提升脱贫人口生活设施水平"]
[487,"人居环境整治（农村污水治理）","萧县杜楼镇农村黑臭水体综合整治项目","新建","县生态环境分局","杜楼镇\n许剑","杜楼镇","业庄行政村","是","陈腰庄自然村2处，徐瓦房自然村1处农村黑臭水体综合整治，包括清淤、岸坡整治、截污治污等。","2023年12月15日前",40,40,null,"完成陈腰庄自然村2处，徐瓦房自然村1处农村黑臭水体综合整治，包括清淤、岸坡整治、截污治污等。有效提升农村人居环境","完成2处农村黑臭水体治理",{"v":1,"d":"100%"},{"v":1,"d":"100%"},"/","/","/","/",{"v":28.5714285714286,"d":"29"},{"v":100.571428571429,"d":"101"},null,null,"≥95%","项目申报、实施过程监督、竣工后项目所在地受益","改善村内基础设施条件，提升脱贫人口生活设施水平"]
[488,"人居环境整治（农村污水治理）","萧县杨楼镇农村黑臭水体综合整治项目","新建","县生态环境分局","杜楼镇\n许剑","杜楼镇","郝新庄村","否","丁庄自然村村内1处农村黑臭水体综合整治，包括清淤、岸坡整治、截污治污等。","2023年12月15日前",35,35,null,"完成丁庄自然村村内1处农村黑臭水体综合整治，包括清淤、岸坡整治、截污治污等。有效提升农村人居环境","完成1处农村黑臭水体治理",{"v":1,"d":"100%"},{"v":1,"d":"100%"},"/","/","/","/",65,{"v":335.238095238095,"d":"335"},null,null,"≥95%","项目申报、实施过程监督、竣工后项目所在地受益","改善村内基础设施条件，提升脱贫人口生活设施水平"]
[489,"人居环境整治（农村污水治理）","萧县农村黑臭水体综合整治项目","新建","县生态环境分局","官桥镇\n张伟建","官桥镇","高庄村","否","3处农村黑臭水体综合整治，包括清淤、岸坡整治、截污治污等。","2023年12月15日前",22,22,null,"完成3处农村黑臭水体综合整治，包括清淤、岸坡整治、截污治污等。有效提升农村人居环境","完成3处农村黑臭水体治理",{"v":1,"d":"100%"},{"v":1,"d":"100%"},"/","/","/","/",85,{"v":301.714285714286,"d":"302"},null,null,"≥95%","项目申报、实施过程监督、竣工后项目所在地受益","改善村内基础设施条件，提升脱贫人口生活设施水平"]
[490,"人居环境整治（农村污水治理）","萧县农村黑臭水体综合整治项目","新建","县生态环境分局","官桥镇\n张伟建","官桥镇","彭林村","是","1处农村黑臭水体综合整治，包括清淤、岸坡整治、截污治污等。","2023年12月15日前",10,10,null,"完成1处农村黑臭水体综合整治，包括清淤、岸坡整治、截污治污等。有效提升农村人居环境","完成1处农村黑臭水体治理",{"v":1,"d":"100%"},{"v":1,"d":"100%"},"/","/","/","/",18,101,null,null,"≥95%","项目申报、实施过程监督、竣工后项目所在地受益","改善村内基础设施条件，提升脱贫人口生活设施水平"]
[491,"人居环境整治（农村污水治理）","萧县农村黑臭水体综合整治项目","新建","县生态环境分局","官桥镇\n张伟建","官桥镇","吴集村","否","1处农村黑臭水体综合整治，包括清淤、岸坡整治、截污治污等。","2023年12月15日前",10,10,null,"完成1处农村黑臭水体综合整治，包括清淤、岸坡整治、截污治污等。有效提升农村人居环境","完成1处农村黑臭水体治理",{"v":1,"d":"100%"},{"v":1,"d":"100%"},"/","/","/","/",13,49,null,null,"≥95%","项目申报、实施过程监督、竣工后项目所在地受益","改善村内基础设施条件，提升脱贫人口生活设施水平"]
[492,"人居环境整治（农村污水治理）","萧县农村黑臭水体综合整治项目","新建","县生态环境分局","官桥镇\n张伟建","官桥镇","前白村","是","2处农村黑臭水体综合整治，包括清淤、岸坡整治、截污治污等。","2023年12月15日前",10,10,null,"完成2处农村黑臭水体综合整治，包括清淤、岸坡整治、截污治污等。有效提升农村人居环境","完成2处农村黑臭水体治理",{"v":1,"d":"100%"},{"v":1,"d":"100%"},"/","/","/","/",18,48,null,null,"≥95%","项目申报、实施过程监督、竣工后项目所在地受益","改善村内基础设施条件，提升脱贫人口生活设施水平"]
[493,"人居环境整治（农村污水治理）","萧县农村黑臭水体综合整治项目","新建","县生态环境分局","黄口镇\n杨梅","黄口镇","孙庙村","否","2处农村黑臭水体（约11700平方米 ）综合整治，包括清淤、岸坡整治、截污治污等。","2023年12月15日前",55,55,null,"完成2处农村黑臭水体（约11700平方米 ）综合整治，包括清淤、岸坡整治、截污治污等。有效提升农村人居环境","完成1处农村黑臭水体治理",{"v":1,"d":"100%"},{"v":1,"d":"100%"},"/","/","/","/",25,102,null,null,"≥95%","项目申报、实施过程监督、竣工后项目所在地受益","改善村内基础设施条件，提升脱贫人口生活设施水平"]
[494,"人居环境整治（农村污水治理）","萧县农村黑臭水体综合整治项目","新建","县生态环境分局","黄口镇\n杨梅","黄口镇","镇东社区","否","3处农村黑臭水体（约2480平方米 ）综合整治，包括清淤、岸坡整治、截污治污等。","2023年12月15日前",150,150,null,"完成3处农村黑臭水体（约2480平方米 ）综合整治，包括清淤、岸坡整治、截污治污等。有效提升农村人居环境","完成3处农村黑臭水体治理",{"v":1,"d":"100%"},{"v":1,"d":"100%"},"/","/","/","/",251,460,null,null,"≥95%","项目申报、实施过程监督、竣工后项目所在地受益","改善村内基础设施条件，提升脱贫人口生活设施水平"]
[495,"人居环境整治（农村污水治理）","萧县农村黑臭水体综合整治项目","新建","县生态环境分局","黄口镇\n杨梅","黄口镇","镇北社区","否","2处农村黑臭水体（约4400平方米 ）综合整治，包括清淤、岸坡整治、截污治污等。","2023年12月15日前",26,26,null,"完成2处农村黑臭水体（约4400平方米 ）综合整治，包括清淤、岸坡整治、截污治污等。有效提升农村人居环境","完成2处农村黑臭水体治理",{"v":1,"d":"100%"},{"v":1,"d":"100%"},"/","/","/","/",39,61,null,null,"≥95%","项目申报、实施过程监督、竣工后项目所在地受益","改善村内基础设施条件，提升脱贫人口生活设施水平"]
[496,"人居环境整治（农村污水治理）","萧县农村黑臭水体综合整治项目","新建","县生态环境分局","黄口镇\n杨梅","黄口镇","镇南社区","否","1处农村黑臭水体（约1000平方米 ）综合整治，包括清淤、岸坡整治、截污治污等。","2023年12月15日前",3,3,null,"完成1处农村黑臭水体（约1000平方米 ）综合整治，包括清淤、岸坡整治、截污治污等。有效提升农村人居环境","完成1处农村黑臭水体治理",{"v":1,"d":"100%"},{"v":1,"d":"100%"},"/","/","/","/",374,561,null,null,"≥95%","项目申报、实施过程监督、竣工后项目所在地受益","改善村内基础设施条件，提升脱贫人口生活设施水平"]
[497,"人居环境整治（农村污水治理）","萧县农村黑臭水体综合整治项目","新建","县生态环境分局","黄口镇\n杨梅","黄口镇","镇西社区","否","1处农村黑臭水体（约900平方米 ）综合整治，包括清淤、岸坡整治、截污治污等。","2023年12月15日前",3,3,null,"完成1处农村黑臭水体（约900平方米 ）综合整治，包括清淤、岸坡整治、截污治污等。有效提升农村人居环境","完成1处农村黑臭水体治理",{"v":1,"d":"100%"},{"v":1,"d":"100%"},"/","/","/","/",136,204,null,null,"≥95%","项目申报、实施过程监督、竣工后项目所在地受益","改善村内基础设施条件，提升脱贫人口生活设施水平"]
[498,"人居环境整治（农村污水治理）","萧县农村黑臭水体综合整治项目","新建","县生态环境分局","黄口镇\n杨梅","黄口镇","唐庄村","否","2处农村黑臭水体（约2600平方米 ）综合整治，包括清淤、岸坡整治、截污治污等。","2023年12月15日前",25,25,null,"完成2处农村黑臭水体（约2600平方米 ）综合整治，包括清淤、岸坡整治、截污治污等。有效提升农村人居环境","完成2处农村黑臭水体治理",{"v":1,"d":"100%"},{"v":1,"d":"100%"},"/",{"$nulls":3},144,216,null,null,"≥95%","项目申报、实施过程监督、竣工后项目所在地受益","改善村内基础设施条件，提升脱贫人口生活设施水平"]
[499,"人居环境整治（农村污水治理）","萧县农村黑臭水体综合整治项目","新建","县生态环境分局","黄口镇\n杨梅","黄口镇","瓦房村","是","3处农村黑臭水体（约4650平方米 ）综合整治，包括清淤、岸坡整治、截污治污等。","2023年12月15日前",40,40,null,"完成3处农村黑臭水体（约4650平方米 ）综合整治，包括清淤、岸坡整治、截污治污等。有效提升农村人居环境","完成3处农村黑臭水体治理",{"v":1,"d":"100%"},{"v":1,"d":"100%"},"/","/","/","/",122,183,null,null,"≥95%","项目申报、实施过程监督、竣工后项目所在地受益","改善村内基础设施条件，提升脱贫人口生活设施水平"]
[500,"人居环境整治（农村污水治理）","萧县农村黑臭水体综合整治项目","新建","县生态环境分局","黄口镇\n杨梅","黄口镇","张寨村","否","7处农村黑臭水体（约26300平方米 ）综合整治，包括清淤、岸坡整治、截污治污等。","2023年12月15日前",25,25,null,"完成7处农村黑臭水体（约26300平方米 ）综合整治，包括清淤、岸坡整治、截污治污等。有效提升农村人居环境","完成7处农村黑臭水体治理",{"v":1,"d":"100%"},{"v":1,"d":"100%"},"/","/","/","/",52,126,null,null,"≥95%","项目申报、实施过程监督、竣工后项目所在地受益","改善村内基础设施条件，提升脱贫人口生活设施水平"]
[501,"人居环境整治（农村污水治理）","萧县农村黑臭水体综合整治项目","新建","县生态环境分局","酒店镇\n杜龙升","酒店镇","申河村","是","寇庄黑臭水体综合整治，包括清淤、岸坡整治、截污治污等。","2023年12月15日前",200,200,null,"完成寇庄黑臭水体综合整治，包括清淤、岸坡整治、截污治污等。有效提升农村人居环境","完成1处农村黑臭水体治理，有效提升农村人居环境",{"v":1,"d":"100%"},{"v":1,"d":"100%"},"/","/","/","/",323,{"v":484.5,"d":"485"},null,null,"≥95%","项目申报、实施过程监督、竣工后项目所在地受益","改善村内基础设施条件，提升脱贫人口生活设施水平"]
[502,"人居环境整治（农村污水治理）","萧县农村黑臭水体综合整治项目","新建","县生态环境分局","酒店镇\n杜龙升","酒店镇","酒店村","是","马楼黑臭水体综合整治，包括清淤、岸坡整治、截污治污等。","2023年12月15日前",50,50,null,"完成马楼黑臭水体综合整治，包括清淤、岸坡整治、截污治污等。有效提升农村人居环境","完成2处农村黑臭水体治理，有效提升农村人居环境",{"v":1,"d":"100%"},{"v":1,"d":"100%"},"/","/","/","/",413,{"v":619.5,"d":"620"},null,null,"≥95%","项目申报、实施过程监督、竣工后项目所在地受益","改善村内基础设施条件，提升脱贫人口生活设施水平"]
[503,"人居环境整治（农村污水治理）","萧县农村黑臭水体综合整治项目","新建","县生态环境分局","酒店镇\n杜龙升","酒店镇","酒店村","是","酒店黑臭水体综合整治，包括清淤、岸坡整治、截污治污等。","2023年12月15日前",300,300,null,"完成酒店黑臭水体综合整治，包括清淤、岸坡整治、截污治污等。有效提升农村人居环境","完成3处农村黑臭水体治理，有效提升农村人居环境",{"v":1,"d":"100%"},{"v":1,"d":"100%"},"/","/","/","/",225,{"v":337.5,"d":"338"},null,null,"≥95%","项目申报、实施过程监督、竣工后项目所在地受益","改善村内基础设施条件，提升脱贫人口生活设施水平"]
[504,"人居环境整治（农村污水治理）","萧县农村黑臭水体综合整治项目","新建","县生态环境分局","酒店镇\n杜龙升","酒店镇","酒店村","是","杨水口黑臭水体综合整治，包括清淤、岸坡整治、截污治污等。","2023年12月15日前",50,50,null,"完成杨水口黑臭水体综合整治，包括清淤、岸坡整治、截污治污等。有效提升农村人居环境","完成4处农村黑臭水体治理，有效提升农村人居环境",{"v":1,"d":"100%"},{"v":1,"d":"100%"},"/","/","/","/",210,315,null,null,"≥95%","项目申报、实施过程监督、竣工后项目所在地受益","改善村内基础设施条件，提升脱贫人口生活设施水平"]
[505,"人居环境整治（农村污水治理）","萧县农村黑臭水体综合整治项目","新建","县生态环境分局","酒店镇\n杜龙升","酒店镇","东镇村","否","郑庄黑臭水体综合整治，包括清淤、岸坡整治、截污治污等。","2023年12月15日前",30,30,null,"完成郑庄黑臭水体综合整治，包括清淤、岸坡整治、截污治污等。有效提升农村人居环境","完成5处农村黑臭水体治理，有效提升农村人居环境",{"v":1,"d":"100%"},{"v":1,"d":"100%"},"/","/","/","/",350,525,null,null,"≥95%","项目申报、实施过程监督、竣工后项目所在地受益","改善村内基础设施条件，提升脱贫人口生活设施水平"]
[506,"人居环境整治（农村污水治理）","萧县农村黑臭水体综合整治项目","新建","县生态环境分局","酒店镇\n杜龙升","酒店镇","旗杆村","是","任旗杆黑臭水体综合整治，包括清淤、岸坡整治、截污治污等。","2023年12月15日前",40,40,null,"完成任旗杆黑臭水体综合整治，包括清淤、岸坡整治、截污治污等。有效提升农村人居环境","完成6处农村黑臭水体治理，有效提升农村人居环境",{"v":1,"d":"100%"},{"v":1,"d":"100%"},"/","/","/","/",850,1275,null,null,"≥95%","项目申报、实施过程监督、竣工后项目所在地受益","改善村内基础设施条件，提升脱贫人口生活设施水平"]
[507,"人居环境整治（农村污水治理）","萧县农村黑臭水体综合整治项目","新建","县生态环境分局","酒店镇\n杜龙升","酒店镇","东镇村","否","东镇村镇西黑臭水体综合整治，包括清淤、岸坡整治、截污治污等。","2023年12月15日前",80,80,null,"完成东镇村镇西黑臭水体综合整治，包括清淤、岸坡整治、截污治污等。有效提升农村人居环境","完成7处农村黑臭水体治理，有效提升农村人居环境",{"v":1,"d":"100%"},{"v":1,"d":"100%"},"/","/","/","/",1000,1500,null,null,"≥95%","项目申报、实施过程监督、竣工后项目所在地受益","改善村内基础设施条件，提升脱贫人口生活设施水平"]
[508,"人居环境整治（农村污水治理）","萧县农村黑臭水体综合整治项目","新建","县生态环境分局","酒店镇\n杜龙升","酒店镇","和谐村","否","潘暗楼黑臭水体综合整治，包括清淤、岸坡整治、截污治污等。","2023年12月15日前",50,50,null,"完成潘暗楼黑臭水体综合整治，包括清淤、岸坡整治、截污治污等。有效提升农村人居环境","完成8处农村黑臭水体治理，有效提升农村人居环境",{"v":1,"d":"100%"},{"v":1,"d":"100%"},"/","/","/","/",1000,1500,null,null,"≥95%","项目申报、实施过程监督、竣工后项目所在地受益","改善村内基础设施条件，提升脱贫人口生活设施水平"]
[509,"人居环境整治（农村污水治理）","萧县农村黑臭水体综合整治项目","新建","县生态环境分局","酒店镇\n杜龙升","酒店镇","杨楼村","否","高庄黑臭水体综合整治，包括清淤、岸坡整治、截污治污等。","2023年12月15日前",60,60,null,"完成高庄黑臭水体综合整治，包括清淤、岸坡整治、截污治污等。有效提升农村人居环境","完成9处农村黑臭水体治理，有效提升农村人居环境",{"v":1,"d":"100%"},{"v":1,"d":"100%"},"/","/","/","/",1000,1500,null,null,"≥95%","项目申报、实施过程监督、竣工后项目所在地受益","改善村内基础设施条件，提升脱贫人口生活设施水平"]
[510,"人居环境整治（农村污水治理）","萧县农村黑臭水体综合整治项目","新建","县生态环境分局","酒店镇\n杜龙升","酒店镇","杨楼村","否","高庄黑臭水体综合整治，包括清淤、岸坡整治、截污治污等。","2023年12月15日前",60,60,null,"完成高庄黑臭水体综合整治，包括清淤、岸坡整治、截污治污等。有效提升农村人居环境","完成10处农村黑臭水体治理，有效提升农村人居环境",{"v":1,"d":"100%"},{"v":1,"d":"100%"},"/","/","/","/",1000,1500,null,null,"≥95%","项目申报、实施过程监督、竣工后项目所在地受益","改善村内基础设施条件，提升脱贫人口生活设施水平"]
[511,"人居环境整治（农村污水治理）","萧县农村黑臭水体综合整治项目","新建","县生态环境分局","刘套镇\n李磊","刘套镇","芈集村","是","清淤、截污治污","2023年12月15日前",50,50,null,"完成清淤、截污治污有效提升农村人居环境","完成1处农村黑臭水体治理，有效提升农村人居环境",{"v":1,"d":"100%"},{"v":1,"d":"100%"},"/","/","/","/",1000,1500,null,null,"≥95%","项目申报、实施过程监督、竣工后项目所在地受益","改善村内基础设施条件，提升脱贫人口生活设施水平"]
[512,"人居环境整治（农村污水治理）","萧县农村黑臭水体综合整治项目","新建","县生态环境分局","刘套镇\n李磊","刘套镇","陈屯村","是","清淤、岸坡整治、截污治污等","2023年12月15日前",92,92,null,"完成清淤、岸坡整治、截污治污等有效提升农村人居环境","完成1处农村黑臭水体治理，有效提升农村人居环境",{"v":1,"d":"100%"},{"v":1,"d":"100%"},"/","/","/","/",556,834,null,null,"≥95%","项目申报、实施过程监督、竣工后项目所在地受益","改善村内基础设施条件，提升脱贫人口生活设施水平"]
[513,"人居环境整治（农村污水治理）","萧县农村黑臭水体综合整治项目","新建","县生态环境分局","刘套镇\n李磊","刘套镇","常楼村","否","清淤、岸坡整治、截污治污等","2023年12月15日前",45,45,null,"完成清淤、岸坡整治、截污治污等有效提升农村人居环境","完成1处农村黑臭水体治理，有效提升农村人居环境",{"v":1,"d":"100%"},{"v":1,"d":"100%"},"/","/","/","/",388,582,null,null,"≥95%","项目申报、实施过程监督、竣工后项目所在地受益","改善村内基础设施条件，提升脱贫人口生活设施水平"]
[514,"人居环境整治（农村污水治理）","萧县农村黑臭水体综合整治项目","新建","县生态环境分局","刘套镇\n李磊","刘套镇","李圩村","否","清淤、截污治污","2023年12月15日前",70,70,null,"完成清淤、截污治污有效提升农村人居环境","完成1处农村黑臭水体治理，有效提升农村人居环境",{"v":1,"d":"100%"},{"v":1,"d":"100%"},"/","/","/","/",1500,2250,null,null,"≥95%","项目申报、实施过程监督、竣工后项目所在地受益","改善村内基础设施条件，提升脱贫人口生活设施水平"]
[515,"人居环境整治（农村污水治理）","萧县农村黑臭水体综合整治项目","新建","县生态环境分局","刘套镇\n李磊","刘套镇","徐安村","否","岸坡整治、截污治污","2023年12月15日前",86.6,86.6,null,"完成岸坡整治、截污治污有效提升农村人居环境","完成1处农村黑臭水体治理，有效提升农村人居环境",{"v":1,"d":"100%"},{"v":1,"d":"100%"},"/","/","/","/",1286,1929,null,null,"≥95%","项目申报、实施过程监督、竣工后项目所在地受益","改善村内基础设施条件，提升脱贫人口生活设施水平"]
[516,"人居环境整治（农村污水治理）","萧县农村黑臭水体综合整治项目","新建","县生态环境分局","马井镇\n王伟强","马井镇","曲里铺村","是","1处农村黑臭水体综合整治，包括清淤、岸坡整治、截污治污等。","2023年12月15日前",15,15,null,"完成1处农村黑臭水体综合整治，包括清淤、岸坡整治、截污治污等。有效提升农村人居环境","完成1处农村黑臭水体治理，有效提升农村人居环境",{"v":1,"d":"100%"},{"v":1,"d":"100%"},"/","/","/","/",870,1305,null,null,"≥95%","项目申报、实施过程监督、竣工后项目所在地受益","改善村内基础设施条件，提升脱贫人口生活设施水平"]
[517,"人居环境整治（农村污水治理）","萧县农村黑臭水体综合整治项目","新建","县生态环境分局","马井镇\n王伟强","马井镇","朱集村","否","1处农村黑臭水体综合整治，包括清淤、岸坡整治、截污治污等。","2023年12月15日前",15,15,null,"完成1处农村黑臭水体综合整治，包括清淤、岸坡整治、截污治污等。有效提升农村人居环境","完成1处农村黑臭水体治理，有效提升农村人居环境",{"v":1,"d":"100%"},{"v":1,"d":"100%"},"/","/","/","/",288,432,null,null,"≥95%","项目申报、实施过程监督、竣工后项目所在地受益","改善村内基础设施条件，提升脱贫人口生活设施水平"]
[518,"人居环境整治（农村污水治理）","萧县农村黑臭水体综合整治项目","新建","县生态环境分局","马井镇\n王伟强","马井镇","吴九店村","否","1处农村黑臭水体综合整治，包括清淤、岸坡整治、截污治污等。","2023年12月15日前",15,15,null,"完成1处农村黑臭水体综合整治，包括清淤、岸坡整治、截污治污等。有效提升农村人居环境","完成1处农村黑臭水体治理，有效提升农村人居环境",{"v":1,"d":"100%"},{"v":1,"d":"100%"},"/","/","/","/",449,{"v":673.5,"d":"674"},null,null,"≥95%","项目申报、实施过程监督、竣工后项目所在地受益","改善村内基础设施条件，提升脱贫人口生活设施水平"]
[519,"人居环境整治（农村污水治理）","萧县农村黑臭水体综合整治项目","新建","县生态环境分局","马井镇\n王伟强","马井镇","王楼村","否","1处农村黑臭水体综合整治，包括清淤、岸坡整治、截污治污等。","2023年12月15日前",15,15,null,"完成1处农村黑臭水体综合整治，包括清淤、岸坡整治、截污治污等。有效提升农村人居环境","完成1处农村黑臭水体治理，有效提升农村人居环境",{"v":1,"d":"100%"},{"v":1,"d":"100%"},"/","/","/","/",86,129,null,null,"≥95%","项目申报、实施过程监督、竣工后项目所在地受益","改善村内基础设施条件，提升脱贫人口生活设施水平"]
[520,"人居环境整治（农村污水治理）","萧县农村黑臭水体综合整治项目","新建","县生态环境分局","马井镇\n王伟强","马井镇","吴瓦房村","是","1处农村黑臭水体综合整治，包括清淤、岸坡整治、截污治污等。","2023年12月15日前",15,15,null,"完成1处农村黑臭水体综合整治，包括清淤、岸坡整治、截污治污等。有效提升农村人居环境","完成1处农村黑臭水体治理，有效提升农村人居环境",{"v":1,"d":"100%"},{"v":1,"d":"100%"},"/","/","/","/",95,{"v":142.5,"d":"143"},null,null,"≥95%","项目申报、实施过程监督、竣工后项目所在地受益","改善村内基础设施条件，提升脱贫人口生活设施水平"]
[521,"人居环境整治（农村污水治理）","萧县农村黑臭水体综合整治项目","新建","县生态环境分局","马井镇\n王伟强","马井镇","长征村","是","1处农村黑臭水体综合整治，包括清淤、岸坡整治、截污治污等。","2023年12月15日前",15,15,null,"完成1处农村黑臭水体综合整治，包括清淤、岸坡整治、截污治污等。有效提升农村人居环境","完成1处农村黑臭水体治理，有效提升农村人居环境",{"v":1,"d":"100%"},{"v":1,"d":"100%"},"/","/","/","/",95,{"v":142.5,"d":"143"},null,null,"≥95%","项目申报、实施过程监督、竣工后项目所在地受益","改善村内基础设施条件，提升脱贫人口生活设施水平"]
[522,"人居环境整治（农村污水治理）","萧县农村黑臭水体综合整治项目","新建","县生态环境分局","青龙集镇\n况美彩","青龙集镇","路口村","是","2处农村黑臭水体综合整治，包括清淤、岸坡整治、截污治污等。","2023年12月15日前",150,150,null,"完成2处农村黑臭水体综合整治，包括清淤、岸坡整治、截污治污等。有效提升农村人居环境","完成2处农村黑臭水体治理，有效提升农村人居环境",{"v":1,"d":"100%"},{"v":1,"d":"100%"},"/","/","/","/",90,135,null,null,"≥95%","项目申报、实施过程监督、竣工后项目所在地受益","改善村内基础设施条件，提升脱贫人口生活设施水平"]
[523,"人居环境整治（农村污水治理）","萧县农村黑臭水体综合整治项目","新建","县生态环境分局","青龙集镇\n况美彩","青龙集镇","邱庄村","否","1处农村黑臭水体综合整治，包括清淤、岸坡整治、截污治污等。","2023年12月15日前",50,50,null,"完成1处农村黑臭水体综合整治，包括清淤、岸坡整治、截污治污等。有效提升农村人居环境","完成1处农村黑臭水体治理，有效提升农村人居环境",{"v":1,"d":"100%"},{"v":1,"d":"100%"},"/","/","/","/",170,255,null,null,"≥95%","项目申报、实施过程监督、竣工后项目所在地受益","改善村内基础设施条件，提升脱贫人口生活设施水平"]
[524,"人居环境整治（农村污水治理）","萧县农村黑臭水体综合整治项目","新建","县生态环境分局","青龙集镇\n况美彩","青龙集镇","胡庄村","是","1处农村黑臭水体综合整治，包括清淤、岸坡整治、截污治污等。","2023年12月15日前",50,50,null,"完成1处农村黑臭水体综合整治，包括清淤、岸坡整治、截污治污等。有效提升农村人居环境","完成1处农村黑臭水体治理，有效提升农村人居环境",{"v":1,"d":"100%"},{"v":1,"d":"100%"},"/","/","/","/",225,{"v":337.5,"d":"338"},null,null,"≥95%","项目申报、实施过程监督、竣工后项目所在地受益","改善村内基础设施条件，提升脱贫人口生活设施水平"]
[525,"人居环境整治（农村污水治理）","萧县农村黑臭水体综合整治项目","新建","县生态环境分局","圣泉镇\n田野","圣泉镇","穆集社区","是","杜六自然村、穆集自然村整村农村黑臭水体综合整治，包括清淤、岸坡整治、截污治污等。","2023年12月15日前",1400,1400,null,"完成杜六自然村、穆集自然村整村农村黑臭水体综合整治，包括清淤、岸坡整治、截污治污等。有效提升农村人居环境","农村黑臭水体治理，有效提升农村人居环境",{"v":1,"d":"100%"},{"v":1,"d":"100%"},"/",3,"/",6,160,240,null,null,"≥95%","项目申报、实施过程监督、竣工后项目所在地受益","改善村内基础设施条件，提升脱贫人口生活设施水平"]
[526,"人居环境整治（农村污水治理）","萧县农村黑臭水体综合整治项目","新建","县生态环境分局","石林乡\n杨超峰","石林乡","朱大楼村","否","2处农村黑臭水体（约2300平方米）综合整治，包括清淤、岸坡整治、截污治污、 等。","2023年12月15日前",1000,1000,null,"完成2处农村黑臭水体（约2300平方米）综合整治，包括清淤、岸坡整治、截污治污、 等。有效提升农村人居环境","完成2处农村黑臭水体治理，有效提升农村人居环境",{"v":1,"d":"100%"},{"v":1,"d":"100%"},"/","/","/","/",170,255,null,null,"≥95%","项目申报、实施过程监督、竣工后项目所在地受益","以改善基础设施建设的方式提升群众满意度"]
[527,"人居环境整治（农村污水治理）","萧县农村黑臭水体综合整治项目","新建","县生态环境分局","石林乡\n杨超峰","石林乡","崔阁村","否","1处农村黑臭水体（约900平方米）综合整治，包括清淤、岸坡整治、截污治污、 等。","2023年12月15日前",50,50,null,"完成1处农村黑臭水体（约900平方米）综合整治，包括清淤、岸坡整治、截污治污、 等。有效提升农村人居环境","完成1处农村黑臭水体治理，有效提升农村人居环境",{"v":1,"d":"100%"},{"v":1,"d":"100%"},"/","/","/","/",170,255,null,null,"≥95%","项目申报、实施过程监督、竣工后项目所在地受益","以改善基础设施建设的方式提升群众满意度"]
[528,"人居环境整治（农村污水治理）","萧县农村黑臭水体综合整治项目","新建","县生态环境分局","孙圩子镇\n张康","孙圩子镇","丁楼村","否","1处农村黑臭水体综合整治，包括清淤、岸坡整治、截污治污等。","2023年12月15日前",5,5,null,"完成1处农村黑臭水体综合整治，包括清淤、岸坡整治、截污治污等。有效提升农村人居环境","完成1处农村黑臭水体治理，有效提升农村人居环境",{"v":1,"d":"100%"},{"v":1,"d":"100%"},"/","/","/","/",170,255,null,null,"≥95%","项目申报、实施过程监督、竣工后项目所在地受益","改善村内基础设施条件，提升脱贫人口生活设施水平"]
[529,"人居环境整治（农村污水治理）","萧县农村黑臭水体综合整治项目","新建","县生态环境分局","王寨镇\n王亚华","王寨镇","吴从行政村","否","对村内黑臭水体综合整治，包括清淤、岸坡整治、截污治污等。","2023年12月15日前",55,55,null,"完成对村内黑臭水体综合整治，包括清淤、岸坡整治、截污治污等。有效提升农村人居环境","完成村内1处农村黑臭水体治理，有效提升农村人居环境",{"v":1,"d":"100%"},{"v":1,"d":"100%"},"/","/","/","/",125,{"v":187.5,"d":"188"},null,null,"≥95%","项目申报、实施过程监督、竣工后项目所在地受益","改善村内人居环境，提升群众生活幸福感和满意度"]
[530,"人居环境整治（农村污水治理）","萧县农村黑臭水体综合整治项目","新建","县生态环境分局","王寨镇\n王亚华","王寨镇","王集行政村","否","对村内黑臭水体综合整治，包括清淤、岸坡整治、截污治污等。","2023年12月15日前",55,55,null,"完成对村内黑臭水体综合整治，包括清淤、岸坡整治、截污治污等。有效提升农村人居环境","完成村内1处农村黑臭水体治理，有效提升农村人居环境",{"v":1,"d":"100%"},{"v":1,"d":"100%"},"/","/","/","/",1160,1740,null,null,"≥95%","项目申报、实施过程监督、竣工后项目所在地受益","改善村内人居环境，提升群众生活幸福感和满意度"]
[531,"人居环境整治（农村污水治理）","萧县农村黑臭水体综合整治项目","新建","县生态环境分局","王寨镇\n王亚华","王寨镇","戴柿元行政村","是","对村内黑臭水体综合整治，包括清淤、岸坡整治、截污治污等。","2023年12月15日前",55,55,null,"完成对村内黑臭水体综合整治，包括清淤、岸坡整治、截污治污等。有效提升农村人居环境","完成村内1处农村黑臭水体治理，有效提升农村人居环境",{"v":1,"d":"100%"},{"v":1,"d":"100%"},"/","/","/","/",4532,6798,null,null,"≥95%","项目申报、实施过程监督、竣工后项目所在地受益","改善村内人居环境，提升群众生活幸福感和满意度"]
[532,"人居环境整治（农村污水治理）","萧县农村黑臭水体综合整治项目","新建","县生态环境分局","王寨镇\n王亚华","王寨镇","王寨行政村","否","对村内黑臭水体综合整治，包括清淤、岸坡整治、截污治污等。","2023年12月15日前",80,80,null,"完成对村内黑臭水体综合整治，包括清淤、岸坡整治、截污治污等。有效提升农村人居环境","完成村内1处农村黑臭水体治理，有效提升农村人居环境",{"v":1,"d":"100%"},{"v":1,"d":"100%"},"/","/","/","/",436,654,null,null,"≥95%","项目申报、实施过程监督、竣工后项目所在地受益","改善村内人居环境，提升群众生活幸福感和满意度"]
[533,"人居环境整治（农村污水治理）","萧县农村黑臭水体综合整治项目","新建","县生态环境分局","王寨镇\n王亚华","王寨镇","郝洼行政村","是","对村内黑臭水体综合整治，包括清淤、岸坡整治、截污治污等。","2023年12月15日前",100,100,null,"完成对村内黑臭水体综合整治，包括清淤、岸坡整治、截污治污等。有效提升农村人居环境","完成村内2处农村黑臭水体治理，有效提升农村人居环境",{"v":1,"d":"100%"},{"v":1,"d":"100%"},"/","/","/","/",1546,2319,null,null,"≥95%","项目申报、实施过程监督、竣工后项目所在地受益","改善村内人居环境，提升群众生活幸福感和满意度"]
[534,"人居环境整治（农村污水治理）","萧县农村黑臭水体综合整治项目","新建","县生态环境分局","王寨镇\n王亚华","王寨镇","苏庄行政村","是","对村内黑臭水体综合整治，包括清淤、岸坡整治、截污治污等。","2023年12月15日前",200,200,null,"完成对村内黑臭水体综合整治，包括清淤、岸坡整治、截污治污等。有效提升农村人居环境","完成村内3处农村黑臭水体治理，有效提升农村人居环境",{"v":1,"d":"100%"},{"v":1,"d":"100%"},"/","/","/","/",2325,{"v":3487.5,"d":"3488"},null,null,"≥95%","项目申报、实施过程监督、竣工后项目所在地受益","改善村内人居环境，提升群众生活幸福感和满意度"]
[535,"人居环境整治（农村污水治理）","萧县农村黑臭水体综合整治项目","新建","县生态环境分局","王寨镇\n王亚华","王寨镇","张楼行政村","否","对村内黑臭水体综合整治，包括清淤、岸坡整治、截污治污等。","2023年12月15日前",100,100,null,"完成对村内黑臭水体综合整治，包括清淤、岸坡整治、截污治污等。有效提升农村人居环境","完成村内2处农村黑臭水体治理，有效提升农村人居环境",{"v":1,"d":"100%"},{"v":1,"d":"100%"},"/","/","/","/",6850,10275,null,null,"≥95%","项目申报、实施过程监督、竣工后项目所在地受益","改善村内人居环境，提升群众生活幸福感和满意度"]
[536,"人居环境整治（农村污水治理）","萧县农村黑臭水体综合整治项目","新建","县生态环境分局","王寨镇\n王亚华","王寨镇","三座楼行政村","否","对村内黑臭水体综合整治，包括清淤、岸坡整治、截污治污等。","2023年12月15日前",20,20,null,"完成对村内黑臭水体综合整治，包括清淤、岸坡整治、截污治污等。有效提升农村人居环境","完成村内3处农村黑臭水体治理，有效提升农村人居环境",{"v":1,"d":"100%"},{"v":1,"d":"100%"},"/","/","/","/",720,1080,null,null,"≥95%","项目申报、实施过程监督、竣工后项目所在地受益","改善村内人居环境，提升群众生活幸福感和满意度"]
[537,"人居环境整治（农村污水治理）","萧县农村黑臭水体综合整治项目","新建","县生态环境分局","王寨镇\n王亚华","王寨镇","杨集行政村","否","对村内黑臭水体综合整治，包括清淤、岸坡整治、截污治污等。","2023年12月15日前",35,35,null,"完成对村内黑臭水体综合整治，包括清淤、岸坡整治、截污治污等。有效提升农村人居环境","完成村内3处农村黑臭水体治理，有效提升农村人居环境",{"v":1,"d":"100%"},{"v":1,"d":"100%"},"/","/","/","/",6900,10350,null,null,"≥95%","项目申报、实施过程监督、竣工后项目所在地受益","改善村内人居环境，提升群众生活幸福感和满意度"]
[538,"人居环境整治（农村污水治理）","萧县农村黑臭水体综合整治项目","新建","县生态环境分局","王寨镇\n王亚华","王寨镇","李楼行政村","否","对村内黑臭水体综合整治，包括清淤、岸坡整治、截污治污等。","2023年12月15日前",50,50,null,"完成对村内黑臭水体综合整治，包括清淤、岸坡整治、截污治污等。有效提升农村人居环境","完成村内3处农村黑臭水体治理，有效提升农村人居环境",{"v":1,"d":"100%"},{"v":1,"d":"100%"},"/","/","/","/",1260,1890,null,null,"≥95%","项目申报、实施过程监督、竣工后项目所在地受益","改善村内人居环境，提升群众生活幸福感和满意度"]
[539,"人居环境整治（农村污水治理）","萧县农村黑臭水体综合整治项目","新建","县生态环境分局","新庄镇\n杨宜成","新庄镇","郭套村","否","3处农村黑臭水体综合整治，包括清淤、岸坡整治、截污治污等。","2023年12月15日前",30,30,null,"完成3处农村黑臭水体综合整治，包括清淤、岸坡整治、截污治污等。有效提升农村人居环境","完成3处农村黑臭水体治理，有效提升农村人居环境",{"v":1,"d":"100%"},{"v":1,"d":"100%"},"/","/","/","/",3680,5520,null,null,"≥95%","项目申报、实施过程监督、竣工后项目所在地受益","改善村内基础设施条件，提升脱贫人口生活设施水平"]
[540,"人居环境整治（农村污水治理）","萧县农村黑臭水体综合整治项目","新建","县生态环境分局","新庄镇\n杨宜成","新庄镇","常庄村","是","2处农村黑臭水体综合整治，包括清淤、岸坡整治、截污治污等。","2023年12月15日前",25,25,null,"完成2处农村黑臭水体综合整治，包括清淤、岸坡整治、截污治污等。有效提升农村人居环境","完成2处农村黑臭水体治理，有效提升农村人居环境",{"v":1,"d":"100%"},{"v":1,"d":"100%"},"/","/","/","/",4388,6582,null,null,"≥95%","项目申报、实施过程监督、竣工后项目所在地受益","改善村内基础设施条件，提升脱贫人口生活设施水平"]
[541,"人居环境整治（农村污水治理）","萧县农村黑臭水体综合整治项目","新建","县生态环境分局","新庄镇\n杨宜成","新庄镇","小桥村","是","5处农村黑臭水体综合整治，包括清淤、岸坡整治、截污治污等。","2023年12月15日前",{"$f":"M560+N560","v":50},50,null,"完成5处农村黑臭水体综合整治，包括清淤、岸坡整治、截污治污等。有效提升农村人居环境","完成5处农村黑臭水体治理，有效提升农村人居环境",{"v":1,"d":"100%"},{"v":1,"d":"100%"},"/","/","/","/",150,225,null,null,"≥95%","项目申报、实施过程监督、竣工后项目所在地受益","改善村内基础设施条件，提升脱贫人口生活设施水平"]
[542,"人居环境整治（农村污水治理）","萧县农村黑臭水体综合整治项目","新建","县生态环境分局","新庄镇\n杨宜成","新庄镇","李庄村","否","2处农村黑臭水体综合整治，包括清淤、岸坡整治等。","2023年12月15日前",30,30,null,"完成2处农村黑臭水体综合整治，包括清淤、岸坡整治等。有效提升农村人居环境","完成2处农村黑臭水体治理，有效提升农村人居环境",{"v":1,"d":"100%"},{"v":1,"d":"100%"},"/","/","/","/",279,{"v":418.5,"d":"419"},null,null,"≥95%","项目申报、实施过程监督、竣工后项目所在地受益","改善村内基础设施条件，提升脱贫人口生活设施水平"]
[543,"人居环境整治（农村污水治理）","萧县农村黑臭水体综合整治项目","新建","县生态环境分局","新庄镇\n杨宜成","新庄镇","杜集村","否","1处农村黑臭水体综合整治，包括清淤、岸坡整治等。","2023年12月15日前",30,30,null,"完成1处农村黑臭水体综合整治，包括清淤、岸坡整治等。有效提升农村人居环境","完成1处农村黑臭水体治理，有效提升农村人居环境",{"v":1,"d":"100%"},{"v":1,"d":"100%"},"/","/","/","/",569,{"v":853.5,"d":"854"},null,null,"≥95%","项目申报、实施过程监督、竣工后项目所在地受益","改善村内基础设施条件，提升脱贫人口生活设施水平"]
[544,"人居环境整治（农村污水治理）","萧县农村黑臭水体综合整治项目","新建","县生态环境分局","新庄镇\n杨宜成","新庄镇","东阁村","否","2处农村黑臭水体综合整治，包括清淤、岸坡整治、截污治污等。","2023年12月15日前",28,28,null,"完成2处农村黑臭水体综合整治，包括清淤、岸坡整治、截污治污等。有效提升农村人居环境","完成2处农村黑臭水体治理，有效提升农村人居环境",{"v":1,"d":"100%"},{"v":1,"d":"100%"},"/","/","/","/",196,294,null,null,"≥95%","项目申报、实施过程监督、竣工后项目所在地受益","改善村内基础设施条件，提升脱贫人口生活设施水平"]
[545,"人居环境整治（农村污水治理）","萧县农村黑臭水体综合整治项目","新建","县生态环境分局","新庄镇\n杨宜成","新庄镇","李集村","是","6处农村黑臭水体综合整治，包括清淤、岸坡整治、截污治污等。","2023年12月15日前",60,60,null,"完成6处农村黑臭水体综合整治，包括清淤、岸坡整治、截污治污等。有效提升农村人居环境","完成6处农村黑臭水体治理，有效提升农村人居环境",{"v":1,"d":"100%"},{"v":1,"d":"100%"},"/","/","/","/",678,1017,null,null,"≥95%","项目申报、实施过程监督、竣工后项目所在地受益","改善村内基础设施条件，提升脱贫人口生活设施水平"]
[546,"人居环境整治（农村污水治理）","萧县农村黑臭水体综合整治项目","新建","县生态环境分局","新庄镇\n杨宜成","新庄镇","小集子村","是","3处农村黑臭水体综合整治，包括清淤、岸坡整治等。","2023年12月15日前",50,50,null,"完成3处农村黑臭水体综合整治，包括清淤、岸坡整治等。有效提升农村人居环境","完成3处农村黑臭水体治理，有效提升农村人居环境",{"v":1,"d":"100%"},{"v":1,"d":"100%"},"/","/","/","/",298,447,null,null,"≥95%","项目申报、实施过程监督、竣工后项目所在地受益","改善村内基础设施条件，提升脱贫人口生活设施水平"]
[547,"人居环境整治（农村污水治理）","萧县农村黑臭水体综合整治项目","新建","县生态环境分局","新庄镇\n杨宜成","新庄镇","中心居委会","否","10处农村黑臭水体综合整治，包括清淤、岸坡整治等。","2023年12月15日前",130,130,null,"完成10处农村黑臭水体综合整治，包括清淤、岸坡整治等。有效提升农村人居环境","完成10处农村黑臭水体治理，有效提升农村人居环境",{"v":1,"d":"100%"},{"v":1,"d":"100%"},"/","/","/","/",249,{"v":373.5,"d":"374"},null,null,"≥95%","项目申报、实施过程监督、竣工后项目所在地受益","改善村内基础设施条件，提升脱贫人口生活设施水平"]
[548,"人居环境整治（农村污水治理）","萧县农村黑臭水体综合整治项目","新建","县生态环境分局","新庄镇\n杨宜成","新庄镇","沟头村","是","3处农村黑臭水体综合整治，包括清淤、岸坡整治、截污治污等。","2023年12月15日前",45,45,null,"完成3处农村黑臭水体综合整治，包括清淤、岸坡整治、截污治污等。有效提升农村人居环境","完成3处农村黑臭水体治理，有效提升农村人居环境",{"v":1,"d":"100%"},{"v":1,"d":"100%"},"/","/","/","/",791,{"v":1186.5,"d":"1187"},null,null,"≥95%","项目申报、实施过程监督、竣工后项目所在地受益","改善村内基础设施条件，提升脱贫人口生活设施水平"]
[549,"人居环境整治（农村污水治理）","萧县农村黑臭水体综合整治项目","新建","县生态环境分局","新庄镇\n杨宜成","新庄镇","西阁村","否","3处农村黑臭水体综合整治，包括清淤、岸坡整治、截污治污等。","2023年12月15日前",80,80,null,"完成3处农村黑臭水体综合整治，包括清淤、岸坡整治、截污治污等。有效提升农村人居环境","完成3处农村黑臭水体治理，有效提升农村人居环境",{"v":1,"d":"100%"},{"v":1,"d":"100%"},"/","/","/","/",165,{"v":247.5,"d":"248"},null,null,"≥95%","项目申报、实施过程监督、竣工后项目所在地受益","改善村内基础设施条件，提升脱贫人口生活设施水平"]
[550,"人居环境整治（农村污水治理）","萧县农村黑臭水体综合整治项目","新建","县生态环境分局","新庄镇\n杨宜成","新庄镇","铁佛村","否","1处农村黑臭水体综合整治，包括清淤、岸坡整治等。","2023年12月15日前",40,40,null,"完成1处农村黑臭水体综合整治，包括清淤、岸坡整治等。有效提升农村人居环境","完成1处农村黑臭水体治理，有效提升农村人居环境",{"v":1,"d":"100%"},{"v":1,"d":"100%"},"/","/","/","/",374,561,null,null,"≥95%","项目申报、实施过程监督、竣工后项目所在地受益","改善村内基础设施条件，提升脱贫人口生活设施水平"]
[551,"人居环境整治（农村污水治理）","萧县农村黑臭水体综合整治项目","新建","县生态环境分局","新庄镇\n杨宜成","新庄镇","马郑庄村","否","1处农村黑臭水体综合整治，包括清淤、岸坡整治、截污治污等。","2023年12月15日前",20,20,null,"完成1处农村黑臭水体综合整治，包括清淤、岸坡整治、截污治污等。有效提升农村人居环境","完成1处农村黑臭水体治理，有效提升农村人居环境",{"v":1,"d":"100%"},{"v":1,"d":"100%"},"/","/","/","/",1023,{"v":1534.5,"d":"1535"},null,null,"≥95%","项目申报、实施过程监督、竣工后项目所在地受益","改善村内基础设施条件，提升脱贫人口生活设施水平"]
[552,"人居环境整治（农村污水治理）","萧县农村黑臭水体综合整治项目","新建","县生态环境分局","闫集镇\n赵世成","闫集镇","柳园村","是","2处农村黑臭水体（约1100平方米）综合整治，包括清淤、岸坡整治、截污治污、 等。","2023年12月15日前",130,130,null,"完成2处农村黑臭水体（约1100平方米）综合整治，包括清淤、岸坡整治、截污治污、 等。有效提升农村人居环境","完成2处农村黑臭水体治理，有效提升农村人居环境",{"v":1,"d":"100%"},{"v":1,"d":"100%"},"/","/","/","/",345,{"v":517.5,"d":"518"},null,null,"≥95%","项目申报、实施过程监督、竣工后项目所在地受益","改善村内基础设施条件，提升脱贫人口生活设施水平"]
[553,"人居环境整治（农村污水治理）","萧县农村黑臭水体综合整治项目","新建","县生态环境分局","闫集镇\n赵世成","闫集镇","塘沃涯村","是","3处农村黑臭水体（约2360平方米）综合整治，包括清淤、岸坡整治、截污治污、 等。","2023年12月15日前",300,300,null,"完成3处农村黑臭水体（约2360平方米）综合整治，包括清淤、岸坡整治、截污治污、 等。有效提升农村人居环境","完成3处农村黑臭水体治理，有效提升农村人居环境",{"v":1,"d":"100%"},{"v":1,"d":"100%"},"/","/","/","/",380,570,null,null,"≥95%","项目申报、实施过程监督、竣工后项目所在地受益","改善村内基础设施条件，提升脱贫人口生活设施水平"]
[554,"人居环境整治（农村污水治理）","萧县农村黑臭水体综合整治项目","新建","县生态环境分局","闫集镇\n赵世成","闫集镇","杨庄村","否","6处农村黑臭水体（约5500平方米）综合整治，包括清淤、岸坡整治、截污治污、 等。","2023年12月15日前",670,670,null,"完成6处农村黑臭水体（约5500平方米）综合整治，包括清淤、岸坡整治、截污治污、 等。有效提升农村人居环境","完成6处农村黑臭水体治理，有效提升农村人居环境",{"v":1,"d":"100%"},{"v":1,"d":"100%"},"/","/","/","/",1700,2550,null,null,"≥95%","项目申报、实施过程监督、竣工后项目所在地受益","改善村内基础设施条件，提升脱贫人口生活设施水平"]
[555,"人居环境整治（农村污水治理）","萧县农村黑臭水体综合整治项目","新建","县生态环境分局","闫集镇\n赵世成","闫集镇","刘店村","否","3处农村黑臭水体（约2900平方米）综合整治，包括清淤、岸坡整治、截污治污、 等。","2023年12月15日前",400,400,null,"完成3处农村黑臭水体（约2900平方米）综合整治，包括清淤、岸坡整治、截污治污、 等。有效提升农村人居环境","完成3处农村黑臭水体治理，有效提升农村人居环境",{"v":1,"d":"100%"},{"v":1,"d":"100%"},"/","/","/","/",690,1035,null,null,"≥95%","项目申报、实施过程监督、竣工后项目所在地受益","改善村内基础设施条件，提升脱贫人口生活设施水平"]
[556,"人居环境整治（农村污水治理）","萧县农村黑臭水体综合整治项目","新建","县生态环境分局","闫集镇\n赵世成","闫集镇","高楼村","否","5处农村黑臭水体（约20000平方米）综合整治，包括清淤、岸坡整治、截污治污、 等。","2023年12月15日前",1955,1955,null,"完成5处农村黑臭水体（约20000平方米）综合整治，包括清淤、岸坡整治、截污治污、 等。有效提升农村人居环境","完成1处农村黑臭水体治理，有效提升农村人居环境",{"v":1,"d":"100%"},{"v":1,"d":"100%"},"/","/","/","/",1123,{"v":1684.5,"d":"1685"},null,null,"≥95%","项目申报、实施过程监督、竣工后项目所在地受益","改善村内基础设施条件，提升脱贫人口生活设施水平"]
[557,"人居环境整治（农村污水治理）","萧县农村黑臭水体综合整治项目","新建","县生态环境分局","闫集镇\n赵世成","闫集镇","郑集村","是","2处农村黑臭水体（约3780平方米）综合整治，包括清淤、岸坡整治、截污治污、 等。","2023年12月15日前",700,700,null,"完成2处农村黑臭水体（约3780平方米）综合整治，包括清淤、岸坡整治、截污治污、 等。有效提升农村人居环境","完成1处农村黑臭水体治理，有效提升农村人居环境",{"v":1,"d":"100%"},{"v":1,"d":"100%"},"/","/","/","/",868,1302,null,null,"≥95%","项目申报、实施过程监督、竣工后项目所在地受益","改善村内基础设施条件，提升脱贫人口生活设施水平"]
[558,"人居环境整治（农村污水治理）","萧县农村黑臭水体综合整治项目","新建","县生态环境分局","闫集镇\n赵世成","闫集镇","汪楼村","否","2处农村黑臭水体（约690平方米）综合整治，包括清淤、岸坡整治、截污治污、 等。","2023年12月15日前",100,100,null,"完成2处农村黑臭水体（约690平方米）综合整治，包括清淤、岸坡整治、截污治污、 等。有效提升农村人居环境","完成2处农村黑臭水体治理，有效提升农村人居环境",{"v":1,"d":"100%"},{"v":1,"d":"100%"},"/","/","/","/",845,{"v":1267.5,"d":"1268"},null,null,"≥95%","项目申报、实施过程监督、竣工后项目所在地受益","改善村内基础设施条件，提升脱贫人口生活设施水平"]
[559,"人居环境整治（农村污水治理）","萧县农村黑臭水体综合整治项目","新建","县生态环境分局","闫集镇\n赵世成","闫集镇","孙老家村","否","5处农村黑臭水体（约7420平方米）综合整治，包括清淤、岸坡整治、截污治污、 等。","2023年12月15日前",1185,1185,null,"完成5处农村黑臭水体（约7420平方米）综合整治，包括清淤、岸坡整治、截污治污、 等。有效提升农村人居环境","完成5处农村黑臭水体治理，有效提升农村人居环境",{"v":1,"d":"100%"},{"v":1,"d":"100%"},"/","/","/","/",877,{"v":1315.5,"d":"1316"},null,null,"≥95%","项目申报、实施过程监督、竣工后项目所在地受益","改善村内基础设施条件，提升脱贫人口生活设施水平"]
[560,"人居环境整治（农村污水治理）","萧县农村黑臭水体综合整治项目","新建","县生态环境分局","闫集镇\n赵世成","闫集镇","孟楼村","否","4处农村黑臭水体（约4725平方米）综合整治，包括清淤、岸坡整治、截污治污、 等。","2023年12月15日前",1005,1005,null,"完成4处农村黑臭水体（约4725平方米）综合整治，包括清淤、岸坡整治、截污治污、 等。有效提升农村人居环境","完成4处农村黑臭水体治理，有效提升农村人居环境",{"v":1,"d":"100%"},{"v":1,"d":"100%"},"/","/","/","/",585,{"v":877.5,"d":"878"},null,null,"≥95%","项目申报、实施过程监督、竣工后项目所在地受益","改善村内基础设施条件，提升脱贫人口生活设施水平"]
[561,"人居环境整治（农村污水治理）","萧县农村黑臭水体综合整治项目","新建","县生态环境分局","闫集镇\n赵世成","闫集镇","赵堂村","是","1处农村黑臭水体（约2000平方米）综合整治，包括清淤、岸坡整治、截污治污等。","2023年12月15日前",430,430,null,"完成1处农村黑臭水体（约2000平方米）综合整治，包括清淤、岸坡整治、截污治污等。有效提升农村人居环境","完成1处农村黑臭水体治理，有效提升农村人居环境",{"v":1,"d":"100%"},{"v":1,"d":"100%"},"/","/","/","/",294,441,null,null,"≥95%","项目申报、实施过程监督、竣工后项目所在地受益","改善村内基础设施条件，提升脱贫人口生活设施水平"]
[562,"人居环境整治（农村污水治理）","萧县农村黑臭水体综合整治项目","新建","县生态环境分局","闫集镇\n赵世成","闫集镇","闫集村","否","1处农村黑臭水体（约800平方米）综合整治，包括清淤、岸坡整治、截污治污等。","2023年12月15日前",160,160,null,"完成1处农村黑臭水体（约800平方米）综合整治，包括清淤、岸坡整治、截污治污等。有效提升农村人居环境","完成1处农村黑臭水体治理，有效提升农村人居环境",{"v":1,"d":"100%"},{"v":1,"d":"100%"},"/","/","/","/",3895,{"v":5842.5,"d":"5843"},null,null,"≥95%","项目申报、实施过程监督、竣工后项目所在地受益","改善村内基础设施条件，提升脱贫人口生活设施水平"]
[563,"人居环境整治（农村污水治理）","萧县杨楼镇农村黑臭水体综合整治项目","新建","县生态环境分局","杨楼镇\n黄蓓蓓","杨楼镇","张口社区","是","彭新庄自然村1处农村黑臭水体综合整治，包括清淤、岸坡整治、截污治污等。","2023年12月15日前",70,70,null,"完成彭新庄自然村1处农村黑臭水体综合整治，包括清淤、岸坡整治、截污治污等。有效提升农村人居环境","完成1处农村黑臭水体治理，有效提升农村人居环境",{"v":1,"d":"100%"},{"v":1,"d":"100%"},"/","/","/","/",5930,8895,null,null,"≥95%","项目申报、实施过程监督、竣工后项目所在地受益","改善村内基础设施条件，提升脱贫人口生活设施水平"]
[564,"人居环境整治（农村污水治理）","萧县杨楼镇农村黑臭水体综合整治项目","新建","县生态环境分局","杨楼镇\n黄蓓蓓","杨楼镇","郜洼村","是","小杨楼自然村南1处农村黑臭水体综合整治，包括清淤、岸坡整治、截污治污等。","2023年12月15日前",90,90,null,"完成小杨楼自然村南1处农村黑臭水体综合整治，包括清淤、岸坡整治、截污治污等。有效提升农村人居环境","完成1处农村黑臭水体治理，有效提升农村人居环境",{"v":1,"d":"100%"},{"v":1,"d":"100%"},"/","/","/","/",1458,2187,null,null,"≥95%","项目申报、实施过程监督、竣工后项目所在地受益","改善村内基础设施条件，提升脱贫人口生活设施水平"]
[565,"人居环境整治（农村污水治理）","萧县杨楼镇农村黑臭水体综合整治项目","新建","县生态环境分局","杨楼镇\n黄蓓蓓","杨楼镇","尹庄村","否","小杜庄自然村村北1处农村黑臭水体综合整治，包括清淤、岸坡整治、截污治污等。","2023年12月15日前",44,44,null,"完成小杜庄自然村村北1处农村黑臭水体综合整治，包括清淤、岸坡整治、截污治污等。有效提升农村人居环境","完成1处农村黑臭水体治理，有效提升农村人居环境",{"v":1,"d":"100%"},{"v":1,"d":"100%"},"/","/","/","/",283,{"v":424.5,"d":"425"},null,null,"≥95%","项目申报、实施过程监督、竣工后项目所在地受益","改善村内基础设施条件，提升脱贫人口生活设施水平"]
[566,"人居环境整治（农村污水治理）","萧县杨楼镇农村黑臭水体综合整治项目","新建","县生态环境分局","杨楼镇\n黄蓓蓓","杨楼镇","余洼村","是","余洼行政村朱集村内1处农村黑臭水体综合整治，包括清淤、岸坡整治、截污治污等。","2023年12月15日前",60,60,null,"完成余洼行政村朱集村内1处农村黑臭水体综合整治，包括清淤、岸坡整治、截污治污等。有效提升农村人居环境","完成1处农村黑臭水体治理，有效提升农村人居环境",{"v":1,"d":"100%"},{"v":1,"d":"100%"},"/","/","/","/",460,690,null,null,"≥95%","项目申报、实施过程监督、竣工后项目所在地受益","改善村内基础设施条件，提升脱贫人口生活设施水平"]
[567,"人居环境整治（农村污水治理）","萧县杨楼镇农村黑臭水体综合整治项目","新建","县生态环境分局","杨楼镇\n黄蓓蓓","杨楼镇","孙庄村","否","孙庄村村内1处农村黑臭水体综合整治，包括清淤、岸坡整治、截污治污等。","2023年12月15日前",100,100,null,"完成孙庄村村内1处农村黑臭水体综合整治，包括清淤、岸坡整治、截污治污等。有效提升农村人居环境","完成1处农村黑臭水体治理，有效提升农村人居环境",{"v":1,"d":"100%"},{"v":1,"d":"100%"},"/","/","/","/",362,543,null,null,"≥95%","项目申报、实施过程监督、竣工后项目所在地受益","改善村内基础设施条件，提升脱贫人口生活设施水平"]
[568,"人居环境整治（农村污水治理）","萧县杨楼镇农村黑臭水体综合整治项目","新建","县生态环境分局","杨楼镇\n黄蓓蓓","杨楼镇","孟庄村","否","孟庄村八庄村东1处农村黑臭水体综合整治，包括清淤、岸坡整治、截污治污等。","2023年12月15日前",85,85,null,"完成孟庄村八庄村东1处农村黑臭水体综合整治，包括清淤、岸坡整治、截污治污等。有效提升农村人居环境","完成1处农村黑臭水体治理，有效提升农村人居环境",{"v":1,"d":"100%"},{"v":1,"d":"100%"},"/","/","/","/",120,180,null,null,"≥95%","项目申报、实施过程监督、竣工后项目所在地受益","改善村内基础设施条件，提升脱贫人口生活设施水平"]
[569,"人居环境整治（农村污水治理）","萧县杨楼镇农村黑臭水体综合整治项目","新建","县生态环境分局","杨楼镇\n黄蓓蓓","杨楼镇","冯场村","否","冯场村李行1处农村黑臭水体综合整治，包括清淤、岸坡整治、截污治污等。","2023年12月15日前",55,55,null,"完成冯场村李行1处农村黑臭水体综合整治，包括清淤、岸坡整治、截污治污等。有效提升农村人居环境","完成1处农村黑臭水体治理，有效提升农村人居环境",{"v":1,"d":"100%"},{"v":1,"d":"100%"},"/","/","/","/",196,294,null,null,"≥95%","项目申报、实施过程监督、竣工后项目所在地受益","改善村内基础设施条件，提升脱贫人口生活设施水平"]
[570,"人居环境整治（农村污水治理）","萧县杨楼镇农村黑臭水体综合整治项目","新建","县生态环境分局","杨楼镇\n黄蓓蓓","杨楼镇","余洼村","是","余洼行政村胡楼村内1处农村黑臭水体综合整治，包括清淤、岸坡整治、截污治污等。","2023年12月15日前",40,40,null,"完成余洼行政村胡楼村内1处农村黑臭水体综合整治，包括清淤、岸坡整治、截污治污等。有效提升农村人居环境","完成1处农村黑臭水体治理，有效提升农村人居环境",{"v":1,"d":"100%"},{"v":1,"d":"100%"},"/","/","/","/",189,{"v":283.5,"d":"284"},null,null,"≥95%","项目申报、实施过程监督、竣工后项目所在地受益","改善村内基础设施条件，提升脱贫人口生活设施水平"]
[571,"人居环境整治（农村污水治理）","萧县农村黑臭水体综合整治项目","新建","县生态环境分局","永堌镇\n任精芳","永堌镇","许岗村","否","1处农村黑臭水体综合整治，包括清漂浮物、截污治污、道路修复等。","2023年12月15日前",600,600,null,"完成1处农村黑臭水体综合整治，包括清漂浮物、截污治污、道路修复等。有效提升农村人居环境","建设5千米左右污水管道，消除1处农村黑臭水体隐患治理，有效提升农村人居环境",{"v":1,"d":"100%"},{"v":1,"d":"100%"},"/","/","/","/",512,1850,null,null,"≥95%","项目申报、实施过程监督、竣工后项目所在地受益","改善村内基础设施条件，提升脱贫人口生活设施水平"]
[572,"人居环境整治（农村污水治理）","萧县农村黑臭水体综合整治项目","新建","县生态环境分局","永堌镇\n任精芳","永堌镇","胜利村","否","1处农村黑臭水体综合整治，包括清淤、岸坡整治、截污治污等。","2023年12月15日前",40,40,null,"完成1处农村黑臭水体综合整治，包括清淤、岸坡整治、截污治污等。有效提升农村人居环境","完成1处农村黑臭水体治理，有效提升农村人居环境",{"v":1,"d":"100%"},{"v":1,"d":"100%"},"/","/","/","/",294,1530,null,null,"≥95%","项目申报、实施过程监督、竣工后项目所在地受益","改善村内基础设施条件，提升脱贫人口生活设施水平"]
[573,"人居环境整治（农村污水治理）","萧县农村黑臭水体综合整治项目","新建","县生态环境分局","永堌镇\n任精芳","永堌镇","窦庄村","是","1处农村黑臭水体综合整治，包括清淤、岸坡整治、截污治污、桥梁修复、青苗树木补偿等。","2023年12月15日前",500,500,null,"完成1处农村黑臭水体综合整治，包括清淤、岸坡整治、截污治污、桥梁修复、青苗树木补偿等。有效提升农村人居环境","完成1处农村黑臭水体治理，有效提升农村人居环境",{"v":1,"d":"100%"},{"v":1,"d":"100%"},"/","/","/","/",930,1670,null,null,"≥95%","项目申报、实施过程监督、竣工后项目所在地受益","改善村内基础设施条件，提升脱贫人口生活设施水平"]
[574,"人居环境整治（农村污水治理）","萧县农村黑臭水体综合整治项目","新建","县生态环境分局","张庄寨镇\n李宁","张庄寨镇","张庄寨社区","否","章楼沟黑臭水体综合整治，包括清淤、岸坡整治、截污治污等。","2023年12月15日前",510,510,null,"完成章楼沟黑臭水体综合整治，包括清淤、岸坡整治、截污治污等。有效提升农村人居环境","完成1处农村黑臭水体治理，有效提升农村人居环境",{"v":1,"d":"100%"},{"v":1,"d":"100%"},"/","/","/","/",70,105,null,null,"≥95%","项目申报、实施过程监督、竣工后项目所在地受益","改善村内基础设施条件，提升脱贫人口生活设施水平"]
[575,"人居环境整治（农村污水治理）","县级河道治理工程","新建","县生态环境分局","赵庄镇\n姜大郭","赵庄镇","赵庄村","否","对村内黑臭水体综合整治，包括清淤、岸坡整治、截污治污等。","2023年12月15日前",45,45,null,"完成对村内黑臭水体综合整治，包括清淤、岸坡整治、截污治污等。有效提升农村人居环境","完成1处农村黑臭水体治理，有效提升农村人居环境",{"v":1,"d":"100%"},{"v":1,"d":"100%"},{"$nulls":4},154,231,null,null,"≥95%","项目申报、实施过程监督、竣工后项目所在地受益","改善村内基础设施条件，提升脱贫人口生活设施水平"]
[576,"人居环境整治（农村污水治理）","县级河道治理工程","新建","县生态环境分局","赵庄镇\n姜大郭","赵庄镇","建华村","否","对村内黑臭水体综合整治，包括清淤、岸坡整治、截污治污等。","2023年12月15日前",85,85,null,"完成对村内黑臭水体综合整治，包括清淤、岸坡整治、截污治污等。有效提升农村人居环境","完成2处农村黑臭水体治理，有效提升农村人居环境",{"v":1,"d":"100%"},{"v":1,"d":"100%"},{"$nulls":4},98,147,null,null,"≥95%","项目申报、实施过程监督、竣工后项目所在地受益","改善村内基础设施条件，提升脱贫人口生活设施水平"]
[577,"人居环境整治（农村污水治理）","乡村环境改善污水收纳处理工程","新建","县生态环境分局","赵庄镇\n姜大郭","赵庄镇","张朴楼村","否","对村内黑臭水体综合整治，包括清淤、岸坡整治、截污治污等。","2023年12月15日前",75,75,null,"完成对村内黑臭水体综合整治，包括清淤、岸坡整治、截污治污等。有效提升农村人居环境","完成2处农村黑臭水体治理，有效提升农村人居环境",{"v":1,"d":"100%"},{"v":1,"d":"100%"},{"$nulls":4},122,183,null,null,"≥95%","项目申报、实施过程监督、竣工后项目所在地受益","改善村内基础设施条件，提升脱贫人口生活设施水平"]
[578,"人居环境整治（农村污水治理）","乡村环境改善污水收纳处理工程","新建","县生态环境分局","赵庄镇\n姜大郭","赵庄镇","大孙庄村","否","对村内黑臭水体综合整治，包括清淤、岸坡整治、截污治污等。","2023年12月15日前",36,36,null,"完成对村内黑臭水体综合整治，包括清淤、岸坡整治、截污治污等。有效提升农村人居环境","完成1处农村黑臭水体治理，有效提升农村人居环境",{"v":1,"d":"100%"},{"v":1,"d":"100%"},{"$nulls":4},102,153,null,null,"≥95%","项目申报、实施过程监督、竣工后项目所在地受益","改善村内基础设施条件，提升脱贫人口生活设施水平"]
[579,"人居环境整治（农村污水治理）","乡村环境改善污水收纳处理工程","新建","县生态环境分局","赵庄镇\n姜大郭","赵庄镇","前韦村","否","对村内黑臭水体综合整治，包括清淤、岸坡整治、截污治污等。","2023年12月15日前",40,40,null,"完成对村内黑臭水体综合整治，包括清淤、岸坡整治、截污治污等。有效提升农村人居环境","完成1处农村黑臭水体治理，有效提升农村人居环境",{"v":1,"d":"100%"},{"v":1,"d":"100%"},{"$nulls":4},4200,6300,null,null,"≥95%","项目申报、实施过程监督、竣工后项目所在地受益","改善村内基础设施条件，提升脱贫人口生活设施水平"]
[580,"人居环境整治（农村污水治理）","乡村环境改善污水收纳处理工程","新建","县生态环境分局","赵庄镇\n姜大郭","赵庄镇","吴蒋庄村","否","对村内黑臭水体综合整治，包括清淤、岸坡整治、截污治污等。","2023年12月15日前",38,38,null,"完成对村内黑臭水体综合整治，包括清淤、岸坡整治、截污治污等。有效提升农村人居环境","完成1处农村黑臭水体治理，有效提升农村人居环境",{"v":1,"d":"100%"},{"v":1,"d":"100%"},{"$nulls":4},3800,5700,null,null,"≥95%","项目申报、实施过程监督、竣工后项目所在地受益","改善村内基础设施条件，提升脱贫人口生活设施水平"]
[581,"人居环境整治（农村污水治理）","乡村环境改善污水收纳处理工程","新建","县生态环境分局","赵庄镇\n姜大郭","赵庄镇","吴集村","否","对村内黑臭水体综合整治，包括清淤、岸坡整治、截污治污等。","2023年12月15日前",100,100,null,"完成对村内黑臭水体综合整治，包括清淤、岸坡整治、截污治污等。有效提升农村人居环境","完成2处农村黑臭水体治理，有效提升农村人居环境",{"v":1,"d":"100%"},{"v":1,"d":"100%"},{"$nulls":4},213,{"v":319.5,"d":"320"},null,null,"≥95%","项目申报、实施过程监督、竣工后项目所在地受益","改善村内基础设施条件，提升脱贫人口生活设施水平"]
[582,"人居环境整治（农村污水治理）","乡村环境改善污水收纳处理工程","新建","县生态环境分局","赵庄镇\n姜大郭","赵庄镇","汪屯村","否","对村内黑臭水体综合整治，包括清淤、岸坡整治、截污治污等。","2023年12月15日前",86,86,null,"完成对村内黑臭水体综合整治，包括清淤、岸坡整治、截污治污等。有效提升农村人居环境","完成2处农村黑臭水体治理，有效提升农村人居环境",{"v":1,"d":"100%"},{"v":1,"d":"100%"},{"$nulls":4},82,123,null,null,"≥95%","项目申报、实施过程监督、竣工后项目所在地受益","改善村内基础设施条件，提升脱贫人口生活设施水平"]
[583,"人居环境整治（农村污水治理）","乡村环境改善污水收纳处理工程","新建","县生态环境分局","赵庄镇\n姜大郭","赵庄镇","张老庄村","是","对村内黑臭水体综合整治，包括清淤、岸坡整治、截污治污等。","2023年12月15日前",50,50,null,"完成对村内黑臭水体综合整治，包括清淤、岸坡整治、截污治污等。有效提升农村人居环境","完成1处农村黑臭水体治理，有效提升农村人居环境",{"v":1,"d":"100%"},{"v":1,"d":"100%"},{"$nulls":4},62,93,null,null,"≥95%","项目申报、实施过程监督、竣工后项目所在地受益","改善村内基础设施条件，提升脱贫人口生活设施水平"]
[584,"人居环境整治（农村污水治理）","乡村环境改善污水收纳处理工程","新建","县生态环境分局","赵庄镇\n姜大郭","赵庄镇","王汉集村","是","对村内黑臭水体综合整治，包括清淤、岸坡整治、截污治污等。","2023年12月15日前",79,79,null,"完成对村内黑臭水体综合整治，包括清淤、岸坡整治、截污治污等。有效提升农村人居环境","完成2处农村黑臭水体治理，有效提升农村人居环境",{"v":1,"d":"100%"},{"v":1,"d":"100%"},{"$nulls":4},70,105,null,null,"≥95%","项目申报、实施过程监督、竣工后项目所在地受益","改善村内基础设施条件，提升脱贫人口生活设施水平"]
[585,"人居环境整治（农村污水治理）","乡村环境改善污水收纳处理工程","新建","县生态环境分局","赵庄镇\n姜大郭","赵庄镇","孙大庙村","是","对村内黑臭水体综合整治，包括清淤、岸坡整治、截污治污等。","2023年12月15日前",55,55,null,"完成对村内黑臭水体综合整治，包括清淤、岸坡整治、截污治污等。有效提升农村人居环境","完成1处农村黑臭水体治理，有效提升农村人居环境",{"v":1,"d":"100%"},{"v":1,"d":"100%"},{"$nulls":4},154,231,null,null,"≥95%","项目申报、实施过程监督、竣工后项目所在地受益","改善村内基础设施条件，提升脱贫人口生活设施水平"]
[586,"人居环境整治（农村污水治理）","乡村环境改善污水收纳处理工程","新建","县生态环境分局","赵庄镇\n姜大郭","赵庄镇","桃园村","否","对村内黑臭水体综合整治，包括清淤、岸坡整治、截污治污等。","2023年12月15日前",36,36,null,"完成对村内黑臭水体综合整治，包括清淤、岸坡整治、截污治污等。有效提升农村人居环境","完成1处农村黑臭水体治理，有效提升农村人居环境",{"v":1,"d":"100%"},{"v":1,"d":"100%"},{"$nulls":4},98,147,null,null,"≥95%","项目申报、实施过程监督、竣工后项目所在地受益","改善村内基础设施条件，提升脱贫人口生活设施水平"]
[587,"人居环境整治（农村污水治理）","乡村环境改善污水收纳处理工程","新建","县生态环境分局","赵庄镇\n姜大郭","赵庄镇","九店村","否","对村内黑臭水体综合整治，包括清淤、岸坡整治、截污治污等。","2023年12月15日前",85,85,null,"完成对村内黑臭水体综合整治，包括清淤、岸坡整治、截污治污等。有效提升农村人居环境","完成2处农村黑臭水体治理，有效提升农村人居环境",{"v":1,"d":"100%"},{"v":1,"d":"100%"},{"$nulls":4},122,183,null,null,"≥95%","项目申报、实施过程监督、竣工后项目所在地受益","改善村内基础设施条件，提升脱贫人口生活设施水平"]
[588,"人居环境整治（农村污水治理）","乡村环境改善污水收纳处理工程","新建","县生态环境分局","赵庄镇\n姜大郭","赵庄镇","三座楼村","是","对村内黑臭水体综合整治，包括清淤、岸坡整治、截污治污等。","2023年12月15日前",48,48,null,"完成对村内黑臭水体综合整治，包括清淤、岸坡整治、截污治污等。有效提升农村人居环境","完成1处农村黑臭水体治理，有效提升农村人居环境",{"v":1,"d":"100%"},{"v":1,"d":"100%"},{"$nulls":4},102,153,null,null,"≥95%","项目申报、实施过程监督、竣工后项目所在地受益","改善村内基础设施条件，提升脱贫人口生活设施水平"]
[589,"人居环境整治（农村污水治理）","萧县农村黑臭水体综合整治项目","新建","县生态环境分局","庄里镇\n孟卫东","庄里镇","陶墟村","是","1处农村黑臭水体综合整治，包括清淤、岸坡整治、截污治污等。","2023年12月15日前",50,50,null,"完成1处农村黑臭水体综合整治，包括清淤、岸坡整治、截污治污等。有效提升农村人居环境","完成1处农村黑臭水体治理，有效提升农村人居环境",{"v":1,"d":"100%"},{"v":1,"d":"100%"},"/","/","/","/",1756,4200,null,null,"≥95%","项目申报、实施过程监督、竣工后项目所在地受益","改善村内基础设施条件，提升脱贫人口生活设施水平"]
[590,"人居环境整治（农村污水治理）","萧县农村黑臭水体综合整治项目","新建","县生态环境分局","庄里镇\n孟卫东","庄里镇","大蔡村","否","2处农村黑臭水体综合整治，包括清淤、岸坡整治、截污治污等。","2023年12月15日前",50,50,null,"完成2处农村黑臭水体综合整治，包括清淤、岸坡整治、截污治污等。有效提升农村人居环境","完成2处农村黑臭水体治理，有效提升农村人居环境",{"v":1,"d":"100%"},{"v":1,"d":"100%"},"/","/","/","/",1297,3800,null,null,"≥95%","项目申报、实施过程监督、竣工后项目所在地受益","改善村内基础设施条件，提升脱贫人口生活设施水平"]
[591,"人居环境整治（农村污水治理）","萧县农村黑臭水体综合整治项目","新建","县生态环境分局","祖楼镇\n吴英","祖楼镇","石桥村","否","1处农村黑臭水体综合整治，包括清漂浮物、截污治污清淤、道路修复等。","2023年12月15日前",200,200,null,"完成1处农村黑臭水体综合整治，包括清漂浮物、截污治污清淤、道路修复等。有效提升农村人居环境","完成1处农村黑臭水体治理，有效提升农村人居环境",{"v":1,"d":"100%"},{"v":1,"d":"100%"},"/","/","/","/",{"v":95.2380952380952,"d":"95"},{"v":335.238095238095,"d":"335"},null,null,"≥95%","项目申报、实施过程监督、竣工后项目所在地受益","改善村内基础设施条件，提升脱贫人口生活设施水平"]
[592,"人居环境整治（农村污水治理）","萧县农村黑臭水体综合整治项目","新建","县生态环境分局","祖楼镇\n吴英","祖楼镇","刘其村","是","1处农村黑臭水体综合整治，包括清淤、岸坡整治、截污治污等。","2023年12月15日前",180,180,null,"完成1处农村黑臭水体综合整治，包括清淤、岸坡整治、截污治污等。有效提升农村人居环境","完成1处农村黑臭水体治理，有效提升农村人居环境",{"v":1,"d":"100%"},{"v":1,"d":"100%"},"/","/","/","/",{"v":85.7142857142857,"d":"86"},{"v":301.714285714286,"d":"302"},null,null,"≥95%","项目申报、实施过程监督、竣工后项目所在地受益","改善村内基础设施条件，提升脱贫人口生活设施水平"]
[593,"人居环境整治（农村污水治理）","萧县农村黑臭水体综合整治项目","新建","县生态环境分局","祖楼镇\n吴英","祖楼镇","穆寨村","否","1处农村黑臭水体综合整治，包括清淤、岸坡整治、截污治污、青苗树木补偿等。","2023年12月15日前",120,120,null,"完成1处农村黑臭水体综合整治，包括清淤、岸坡整治、截污治污、青苗树木补偿等。有效提升农村人居环境","完成1处农村黑臭水体治理，有效提升农村人居环境",{"v":1,"d":"100%"},{"v":1,"d":"100%"},"/","/","/","/",{"v":57.1428571428571,"d":"57"},{"v":201.142857142857,"d":"201"},null,null,"≥95%","项目申报、实施过程监督、竣工后项目所在地受益","改善村内基础设施条件，提升脱贫人口生活设施水平"]
[594,"人居环境整治（农村污水治理）","圣泉镇营子社区权楼自然村污水处理设施建设","新建","县农业农村局","圣泉镇\n田野","圣泉镇","营子社区","是","新建污水管网5260米、接户管网7800米、道路建设19350平方米及相关配套设施","2023年12月15日前",435,435,null,"新建污水管网5260、接户管网7800米、道路建设19350平方米及相关配套设施。改善农户生产生活设施条件，提升村内基础设施水平。","新建污水管网5260、接户管网7800米、道路建设19350平方米及相关配套设施。",{"v":1,"d":"100%"},{"v":1,"d":"100%"},{"$nulls":4},224,780,null,null,"≥95%","项目申报、实施过程监督、竣工后受益","改善农户生产生活设施条件，提升村内基础设施水平"]
[596,"人居环境整治（农村污水治理）","王寨镇王集郭村雨污水管网建设项目","新建","县农业农村局","王寨镇\n王亚华","王寨镇","王集村","否","建设雨污水管网，主管网约3000米，支管网约2000米","2023年12月15日前",280,280,null,"建设主管网约3000米，支管网约2000米，改善农户生产生活设施条件，提升村内基础设施水平。","建设主管网约3000米，支管网约2000米，",{"v":1,"d":"100%"},{"v":1,"d":"100%"},{"$nulls":4},230,1100,null,null,"≥95%","项目申报、实施过程监督、竣工后受益","改善村内基础设施条件，提升脱贫人口生活设施水平"]
[597,"人居环境整治（农村污水治理）","新庄镇杜集村污水管网建设","新建","县农业农村局","新庄镇\n杨宜成","新庄镇","杜集村","否","杜集行政村闫宫自然村污水管网处理4869米","2023年12月15日前",190.04,190.04,null,"建设污水管网处理4869米，改善农户生产生活设施条件，提升村内基础设施水平。","建设污水管网处理4869米",{"v":1,"d":"100%"},{"v":1,"d":"100%"},"/","/","/","/",237,735,null,null,"≥95%","项目申报、实施过程监督、竣工后项目所在地受益","改善村内基础设施条件，提升脱贫人口生活设施水平"]
[602,"人居环境整治（农村污水治理）","永堌镇王山窝自然村雨污水管网建设项目","新建","县农业农村局","永堌镇\n任精芳","永堌镇","王山窝村","否","新建雨污水管网1300米；接户管网3300米","2023年12月15日前",280,280,null,"新建雨污水管网1300米；接户管网3300米，改善农户生产生活设施条件，提升村内基础设施水平。","新建雨污水管网1300米；接户管网3300米",{"v":1,"d":"100%"},{"v":1,"d":"100%"},"/","/","/","/",{"v":133.333333333333,"d":"133"},{"v":469.333333333333,"d":"469"},null,null,"≥95%","项目申报、实施过程监督、竣工后受益","改善村内基础设施条件，提升脱贫人口生活设施水平"]
[604,"人居环境整治（农村污水治理）","张庄寨镇张庄寨社区赵庄污水管网建设项目","新建","县农业农村局","张庄寨镇\n李宁","张庄寨镇","张庄寨社区","否","建设雨污水管网，主管网约4000米，支管网约2000米","2023年12月15日前",{"$f":"M617+N617","v":320},320,null,"建设主管网约4000米，支管网约2000米，改善农户生产生活设施条件，提升村内基础设施水平","建设主管网约4000米，支管网约2000米",{"v":1,"d":"100%"},{"v":1,"d":"100%"},{"$nulls":4},2800,4630,null,null,"≥95%","项目申报、实施过程监督、竣工后受益","改善村内基础设施条件，提升脱贫人口生活设施水平"]
[605,"人居环境整治（农村污水治理）","庄里镇城阳小蔡村污水管网建设项目","新建","县农业农村局","庄里镇\n孟卫东","庄里镇","城阳村","是","建设污水管网，主管网约3000米，支管网约2000米","2023年12月15日前",260,260,null,"建设主管网约3000米，支管网约2000米，改善农户生产生活设施条件，提升村内基础设施水平。","设主管网约3000米，支管网约2000米",{"v":1,"d":"100%"},{"v":1,"d":"100%"},{"$nulls":4},210,800,null,null,"≥95%","项目申报、实施过程监督、竣工后受益","改善村内基础设施条件，提升脱贫人口生活设施水平"]
[606,"人居环境整治（农村污水治理）","庄里镇大蔡村大蔡自然村污水管网建设、道路建设及相关配套实施项目","新建","县农业农村局","庄里镇\n孟卫东","庄里镇","大蔡村","否","投资830万元建设污水管网，主管网约5000米，支管网约4000米，道路28000平方及相关配套设施","2023年12月15日前",960,960,null,"投资830万元建设污水管网，主管网约5000米，支管网约4000米，道路28000平方及相关配套设施，改善农户生产生活设施条件，提升村内基础设施水平。","投资830万元建设污水管网，主管网约5000米，支管网约4000米，道路28000平方",{"v":1,"d":"100%"},{"v":1,"d":"100%"},{"$nulls":4},385,1230,null,null,"≥95%","项目申报、实施过程监督、竣工后受益","改善村内基础设施条件，提升脱贫人口生活设施水平"]
[607,"人居环境整治（农村污水治理）","庄里镇尠沟村雨污水管网建设项目","新建","县农业农村局","庄里镇\n孟卫东","庄里镇","尠沟村","否","建设雨污水管网，主管网约7000米，支管网约5000米","2023年12月15日前",430,430,null,"建设主管网约7000米，支管网约5000米，改善农户生产生活设施条件，提升村内基础设施水平。","建设主管网约7000米，支管网约5000米",{"v":1,"d":"100%"},{"v":1,"d":"100%"},{"$nulls":4},400,1600,null,null,"≥95%","项目申报、实施过程监督、竣工后受益","改善村内基础设施条件，提升脱贫人口生活设施水平"]
[608,"人居环境整治（农村垃圾治理）","农村垃圾收集转运全覆盖","续建","县住房城乡建设局","县住房城乡建设局\n王毅","23个乡镇","/","/","农村垃圾收集转运服务","2023年12月15日前",6700,6700,null,"通过购买社会化服务，对农村垃圾收集转运，带动农户务工收益，改善农村生活生产环境","23个乡镇",{"v":1,"d":"100%"},{"v":1,"d":"100%"},"/","/","/","/",2500,8100,null,null,"≥95%","参与项目务工，建成后受益","通过委托社会化运营，拓宽当地农户就业岗位的同时，改善村内生活成产环境"]
[609,"人居环境整治（农村污水治理）","乡镇污水处理厂运维管护","续建","县生态环境分局","县生态环境分局\n张永","黄口、新庄等22个乡镇","/","/","用于宿州市萧县中持水务分公司保养运维管护22个乡镇的23个污水处理厂和配套管网","2023年12月15日前",2758.4,2758.4,null,"用于宿州市萧县中持水务分公司保养运维管护22个乡镇的23个污水处理厂和配套管网，确保23个污水厂2022年全年正常稳定运行","管护污水处理厂23个",{"v":1,"d":"100%"},{"v":1,"d":"100%"},"/","/","/","/",38968,81479,null,null,"≥95%","改善水生态环境和人居环境的质量，提升群众满意度","提升改善周围水体和人居环境，对治理水污染，保护当地流域水质和生态平衡具有十分重要的作用"]
[null,"四、就业项目",{"$nulls":9},3800,{"$f":"SUM(M624:M626)","v":3800}]
[610,"务工补助（交通费补助）","脱贫劳动者交通费补助项目","新建","县人力资源社会保障局","县人力资源社会保障局\n赵春云","各乡镇","/","/","按照每人300-500元标准，计划对3000名跨省就业的脱贫劳动者安排一次性交通补助","2023年12月15日前",450,450,null,"计划2023年底前补助脱贫劳动者交通补助9000人","享受脱贫劳动者交通补助人数≥9000人",{"v":1,"d":"100%"},{"v":1,"d":"100%"},null,null,"/","/","/",9000,null,null,"≥95%","项目申报、实施过程监督、务工带动增收","以提供交通补助的形式，激发脱贫户内生动力"]
[611,"务工补助（生产奖补、劳务补助等）","就业帮扶车间劳动奖补项目","新建","县人力资源社会保障局","县人力资源社会保障局\n赵春云","各乡镇","/","/","按照200元/人/月的标准给予在就业帮扶车间内务工的112人脱贫劳动者就业补助；按照吸纳脱贫劳动者人数稳定就业6个月以上，按每人每年2000-3000元的标准给予就业帮扶车间经营主体补助。","2023年12月15日前",150,150,null,"计划2023年底前补助脱贫劳动者120人","享受脱贫劳动者补助人数≥120人",{"v":1,"d":"100%"},{"v":1,"d":"100%"},null,null,"/","/","/",120,null,null,"≥95%","项目申报、实施过程监督、务工带动增收","以提供补助的形式，激发脱贫户就近就业"]
[612,"公益岗位项目","公益岗位项目","新建","县人力资源社会保障局","县人力资源社会保障局\n赵春云","各乡镇","/","/","开发保洁、保安、河道巡护员、环境监督员、村部保洁员和扶贫互助岗等基层基础辅助性公益岗位4800个","2023年12月15日前",3200,3200,null,"计划2023年底前保持基层基础辅助性公益岗位4800个","享受公益性岗位补贴人次数≥4800人",{"v":1,"d":"100%"},{"v":1,"d":"100%"},null,null,"/","/","/",4800,null,null,"≥95%","项目申报、实施过程监督、务工带动增收","以提供就业岗位的形式，人均年增收7200元以上。增加脱贫户收入发同时，有效激发脱贫户内生动力"]
[null,"五、巩固三保障成果",{"$nulls":9},{"$f":"L628","v":810},{"$f":"M628","v":810}]
[613,"教育（享受“雨露计划”职业教育资助","雨露计划","新建","县教育体育局","县教育体育局\n杜尚训","各乡镇","/","/","按照每学期1500元/人的标准，对符合条件的脱贫户（含监测对象）家庭子女落实中高职教育资助","2023年12月15日前",{"$f":"M628+N628","v":810},810,null,"按照每学期1500元/人的标准，对符合条件的脱贫户（含监测对象）家庭子女落实中高职教育资助","资助脱贫户（含监测对象）家庭子女人数2700人",{"v":1,"d":"100%"},{"v":1,"d":"100%"},null,"/","/","/",869,2700,null,null,"≥95%","项目申报、实施过程监督、贫困家庭子女直接受益","以教育补贴的形式，减轻脱贫户（含监测对象）家庭教育支出负担"]
[null,"六、项目管理费",{"$nulls":9},{"$f":"L630","v":600},{"$f":"M630","v":600}]
[614,"项目管理费","项目管理费","新建","各单位","有关单位、有关乡镇","各乡镇","/","/","用于项目前期设计、实施过程监督、竣工验收，竣工审计等","2023年12月15日前",{"$f":"M630+N630","v":600},600,null,"在到县衔接资金中，按照不超过1%资金比例要求，提取项目管理费，提升项目实施全过程管理水平","列支项目管理费占到县衔接资金的比例≤1%",{"v":1,"d":"100%"},{"v":1,"d":"100%"},"/","/","/","/","/","/",null,null,"≥95%","参与项目申报、实施过程监督、完成后受益","/"]